Workbook

Sheet GUIA PARA PREENCHIMENTO
A1: GUIA PARA PREENCHIMENTO
A3: 1 - Preencher apenas as guias azuis:
A5: 2 - Recomendamos preencher somente as células com fundo azul claro. As demais possuem fórmulas e sugerimos não alterá-las.

Sheet MODELO PROPOSTA
B2: MODELO DA PROPOSTA COMPLETA
B4: .
B5: I – FORMALIZAÇÃO
B7: PREGÃO ELETRÔNICO N. 90047/2024
B8: OBJETO: Contratação de pessoa jurídica especializada na prestação de serviços de vigilância patrimonial armada e desarmada nas áreas internas e externas da Câmara dos Deputados (Edifícios e estacionamentos do Complexo da Câmara dos Deputados, Complexo Avançado CEFOR/CETEC, blocos de apartamentos residenciais dos Parlamentares, Depósito SAAN, CEAM/SIA e Residência Oficial), a serem executados com regime de dedicação exclusiva de mão de obra, pelo período de 12 (doze) meses
B9: LICITANTE: _____________________________________________________
B10: CNPJ: ________________________________________________________
B11: ENDEREÇO COMPLETO: _________________________________________
B12: TELEFONE:_____________________________________________________
B13: E-MAIL: ________________________________________________________
B15: Apresentamos nossa proposta para o item único da presente licitação, de acordo com as disposições do Edital.
B16: Decorre do conteúdo da presente proposta a explicitação do seguinte PREÇO DE JULGAMENTO (GLOBAL ANUAL) PARA O ITEM:
B17: =Resumo!H99 -> 37527947.55
B18: =Extenso_Valor(B17) -> trinta e sete milhões, quinhentos e vinte e sete mil, novecentos e quarenta e sete reais e cinquenta e cinco centavos
B20: (por extenso)
B22: No valor proposto estão incluídos todos os custos e todas as despesas, diretas e indiretas, para a execução dos serviços objeto da licitação, em conformidade com as especificações e demais condições e exigências constantes do Edital.
B23: Informamos que eventuais rubricas dispostas em Acordo ou Convenção Coletiva de Trabalho que não se relacionem ao custo direto da venda do serviço, tais como “Participação nos Resultados” e “Abono substitutivo de Participação nos Resultados”, serão consideradas nos custos indiretos da proposta.
B24: O prazo de validade da presente proposta é de ______ (por extenso) dias. (observado o disposto no Título 4 do Edital).
B26: Convenção coletiva de trabalho ou a norma coletiva a que estamos obrigados:
B27: Data-Base:
B28: Número do Registro no SRT:
B29: Regime de tributação da empresa:
B30: Empresa é beneficiada pela desoneração da folha de pagamento instituída pela Lei n. 12.546, de 2001, alterada pela Lei n. 13.161, de 2015?
B31: Empresa adere ao PAT (Programa de Alimentação do Trabalhador)?
B32: (Se adere ao PAT): Os valores do auxílio-alimentação apresentados na presente proposta correspondem somente aos efetivamente pagos pela empresa aos empregados?
B34: DECLARAÇÕES
B36: A SEREM PRESTADAS SOMENTE NA HIPÓTESE DE LICITANTE MICROEMPRESA OU EMPRESA DE PEQUENO PORTE, EM CONFORMIDADE COM OS ARTIGOS 17, 18, 30 E 31 DA LEI COMPLEMENTAR N. 123, de 2006, E O ACÓRDÃO TCU 2798/2010-PLENÁRIO
B37: Declaramos que:
B38: a) em se tratando dos serviços vedados descritos no artigo 17 da Lei Complementar n. 123/2006, notadamente os descritos no inciso XII (cessão ou locação de mão de obra), ressalvados os serviços listados nos § 5º-C, inciso VI, c/c § 5º-H do art. 18 ou no § 1º do art. 17 da referida Lei, a proposta apresentada não contempla qualquer benefício tributário referente ao SIMPLES NACIONAL, conforme os itens 4.20 e 4.21 do Edital;
B39: b) na hipótese de contratação de Microempresa ou Empresa de Pequeno Porte inscrita no SIMPLES NACIONAL e executora de atividade vedada, que ficaremos sujeitos à exclusão obrigatória no SIMPLES NACIONAL a contar do mês seguinte ao da contratação, em consequência do que dispõem o artigo 17, inciso XII e o artigo 31, inciso II da Lei Complementar n. 123/2006, devendo entregar à Câmara dos Deputados, à título de comprovação, cópia de ofício – com comprovante de entrega e recebimento, que comunique a assinatura do contrato de prestação de serviços mediante cessão de mão de obra e encaminhado pela Contratada à Secretaria Especial da Receita Federal do Brasil até o último dia útil do mês subsequente ao da contratação, consoante artigo 30, § 1º, inciso II da Lei Complementar n. 123/2006.
B41: A SEREM PRESTADAS SOMENTE NA HIPÓTESE DE LICITANTE BENEFICIADA PELA DESONERAÇÃO DA FOLHA DE PAGAMENTO INSTITUÍDA PELA LEI N. 12.546, DE 2011, ALTERADA PELA LEI N. 13.161, DE 2015.
B43: Declaramos, sob as penas da Lei, que:
B44: a) recolhemos a contribuição previdenciária incidente sobre o valor da receita bruta, em substituição às contribuições previdenciárias incidentes sobre a folha de pagamento, previstas nos incisos I e III do caput do artigo 22 da Lei n. 8.212, de 24 de julho de 1991, na forma do caput do artigo 7º (ou 8º) da Lei n. 12.546, de 14 de dezembro de 2011, alterada pela Lei n. 13.161, de 31 de agosto de 2015;
B45: b) temos ciência que nossa manifestação, conforme alínea “a” anterior, será remetida à Receita Federal do Brasil e que, em caso de constatação de falsidade, estará sujeita às sanções administrativas cabíveis, sem prejuízo do encaminhamento dos documentos ao Ministério Público para apuração de eventual responsabilidade criminal desta declarante.
B46: A SEREM PRESTADAS SOMENTE PARA A LICITANTE QUE SEJA A ATUAL TITULAR DO CONTRATO QUE SERÁ SUCEDIDO PELA CONTRATAÇÃO DECORRENTE DO PREGÃO EM EPÍGRAFE, NA HIPÓTESE DE HAVER SALÁRIO(S) PRATICADO(S) NO CONTRATO VIGENTE SUPERIOR(ES) AOS MÍNIMOS FIXADOS NO EDITAL E QUE TENHA OPTADO POR TOMAR COMO BASE EM SEUS LANCES E NA PRESENTE PROPOSTA DE PREÇOS SALÁRIO(S) FIXADO(S) NESTE EDITAL:
B47: Declaramos que:
B48: a) estamos cientes de que deveremos apresentar à Câmara dos Deputados, no prazo improrrogável de 60 (sessenta) dias, contado da data de início da vigência do contrato, a convenção ou o acordo coletivo de trabalho, entabulado com a participação do sindicato dos trabalhadores, em que se autoriza a redução salarial, na forma do art. 7°, VI, da Constituição Federal, considerado, ainda, o disposto no subitem 10.9.2.1 do Título 10 da minuta do Termo de Contrato anexa ao Edital;
B49: b) estamos cientes de que, na hipótese de não cumprirmos o disposto no teor da declaração da alínea anterior (“a”) e não logrado êxito na contratação de remanescente, sendo necessária a realização de nova licitação, caso participemos do certame, deveremos tomar como base em nossos lances e em nossa proposta de preços o(s) salário(s) maior(es), absorvendo ou acrescentando eventual diferença no BDI, sob pena de desclassificação.
B51: É OBRIGATÓRIA A COMPROVAÇÃO A QUE SE REFERE O ITEM 4.3 DO TÍTULO 4 DO TERMO DE REFERÊNCIA (referente ao valor do Fator Acidentário de Prevenção (FAP)).
B53: DADOS PARA ASSINATURA DO CONTRATO
B54: Nome do signatário
B55: Cargo
B56: Qualificação (CPF, naturalidade e domicílio)
B57: OBS.: O signatário deve possuir poderes de administração estabelecidos em contrato social e/ou possuir procuração com poderes para assinar contratos em nome da empresa. A documentação comprobatória deverá ser encaminhada quando da assinatura do contrato.
B60: Brasília, de de 2020.
B62: Assinatura do representante legal da empresa
B65: Nome do representante legal da empresa

Sheet Remunerações
B1: QUADRO DE REMUNERAÇÕES
C3: ITEM | D3: POSTO DE TRABALHO | E3: QUANTIDADE | F3: SALÁRIO | G3: ADICIONAL DE PERICULOSIDADE | H3: ADICIONAL DE INSALUBRIDADE | I3: ADICIONAL NOTURNO | J3: OUTROS | K3: SALÁRIO COM ADICIONAIS
D4: POSTO DE TRABALHO - EQUIPE DE TRABALHO
C5: 1 | D5: =HLOOKUP($C5,'Dados Gerais'!$D$6:$Z$69,6) -> VIGILANTE SUPERVISOR II Escala 12 X 36 7h às 19h 2ª feira a Dom | E5: =HLOOKUP($C5,'Dados Gerais'!$D$6:$Z$69,10) -> 2 | F5: =HLOOKUP($C5,'Dados Gerais'!$D$6:$Z$69,8) -> 5786.06 | G5: =HLOOKUP($C5,'Dados Gerais'!$D$6:$Z$69,25) -> 1735.82 | H5: =HLOOKUP($C5,'Dados Gerais'!$D$6:$Z$69,31) -> 0 | I5: =HLOOKUP($C5,'Dados Gerais'!$D$6:$Z$69,46) -> 0 | J5: =HLOOKUP($C5,'Dados Gerais'!$D$6:$Z$69,33) -> 0 | K5: =SUM(F5:J5) -> 7521.88
C6: =C5+1 -> 2 | D6: =HLOOKUP($C6,'Dados Gerais'!$D$6:$Z$69,6) -> VIGILANTE SUPERVISOR I INTERNO DIURNO Escala 12 x 36 7h às 19h 2ª feira a Dom | E6: =HLOOKUP($C6,'Dados Gerais'!$D$6:$Z$69,10) -> 2 | F6: =HLOOKUP($C6,'Dados Gerais'!$D$6:$Z$69,8) -> 4450 | G6: =HLOOKUP($C6,'Dados Gerais'!$D$6:$Z$69,25) -> 1335 | H6: =HLOOKUP($C6,'Dados Gerais'!$D$6:$Z$69,31) -> 0 | I6: =HLOOKUP($C6,'Dados Gerais'!$D$6:$Z$69,46) -> 0 | J6: =HLOOKUP($C6,'Dados Gerais'!$D$6:$Z$69,33) -> 0 | K6: =SUM(F6:J6) -> 5785
C7: =C6+1 -> 3 | D7: =HLOOKUP($C7,'Dados Gerais'!$D$6:$Z$69,6) -> VIGILANTE SUPERVISOR I EXTERNO DIURNO Escala 12 x 36 7h às 19h 2ª feira a Dom | E7: =HLOOKUP($C7,'Dados Gerais'!$D$6:$Z$69,10) -> 2 | F7: =HLOOKUP($C7,'Dados Gerais'!$D$6:$Z$69,8) -> 4450 | G7: =HLOOKUP($C7,'Dados Gerais'!$D$6:$Z$69,25) -> 1335 | H7: =HLOOKUP($C7,'Dados Gerais'!$D$6:$Z$69,31) -> 0 | I7: =HLOOKUP($C7,'Dados Gerais'!$D$6:$Z$69,46) -> 0 | J7: =HLOOKUP($C7,'Dados Gerais'!$D$6:$Z$69,33) -> 272.34 | K7: 6057.34
C8: 4 | D8: =HLOOKUP($C8,'Dados Gerais'!$D$6:$Z$69,6) -> VIGILANTE SUPERVISOR I INTERNO NOTURNO Escala 12 x 36 19h às 7h 2ª feira a Dom | E8: =HLOOKUP($C8,'Dados Gerais'!$D$6:$Z$69,10) -> 2 | F8: =HLOOKUP($C8,'Dados Gerais'!$D$6:$Z$69,8) -> 4450 | G8: =HLOOKUP($C8,'Dados Gerais'!$D$6:$Z$69,25) -> 1335 | H8: =HLOOKUP($C8,'Dados Gerais'!$D$6:$Z$69,31) -> 0 | I8: =HLOOKUP($C8,'Dados Gerais'!$D$6:$Z$69,46) -> 631.09 | J8: =HLOOKUP($C8,'Dados Gerais'!$D$6:$Z$69,33) -> 0 | K8: 6416.09
C9: 5 | D9: =HLOOKUP($C9,'Dados Gerais'!$D$6:$Z$69,6) -> VIGILANTE SUPERVISOR I EXTERNO NOTURNO Escala 12 x 36 19h às 7h 2ª feira a Dom | E9: =HLOOKUP($C9,'Dados Gerais'!$D$6:$Z$69,10) -> 2 | F9: =HLOOKUP($C9,'Dados Gerais'!$D$6:$Z$69,8) -> 4450 | G9: =HLOOKUP($C9,'Dados Gerais'!$D$6:$Z$69,25) -> 1335 | H9: =HLOOKUP($C9,'Dados Gerais'!$D$6:$Z$69,31) -> 0 | I9: =HLOOKUP($C9,'Dados Gerais'!$D$6:$Z$69,46) -> 660.8 | J9: =HLOOKUP($C9,'Dados Gerais'!$D$6:$Z$69,33) -> 272.34 | K9: 6718.14
C10: 6 | D10: =HLOOKUP($C10,'Dados Gerais'!$D$6:$Z$69,6) -> VIGILANTE DIURNO PORTARIAS 1 Escala 12 x 36 7h às 19h 2ª feira a Dom | E10: =HLOOKUP($C10,'Dados Gerais'!$D$6:$Z$69,10) -> 36 | F10: =HLOOKUP($C10,'Dados Gerais'!$D$6:$Z$69,8) -> 3423.03 | G10: =HLOOKUP($C10,'Dados Gerais'!$D$6:$Z$69,25) -> 1026.91 | H10: =HLOOKUP($C10,'Dados Gerais'!$D$6:$Z$69,31) -> 0 | I10: =HLOOKUP($C10,'Dados Gerais'!$D$6:$Z$69,46) -> 0 | J10: =HLOOKUP($C10,'Dados Gerais'!$D$6:$Z$69,33) -> 0 | K10: 4449.94
C11: 7 | D11: =HLOOKUP($C11,'Dados Gerais'!$D$6:$Z$69,6) -> VIGILANTE NOTURNO PORTARIAS 1 Escala 12 x 36 19h às 7h 2ª feira a Dom | E11: =HLOOKUP($C11,'Dados Gerais'!$D$6:$Z$69,10) -> 30 | F11: =HLOOKUP($C11,'Dados Gerais'!$D$6:$Z$69,8) -> 3423.03 | G11: =HLOOKUP($C11,'Dados Gerais'!$D$6:$Z$69,25) -> 1026.91 | H11: =HLOOKUP($C11,'Dados Gerais'!$D$6:$Z$69,31) -> 0 | I11: =HLOOKUP($C11,'Dados Gerais'!$D$6:$Z$69,46) -> 485.45 | J11: =HLOOKUP($C11,'Dados Gerais'!$D$6:$Z$69,33) -> 0 | K11: 4935.39
C12: 8 | D12: =HLOOKUP($C12,'Dados Gerais'!$D$6:$Z$69,6) -> VIGILANTE MATUTINO PORTARIAS 1 Escala 40 horas semanais 7h às 16h 2ª à 6ª feira | E12: =HLOOKUP($C12,'Dados Gerais'!$D$6:$Z$69,10) -> 13 | F12: =HLOOKUP($C12,'Dados Gerais'!$D$6:$Z$69,8) -> 3423.03 | G12: =HLOOKUP($C12,'Dados Gerais'!$D$6:$Z$69,25) -> 1026.91 | H12: =HLOOKUP($C12,'Dados Gerais'!$D$6:$Z$69,31) -> 0 | I12: =HLOOKUP($C12,'Dados Gerais'!$D$6:$Z$69,46) -> 0 | J12: =HLOOKUP($C12,'Dados Gerais'!$D$6:$Z$69,33) -> 0 | K12: 4449.94
C13: 9 | D13: =HLOOKUP($C13,'Dados Gerais'!$D$6:$Z$69,6) -> VIGILANTE VESPERTINO PORTARIAS 1 Escala 40 horas semanais 13h às 22h 2ª à 6ª feira | E13: =HLOOKUP($C13,'Dados Gerais'!$D$6:$Z$69,10) -> 13 | F13: =HLOOKUP($C13,'Dados Gerais'!$D$6:$Z$69,8) -> 3423.03 | G13: =HLOOKUP($C13,'Dados Gerais'!$D$6:$Z$69,25) -> 1026.91 | H13: =HLOOKUP($C13,'Dados Gerais'!$D$6:$Z$69,31) -> 0 | I13: =HLOOKUP($C13,'Dados Gerais'!$D$6:$Z$69,46) -> 0 | J13: =HLOOKUP($C13,'Dados Gerais'!$D$6:$Z$69,33) -> 0 | K13: 4449.94
C14: 10 | D14: =HLOOKUP($C14,'Dados Gerais'!$D$6:$Z$69,6) -> VIGILANTE MATUTINO ESTACIONAMENTOS Escala 40 horas semanais 7h às 16h 2ª à 6ª feira | E14: =HLOOKUP($C14,'Dados Gerais'!$D$6:$Z$69,10) -> 24 | F14: =HLOOKUP($C14,'Dados Gerais'!$D$6:$Z$69,8) -> 3423.03 | G14: =HLOOKUP($C14,'Dados Gerais'!$D$6:$Z$69,25) -> 1026.91 | H14: =HLOOKUP($C14,'Dados Gerais'!$D$6:$Z$69,31) -> 0 | I14: =HLOOKUP($C14,'Dados Gerais'!$D$6:$Z$69,46) -> 0 | J14: =HLOOKUP($C14,'Dados Gerais'!$D$6:$Z$69,33) -> 0 | K14: 4449.94
C15: 11 | D15: =HLOOKUP($C15,'Dados Gerais'!$D$6:$Z$69,6) -> VIGILANTE VESPERTINO ESTACIONAMENTOS Escala 40 horas semanais 14h às 23h 2ª à 6ª feira | E15: =HLOOKUP($C15,'Dados Gerais'!$D$6:$Z$69,10) -> 24 | F15: =HLOOKUP($C15,'Dados Gerais'!$D$6:$Z$69,8) -> 3423.03 | G15: =HLOOKUP($C15,'Dados Gerais'!$D$6:$Z$69,25) -> 1026.91 | H15: =HLOOKUP($C15,'Dados Gerais'!$D$6:$Z$69,31) -> 0 | I15: =HLOOKUP($C15,'Dados Gerais'!$D$6:$Z$69,46) -> 101.71 | J15: =HLOOKUP($C15,'Dados Gerais'!$D$6:$Z$69,33) -> 0 | K15: 4551.65
C16: 12 | D16: =HLOOKUP($C16,'Dados Gerais'!$D$6:$Z$69,6) -> VIGILANTE DIURNO POSTOS EXTERNOS Escala 12 x 36 7h às 19h 2ª feira a Dom | E16: =HLOOKUP($C16,'Dados Gerais'!$D$6:$Z$69,10) -> 60 | F16: =HLOOKUP($C16,'Dados Gerais'!$D$6:$Z$69,8) -> 3423.03 | G16: =HLOOKUP($C16,'Dados Gerais'!$D$6:$Z$69,25) -> 1026.91 | H16: =HLOOKUP($C16,'Dados Gerais'!$D$6:$Z$69,31) -> 0 | I16: =HLOOKUP($C16,'Dados Gerais'!$D$6:$Z$69,46) -> 0 | J16: =HLOOKUP($C16,'Dados Gerais'!$D$6:$Z$69,33) -> 0 | K16: 4449.94
C17: 13 | D17: =HLOOKUP($C17,'Dados Gerais'!$D$6:$Z$69,6) -> VIGILANTE NOTURNO POSTOS EXTERNOS Escala 12 x 36 19h às 7h 2ª feira a Dom | E17: =HLOOKUP($C17,'Dados Gerais'!$D$6:$Z$69,10) -> 64 | F17: =HLOOKUP($C17,'Dados Gerais'!$D$6:$Z$69,8) -> 3423.03 | G17: =HLOOKUP($C17,'Dados Gerais'!$D$6:$Z$69,25) -> 1026.91 | H17: =HLOOKUP($C17,'Dados Gerais'!$D$6:$Z$69,31) -> 0 | I17: =HLOOKUP($C17,'Dados Gerais'!$D$6:$Z$69,46) -> 485.45 | J17: =HLOOKUP($C17,'Dados Gerais'!$D$6:$Z$69,33) -> 0 | K17: 4935.39
C18: 14 | D18: =HLOOKUP($C18,'Dados Gerais'!$D$6:$Z$69,6) -> 0 | E18: =HLOOKUP($C18,'Dados Gerais'!$D$6:$Z$69,10) -> 0 | F18: =HLOOKUP($C18,'Dados Gerais'!$D$6:$Z$69,8) -> 0 | G18: =HLOOKUP($C18,'Dados Gerais'!$D$6:$Z$69,25) -> 0 | H18: =HLOOKUP($C18,'Dados Gerais'!$D$6:$Z$69,31) -> 0 | I18: =HLOOKUP($C18,'Dados Gerais'!$D$6:$Z$69,46) -> 0 | J18: =HLOOKUP($C18,'Dados Gerais'!$D$6:$Z$69,33) -> 0 | K18: 0
C19: 15 | D19: =HLOOKUP($C19,'Dados Gerais'!$D$6:$Z$69,6) -> 0 | E19: =HLOOKUP($C19,'Dados Gerais'!$D$6:$Z$69,10) -> 0 | F19: =HLOOKUP($C19,'Dados Gerais'!$D$6:$Z$69,8) -> 0 | G19: =HLOOKUP($C19,'Dados Gerais'!$D$6:$Z$69,25) -> 0 | H19: =HLOOKUP($C19,'Dados Gerais'!$D$6:$Z$69,31) -> 0 | I19: =HLOOKUP($C19,'Dados Gerais'!$D$6:$Z$69,46) -> 0 | J19: =HLOOKUP($C19,'Dados Gerais'!$D$6:$Z$69,33) -> 0 | K19: 0
D26: TOTAL DE POSTOS | E26: =SUM(E5:E25) -> 274

Sheet Resumo
B3: RESUMO - TOTAIS MENSAIS - FATURA ORDINÁRIA (SEM O 13º E SEM OS ITENS SOB DEMANDA)
C6: ITEM | D6: POSTO DE TRABALHO | E6: QUANTIDADE | F6: PREÇO UNIT (SEM O 13º) | G6: DESTAQUE DO 13º | H6: PREÇO POR EMPREGADO | I6: PREÇO TOTAL (MENSAL)
C7: 1 | D7: =HLOOKUP(C7,'Dados Gerais'!$D$6:$BK$11,6) -> VIGILANTE SUPERVISOR II Escala 12 X 36 7h às 19h 2ª feira a Dom | E7: =HLOOKUP(C7,'Dados Gerais'!$D$6:$BK$15,10) -> 2 | F7: ='1'!$E$114 -> 15610.32956 | G7: 0 | H7: =G7+F7 -> 15610.32956 | I7: =H7*E7 -> 31220.65912
C8: 2 | D8: =HLOOKUP(C8,'Dados Gerais'!$D$6:$BK$11,6) -> VIGILANTE SUPERVISOR I INTERNO DIURNO Escala 12 x 36 7h às 19h 2ª feira a Dom | E8: =HLOOKUP(C8,'Dados Gerais'!$D$6:$BK$15,10) -> 2 | F8: ='2'!$E$114 -> 12255.67252 | G8: 0 | H8: 12255.67252 | I8: 24511.34504
C9: 3 | D9: =HLOOKUP(C9,'Dados Gerais'!$D$6:$BK$11,6) -> VIGILANTE SUPERVISOR I EXTERNO DIURNO Escala 12 x 36 7h às 19h 2ª feira a Dom | E9: =HLOOKUP(C9,'Dados Gerais'!$D$6:$BK$15,10) -> 2 | F9: ='3'!$E$114 -> 12781.67604 | G9: 0 | H9: 12781.67604 | I9: 25563.35208
C10: 4 | D10: =HLOOKUP(C10,'Dados Gerais'!$D$6:$BK$11,6) -> VIGILANTE SUPERVISOR I INTERNO NOTURNO Escala 12 x 36 19h às 7h 2ª feira a Dom | E10: =HLOOKUP(C10,'Dados Gerais'!$D$6:$BK$15,10) -> 2 | F10: ='4'!$E$114 -> 13474.55396 | G10: 0 | H10: 13474.55396 | I10: 26949.10792
C11: 5 | D11: =HLOOKUP(C11,'Dados Gerais'!$D$6:$BK$11,6) -> VIGILANTE SUPERVISOR I EXTERNO NOTURNO Escala 12 x 36 19h às 7h 2ª feira a Dom | E11: =HLOOKUP(C11,'Dados Gerais'!$D$6:$BK$15,10) -> 2 | F11: ='5'!$E$114 -> 14057.95216 | G11: 0 | H11: =G11+F11 -> 14057.95216 | I11: =H11*E11 -> 28115.90432
C12: 6 | D12: =HLOOKUP(C12,'Dados Gerais'!$D$6:$BK$11,6) -> VIGILANTE DIURNO PORTARIAS 1 Escala 12 x 36 7h às 19h 2ª feira a Dom | E12: =HLOOKUP(C12,'Dados Gerais'!$D$6:$BK$15,10) -> 36 | F12: ='6'!$E$114 -> 9756.20464 | G12: 0 | H12: 9756.20464 | I12: 351223.367
C13: 7 | D13: =HLOOKUP(C13,'Dados Gerais'!$D$6:$BK$11,6) -> VIGILANTE NOTURNO PORTARIAS 1 Escala 12 x 36 19h às 7h 2ª feira a Dom | E13: =HLOOKUP(C13,'Dados Gerais'!$D$6:$BK$15,10) -> 30 | F13: ='7'!$E$114 -> 10693.81964 | G13: 0 | H13: 10693.81964 | I13: 320814.5892
C14: 8 | D14: =HLOOKUP(C14,'Dados Gerais'!$D$6:$BK$11,6) -> VIGILANTE MATUTINO PORTARIAS 1 Escala 40 horas semanais 7h às 16h 2ª à 6ª feira | E14: =HLOOKUP(C14,'Dados Gerais'!$D$6:$BK$15,10) -> 13 | F14: ='8'!$E$114 -> 10283.4242 | G14: 0 | H14: 10283.4242 | I14: 133684.5146
C15: 9 | D15: =HLOOKUP(C15,'Dados Gerais'!$D$6:$BK$11,6) -> VIGILANTE VESPERTINO PORTARIAS 1 Escala 40 horas semanais 13h às 22h 2ª à 6ª feira | E15: =HLOOKUP(C15,'Dados Gerais'!$D$6:$BK$15,10) -> 13 | F15: ='9'!$E$114 -> 10283.4242 | G15: 0 | H15: =G15+F15 -> 10283.4242 | I15: =H15*E15 -> 133684.5146
C16: 10 | D16: =HLOOKUP(C16,'Dados Gerais'!$D$6:$BK$11,6) -> VIGILANTE MATUTINO ESTACIONAMENTOS Escala 40 horas semanais 7h às 16h 2ª à 6ª feira | E16: =HLOOKUP(C16,'Dados Gerais'!$D$6:$BK$15,10) -> 24 | F16: ='10'!$E$114 -> 10408.54388 | G16: 0 | H16: 10408.54388 | I16: 249805.0531
C17: 11 | D17: =HLOOKUP(C17,'Dados Gerais'!$D$6:$BK$11,6) -> VIGILANTE VESPERTINO ESTACIONAMENTOS Escala 40 horas semanais 14h às 23h 2ª à 6ª feira | E17: =HLOOKUP(C17,'Dados Gerais'!$D$6:$BK$15,10) -> 24 | F17: ='11'!$E$114 -> 10605.03668 | G17: 0 | H17: 10605.03668 | I17: 254520.8803
C18: 12 | D18: =HLOOKUP(C18,'Dados Gerais'!$D$6:$BK$11,6) -> VIGILANTE DIURNO POSTOS EXTERNOS Escala 12 x 36 7h às 19h 2ª feira a Dom | E18: =HLOOKUP(C18,'Dados Gerais'!$D$6:$BK$15,10) -> 60 | F18: ='12'!$E$114 -> 10220.84028 | G18: 0 | H18: =G18+F18 -> 10220.84028 | I18: =H18*E18 -> 613250.4168
C19: 13 | D19: =HLOOKUP(C19,'Dados Gerais'!$D$6:$BK$11,6) -> VIGILANTE NOTURNO POSTOS EXTERNOS Escala 12 x 36 19h às 7h 2ª feira a Dom | E19: =HLOOKUP(C19,'Dados Gerais'!$D$6:$BK$15,10) -> 64 | F19: ='13'!$E$114 -> 11158.45528 | G19: 0 | H19: 11158.45528 | I19: 714141.1379
C20: 14 | D20: =HLOOKUP(C20,'Dados Gerais'!$D$6:$BK$11,6) -> 0 | E20: =HLOOKUP(C20,'Dados Gerais'!$D$6:$BK$15,10) -> 0 | F20: ='14'!$E$114 -> 0 | G20: 0 | H20: 0 | I20: 0
C21: 15 | D21: =HLOOKUP(C21,'Dados Gerais'!$D$6:$BK$11,6) -> 0 | E21: =HLOOKUP(C21,'Dados Gerais'!$D$6:$BK$15,10) -> 0 | F21: ='15'!$E$114 -> 0 | G21: 0 | H21: =G21+F21 -> 0 | I21: =H21*E21 -> 0
D23: TOTAL MENSAL - SALÁRIOS | I23: =SUM(I7:I22) -> 2907484.842
B26: RESUMO - TOTAIS MENSAIS - DESTAQUE DO 13º SALÁRIO
C29: ITEM | D29: POSTO DE TRABALHO | E29: QUANTIDADE | F29: PREÇO UNIT (SEM O 13º) | G29: DESTAQUE DO 13º | H29: PREÇO POR EMPREGADO | I29: PREÇO TOTAL (MENSAL)
C30: 1 | D30: =HLOOKUP(C30,'Dados Gerais'!$D$6:$BK$11,6) -> VIGILANTE SUPERVISOR II Escala 12 X 36 7h às 19h 2ª feira a Dom | E30: =HLOOKUP(C30,'Dados Gerais'!$D$6:$BK$15,10) -> 2 | F30: 0 | G30: =G53 -> 1125.82 | H30: =G30+F30 -> 1125.82 | I30: =H30*E30 -> 2251.64
C31: 2 | D31: =HLOOKUP(C31,'Dados Gerais'!$D$6:$BK$11,6) -> VIGILANTE SUPERVISOR I INTERNO DIURNO Escala 12 x 36 7h às 19h 2ª feira a Dom | E31: =HLOOKUP(C31,'Dados Gerais'!$D$6:$BK$15,10) -> 2 | F31: 0 | G31: 865.87 | H31: =G31+F31 -> 865.87 | I31: 1731.74
C32: 3 | D32: =HLOOKUP(C32,'Dados Gerais'!$D$6:$BK$11,6) -> VIGILANTE SUPERVISOR I EXTERNO DIURNO Escala 12 x 36 7h às 19h 2ª feira a Dom | E32: =HLOOKUP(C32,'Dados Gerais'!$D$6:$BK$15,10) -> 2 | F32: 0 | G32: 906.64 | H32: 906.64 | I32: 1813.28
C33: 4 | D33: =HLOOKUP(C33,'Dados Gerais'!$D$6:$BK$11,6) -> VIGILANTE SUPERVISOR I INTERNO NOTURNO Escala 12 x 36 19h às 7h 2ª feira a Dom | E33: =HLOOKUP(C33,'Dados Gerais'!$D$6:$BK$15,10) -> 2 | F33: 0 | G33: 960.32 | H33: 960.32 | I33: 1920.64
C34: 5 | D34: =HLOOKUP(C34,'Dados Gerais'!$D$6:$BK$11,6) -> VIGILANTE SUPERVISOR I EXTERNO NOTURNO Escala 12 x 36 19h às 7h 2ª feira a Dom | E34: =HLOOKUP(C34,'Dados Gerais'!$D$6:$BK$15,10) -> 2 | F34: 0 | G34: 1005.53 | H34: 1005.53 | I34: 2011.06
C35: 6 | D35: =HLOOKUP(C35,'Dados Gerais'!$D$6:$BK$11,6) -> VIGILANTE DIURNO PORTARIAS 1 Escala 12 x 36 7h às 19h 2ª feira a Dom | E35: =HLOOKUP(C35,'Dados Gerais'!$D$6:$BK$15,10) -> 36 | F35: 0 | G35: 666.04 | H35: 666.04 | I35: 23977.44
C36: 7 | D36: =HLOOKUP(C36,'Dados Gerais'!$D$6:$BK$11,6) -> VIGILANTE NOTURNO PORTARIAS 1 Escala 12 x 36 19h às 7h 2ª feira a Dom | E36: =HLOOKUP(C36,'Dados Gerais'!$D$6:$BK$15,10) -> 30 | F36: 0 | G36: 738.69 | H36: =G36+F36 -> 738.69 | I36: =H36*E36 -> 22160.7
C37: 8 | D37: =HLOOKUP(C37,'Dados Gerais'!$D$6:$BK$11,6) -> VIGILANTE MATUTINO PORTARIAS 1 Escala 40 horas semanais 7h às 16h 2ª à 6ª feira | E37: =HLOOKUP(C37,'Dados Gerais'!$D$6:$BK$15,10) -> 13 | F37: 0 | G37: 666.04 | H37: 666.04 | I37: 8658.52
C38: 9 | D38: =HLOOKUP(C38,'Dados Gerais'!$D$6:$BK$11,6) -> VIGILANTE VESPERTINO PORTARIAS 1 Escala 40 horas semanais 13h às 22h 2ª à 6ª feira | E38: =HLOOKUP(C38,'Dados Gerais'!$D$6:$BK$15,10) -> 13 | F38: 0 | G38: 666.04 | H38: 666.04 | I38: 8658.52
C39: 10 | D39: =HLOOKUP(C39,'Dados Gerais'!$D$6:$BK$11,6) -> VIGILANTE MATUTINO ESTACIONAMENTOS Escala 40 horas semanais 7h às 16h 2ª à 6ª feira | E39: =HLOOKUP(C39,'Dados Gerais'!$D$6:$BK$15,10) -> 24 | F39: 0 | G39: 666.04 | H39: =G39+F39 -> 666.04 | I39: 15984.96
C40: 11 | D40: =HLOOKUP(C40,'Dados Gerais'!$D$6:$BK$11,6) -> VIGILANTE VESPERTINO ESTACIONAMENTOS Escala 40 horas semanais 14h às 23h 2ª à 6ª feira | E40: =HLOOKUP(C40,'Dados Gerais'!$D$6:$BK$15,10) -> 24 | F40: 0 | G40: 681.26 | H40: 681.26 | I40: 16350.24
C41: 12 | D41: =HLOOKUP(C41,'Dados Gerais'!$D$6:$BK$11,6) -> VIGILANTE DIURNO POSTOS EXTERNOS Escala 12 x 36 7h às 19h 2ª feira a Dom | E41: =HLOOKUP(C41,'Dados Gerais'!$D$6:$BK$15,10) -> 60 | F41: 0 | G41: 666.04 | H41: =G41+F41 -> 666.04 | I41: =H41*E41 -> 39962.4
C42: 13 | D42: =HLOOKUP(C42,'Dados Gerais'!$D$6:$BK$11,6) -> VIGILANTE NOTURNO POSTOS EXTERNOS Escala 12 x 36 19h às 7h 2ª feira a Dom | E42: =HLOOKUP(C42,'Dados Gerais'!$D$6:$BK$15,10) -> 64 | F42: 0 | G42: 738.69 | H42: 738.69 | I42: 47276.16
C43: 14 | D43: =HLOOKUP(C43,'Dados Gerais'!$D$6:$BK$11,6) -> 0 | E43: =HLOOKUP(C43,'Dados Gerais'!$D$6:$BK$15,10) -> 0 | F43: 0 | G43: 0 | H43: 0 | I43: 0
C44: 15 | D44: =HLOOKUP(C44,'Dados Gerais'!$D$6:$BK$11,6) -> 0 | E44: =HLOOKUP(C44,'Dados Gerais'!$D$6:$BK$15,10) -> 0 | F44: 0 | G44: 0 | H44: =G44+F44 -> 0 | I44: =H44*E44 -> 0
D46: TOTAL MENSAL - DESTAQUE DO 13º | I46: =SUM(I30:I45) -> 192757.3
B49: RESUMO - TOTAIS MENSAIS - FATURA ORDINÁRIA TOTAL
C52: ITEM | D52: POSTO DE TRABALHO | E52: QUANTIDADE | F52: PREÇO UNIT (SEM O 13º) | G52: DESTAQUE DO 13º | H52: PREÇO POR EMPREGADO | I52: PREÇO TOTAL (MENSAL)
C53: 1 | D53: =HLOOKUP(C53,'Dados Gerais'!$D$6:$BK$11,6) -> VIGILANTE SUPERVISOR II Escala 12 X 36 7h às 19h 2ª feira a Dom | E53: =HLOOKUP(C53,'Dados Gerais'!$D$6:$BK$15,10) -> 2 | F53: =F7 -> 15610.32956 | G53: ='1'!$E$115 -> 1125.82 | H53: =G53+F53 -> 16736.14956 | I53: =H53*E53 -> 33472.29912 | K53: =I53/$I$69 -> 0.01079667251 | L53: =$I$83*K53 -> 292.447534
C54: 2 | D54: =HLOOKUP(C54,'Dados Gerais'!$D$6:$BK$11,6) -> VIGILANTE SUPERVISOR I INTERNO DIURNO Escala 12 x 36 7h às 19h 2ª feira a Dom | E54: =HLOOKUP(C54,'Dados Gerais'!$D$6:$BK$15,10) -> 2 | F54: 12255.67252 | G54: ='2'!$E$115 -> 865.87 | H54: =G54+F54 -> 13121.54252 | I54: =H54*E54 -> 26243.08504 | K54: =I54/$I$69 -> 0.008464850111 | L54: 229.2858783
C55: 3 | D55: =HLOOKUP(C55,'Dados Gerais'!$D$6:$BK$11,6) -> VIGILANTE SUPERVISOR I EXTERNO DIURNO Escala 12 x 36 7h às 19h 2ª feira a Dom | E55: =HLOOKUP(C55,'Dados Gerais'!$D$6:$BK$15,10) -> 2 | F55: 12781.67604 | G55: ='3'!$E$115 -> 906.64 | H55: 13688.31604 | I55: 27376.63208 | K55: 0.008830481887 | L55: 239.1896807
C56: 4 | D56: =HLOOKUP(C56,'Dados Gerais'!$D$6:$BK$11,6) -> VIGILANTE SUPERVISOR I INTERNO NOTURNO Escala 12 x 36 19h às 7h 2ª feira a Dom | E56: =HLOOKUP(C56,'Dados Gerais'!$D$6:$BK$15,10) -> 2 | F56: 13474.55396 | G56: ='4'!$E$115 -> 960.32 | H56: 14434.87396 | I56: 28869.74792 | K56: 0.009312094539 | L56: 252.2350364
C57: 5 | D57: =HLOOKUP(C57,'Dados Gerais'!$D$6:$BK$11,6) -> VIGILANTE SUPERVISOR I EXTERNO NOTURNO Escala 12 x 36 19h às 7h 2ª feira a Dom | E57: =HLOOKUP(C57,'Dados Gerais'!$D$6:$BK$15,10) -> 2 | F57: 14057.95216 | G57: ='5'!$E$115 -> 1005.53 | H57: 15063.48216 | I57: 30126.96432 | K57: 0.009717616541 | L57: 263.2193382
C58: 6 | D58: =HLOOKUP(C58,'Dados Gerais'!$D$6:$BK$11,6) -> VIGILANTE DIURNO PORTARIAS 1 Escala 12 x 36 7h às 19h 2ª feira a Dom | E58: =HLOOKUP(C58,'Dados Gerais'!$D$6:$BK$15,10) -> 36 | F58: 9756.20464 | G58: ='6'!$E$115 -> 666.04 | H58: 10422.24464 | I58: 375200.807 | K58: 0.1210230652 | L58: 3278.130085
C59: 7 | D59: =HLOOKUP(C59,'Dados Gerais'!$D$6:$BK$11,6) -> VIGILANTE NOTURNO PORTARIAS 1 Escala 12 x 36 19h às 7h 2ª feira a Dom | E59: =HLOOKUP(C59,'Dados Gerais'!$D$6:$BK$15,10) -> 30 | F59: 10693.81964 | G59: ='7'!$E$115 -> 738.69 | H59: 11432.50964 | I59: 342975.2892 | K59: 0.1106285488 | L59: 2996.575681
C60: 8 | D60: =HLOOKUP(C60,'Dados Gerais'!$D$6:$BK$11,6) -> VIGILANTE MATUTINO PORTARIAS 1 Escala 40 horas semanais 7h às 16h 2ª à 6ª feira | E60: =HLOOKUP(C60,'Dados Gerais'!$D$6:$BK$15,10) -> 13 | F60: 10283.4242 | G60: ='8'!$E$115 -> 666.04 | H60: 10949.4642 | I60: 142343.0346 | K60: 0.04591352161 | L60: 1243.651334
C61: 9 | D61: =HLOOKUP(C61,'Dados Gerais'!$D$6:$BK$11,6) -> VIGILANTE VESPERTINO PORTARIAS 1 Escala 40 horas semanais 13h às 22h 2ª à 6ª feira | E61: =HLOOKUP(C61,'Dados Gerais'!$D$6:$BK$15,10) -> 13 | F61: 10283.4242 | G61: ='9'!$E$115 -> 666.04 | H61: 10949.4642 | I61: 142343.0346 | K61: 0.04591352161 | L61: 1243.651334
C62: 10 | D62: =HLOOKUP(C62,'Dados Gerais'!$D$6:$BK$11,6) -> VIGILANTE MATUTINO ESTACIONAMENTOS Escala 40 horas semanais 7h às 16h 2ª à 6ª feira | E62: =HLOOKUP(C62,'Dados Gerais'!$D$6:$BK$15,10) -> 24 | F62: 10408.54388 | G62: ='10'!$E$115 -> 666.04 | H62: 11074.58388 | I62: 265790.0131 | K62: 0.08573201735 | L62: 2322.207794
C63: 11 | D63: =HLOOKUP(C63,'Dados Gerais'!$D$6:$BK$11,6) -> VIGILANTE VESPERTINO ESTACIONAMENTOS Escala 40 horas semanais 14h às 23h 2ª à 6ª feira | E63: =HLOOKUP(C63,'Dados Gerais'!$D$6:$BK$15,10) -> 24 | F63: 10605.03668 | G63: ='11'!$E$115 -> 681.26 | H63: 11286.29668 | I63: 270871.1203 | K63: 0.08737095617 | L63: 2366.601436
C64: 12 | D64: =HLOOKUP(C64,'Dados Gerais'!$D$6:$BK$11,6) -> VIGILANTE DIURNO POSTOS EXTERNOS Escala 12 x 36 7h às 19h 2ª feira a Dom | E64: =HLOOKUP(C64,'Dados Gerais'!$D$6:$BK$15,10) -> 60 | F64: 10220.84028 | G64: ='12'!$E$115 -> 666.04 | H64: =G64+F64 -> 10886.88028 | I64: =H64*E64 -> 653212.8168 | K64: =I64/$I$69 -> 0.2106973542 | L64: =$I$83*K64 -> 5707.121484
C65: 13 | D65: =HLOOKUP(C65,'Dados Gerais'!$D$6:$BK$11,6) -> VIGILANTE NOTURNO POSTOS EXTERNOS Escala 12 x 36 19h às 7h 2ª feira a Dom | E65: =HLOOKUP(C65,'Dados Gerais'!$D$6:$BK$15,10) -> 64 | F65: 11158.45528 | G65: ='13'!$E$115 -> 738.69 | H65: 11897.14528 | I65: 761417.2979 | K65: 0.2455992994 | L65: 6652.504218
C66: 14 | D66: =HLOOKUP(C66,'Dados Gerais'!$D$6:$BK$11,6) -> 0 | E66: =HLOOKUP(C66,'Dados Gerais'!$D$6:$BK$15,10) -> 0 | F66: 0 | G66: ='14'!$E$115 -> 0 | H66: 0 | I66: 0 | K66: 0 | L66: 0
C67: 15 | D67: =HLOOKUP(C67,'Dados Gerais'!$D$6:$BK$11,6) -> 0 | E67: =HLOOKUP(C67,'Dados Gerais'!$D$6:$BK$15,10) -> 0 | F67: 0 | G67: ='15'!$E$115 -> 0 | H67: 0 | I67: 0 | K67: 0 | L67: 0
D69: TOTAL MENSAL - SALÁRIOS | I69: =SUM(I53:I68) -> 3100242.142
C71: ITEM | D71: DESCRIÇÃO | I71: PREÇO TOTAL (MENSAL)
C72: EQUIP | D72: EQUIPAMENTOS NÃO RELACIONADOS DIRETAMENTE A UM POSTO DE TRABALHO | I72: ='Não Rel - Equip'!M69 -> 0
C73: HEXTRA | D73: HORAS EXTRAS | I73: ='Não Rel - Equip'!M69 -> 0
C74: HNOT | D74: ADICIONAL DE HORAS NOTURNAS (SOB DEMANDA) | I74: 0
C75: SREP | D75: SISTEMA DE REGISTRO ELETRÔNICO DE PRESENÇA - SREP | I75: =SREP!$M$46 -> 0
C76: EPI - N.REL | D76: EQUIPAMENTOS DE PROTEÇÃO INDIVIDUAL NÃO RELACIONADOS DIRETAMENTE A UM POSTO DE TRABALHO | I76: ='Não Rel - EPI'!K19 -> 15310.22083
C77: EQUIP - N.REL | D77: EQUIPAMENTOS NÃO RELACIONADOS DIRETAMENTE A UM POSTO DE TRABALHO | I77: ='Não Rel - Equip'!M70 -> 8812.05
C78: MAT | D78: MATERIAIS NÃO RELACIONADOS DIRETAMENTE A UM POSTO DE TRABALHO | I78: ='Não Rel - Mat Consumo'!L24 -> 0
C79: MAT CONS DURAVEL | D79: MATERIAIS DE CONSUMO DURÁVEL NÃO RELACIONADOS DIRETAMENTE A UM POSTO DE TRABALHO | I79: ='Não Rel - Mat Cons Durável'!M37 -> 0
C80: EQ SOB DEMANDA | D80: SERVIÇOS NÃO RELACIONADOS DIRETAMENTE A UM POSTO DE TRABALHO | I80: ='Não Rel - Serviços'!K10 -> 0
C81: TRANSPORTE | D81: TRANSPORTE PARA RONDAS | I81: =Transporte!J26 -> 2964.55
D83: TOTAL MENSAL | I83: =SUM(I72:I82) -> 27086.82083 | K83: =(I83+I69)*12 -> 37527947.55
D85: TOTAL MENSAL - ITENS ORDINÁRIOS
D86: DESCRIÇÃO | H86: VALOR
D87: Postos de Trabalho - Inclusive 13º Salário | H87: =I69 -> 3100242.142
D88: Adicional de Horas Noturnas | H88: =I74 -> 0
D89: Sistema de Registro Eletrônico de Presença - SREP | H89: =I75 -> 0
D90: Equipamentos de Proteção Individual não relacionados diretamente a um posto de trabalho | H90: =I76 -> 15310.22083
D91: Equipamentos não relacionadas diretamente a um posto de trabalho | H91: =I77 -> 8812.05
D92: Materiais de consumo não relacionados diretamente a um posto de trabalho | H92: =$I$78 -> 0
D93: Transporte para rondas | H93: =I81 -> 2964.55
G95: TOTAL MENSAL DA CONTRATAÇÃO | H95: =SUM(H87:H94) -> 3127328.963 | K95: =Extenso_Valor(H95) -> três milhões, cento e vinte e sete mil, trezentos e vinte e oito reais e noventa e seis centavos
D97: TOTAL ANUAL - ITENS ORDINÁRIOS
G99: 12 x TOTAL MENSAL | H99: =ROUND(H95*12,2) -> 37527947.55 | K99: =Extenso_Valor(H99) -> trinta e sete milhões, quinhentos e vinte e sete mil, novecentos e quarenta e sete reais e cinquenta e cinco centavos
D101: TOTAL MENSAL - ITENS SOB DEMANDA
D102: DESCRIÇÃO | H102: VALOR
D103: Serviços não relacionados diretamente a um posto de trabalho - AQUISIÇÃO SOB DEMANDA | H103: =I80 -> 0
G105: TOTAL MENSAL DA CONTRATAÇÃO | H105: =SUM(H103:H104) -> 0
D107: TOTAL ANUAL - ITENS SOB DEMANDA
G109: 12 x TOTAL MENSAL | H109: =H105*12 -> 0
D111: TOTAL ANUAL DA CONTRATAÇÃO
H113: =H109+H99 -> 37527947.55 | K113: =Extenso_Valor(H113) -> trinta e sete milhões, quinhentos e vinte e sete mil, novecentos e quarenta e sete reais e cinquenta e cinco centavos
D115: TOTAL GLOBAL DA CONTRATAÇÃO (30 MESES)
H122: =H95+H105 -> 3127328.963 | K122: =Extenso_Valor(H122) -> três milhões, cento e vinte e sete mil, trezentos e vinte e oito reais e noventa e seis centavos

Sheet 1
B2: PLANILHA DE ESTIMATIVA DE CUSTOS
B5: 1 | D5: =HLOOKUP($B$5,'Dados Gerais'!$D$6:$BK$21,6) -> VIGILANTE SUPERVISOR II Escala 12 X 36 7h às 19h 2ª feira a Dom | E5: QUANTIDADE | F5: =HLOOKUP($B$5,'Dados Gerais'!$D$6:$BK$21,10) -> 2
B6: CCT | D6: =HLOOKUP($B$5,'Dados Gerais'!$D$6:$BK$21,15) -> SINDESV/DF X SINDESP/DF 2024/2024 Nº DF000333/2024 | E6: DATA-BASE | F6: =HLOOKUP($B$5,'Dados Gerais'!$D$6:$BK$21,16) -> 2024-01-01
B8: MÓDULO 1 - COMPOSIÇÃO DA REMUNERAÇÃO | F8: Valor
C9: A | D9: Salário-Base | F9: =HLOOKUP($B$5,'Dados Gerais'!$D$6:$BK$21,8) -> 5786.06
C10: B | D10: Adicional de Periculosidade | F10: =HLOOKUP($B$5,'Dados Gerais'!$D$6:$BK$38,25) -> 1735.82
C11: C | D11: Adicional de Insalubridade | F11: =HLOOKUP($B$5,'Dados Gerais'!$D$6:$BK$38,31) -> 0
C12: D | D12: Adicional Noturno | F12: =HLOOKUP($B$5,'Dados Gerais'!$D$6:$BK$51,46) -> 0 | H12: * Nota 1 - O Módulo 1 refere-se ao valor mensal devido ao empregado pela prestação do serviço no período de 12 meses.
C13: E | D13: Adicional de Hora Extra | F13: =HLOOKUP($B$5,'Dados Gerais'!$D$6:$BK$68,63) -> 0 | H13: * Nota 2 - O adicional de hora extra no feriado trabalhado foi suprimido pela Lei 13.467/17
C14: F | D14: Outros (especificar) | F14: =HLOOKUP($B$5,'Dados Gerais'!$D$6:$BK$60,33) -> 0 | H14: * Nota 3 - ART. 7º, § 2º, DA LEI Nº 605/49.Sendo mensalista o obreiro, o adicional noturno pago de forma fixa já é considerado integrado para os efeitos do pagamento do repouso semanal remunerado, nos termos do art. 7º, § 2º, da Lei nº 605/49.
D16: TOTAL DA REMUNERAÇÃO | F16: =SUM(F9:F14) -> 7521.88
B18: MÓDULO 2 - ENCARGOS E BENEFÍCIOS ANUAIS, MENSAIS E DIÁRIOS | E18: Percentuais | F18: Valor
B19: Submódulo 2.1 - 13º Salário e Adicional de Férias
C20: A | D20: 13º Salário - Calculado no Módulo 7 - Destacado | E20: 0 | F20: =ROUND(E20*F$16,2) -> 0 | H20: * Nota 1 - Provisiona-se, mensalmente, o proporcional a 1/12 dos valores referentes a gratificação natalina, calculada à parte
C21: B | D21: Adicional de Férias | E21: ='Encargos Sociais'!E31 -> 0.0303 | F21: =ROUND(E21*F$16,2) -> 227.91 | H21: * Nota 2 - O adicional de férias foi calculado dividindo-se por 11, para comportar os 11 meses presentes e ainda o ausente do posto
B23: Submódulo 2.2 - Encargos Previdenciários (GPS), Fundo de Garantia por Tempo de Serviço (FGTS) e Outras Contribuições
C24: A | D24: ='Encargos Sociais'!D14 -> INSS (art. 22, inciso I, Lei nº 8.212/91) | E24: ='Encargos Sociais'!E14 -> 0.2 | F24: =ROUND(E24*($F$16+$F$41+$F$72),2) -> 1716.79
C25: B | D25: ='Encargos Sociais'!D15 -> Salário Educação (art. 3º, inciso I, Decreto nº 87.043/82) | E25: ='Encargos Sociais'!E15 -> 0.025 | F25: 214.6
C26: C | D26: ='Encargos Sociais'!D16 -> SAT/RAT (art. 22, II, Lei 8.212/91 e Anexo V, Decreto 6.042/07) - Enquadramento 8011-1/01 | E26: ='Encargos Sociais'!E16 -> 0.03 | F26: 257.52
C27: D | D27: ='Encargos Sociais'!D17 -> SESC ou SESI (art. 30, Lei nº 8.036/90 e art. 1º, Lei 8.154/90) | E27: ='Encargos Sociais'!E17 -> 0.015 | F27: 128.76
C28: E | D28: ='Encargos Sociais'!D18 -> SENAI ou SENAC (Decreto nº 2.318/86) | E28: ='Encargos Sociais'!E18 -> 0.01 | F28: 85.84 | H28: * Nota 1 - Os percentuais dos encargos previdenciários, do FGTS e demais contribuições são estabelecidos por legislação vigente.
C29: F | D29: ='Encargos Sociais'!D19 -> SEBRAE (§ 3º, art. 8º, Lei 8.029/90, alterada pela Lei nº 8.154/90) | E29: ='Encargos Sociais'!E19 -> 0.006 | F29: 51.5 | H29: * Nota 2 - O SAT, a depender do grau de risco do serviço, irá variar entre 1%, para risco leve, de 2%, para risco médio, e de 3% para risco grave.
C30: G | D30: ='Encargos Sociais'!D20 -> INCRA (art. 1º, I, Decreto Lei 1.146/70 e Lei 7.787, de 30/06/89) | E30: ='Encargos Sociais'!E20 -> 0.002 | F30: 17.17 | H30: * Nota 3 - Base de cálculo - remuneração + ausências + terço constitucional (férias)
C31: H | D31: ='Encargos Sociais'!D21 -> FGTS (Lei Complementar nº 110/01 e art. 30, Lei nº 8.036/90) | E31: ='Encargos Sociais'!E21 -> 0.08 | F31: 686.72
C32: I | D32: ='Encargos Sociais'!D22 -> SECONCI (Convenções Coletivas de Trabalho da construção) | E32: ='Encargos Sociais'!E22 -> 0 | F32: 0
B34: Submódulo 2.3 - Benefícios Mensais e Diários
C35: A | D35: Auxílio Transporte | F35: =HLOOKUP($B$5,'Dados Gerais'!$D$6:$BK$94,82) -> 0
C36: B | D36: Auxílio Alimentação | F36: =HLOOKUP($B$5,'Dados Gerais'!$D$6:$BK$94,89) -> 710.55 | H36: * Nota 1 - O valor informado deverá ser o custo real do benefício (descontado o valor eventualmente pago pelo empregado).
C37: C | D37: Assistência Médica e Familiar | F37: =HLOOKUP($B$5,'Dados Gerais'!$D$6:$BK$102,97) -> 0 | H37: * Nota 2 - Observar a previsão dos benefícios contidos em Acordos, Convenções e Dissídios Coletivos de Trabalho e o disposto no art. 6º da IN 5/2017
C38: D | D38: Outros (Seguro de vida e auxílio funeral e auxílio odontológico) | F38: =HLOOKUP($B$5,'Dados Gerais'!$D$6:$BK$119,114) -> 32.16
D40: QUADRO-RESUMO DO MÓDULO 2
D41: 2.1 - Adicional de Férias | E41: =SUM(E20:E21) -> 0.0303 | F41: =F20+F21 -> 227.91
D42: 2.2 - Encargos Previdenciários (GPS), Fundo de Garantia por Tempo de Serviço (FGTS) e Contribuições | E42: =SUM(E24:E32) -> 0.368 | F42: =SUM(F24:F32) -> 3158.9
D43: 2.3 - Benefícios Mensais e Diários | F43: =SUM(F35:F38) -> 742.71
D45: TOTAL DOS ENCARGOS E BENEFÍCIOS | F45: =SUM(F41:F43) -> 4129.52
B47: MÓDULO 3 - PREVISÃO PARA RESCISÃO | E47: Percentuais | F47: Valor
C48: A | D48: ='Encargos Sociais'!D36 -> Aviso Prévio Indenizado (Art. 7º, inciso XXI, da CF/1988 e arts. 477, 487, §1º, e 491 da CLT) | E48: ='Encargos Sociais'!E36 -> 0.0042 | F48: =ROUND(E48*($F$16+$F$72+$F$41),2) -> 36.05
C49: B | D49: ='Encargos Sociais'!D37 -> 13º sobre aviso prévio indenizado | E49: ='Encargos Sociais'!E37 -> 0.0004 | F49: =ROUND(E49*($F$16+$F$72+$F$41),2) -> 3.43 | H49: * Nota 1 - Adotou-se os parâmetros do estudo do STF (http://www.stf.jus.br/arquivo/cms/sobrestfestudosci/anexo/encargos_sociais_03102007.pdf), onde 5% do pessoal é demitido pelo empregador no decurso do contrato (para estes, considerou-se o aviso prévio indenizado). Desprezou-se as demissões por justa causa e os pedidos de demissão.
C50: C | D50: ='Encargos Sociais'!D38 -> Incidência do FGTS sobre o Aviso Prévio Indenizado (Súmula 305 TST) | E50: ='Encargos Sociais'!E38 -> 0.0003 | F50: =ROUND(E50*($F$16+$F$72+$F$41),2) -> 2.58 | H50: * Nota 2 - Base de cálculo - remuneração + ausências + 1/3 férias
C51: D | D51: ='Encargos Sociais'!D39 -> Multa do FGTS sobre o Aviso Prévio (Art. 18, §1º, da Lei 8.036/1990) | E51: ='Encargos Sociais'!E39 -> 0.032 | F51: =ROUND(E51*($F$16+$F$72+$F$41),2) -> 274.69
C52: E | D52: ='Encargos Sociais'!D40 -> Indenização Adicional - data-base (Art. 9º, Lei 7.238/1984) | E52: ='Encargos Sociais'!E40 -> 0.0008 | F52: =ROUND(E52*($F$16+$F$72+$F$41),2) -> 6.87
D54: TOTAL DE PREVISÃO PARA RESCISÃO | F54: =SUM(F48:F52) -> 323.62
B56: MÓDULO 4 - CUSTO DO PROFISSIONAL AUSENTE | E56: Percentuais | F56: Valor
B57: Submódulo 4.1 - Ausências Legais
C58: A | D58: ='Encargos Sociais'!D25 -> Férias (Arts. 129 e 130, inc. I, da CLT) | E58: ='Encargos Sociais'!E25 -> 0.0909 | F58: =ROUND(E58*$F$16,2) -> 683.74 | H58: * Nota 1 - O Módulo 4 refere-se às previsões para custear ausências do próprio profissional (titular do cargo)
C59: B | D59: ='Encargos Sociais'!D26 -> Ausências Legais (Arts. 131 e 473 da CLT) | E59: ='Encargos Sociais'!E26 -> 0.0079 | F59: 59.42 | H59: * Nota 2 - As férias foram calculadas dividindo-se por 11, para comportar os 11 meses presentes e ainda o ausente do posto
C60: C | D60: ='Encargos Sociais'!D27 -> Licença-Paternidade (Art. 7º, XIX, e art. 10, §1º, do ADCT, CF/1988 e Art. 1º, II, da Lei 11.770/2008) | E60: ='Encargos Sociais'!E27 -> 0.0008 | F60: 6.02
C61: D | D61: ='Encargos Sociais'!D28 -> Ausência por Acidente de Trabalho (Art. 131, III, da CLT) | E61: ='Encargos Sociais'!E28 -> 0.0009 | F61: 6.77
C62: E | D62: ='Encargos Sociais'!D29 -> Afastamento Maternidade (Art. 71 da Lei nº 8.213/1991) | E62: ='Encargos Sociais'!E29 -> 0.0033 | F62: 24.82
C63: F | D63: ='Encargos Sociais'!D30 -> Auxílio Enfermidade - Doença (Art. 59 da Lei nº 8.213/1991) | E63: ='Encargos Sociais'!E30 -> 0.0071 | F63: 53.41
B65: Submódulo 4.2 - Intrajornada
C66: A | D66: Intervalo para repouso ou alimentação | E66: ='Encargos Sociais'!E33 -> 0 | F66: =ROUND(E66*$F$16,2) -> 0
D68: QUADRO-RESUMO DO MÓDULO 4 | F68: Valor
D69: 4.1 - Ausências Legais | E69: =SUM(E58:E63) -> 0.1109 | F69: =ROUND(E69*$F$16,2) -> 834.18
D70: 4.2 - Intrajornada | E70: =E66 -> 0 | F70: =ROUND(E70*$F$16,2) -> 0
D72: TOTAL DE PREVISÃO PARA CUSTO DO PROFISSIONAL AUSENTE E INTERVALO INTRAJORNADA | F72: =SUM(F69:F70) -> 834.18
B74: MÓDULO 5 - INSUMOS DIVERSOS | F74: Valor
C75: A | D75: Uniformes - aquisição | F75: =ROUND(HLOOKUP($B$5,Uniformes!L4:EA90,3)/12,2) -> 156.19
C76: B | D76: Materiais de consumo relacionados ao posto - aquisição | F76: =ROUND(HLOOKUP(B5,'Mat Cons'!I11:DX13,3)/12,2) -> 0
C77: C | D77: Materiais permanentes relacionados ao posto - remuneração da sua depreciação / manutenção | F77: =HLOOKUP(B5,'Mat Perm'!Q11:EF13,3) -> 0
C78: D | D78: Equipamentos relacionados ao posto - remuneração da sua depreciação / manutenção | F78: =HLOOKUP(B5,'Equip Rel'!Q3:EF5,3) -> 0
C79: E | D79: Equipamentos de Proteção Individual - EPI - aquisição | F79: =ROUND(HLOOKUP(B5,EPI!J4:DY6,3)/12,2) -> 0
D81: TOTAL DE INSUMOS DIVERSOS | F81: =SUM(F75:F80) -> 156.19 | H81: * Nota - Valores mensais por empregado
B83: MÓDULO 6 - CUSTOS INDIRETOS, TRIBUTOS E LUCRO - BDI | E83: Percentuais | F83: Valor
C84: A | D84: Custos Indiretos | E84: =BDI!E6 -> 0.0227
C85: A.1 | D85: Administração Central | E85: =BDI!E7 -> 0.0173
C86: A.2 | D86: Seguros, Garantias e Riscos | E86: =BDI!E8 -> 0.0054
C87: B | D87: Lucro | E87: =BDI!E10 -> 0.0267
C88: C | D88: Tributos | E88: =SUM(E89:E90) -> 0.124
C89: C.1 | D89: Tributos Federais (COFINS, PIS e CPRB) | E89: =BDI!E18 -> 0.074
C90: C.2 | D90: Tributos Distritais (ISS) | E90: =BDI!E23 -> 0.05
C91: D | D91: Despesas Financeiras | E91: =BDI!E13 -> 0.004466921098
D93: TOTAL DE BDI | E93: =BDI!E26 -> 0.204 | F93: =E93*E101 -> 2644.93956
D95: QUADRO-RESUMO DO CUSTO MENSAL POR EMPREGADO - SEM O 13º | E95: Valor
D96: Módulo 1 - Composição da Remuneração | E96: =F16 -> 7521.88
D97: Módulo 2 - Encargos e Benefícios Anuais, Mensais e Diários | E97: =F45 -> 4129.52
D98: Módulo 3 - Provisão para Rescisão | E98: =F54 -> 323.62
D99: Módulo 4 - Custo de Reposição do Profissional Ausente | E99: =F72 -> 834.18
D100: Módulo 5 - Insumos Diversos | E100: =F81 -> 156.19
D101: SUBTOTAL (A+B+C+D+E) | E101: =SUM(E96:E100) -> 12965.39
D102: Módulo 6 - Custos Indiretos, Tributos e Lucro | E102: =F93 -> 2644.93956
D104: TOTAL DO POSTO | E104: =SUM(E101:E102) -> 15610.32956
B106: MÓDULO 7 - DESTAQUE DO MÓDULO 2 - 13º SALÁRIO | E106: Percentuais | F106: Valor
C107: A | D107: 13º Salário | E107: ='Encargos Sociais'!E32*12/11 -> 0.09087272727 | F107: =ROUND(E107*F$16,2) -> 683.53 | H107: * Nota 1 - Incluindo-se a reincidência das férias do substituto sobre o titular
C108: B | D108: Encargos Sociais sobre o 13º Salário | E108: =SUM($E$24:$E$32) -> 0.368 | F108: =ROUND(E108*$F$107,2) -> 251.54 | H108: * Nota 2 - Provisiona-se, mensalmente, o proporcional a 1/12 dos valores referentes a gratificação natalina e adicional de férias.
C109: C | D109: BDI sobre o 13º Salário - Taxa calculada no MÓDULO 6 | E109: =E93 -> 0.204 | F109: =ROUND(E109*($F$107+$F$108),2) -> 190.75
D111: TOTAL DO DESTAQUE DO 13º SALÁRIO | F111: =SUM(F107:F109) -> 1125.82
D113: QUADRO-RESUMO DO CUSTO MENSAL POR EMPREGADO | E113: Valor
D114: Custo total - sem o 13º Salário | E114: =E104 -> 15610.32956
D115: Destaque do 13º Salário (valor mensal) | E115: =F111 -> 1125.82
D117: TOTAL DO POSTO | E117: =E114+E115 -> 16736.14956

Sheet 2
B2: PLANILHA DE ESTIMATIVA DE CUSTOS
B5: 2 | D5: =HLOOKUP($B$5,'Dados Gerais'!$D$6:$BK$21,6) -> VIGILANTE SUPERVISOR I INTERNO DIURNO Escala 12 x 36 7h às 19h 2ª feira a Dom | E5: QUANTIDADE | F5: =HLOOKUP($B$5,'Dados Gerais'!$D$6:$BK$21,10) -> 2
B6: CCT | D6: =HLOOKUP($B$5,'Dados Gerais'!$D$6:$BK$21,15) -> SINDESV/DF X SINDESP/DF 2024/2024 Nº DF000333/2024 | E6: DATA-BASE | F6: =HLOOKUP($B$5,'Dados Gerais'!$D$6:$BK$21,16) -> 2024-01-01
B8: MÓDULO 1 - COMPOSIÇÃO DA REMUNERAÇÃO | F8: Valor
C9: A | D9: Salário-Base | F9: =HLOOKUP($B$5,'Dados Gerais'!$D$6:$BK$21,8) -> 4450
C10: B | D10: Adicional de Periculosidade | F10: =HLOOKUP($B$5,'Dados Gerais'!$D$6:$BK$38,25) -> 1335
C11: C | D11: Adicional de Insalubridade | F11: =HLOOKUP($B$5,'Dados Gerais'!$D$6:$BK$38,31) -> 0
C12: D | D12: Adicional Noturno | F12: =HLOOKUP($B$5,'Dados Gerais'!$D$6:$BK$51,46) -> 0 | H12: * Nota 1 - O Módulo 1 refere-se ao valor mensal devido ao empregado pela prestação do serviço no período de 12 meses.
C13: E | D13: Adicional de Hora Extra | F13: =HLOOKUP($B$5,'Dados Gerais'!$D$6:$BK$68,63) -> 0 | H13: * Nota 2 - O adicional de hora extra no feriado trabalhado foi suprimido pela Lei 13.467/17
C14: F | D14: Outros (especificar) | F14: =HLOOKUP($B$5,'Dados Gerais'!$D$6:$BK$60,33) -> 0 | H14: * Nota 3 - ART. 7º, § 2º, DA LEI Nº 605/49.Sendo mensalista o obreiro, o adicional noturno pago de forma fixa já é considerado integrado para os efeitos do pagamento do repouso semanal remunerado, nos termos do art. 7º, § 2º, da Lei nº 605/49.
D16: TOTAL DA REMUNERAÇÃO | F16: =SUM(F9:F14) -> 5785
B18: MÓDULO 2 - ENCARGOS E BENEFÍCIOS ANUAIS, MENSAIS E DIÁRIOS | E18: Percentuais | F18: Valor
B19: Submódulo 2.1 - 13º Salário e Adicional de Férias
C20: A | D20: 13º Salário - Calculado no Módulo 7 - Destacado | E20: 0 | F20: =ROUND(E20*F$16,2) -> 0 | H20: * Nota 1 - Provisiona-se, mensalmente, o proporcional a 1/12 dos valores referentes a gratificação natalina, calculada à parte
C21: B | D21: Adicional de Férias | E21: ='Encargos Sociais'!E31 -> 0.0303 | F21: =ROUND(E21*F$16,2) -> 175.29 | H21: * Nota 2 - O adicional de férias foi calculado dividindo-se por 11, para comportar os 11 meses presentes e ainda o ausente do posto
B23: Submódulo 2.2 - Encargos Previdenciários (GPS), Fundo de Garantia por Tempo de Serviço (FGTS) e Outras Contribuições
C24: A | D24: ='Encargos Sociais'!D14 -> INSS (art. 22, inciso I, Lei nº 8.212/91) | E24: ='Encargos Sociais'!E14 -> 0.2 | F24: =ROUND(E24*($F$16+$F$41+$F$72),2) -> 1320.37
C25: B | D25: ='Encargos Sociais'!D15 -> Salário Educação (art. 3º, inciso I, Decreto nº 87.043/82) | E25: ='Encargos Sociais'!E15 -> 0.025 | F25: 165.05
C26: C | D26: ='Encargos Sociais'!D16 -> SAT/RAT (art. 22, II, Lei 8.212/91 e Anexo V, Decreto 6.042/07) - Enquadramento 8011-1/01 | E26: ='Encargos Sociais'!E16 -> 0.03 | F26: 198.06
C27: D | D27: ='Encargos Sociais'!D17 -> SESC ou SESI (art. 30, Lei nº 8.036/90 e art. 1º, Lei 8.154/90) | E27: ='Encargos Sociais'!E17 -> 0.015 | F27: 99.03
C28: E | D28: ='Encargos Sociais'!D18 -> SENAI ou SENAC (Decreto nº 2.318/86) | E28: ='Encargos Sociais'!E18 -> 0.01 | F28: 66.02 | H28: * Nota 1 - Os percentuais dos encargos previdenciários, do FGTS e demais contribuições são estabelecidos por legislação vigente.
C29: F | D29: ='Encargos Sociais'!D19 -> SEBRAE (§ 3º, art. 8º, Lei 8.029/90, alterada pela Lei nº 8.154/90) | E29: ='Encargos Sociais'!E19 -> 0.006 | F29: 39.61 | H29: * Nota 2 - O SAT, a depender do grau de risco do serviço, irá variar entre 1%, para risco leve, de 2%, para risco médio, e de 3% para risco grave.
C30: G | D30: ='Encargos Sociais'!D20 -> INCRA (art. 1º, I, Decreto Lei 1.146/70 e Lei 7.787, de 30/06/89) | E30: ='Encargos Sociais'!E20 -> 0.002 | F30: 13.2 | H30: * Nota 3 - Base de cálculo - remuneração + ausências + terço constitucional (férias)
C31: H | D31: ='Encargos Sociais'!D21 -> FGTS (Lei Complementar nº 110/01 e art. 30, Lei nº 8.036/90) | E31: ='Encargos Sociais'!E21 -> 0.08 | F31: 528.15
C32: I | D32: ='Encargos Sociais'!D22 -> SECONCI (Convenções Coletivas de Trabalho da construção) | E32: ='Encargos Sociais'!E22 -> 0 | F32: 0
B34: Submódulo 2.3 - Benefícios Mensais e Diários
C35: A | D35: Auxílio Transporte | F35: =HLOOKUP($B$5,'Dados Gerais'!$D$6:$BK$94,82) -> 0
C36: B | D36: Auxílio Alimentação | F36: =HLOOKUP($B$5,'Dados Gerais'!$D$6:$BK$94,89) -> 710.55 | H36: * Nota 1 - O valor informado deverá ser o custo real do benefício (descontado o valor eventualmente pago pelo empregado).
C37: C | D37: Assistência Médica e Familiar | F37: =HLOOKUP($B$5,'Dados Gerais'!$D$6:$BK$102,97) -> 0 | H37: * Nota 2 - Observar a previsão dos benefícios contidos em Acordos, Convenções e Dissídios Coletivos de Trabalho e o disposto no art. 6º da IN 5/2017
C38: D | D38: Outros (Seguro de vida e auxílio funeral e auxílio odontológico) | F38: =HLOOKUP($B$5,'Dados Gerais'!$D$6:$BK$119,114) -> 32.16
D40: QUADRO-RESUMO DO MÓDULO 2
D41: 2.1 - Adicional de Férias | E41: =SUM(E20:E21) -> 0.0303 | F41: =F20+F21 -> 175.29
D42: 2.2 - Encargos Previdenciários (GPS), Fundo de Garantia por Tempo de Serviço (FGTS) e Contribuições | E42: =SUM(E24:E32) -> 0.368 | F42: =SUM(F24:F32) -> 2429.49
D43: 2.3 - Benefícios Mensais e Diários | F43: =SUM(F35:F38) -> 742.71
D45: TOTAL DOS ENCARGOS E BENEFÍCIOS | F45: =SUM(F41:F43) -> 3347.49
B47: MÓDULO 3 - PREVISÃO PARA RESCISÃO | E47: Percentuais | F47: Valor
C48: A | D48: ='Encargos Sociais'!D36 -> Aviso Prévio Indenizado (Art. 7º, inciso XXI, da CF/1988 e arts. 477, 487, §1º, e 491 da CLT) | E48: ='Encargos Sociais'!E36 -> 0.0042 | F48: =ROUND(E48*($F$16+$F$72+$F$41),2) -> 27.73
C49: B | D49: ='Encargos Sociais'!D37 -> 13º sobre aviso prévio indenizado | E49: ='Encargos Sociais'!E37 -> 0.0004 | F49: =ROUND(E49*($F$16+$F$72+$F$41),2) -> 2.64 | H49: * Nota 1 - Adotou-se os parâmetros do estudo do STF (http://www.stf.jus.br/arquivo/cms/sobrestfestudosci/anexo/encargos_sociais_03102007.pdf), onde 5% do pessoal é demitido pelo empregador no decurso do contrato (para estes, considerou-se o aviso prévio indenizado). Desprezou-se as demissões por justa causa e os pedidos de demissão.
C50: C | D50: ='Encargos Sociais'!D38 -> Incidência do FGTS sobre o Aviso Prévio Indenizado (Súmula 305 TST) | E50: ='Encargos Sociais'!E38 -> 0.0003 | F50: =ROUND(E50*($F$16+$F$72+$F$41),2) -> 1.98 | H50: * Nota 2 - Base de cálculo - remuneração + ausências + 1/3 férias
C51: D | D51: ='Encargos Sociais'!D39 -> Multa do FGTS sobre o Aviso Prévio (Art. 18, §1º, da Lei 8.036/1990) | E51: ='Encargos Sociais'!E39 -> 0.032 | F51: =ROUND(E51*($F$16+$F$72+$F$41),2) -> 211.26
C52: E | D52: ='Encargos Sociais'!D40 -> Indenização Adicional - data-base (Art. 9º, Lei 7.238/1984) | E52: ='Encargos Sociais'!E40 -> 0.0008 | F52: =ROUND(E52*($F$16+$F$72+$F$41),2) -> 5.28
D54: TOTAL DE PREVISÃO PARA RESCISÃO | F54: =SUM(F48:F52) -> 248.89
B56: MÓDULO 4 - CUSTO DO PROFISSIONAL AUSENTE | E56: Percentuais | F56: Valor
B57: Submódulo 4.1 - Ausências Legais
C58: A | D58: ='Encargos Sociais'!D25 -> Férias (Arts. 129 e 130, inc. I, da CLT) | E58: ='Encargos Sociais'!E25 -> 0.0909 | F58: =ROUND(E58*$F$16,2) -> 525.86 | H58: * Nota 1 - O Módulo 4 refere-se às previsões para custear ausências do próprio profissional (titular do cargo)
C59: B | D59: ='Encargos Sociais'!D26 -> Ausências Legais (Arts. 131 e 473 da CLT) | E59: ='Encargos Sociais'!E26 -> 0.0079 | F59: 45.7 | H59: * Nota 2 - As férias foram calculadas dividindo-se por 11, para comportar os 11 meses presentes e ainda o ausente do posto
C60: C | D60: ='Encargos Sociais'!D27 -> Licença-Paternidade (Art. 7º, XIX, e art. 10, §1º, do ADCT, CF/1988 e Art. 1º, II, da Lei 11.770/2008) | E60: ='Encargos Sociais'!E27 -> 0.0008 | F60: 4.63
C61: D | D61: ='Encargos Sociais'!D28 -> Ausência por Acidente de Trabalho (Art. 131, III, da CLT) | E61: ='Encargos Sociais'!E28 -> 0.0009 | F61: 5.21
C62: E | D62: ='Encargos Sociais'!D29 -> Afastamento Maternidade (Art. 71 da Lei nº 8.213/1991) | E62: ='Encargos Sociais'!E29 -> 0.0033 | F62: 19.09
C63: F | D63: ='Encargos Sociais'!D30 -> Auxílio Enfermidade - Doença (Art. 59 da Lei nº 8.213/1991) | E63: ='Encargos Sociais'!E30 -> 0.0071 | F63: 41.07
B65: Submódulo 4.2 - Intrajornada
C66: A | D66: Intervalo para repouso ou alimentação | E66: ='Encargos Sociais'!E33 -> 0 | F66: =ROUND(E66*$F$16,2) -> 0
D68: QUADRO-RESUMO DO MÓDULO 4 | F68: Valor
D69: 4.1 - Ausências Legais | E69: =SUM(E58:E63) -> 0.1109 | F69: =ROUND(E69*$F$16,2) -> 641.56
D70: 4.2 - Intrajornada | E70: =E66 -> 0 | F70: =ROUND(E70*$F$16,2) -> 0
D72: TOTAL DE PREVISÃO PARA CUSTO DO PROFISSIONAL AUSENTE E INTERVALO INTRAJORNADA | F72: =SUM(F69:F70) -> 641.56
B74: MÓDULO 5 - INSUMOS DIVERSOS | F74: Valor
C75: A | D75: Uniformes - aquisição | F75: =ROUND(HLOOKUP($B$5,Uniformes!L4:EA90,3)/12,2) -> 156.19
C76: B | D76: Materiais de consumo relacionados ao posto - aquisição | F76: =ROUND(HLOOKUP(B5,'Mat Cons'!I11:DX13,3)/12,2) -> 0
C77: C | D77: Materiais permanentes relacionados ao posto - remuneração da sua depreciação / manutenção | F77: =HLOOKUP(B5,'Mat Perm'!Q11:EF13,3) -> 0
C78: D | D78: Equipamentos relacionados ao posto - remuneração da sua depreciação / manutenção | F78: =HLOOKUP(B5,'Equip Rel'!Q3:EF5,3) -> 0
C79: E | D79: Equipamentos de Proteção Individual - EPI - aquisição | F79: =ROUND(HLOOKUP(B5,EPI!J4:DY6,3)/12,2) -> 0
D81: TOTAL DE INSUMOS DIVERSOS | F81: =SUM(F75:F80) -> 156.19 | H81: * Nota - Valores mensais por empregado
B83: MÓDULO 6 - CUSTOS INDIRETOS, TRIBUTOS E LUCRO - BDI | E83: Percentuais | F83: Valor
C84: A | D84: Custos Indiretos | E84: =BDI!E6 -> 0.0227
C85: A.1 | D85: Administração Central | E85: =BDI!E7 -> 0.0173
C86: A.2 | D86: Seguros, Garantias e Riscos | E86: =BDI!E8 -> 0.0054
C87: B | D87: Lucro | E87: =BDI!E10 -> 0.0267
C88: C | D88: Tributos | E88: =SUM(E89:E90) -> 0.124
C89: C.1 | D89: Tributos Federais (COFINS, PIS e CPRB) | E89: =BDI!E18 -> 0.074
C90: C.2 | D90: Tributos Distritais (ISS) | E90: =BDI!E23 -> 0.05
C91: D | D91: Despesas Financeiras | E91: =BDI!E13 -> 0.004466921098
D93: TOTAL DE BDI | E93: =BDI!E26 -> 0.204 | F93: =E93*E101 -> 2076.54252
D95: QUADRO-RESUMO DO CUSTO MENSAL POR EMPREGADO - SEM O 13º | E95: Valor
D96: Módulo 1 - Composição da Remuneração | E96: =F16 -> 5785
D97: Módulo 2 - Encargos e Benefícios Anuais, Mensais e Diários | E97: =F45 -> 3347.49
D98: Módulo 3 - Provisão para Rescisão | E98: =F54 -> 248.89
D99: Módulo 4 - Custo de Reposição do Profissional Ausente | E99: =F72 -> 641.56
D100: Módulo 5 - Insumos Diversos | E100: =F81 -> 156.19
D101: SUBTOTAL (A+B+C+D+E) | E101: =SUM(E96:E100) -> 10179.13
D102: Módulo 6 - Custos Indiretos, Tributos e Lucro | E102: =F93 -> 2076.54252
D104: TOTAL DO POSTO | E104: =SUM(E101:E102) -> 12255.67252
B106: MÓDULO 7 - DESTAQUE DO MÓDULO 2 - 13º SALÁRIO | E106: Percentuais | F106: Valor
C107: A | D107: 13º Salário | E107: ='Encargos Sociais'!E32*12/11 -> 0.09087272727 | F107: =ROUND(E107*F$16,2) -> 525.7 | H107: * Nota 1 - Incluindo-se a reincidência das férias do substituto sobre o titular
C108: B | D108: Encargos Sociais sobre o 13º Salário | E108: =SUM($E$24:$E$32) -> 0.368 | F108: =ROUND(E108*$F$107,2) -> 193.46 | H108: * Nota 2 - Provisiona-se, mensalmente, o proporcional a 1/12 dos valores referentes a gratificação natalina e adicional de férias.
C109: C | D109: BDI sobre o 13º Salário - Taxa calculada no MÓDULO 6 | E109: =E93 -> 0.204 | F109: =ROUND(E109*($F$107+$F$108),2) -> 146.71
D111: TOTAL DO DESTAQUE DO 13º SALÁRIO | F111: =SUM(F107:F109) -> 865.87
D113: QUADRO-RESUMO DO CUSTO MENSAL POR EMPREGADO | E113: Valor
D114: Custo total - sem o 13º Salário | E114: =E104 -> 12255.67252
D115: Destaque do 13º Salário (valor mensal) | E115: =F111 -> 865.87
D117: TOTAL DO POSTO | E117: =E114+E115 -> 13121.54252

Sheet 3
B2: PLANILHA DE ESTIMATIVA DE CUSTOS
B5: 3 | D5: =HLOOKUP($B$5,'Dados Gerais'!$D$6:$BK$21,6) -> VIGILANTE SUPERVISOR I EXTERNO DIURNO Escala 12 x 36 7h às 19h 2ª feira a Dom | E5: QUANTIDADE | F5: =HLOOKUP($B$5,'Dados Gerais'!$D$6:$BK$21,10) -> 2
B6: CCT | D6: =HLOOKUP($B$5,'Dados Gerais'!$D$6:$BK$21,15) -> SINDESV/DF X SINDESP/DF 2024/2024 Nº DF000333/2024 | E6: DATA-BASE | F6: =HLOOKUP($B$5,'Dados Gerais'!$D$6:$BK$21,16) -> 2024-01-01
B8: MÓDULO 1 - COMPOSIÇÃO DA REMUNERAÇÃO | F8: Valor
C9: A | D9: Salário-Base | F9: =HLOOKUP($B$5,'Dados Gerais'!$D$6:$BK$21,8) -> 4450
C10: B | D10: Adicional de Periculosidade | F10: =HLOOKUP($B$5,'Dados Gerais'!$D$6:$BK$38,25) -> 1335
C11: C | D11: Adicional de Insalubridade | F11: =HLOOKUP($B$5,'Dados Gerais'!$D$6:$BK$38,31) -> 0
C12: D | D12: Adicional Noturno | F12: =HLOOKUP($B$5,'Dados Gerais'!$D$6:$BK$51,46) -> 0 | H12: * Nota 1 - O Módulo 1 refere-se ao valor mensal devido ao empregado pela prestação do serviço no período de 12 meses.
C13: E | D13: Adicional de Hora Extra | F13: =HLOOKUP($B$5,'Dados Gerais'!$D$6:$BK$68,63) -> 0 | H13: * Nota 2 - O adicional de hora extra no feriado trabalhado foi suprimido pela Lei 13.467/17
C14: F | D14: Outros (especificar) | F14: =HLOOKUP($B$5,'Dados Gerais'!$D$6:$BK$60,33) -> 272.34 | H14: * Nota 3 - ART. 7º, § 2º, DA LEI Nº 605/49.Sendo mensalista o obreiro, o adicional noturno pago de forma fixa já é considerado integrado para os efeitos do pagamento do repouso semanal remunerado, nos termos do art. 7º, § 2º, da Lei nº 605/49.
D16: TOTAL DA REMUNERAÇÃO | F16: =SUM(F9:F14) -> 6057.34
B18: MÓDULO 2 - ENCARGOS E BENEFÍCIOS ANUAIS, MENSAIS E DIÁRIOS | E18: Percentuais | F18: Valor
B19: Submódulo 2.1 - 13º Salário e Adicional de Férias
C20: A | D20: 13º Salário - Calculado no Módulo 7 - Destacado | E20: 0 | F20: =ROUND(E20*F$16,2) -> 0 | H20: * Nota 1 - Provisiona-se, mensalmente, o proporcional a 1/12 dos valores referentes a gratificação natalina, calculada à parte
C21: B | D21: Adicional de Férias | E21: ='Encargos Sociais'!E31 -> 0.0303 | F21: =ROUND(E21*F$16,2) -> 183.54 | H21: * Nota 2 - O adicional de férias foi calculado dividindo-se por 11, para comportar os 11 meses presentes e ainda o ausente do posto
B23: Submódulo 2.2 - Encargos Previdenciários (GPS), Fundo de Garantia por Tempo de Serviço (FGTS) e Outras Contribuições
C24: A | D24: ='Encargos Sociais'!D14 -> INSS (art. 22, inciso I, Lei nº 8.212/91) | E24: ='Encargos Sociais'!E14 -> 0.2 | F24: =ROUND(E24*($F$16+$F$41+$F$72),2) -> 1382.53
C25: B | D25: ='Encargos Sociais'!D15 -> Salário Educação (art. 3º, inciso I, Decreto nº 87.043/82) | E25: ='Encargos Sociais'!E15 -> 0.025 | F25: 172.82
C26: C | D26: ='Encargos Sociais'!D16 -> SAT/RAT (art. 22, II, Lei 8.212/91 e Anexo V, Decreto 6.042/07) - Enquadramento 8011-1/01 | E26: ='Encargos Sociais'!E16 -> 0.03 | F26: 207.38
C27: D | D27: ='Encargos Sociais'!D17 -> SESC ou SESI (art. 30, Lei nº 8.036/90 e art. 1º, Lei 8.154/90) | E27: ='Encargos Sociais'!E17 -> 0.015 | F27: 103.69
C28: E | D28: ='Encargos Sociais'!D18 -> SENAI ou SENAC (Decreto nº 2.318/86) | E28: ='Encargos Sociais'!E18 -> 0.01 | F28: 69.13 | H28: * Nota 1 - Os percentuais dos encargos previdenciários, do FGTS e demais contribuições são estabelecidos por legislação vigente.
C29: F | D29: ='Encargos Sociais'!D19 -> SEBRAE (§ 3º, art. 8º, Lei 8.029/90, alterada pela Lei nº 8.154/90) | E29: ='Encargos Sociais'!E19 -> 0.006 | F29: 41.48 | H29: * Nota 2 - O SAT, a depender do grau de risco do serviço, irá variar entre 1%, para risco leve, de 2%, para risco médio, e de 3% para risco grave.
C30: G | D30: ='Encargos Sociais'!D20 -> INCRA (art. 1º, I, Decreto Lei 1.146/70 e Lei 7.787, de 30/06/89) | E30: ='Encargos Sociais'!E20 -> 0.002 | F30: 13.83 | H30: * Nota 3 - Base de cálculo - remuneração + ausências + terço constitucional (férias)
C31: H | D31: ='Encargos Sociais'!D21 -> FGTS (Lei Complementar nº 110/01 e art. 30, Lei nº 8.036/90) | E31: ='Encargos Sociais'!E21 -> 0.08 | F31: 553.01
C32: I | D32: ='Encargos Sociais'!D22 -> SECONCI (Convenções Coletivas de Trabalho da construção) | E32: ='Encargos Sociais'!E22 -> 0 | F32: 0
B34: Submódulo 2.3 - Benefícios Mensais e Diários
C35: A | D35: Auxílio Transporte | F35: =HLOOKUP($B$5,'Dados Gerais'!$D$6:$BK$94,82) -> 0
C36: B | D36: Auxílio Alimentação | F36: =HLOOKUP($B$5,'Dados Gerais'!$D$6:$BK$94,89) -> 710.55 | H36: * Nota 1 - O valor informado deverá ser o custo real do benefício (descontado o valor eventualmente pago pelo empregado).
C37: C | D37: Assistência Médica e Familiar | F37: =HLOOKUP($B$5,'Dados Gerais'!$D$6:$BK$102,97) -> 0 | H37: * Nota 2 - Observar a previsão dos benefícios contidos em Acordos, Convenções e Dissídios Coletivos de Trabalho e o disposto no art. 6º da IN 5/2017
C38: D | D38: Outros (Seguro de vida e auxílio funeral e auxílio odontológico) | F38: =HLOOKUP($B$5,'Dados Gerais'!$D$6:$BK$119,114) -> 32.16
D40: QUADRO-RESUMO DO MÓDULO 2
D41: 2.1 - Adicional de Férias | E41: =SUM(E20:E21) -> 0.0303 | F41: =F20+F21 -> 183.54
D42: 2.2 - Encargos Previdenciários (GPS), Fundo de Garantia por Tempo de Serviço (FGTS) e Contribuições | E42: =SUM(E24:E32) -> 0.368 | F42: =SUM(F24:F32) -> 2543.87
D43: 2.3 - Benefícios Mensais e Diários | F43: =SUM(F35:F38) -> 742.71
D45: TOTAL DOS ENCARGOS E BENEFÍCIOS | F45: =SUM(F41:F43) -> 3470.12
B47: MÓDULO 3 - PREVISÃO PARA RESCISÃO | E47: Percentuais | F47: Valor
C48: A | D48: ='Encargos Sociais'!D36 -> Aviso Prévio Indenizado (Art. 7º, inciso XXI, da CF/1988 e arts. 477, 487, §1º, e 491 da CLT) | E48: ='Encargos Sociais'!E36 -> 0.0042 | F48: =ROUND(E48*($F$16+$F$72+$F$41),2) -> 29.03
C49: B | D49: ='Encargos Sociais'!D37 -> 13º sobre aviso prévio indenizado | E49: ='Encargos Sociais'!E37 -> 0.0004 | F49: =ROUND(E49*($F$16+$F$72+$F$41),2) -> 2.77 | H49: * Nota 1 - Adotou-se os parâmetros do estudo do STF (http://www.stf.jus.br/arquivo/cms/sobrestfestudosci/anexo/encargos_sociais_03102007.pdf), onde 5% do pessoal é demitido pelo empregador no decurso do contrato (para estes, considerou-se o aviso prévio indenizado). Desprezou-se as demissões por justa causa e os pedidos de demissão.
C50: C | D50: ='Encargos Sociais'!D38 -> Incidência do FGTS sobre o Aviso Prévio Indenizado (Súmula 305 TST) | E50: ='Encargos Sociais'!E38 -> 0.0003 | F50: =ROUND(E50*($F$16+$F$72+$F$41),2) -> 2.07 | H50: * Nota 2 - Base de cálculo - remuneração + ausências + 1/3 férias
C51: D | D51: ='Encargos Sociais'!D39 -> Multa do FGTS sobre o Aviso Prévio (Art. 18, §1º, da Lei 8.036/1990) | E51: ='Encargos Sociais'!E39 -> 0.032 | F51: =ROUND(E51*($F$16+$F$72+$F$41),2) -> 221.2
C52: E | D52: ='Encargos Sociais'!D40 -> Indenização Adicional - data-base (Art. 9º, Lei 7.238/1984) | E52: ='Encargos Sociais'!E40 -> 0.0008 | F52: =ROUND(E52*($F$16+$F$72+$F$41),2) -> 5.53
D54: TOTAL DE PREVISÃO PARA RESCISÃO | F54: =SUM(F48:F52) -> 260.6
B56: MÓDULO 4 - CUSTO DO PROFISSIONAL AUSENTE | E56: Percentuais | F56: Valor
B57: Submódulo 4.1 - Ausências Legais
C58: A | D58: ='Encargos Sociais'!D25 -> Férias (Arts. 129 e 130, inc. I, da CLT) | E58: ='Encargos Sociais'!E25 -> 0.0909 | F58: =ROUND(E58*$F$16,2) -> 550.61 | H58: * Nota 1 - O Módulo 4 refere-se às previsões para custear ausências do próprio profissional (titular do cargo)
C59: B | D59: ='Encargos Sociais'!D26 -> Ausências Legais (Arts. 131 e 473 da CLT) | E59: ='Encargos Sociais'!E26 -> 0.0079 | F59: 47.85 | H59: * Nota 2 - As férias foram calculadas dividindo-se por 11, para comportar os 11 meses presentes e ainda o ausente do posto
C60: C | D60: ='Encargos Sociais'!D27 -> Licença-Paternidade (Art. 7º, XIX, e art. 10, §1º, do ADCT, CF/1988 e Art. 1º, II, da Lei 11.770/2008) | E60: ='Encargos Sociais'!E27 -> 0.0008 | F60: 4.85
C61: D | D61: ='Encargos Sociais'!D28 -> Ausência por Acidente de Trabalho (Art. 131, III, da CLT) | E61: ='Encargos Sociais'!E28 -> 0.0009 | F61: 5.45
C62: E | D62: ='Encargos Sociais'!D29 -> Afastamento Maternidade (Art. 71 da Lei nº 8.213/1991) | E62: ='Encargos Sociais'!E29 -> 0.0033 | F62: 19.99
C63: F | D63: ='Encargos Sociais'!D30 -> Auxílio Enfermidade - Doença (Art. 59 da Lei nº 8.213/1991) | E63: ='Encargos Sociais'!E30 -> 0.0071 | F63: 43.01
B65: Submódulo 4.2 - Intrajornada
C66: A | D66: Intervalo para repouso ou alimentação | E66: ='Encargos Sociais'!E33 -> 0 | F66: =ROUND(E66*$F$16,2) -> 0
D68: QUADRO-RESUMO DO MÓDULO 4 | F68: Valor
D69: 4.1 - Ausências Legais | E69: =SUM(E58:E63) -> 0.1109 | F69: =ROUND(E69*$F$16,2) -> 671.76
D70: 4.2 - Intrajornada | E70: =E66 -> 0 | F70: =ROUND(E70*$F$16,2) -> 0
D72: TOTAL DE PREVISÃO PARA CUSTO DO PROFISSIONAL AUSENTE E INTERVALO INTRAJORNADA | F72: =SUM(F69:F70) -> 671.76
B74: MÓDULO 5 - INSUMOS DIVERSOS | F74: Valor
C75: A | D75: Uniformes - aquisição | F75: =ROUND(HLOOKUP($B$5,Uniformes!L4:EA90,3)/12,2) -> 156.19
C76: B | D76: Materiais de consumo relacionados ao posto - aquisição | F76: =ROUND(HLOOKUP(B5,'Mat Cons'!I11:DX13,3)/12,2) -> 0
C77: C | D77: Materiais permanentes relacionados ao posto - remuneração da sua depreciação / manutenção | F77: =HLOOKUP(B5,'Mat Perm'!Q11:EF13,3) -> 0
C78: D | D78: Equipamentos relacionados ao posto - remuneração da sua depreciação / manutenção | F78: =HLOOKUP(B5,'Equip Rel'!Q3:EF5,3) -> 0
C79: E | D79: Equipamentos de Proteção Individual - EPI - aquisição | F79: =ROUND(HLOOKUP(B5,EPI!J4:DY6,3)/12,2) -> 0
D81: TOTAL DE INSUMOS DIVERSOS | F81: =SUM(F75:F80) -> 156.19 | H81: * Nota - Valores mensais por empregado
B83: MÓDULO 6 - CUSTOS INDIRETOS, TRIBUTOS E LUCRO - BDI | E83: Percentuais | F83: Valor
C84: A | D84: Custos Indiretos | E84: =BDI!E6 -> 0.0227
C85: A.1 | D85: Administração Central | E85: =BDI!E7 -> 0.0173
C86: A.2 | D86: Seguros, Garantias e Riscos | E86: =BDI!E8 -> 0.0054
C87: B | D87: Lucro | E87: =BDI!E10 -> 0.0267
C88: C | D88: Tributos | E88: =SUM(E89:E90) -> 0.124
C89: C.1 | D89: Tributos Federais (COFINS, PIS e CPRB) | E89: =BDI!E18 -> 0.074
C90: C.2 | D90: Tributos Distritais (ISS) | E90: =BDI!E23 -> 0.05
C91: D | D91: Despesas Financeiras | E91: =BDI!E13 -> 0.004466921098
D93: TOTAL DE BDI | E93: =BDI!E26 -> 0.204 | F93: =E93*E101 -> 2165.66604
D95: QUADRO-RESUMO DO CUSTO MENSAL POR EMPREGADO - SEM O 13º | E95: Valor
D96: Módulo 1 - Composição da Remuneração | E96: =F16 -> 6057.34
D97: Módulo 2 - Encargos e Benefícios Anuais, Mensais e Diários | E97: =F45 -> 3470.12
D98: Módulo 3 - Provisão para Rescisão | E98: =F54 -> 260.6
D99: Módulo 4 - Custo de Reposição do Profissional Ausente | E99: =F72 -> 671.76
D100: Módulo 5 - Insumos Diversos | E100: =F81 -> 156.19
D101: SUBTOTAL (A+B+C+D+E) | E101: =SUM(E96:E100) -> 10616.01
D102: Módulo 6 - Custos Indiretos, Tributos e Lucro | E102: =F93 -> 2165.66604
D104: TOTAL DO POSTO | E104: =SUM(E101:E102) -> 12781.67604
B106: MÓDULO 7 - DESTAQUE DO MÓDULO 2 - 13º SALÁRIO | E106: Percentuais | F106: Valor
C107: A | D107: 13º Salário | E107: ='Encargos Sociais'!E32*12/11 -> 0.09087272727 | F107: =ROUND(E107*F$16,2) -> 550.45 | H107: * Nota 1 - Incluindo-se a reincidência das férias do substituto sobre o titular
C108: B | D108: Encargos Sociais sobre o 13º Salário | E108: =SUM($E$24:$E$32) -> 0.368 | F108: =ROUND(E108*$F$107,2) -> 202.57 | H108: * Nota 2 - Provisiona-se, mensalmente, o proporcional a 1/12 dos valores referentes a gratificação natalina e adicional de férias.
C109: C | D109: BDI sobre o 13º Salário - Taxa calculada no MÓDULO 6 | E109: =E93 -> 0.204 | F109: =ROUND(E109*($F$107+$F$108),2) -> 153.62
D111: TOTAL DO DESTAQUE DO 13º SALÁRIO | F111: =SUM(F107:F109) -> 906.64
D113: QUADRO-RESUMO DO CUSTO MENSAL POR EMPREGADO | E113: Valor
D114: Custo total - sem o 13º Salário | E114: =E104 -> 12781.67604
D115: Destaque do 13º Salário (valor mensal) | E115: =F111 -> 906.64
D117: TOTAL DO POSTO | E117: =E114+E115 -> 13688.31604

Sheet 4
B2: PLANILHA DE ESTIMATIVA DE CUSTOS
B5: 4 | D5: =HLOOKUP($B$5,'Dados Gerais'!$D$6:$BK$21,6) -> VIGILANTE SUPERVISOR I INTERNO NOTURNO Escala 12 x 36 19h às 7h 2ª feira a Dom | E5: QUANTIDADE | F5: =HLOOKUP($B$5,'Dados Gerais'!$D$6:$BK$21,10) -> 2
B6: CCT | D6: =HLOOKUP($B$5,'Dados Gerais'!$D$6:$BK$21,15) -> SINDESV/DF X SINDESP/DF 2024/2024 Nº DF000333/2024 | E6: DATA-BASE | F6: =HLOOKUP($B$5,'Dados Gerais'!$D$6:$BK$21,16) -> 2024-01-01
B8: MÓDULO 1 - COMPOSIÇÃO DA REMUNERAÇÃO | F8: Valor
C9: A | D9: Salário-Base | F9: =HLOOKUP($B$5,'Dados Gerais'!$D$6:$BK$21,8) -> 4450
C10: B | D10: Adicional de Periculosidade | F10: =HLOOKUP($B$5,'Dados Gerais'!$D$6:$BK$38,25) -> 1335
C11: C | D11: Adicional de Insalubridade | F11: =HLOOKUP($B$5,'Dados Gerais'!$D$6:$BK$38,31) -> 0
C12: D | D12: Adicional Noturno | F12: =HLOOKUP($B$5,'Dados Gerais'!$D$6:$BK$51,46) -> 631.09 | H12: * Nota 1 - O Módulo 1 refere-se ao valor mensal devido ao empregado pela prestação do serviço no período de 12 meses.
C13: E | D13: Adicional de Hora Extra | F13: =HLOOKUP($B$5,'Dados Gerais'!$D$6:$BK$68,63) -> 0 | H13: * Nota 2 - O adicional de hora extra no feriado trabalhado foi suprimido pela Lei 13.467/17
C14: F | D14: Outros (especificar) | F14: =HLOOKUP($B$5,'Dados Gerais'!$D$6:$BK$60,33) -> 0 | H14: * Nota 3 - ART. 7º, § 2º, DA LEI Nº 605/49.Sendo mensalista o obreiro, o adicional noturno pago de forma fixa já é considerado integrado para os efeitos do pagamento do repouso semanal remunerado, nos termos do art. 7º, § 2º, da Lei nº 605/49.
D16: TOTAL DA REMUNERAÇÃO | F16: =SUM(F9:F14) -> 6416.09
B18: MÓDULO 2 - ENCARGOS E BENEFÍCIOS ANUAIS, MENSAIS E DIÁRIOS | E18: Percentuais | F18: Valor
B19: Submódulo 2.1 - 13º Salário e Adicional de Férias
C20: A | D20: 13º Salário - Calculado no Módulo 7 - Destacado | E20: 0 | F20: =ROUND(E20*F$16,2) -> 0 | H20: * Nota 1 - Provisiona-se, mensalmente, o proporcional a 1/12 dos valores referentes a gratificação natalina, calculada à parte
C21: B | D21: Adicional de Férias | E21: ='Encargos Sociais'!E31 -> 0.0303 | F21: =ROUND(E21*F$16,2) -> 194.41 | H21: * Nota 2 - O adicional de férias foi calculado dividindo-se por 11, para comportar os 11 meses presentes e ainda o ausente do posto
B23: Submódulo 2.2 - Encargos Previdenciários (GPS), Fundo de Garantia por Tempo de Serviço (FGTS) e Outras Contribuições
C24: A | D24: ='Encargos Sociais'!D14 -> INSS (art. 22, inciso I, Lei nº 8.212/91) | E24: ='Encargos Sociais'!E14 -> 0.2 | F24: =ROUND(E24*($F$16+$F$41+$F$72),2) -> 1464.41
C25: B | D25: ='Encargos Sociais'!D15 -> Salário Educação (art. 3º, inciso I, Decreto nº 87.043/82) | E25: ='Encargos Sociais'!E15 -> 0.025 | F25: 183.05
C26: C | D26: ='Encargos Sociais'!D16 -> SAT/RAT (art. 22, II, Lei 8.212/91 e Anexo V, Decreto 6.042/07) - Enquadramento 8011-1/01 | E26: ='Encargos Sociais'!E16 -> 0.03 | F26: 219.66
C27: D | D27: ='Encargos Sociais'!D17 -> SESC ou SESI (art. 30, Lei nº 8.036/90 e art. 1º, Lei 8.154/90) | E27: ='Encargos Sociais'!E17 -> 0.015 | F27: 109.83
C28: E | D28: ='Encargos Sociais'!D18 -> SENAI ou SENAC (Decreto nº 2.318/86) | E28: ='Encargos Sociais'!E18 -> 0.01 | F28: 73.22 | H28: * Nota 1 - Os percentuais dos encargos previdenciários, do FGTS e demais contribuições são estabelecidos por legislação vigente.
C29: F | D29: ='Encargos Sociais'!D19 -> SEBRAE (§ 3º, art. 8º, Lei 8.029/90, alterada pela Lei nº 8.154/90) | E29: ='Encargos Sociais'!E19 -> 0.006 | F29: 43.93 | H29: * Nota 2 - O SAT, a depender do grau de risco do serviço, irá variar entre 1%, para risco leve, de 2%, para risco médio, e de 3% para risco grave.
C30: G | D30: ='Encargos Sociais'!D20 -> INCRA (art. 1º, I, Decreto Lei 1.146/70 e Lei 7.787, de 30/06/89) | E30: ='Encargos Sociais'!E20 -> 0.002 | F30: 14.64 | H30: * Nota 3 - Base de cálculo - remuneração + ausências + terço constitucional (férias)
C31: H | D31: ='Encargos Sociais'!D21 -> FGTS (Lei Complementar nº 110/01 e art. 30, Lei nº 8.036/90) | E31: ='Encargos Sociais'!E21 -> 0.08 | F31: 585.76
C32: I | D32: ='Encargos Sociais'!D22 -> SECONCI (Convenções Coletivas de Trabalho da construção) | E32: ='Encargos Sociais'!E22 -> 0 | F32: 0
B34: Submódulo 2.3 - Benefícios Mensais e Diários
C35: A | D35: Auxílio Transporte | F35: =HLOOKUP($B$5,'Dados Gerais'!$D$6:$BK$94,82) -> 0
C36: B | D36: Auxílio Alimentação | F36: =HLOOKUP($B$5,'Dados Gerais'!$D$6:$BK$94,89) -> 710.55 | H36: * Nota 1 - O valor informado deverá ser o custo real do benefício (descontado o valor eventualmente pago pelo empregado).
C37: C | D37: Assistência Médica e Familiar | F37: =HLOOKUP($B$5,'Dados Gerais'!$D$6:$BK$102,97) -> 0 | H37: * Nota 2 - Observar a previsão dos benefícios contidos em Acordos, Convenções e Dissídios Coletivos de Trabalho e o disposto no art. 6º da IN 5/2017
C38: D | D38: Outros (Seguro de vida e auxílio funeral e auxílio odontológico) | F38: =HLOOKUP($B$5,'Dados Gerais'!$D$6:$BK$119,114) -> 32.16
D40: QUADRO-RESUMO DO MÓDULO 2
D41: 2.1 - Adicional de Férias | E41: =SUM(E20:E21) -> 0.0303 | F41: =F20+F21 -> 194.41
D42: 2.2 - Encargos Previdenciários (GPS), Fundo de Garantia por Tempo de Serviço (FGTS) e Contribuições | E42: =SUM(E24:E32) -> 0.368 | F42: =SUM(F24:F32) -> 2694.5
D43: 2.3 - Benefícios Mensais e Diários | F43: =SUM(F35:F38) -> 742.71
D45: TOTAL DOS ENCARGOS E BENEFÍCIOS | F45: =SUM(F41:F43) -> 3631.62
B47: MÓDULO 3 - PREVISÃO PARA RESCISÃO | E47: Percentuais | F47: Valor
C48: A | D48: ='Encargos Sociais'!D36 -> Aviso Prévio Indenizado (Art. 7º, inciso XXI, da CF/1988 e arts. 477, 487, §1º, e 491 da CLT) | E48: ='Encargos Sociais'!E36 -> 0.0042 | F48: =ROUND(E48*($F$16+$F$72+$F$41),2) -> 30.75
C49: B | D49: ='Encargos Sociais'!D37 -> 13º sobre aviso prévio indenizado | E49: ='Encargos Sociais'!E37 -> 0.0004 | F49: =ROUND(E49*($F$16+$F$72+$F$41),2) -> 2.93 | H49: * Nota 1 - Adotou-se os parâmetros do estudo do STF (http://www.stf.jus.br/arquivo/cms/sobrestfestudosci/anexo/encargos_sociais_03102007.pdf), onde 5% do pessoal é demitido pelo empregador no decurso do contrato (para estes, considerou-se o aviso prévio indenizado). Desprezou-se as demissões por justa causa e os pedidos de demissão.
C50: C | D50: ='Encargos Sociais'!D38 -> Incidência do FGTS sobre o Aviso Prévio Indenizado (Súmula 305 TST) | E50: ='Encargos Sociais'!E38 -> 0.0003 | F50: =ROUND(E50*($F$16+$F$72+$F$41),2) -> 2.2 | H50: * Nota 2 - Base de cálculo - remuneração + ausências + 1/3 férias
C51: D | D51: ='Encargos Sociais'!D39 -> Multa do FGTS sobre o Aviso Prévio (Art. 18, §1º, da Lei 8.036/1990) | E51: ='Encargos Sociais'!E39 -> 0.032 | F51: =ROUND(E51*($F$16+$F$72+$F$41),2) -> 234.31
C52: E | D52: ='Encargos Sociais'!D40 -> Indenização Adicional - data-base (Art. 9º, Lei 7.238/1984) | E52: ='Encargos Sociais'!E40 -> 0.0008 | F52: =ROUND(E52*($F$16+$F$72+$F$41),2) -> 5.86
D54: TOTAL DE PREVISÃO PARA RESCISÃO | F54: =SUM(F48:F52) -> 276.05
B56: MÓDULO 4 - CUSTO DO PROFISSIONAL AUSENTE | E56: Percentuais | F56: Valor
B57: Submódulo 4.1 - Ausências Legais
C58: A | D58: ='Encargos Sociais'!D25 -> Férias (Arts. 129 e 130, inc. I, da CLT) | E58: ='Encargos Sociais'!E25 -> 0.0909 | F58: =ROUND(E58*$F$16,2) -> 583.22 | H58: * Nota 1 - O Módulo 4 refere-se às previsões para custear ausências do próprio profissional (titular do cargo)
C59: B | D59: ='Encargos Sociais'!D26 -> Ausências Legais (Arts. 131 e 473 da CLT) | E59: ='Encargos Sociais'!E26 -> 0.0079 | F59: 50.69 | H59: * Nota 2 - As férias foram calculadas dividindo-se por 11, para comportar os 11 meses presentes e ainda o ausente do posto
C60: C | D60: ='Encargos Sociais'!D27 -> Licença-Paternidade (Art. 7º, XIX, e art. 10, §1º, do ADCT, CF/1988 e Art. 1º, II, da Lei 11.770/2008) | E60: ='Encargos Sociais'!E27 -> 0.0008 | F60: 5.13
C61: D | D61: ='Encargos Sociais'!D28 -> Ausência por Acidente de Trabalho (Art. 131, III, da CLT) | E61: ='Encargos Sociais'!E28 -> 0.0009 | F61: 5.77
C62: E | D62: ='Encargos Sociais'!D29 -> Afastamento Maternidade (Art. 71 da Lei nº 8.213/1991) | E62: ='Encargos Sociais'!E29 -> 0.0033 | F62: 21.17
C63: F | D63: ='Encargos Sociais'!D30 -> Auxílio Enfermidade - Doença (Art. 59 da Lei nº 8.213/1991) | E63: ='Encargos Sociais'!E30 -> 0.0071 | F63: 45.55
B65: Submódulo 4.2 - Intrajornada
C66: A | D66: Intervalo para repouso ou alimentação | E66: ='Encargos Sociais'!E33 -> 0 | F66: =ROUND(E66*$F$16,2) -> 0
D68: QUADRO-RESUMO DO MÓDULO 4 | F68: Valor
D69: 4.1 - Ausências Legais | E69: =SUM(E58:E63) -> 0.1109 | F69: =ROUND(E69*$F$16,2) -> 711.54
D70: 4.2 - Intrajornada | E70: =E66 -> 0 | F70: =ROUND(E70*$F$16,2) -> 0
D72: TOTAL DE PREVISÃO PARA CUSTO DO PROFISSIONAL AUSENTE E INTERVALO INTRAJORNADA | F72: =SUM(F69:F70) -> 711.54
B74: MÓDULO 5 - INSUMOS DIVERSOS | F74: Valor
C75: A | D75: Uniformes - aquisição | F75: =ROUND(HLOOKUP($B$5,Uniformes!L4:EA90,3)/12,2) -> 156.19
C76: B | D76: Materiais de consumo relacionados ao posto - aquisição | F76: =ROUND(HLOOKUP(B5,'Mat Cons'!I11:DX13,3)/12,2) -> 0
C77: C | D77: Materiais permanentes relacionados ao posto - remuneração da sua depreciação / manutenção | F77: =HLOOKUP(B5,'Mat Perm'!Q11:EF13,3) -> 0
C78: D | D78: Equipamentos relacionados ao posto - remuneração da sua depreciação / manutenção | F78: =HLOOKUP(B5,'Equip Rel'!Q3:EF5,3) -> 0
C79: E | D79: Equipamentos de Proteção Individual - EPI - aquisição | F79: =ROUND(HLOOKUP(B5,EPI!J4:DY6,3)/12,2) -> 0
D81: TOTAL DE INSUMOS DIVERSOS | F81: =SUM(F75:F80) -> 156.19 | H81: * Nota - Valores mensais por empregado
B83: MÓDULO 6 - CUSTOS INDIRETOS, TRIBUTOS E LUCRO - BDI | E83: Percentuais | F83: Valor
C84: A | D84: Custos Indiretos | E84: =BDI!E6 -> 0.0227
C85: A.1 | D85: Administração Central | E85: =BDI!E7 -> 0.0173
C86: A.2 | D86: Seguros, Garantias e Riscos | E86: =BDI!E8 -> 0.0054
C87: B | D87: Lucro | E87: =BDI!E10 -> 0.0267
C88: C | D88: Tributos | E88: =SUM(E89:E90) -> 0.124
C89: C.1 | D89: Tributos Federais (COFINS, PIS e CPRB) | E89: =BDI!E18 -> 0.074
C90: C.2 | D90: Tributos Distritais (ISS) | E90: =BDI!E23 -> 0.05
C91: D | D91: Despesas Financeiras | E91: =BDI!E13 -> 0.004466921098
D93: TOTAL DE BDI | E93: =BDI!E26 -> 0.204 | F93: =E93*E101 -> 2283.06396
D95: QUADRO-RESUMO DO CUSTO MENSAL POR EMPREGADO - SEM O 13º | E95: Valor
D96: Módulo 1 - Composição da Remuneração | E96: =F16 -> 6416.09
D97: Módulo 2 - Encargos e Benefícios Anuais, Mensais e Diários | E97: =F45 -> 3631.62
D98: Módulo 3 - Provisão para Rescisão | E98: =F54 -> 276.05
D99: Módulo 4 - Custo de Reposição do Profissional Ausente | E99: =F72 -> 711.54
D100: Módulo 5 - Insumos Diversos | E100: =F81 -> 156.19
D101: SUBTOTAL (A+B+C+D+E) | E101: =SUM(E96:E100) -> 11191.49
D102: Módulo 6 - Custos Indiretos, Tributos e Lucro | E102: =F93 -> 2283.06396
D104: TOTAL DO POSTO | E104: =SUM(E101:E102) -> 13474.55396
B106: MÓDULO 7 - DESTAQUE DO MÓDULO 2 - 13º SALÁRIO | E106: Percentuais | F106: Valor
C107: A | D107: 13º Salário | E107: ='Encargos Sociais'!E32*12/11 -> 0.09087272727 | F107: =ROUND(E107*F$16,2) -> 583.05 | H107: * Nota 1 - Incluindo-se a reincidência das férias do substituto sobre o titular
C108: B | D108: Encargos Sociais sobre o 13º Salário | E108: =SUM($E$24:$E$32) -> 0.368 | F108: =ROUND(E108*$F$107,2) -> 214.56 | H108: * Nota 2 - Provisiona-se, mensalmente, o proporcional a 1/12 dos valores referentes a gratificação natalina e adicional de férias.
C109: C | D109: BDI sobre o 13º Salário - Taxa calculada no MÓDULO 6 | E109: =E93 -> 0.204 | F109: =ROUND(E109*($F$107+$F$108),2) -> 162.71
D111: TOTAL DO DESTAQUE DO 13º SALÁRIO | F111: =SUM(F107:F109) -> 960.32
D113: QUADRO-RESUMO DO CUSTO MENSAL POR EMPREGADO | E113: Valor
D114: Custo total - sem o 13º Salário | E114: =E104 -> 13474.55396
D115: Destaque do 13º Salário (valor mensal) | E115: =F111 -> 960.32
D117: TOTAL DO POSTO | E117: =E114+E115 -> 14434.87396

Sheet 5
B2: PLANILHA DE ESTIMATIVA DE CUSTOS
B5: 5 | D5: =HLOOKUP($B$5,'Dados Gerais'!$D$6:$BK$21,6) -> VIGILANTE SUPERVISOR I EXTERNO NOTURNO Escala 12 x 36 19h às 7h 2ª feira a Dom | E5: QUANTIDADE | F5: =HLOOKUP($B$5,'Dados Gerais'!$D$6:$BK$21,10) -> 2
B6: CCT | D6: =HLOOKUP($B$5,'Dados Gerais'!$D$6:$BK$21,15) -> SINDESV/DF X SINDESP/DF 2024/2024 Nº DF000333/2024 | E6: DATA-BASE | F6: =HLOOKUP($B$5,'Dados Gerais'!$D$6:$BK$21,16) -> 2024-01-01
B8: MÓDULO 1 - COMPOSIÇÃO DA REMUNERAÇÃO | F8: Valor
C9: A | D9: Salário-Base | F9: =HLOOKUP($B$5,'Dados Gerais'!$D$6:$BK$21,8) -> 4450
C10: B | D10: Adicional de Periculosidade | F10: =HLOOKUP($B$5,'Dados Gerais'!$D$6:$BK$38,25) -> 1335
C11: C | D11: Adicional de Insalubridade | F11: =HLOOKUP($B$5,'Dados Gerais'!$D$6:$BK$38,31) -> 0
C12: D | D12: Adicional Noturno | F12: =HLOOKUP($B$5,'Dados Gerais'!$D$6:$BK$51,46) -> 660.8 | H12: * Nota 1 - O Módulo 1 refere-se ao valor mensal devido ao empregado pela prestação do serviço no período de 12 meses.
C13: E | D13: Adicional de Hora Extra | F13: =HLOOKUP($B$5,'Dados Gerais'!$D$6:$BK$68,63) -> 0 | H13: * Nota 2 - O adicional de hora extra no feriado trabalhado foi suprimido pela Lei 13.467/17
C14: F | D14: Outros (especificar) | F14: =HLOOKUP($B$5,'Dados Gerais'!$D$6:$BK$60,33) -> 272.34 | H14: * Nota 3 - ART. 7º, § 2º, DA LEI Nº 605/49.Sendo mensalista o obreiro, o adicional noturno pago de forma fixa já é considerado integrado para os efeitos do pagamento do repouso semanal remunerado, nos termos do art. 7º, § 2º, da Lei nº 605/49.
D16: TOTAL DA REMUNERAÇÃO | F16: =SUM(F9:F14) -> 6718.14
B18: MÓDULO 2 - ENCARGOS E BENEFÍCIOS ANUAIS, MENSAIS E DIÁRIOS | E18: Percentuais | F18: Valor
B19: Submódulo 2.1 - 13º Salário e Adicional de Férias
C20: A | D20: 13º Salário - Calculado no Módulo 7 - Destacado | E20: 0 | F20: =ROUND(E20*F$16,2) -> 0 | H20: * Nota 1 - Provisiona-se, mensalmente, o proporcional a 1/12 dos valores referentes a gratificação natalina, calculada à parte
C21: B | D21: Adicional de Férias | E21: ='Encargos Sociais'!E31 -> 0.0303 | F21: =ROUND(E21*F$16,2) -> 203.56 | H21: * Nota 2 - O adicional de férias foi calculado dividindo-se por 11, para comportar os 11 meses presentes e ainda o ausente do posto
B23: Submódulo 2.2 - Encargos Previdenciários (GPS), Fundo de Garantia por Tempo de Serviço (FGTS) e Outras Contribuições
C24: A | D24: ='Encargos Sociais'!D14 -> INSS (art. 22, inciso I, Lei nº 8.212/91) | E24: ='Encargos Sociais'!E14 -> 0.2 | F24: =ROUND(E24*($F$16+$F$41+$F$72),2) -> 1533.35
C25: B | D25: ='Encargos Sociais'!D15 -> Salário Educação (art. 3º, inciso I, Decreto nº 87.043/82) | E25: ='Encargos Sociais'!E15 -> 0.025 | F25: 191.67
C26: C | D26: ='Encargos Sociais'!D16 -> SAT/RAT (art. 22, II, Lei 8.212/91 e Anexo V, Decreto 6.042/07) - Enquadramento 8011-1/01 | E26: ='Encargos Sociais'!E16 -> 0.03 | F26: 230
C27: D | D27: ='Encargos Sociais'!D17 -> SESC ou SESI (art. 30, Lei nº 8.036/90 e art. 1º, Lei 8.154/90) | E27: ='Encargos Sociais'!E17 -> 0.015 | F27: 115
C28: E | D28: ='Encargos Sociais'!D18 -> SENAI ou SENAC (Decreto nº 2.318/86) | E28: ='Encargos Sociais'!E18 -> 0.01 | F28: 76.67 | H28: * Nota 1 - Os percentuais dos encargos previdenciários, do FGTS e demais contribuições são estabelecidos por legislação vigente.
C29: F | D29: ='Encargos Sociais'!D19 -> SEBRAE (§ 3º, art. 8º, Lei 8.029/90, alterada pela Lei nº 8.154/90) | E29: ='Encargos Sociais'!E19 -> 0.006 | F29: 46 | H29: * Nota 2 - O SAT, a depender do grau de risco do serviço, irá variar entre 1%, para risco leve, de 2%, para risco médio, e de 3% para risco grave.
C30: G | D30: ='Encargos Sociais'!D20 -> INCRA (art. 1º, I, Decreto Lei 1.146/70 e Lei 7.787, de 30/06/89) | E30: ='Encargos Sociais'!E20 -> 0.002 | F30: 15.33 | H30: * Nota 3 - Base de cálculo - remuneração + ausências + terço constitucional (férias)
C31: H | D31: ='Encargos Sociais'!D21 -> FGTS (Lei Complementar nº 110/01 e art. 30, Lei nº 8.036/90) | E31: ='Encargos Sociais'!E21 -> 0.08 | F31: 613.34
C32: I | D32: ='Encargos Sociais'!D22 -> SECONCI (Convenções Coletivas de Trabalho da construção) | E32: ='Encargos Sociais'!E22 -> 0 | F32: 0
B34: Submódulo 2.3 - Benefícios Mensais e Diários
C35: A | D35: Auxílio Transporte | F35: =HLOOKUP($B$5,'Dados Gerais'!$D$6:$BK$94,82) -> 0
C36: B | D36: Auxílio Alimentação | F36: =HLOOKUP($B$5,'Dados Gerais'!$D$6:$BK$94,89) -> 710.55 | H36: * Nota 1 - O valor informado deverá ser o custo real do benefício (descontado o valor eventualmente pago pelo empregado).
C37: C | D37: Assistência Médica e Familiar | F37: =HLOOKUP($B$5,'Dados Gerais'!$D$6:$BK$102,97) -> 0 | H37: * Nota 2 - Observar a previsão dos benefícios contidos em Acordos, Convenções e Dissídios Coletivos de Trabalho e o disposto no art. 6º da IN 5/2017
C38: D | D38: Outros (Seguro de vida e auxílio funeral e auxílio odontológico) | F38: =HLOOKUP($B$5,'Dados Gerais'!$D$6:$BK$119,114) -> 32.16
D40: QUADRO-RESUMO DO MÓDULO 2
D41: 2.1 - Adicional de Férias | E41: =SUM(E20:E21) -> 0.0303 | F41: =F20+F21 -> 203.56
D42: 2.2 - Encargos Previdenciários (GPS), Fundo de Garantia por Tempo de Serviço (FGTS) e Contribuições | E42: =SUM(E24:E32) -> 0.368 | F42: =SUM(F24:F32) -> 2821.36
D43: 2.3 - Benefícios Mensais e Diários | F43: =SUM(F35:F38) -> 742.71
D45: TOTAL DOS ENCARGOS E BENEFÍCIOS | F45: =SUM(F41:F43) -> 3767.63
B47: MÓDULO 3 - PREVISÃO PARA RESCISÃO | E47: Percentuais | F47: Valor
C48: A | D48: ='Encargos Sociais'!D36 -> Aviso Prévio Indenizado (Art. 7º, inciso XXI, da CF/1988 e arts. 477, 487, §1º, e 491 da CLT) | E48: ='Encargos Sociais'!E36 -> 0.0042 | F48: =ROUND(E48*($F$16+$F$72+$F$41),2) -> 32.2
C49: B | D49: ='Encargos Sociais'!D37 -> 13º sobre aviso prévio indenizado | E49: ='Encargos Sociais'!E37 -> 0.0004 | F49: =ROUND(E49*($F$16+$F$72+$F$41),2) -> 3.07 | H49: * Nota 1 - Adotou-se os parâmetros do estudo do STF (http://www.stf.jus.br/arquivo/cms/sobrestfestudosci/anexo/encargos_sociais_03102007.pdf), onde 5% do pessoal é demitido pelo empregador no decurso do contrato (para estes, considerou-se o aviso prévio indenizado). Desprezou-se as demissões por justa causa e os pedidos de demissão.
C50: C | D50: ='Encargos Sociais'!D38 -> Incidência do FGTS sobre o Aviso Prévio Indenizado (Súmula 305 TST) | E50: ='Encargos Sociais'!E38 -> 0.0003 | F50: =ROUND(E50*($F$16+$F$72+$F$41),2) -> 2.3 | H50: * Nota 2 - Base de cálculo - remuneração + ausências + 1/3 férias
C51: D | D51: ='Encargos Sociais'!D39 -> Multa do FGTS sobre o Aviso Prévio (Art. 18, §1º, da Lei 8.036/1990) | E51: ='Encargos Sociais'!E39 -> 0.032 | F51: =ROUND(E51*($F$16+$F$72+$F$41),2) -> 245.34
C52: E | D52: ='Encargos Sociais'!D40 -> Indenização Adicional - data-base (Art. 9º, Lei 7.238/1984) | E52: ='Encargos Sociais'!E40 -> 0.0008 | F52: =ROUND(E52*($F$16+$F$72+$F$41),2) -> 6.13
D54: TOTAL DE PREVISÃO PARA RESCISÃO | F54: =SUM(F48:F52) -> 289.04
B56: MÓDULO 4 - CUSTO DO PROFISSIONAL AUSENTE | E56: Percentuais | F56: Valor
B57: Submódulo 4.1 - Ausências Legais
C58: A | D58: ='Encargos Sociais'!D25 -> Férias (Arts. 129 e 130, inc. I, da CLT) | E58: ='Encargos Sociais'!E25 -> 0.0909 | F58: =ROUND(E58*$F$16,2) -> 610.68 | H58: * Nota 1 - O Módulo 4 refere-se às previsões para custear ausências do próprio profissional (titular do cargo)
C59: B | D59: ='Encargos Sociais'!D26 -> Ausências Legais (Arts. 131 e 473 da CLT) | E59: ='Encargos Sociais'!E26 -> 0.0079 | F59: 53.07 | H59: * Nota 2 - As férias foram calculadas dividindo-se por 11, para comportar os 11 meses presentes e ainda o ausente do posto
C60: C | D60: ='Encargos Sociais'!D27 -> Licença-Paternidade (Art. 7º, XIX, e art. 10, §1º, do ADCT, CF/1988 e Art. 1º, II, da Lei 11.770/2008) | E60: ='Encargos Sociais'!E27 -> 0.0008 | F60: 5.37
C61: D | D61: ='Encargos Sociais'!D28 -> Ausência por Acidente de Trabalho (Art. 131, III, da CLT) | E61: ='Encargos Sociais'!E28 -> 0.0009 | F61: 6.05
C62: E | D62: ='Encargos Sociais'!D29 -> Afastamento Maternidade (Art. 71 da Lei nº 8.213/1991) | E62: ='Encargos Sociais'!E29 -> 0.0033 | F62: 22.17
C63: F | D63: ='Encargos Sociais'!D30 -> Auxílio Enfermidade - Doença (Art. 59 da Lei nº 8.213/1991) | E63: ='Encargos Sociais'!E30 -> 0.0071 | F63: 47.7
B65: Submódulo 4.2 - Intrajornada
C66: A | D66: Intervalo para repouso ou alimentação | E66: ='Encargos Sociais'!E33 -> 0 | F66: =ROUND(E66*$F$16,2) -> 0
D68: QUADRO-RESUMO DO MÓDULO 4 | F68: Valor
D69: 4.1 - Ausências Legais | E69: =SUM(E58:E63) -> 0.1109 | F69: =ROUND(E69*$F$16,2) -> 745.04
D70: 4.2 - Intrajornada | E70: =E66 -> 0 | F70: =ROUND(E70*$F$16,2) -> 0
D72: TOTAL DE PREVISÃO PARA CUSTO DO PROFISSIONAL AUSENTE E INTERVALO INTRAJORNADA | F72: =SUM(F69:F70) -> 745.04
B74: MÓDULO 5 - INSUMOS DIVERSOS | F74: Valor
C75: A | D75: Uniformes - aquisição | F75: =ROUND(HLOOKUP($B$5,Uniformes!L4:EA90,3)/12,2) -> 156.19
C76: B | D76: Materiais de consumo relacionados ao posto - aquisição | F76: =ROUND(HLOOKUP(B5,'Mat Cons'!I11:DX13,3)/12,2) -> 0
C77: C | D77: Materiais permanentes relacionados ao posto - remuneração da sua depreciação / manutenção | F77: =HLOOKUP(B5,'Mat Perm'!Q11:EF13,3) -> 0
C78: D | D78: Equipamentos relacionados ao posto - remuneração da sua depreciação / manutenção | F78: =HLOOKUP(B5,'Equip Rel'!Q3:EF5,3) -> 0
C79: E | D79: Equipamentos de Proteção Individual - EPI - aquisição | F79: =ROUND(HLOOKUP(B5,EPI!J4:DY6,3)/12,2) -> 0
D81: TOTAL DE INSUMOS DIVERSOS | F81: =SUM(F75:F80) -> 156.19 | H81: * Nota - Valores mensais por empregado
B83: MÓDULO 6 - CUSTOS INDIRETOS, TRIBUTOS E LUCRO - BDI | E83: Percentuais | F83: Valor
C84: A | D84: Custos Indiretos | E84: =BDI!E6 -> 0.0227
C85: A.1 | D85: Administração Central | E85: =BDI!E7 -> 0.0173
C86: A.2 | D86: Seguros, Garantias e Riscos | E86: =BDI!E8 -> 0.0054
C87: B | D87: Lucro | E87: =BDI!E10 -> 0.0267
C88: C | D88: Tributos | E88: =SUM(E89:E90) -> 0.124
C89: C.1 | D89: Tributos Federais (COFINS, PIS e CPRB) | E89: =BDI!E18 -> 0.074
C90: C.2 | D90: Tributos Distritais (ISS) | E90: =BDI!E23 -> 0.05
C91: D | D91: Despesas Financeiras | E91: =BDI!E13 -> 0.004466921098
D93: TOTAL DE BDI | E93: =BDI!E26 -> 0.204 | F93: =E93*E101 -> 2381.91216
D95: QUADRO-RESUMO DO CUSTO MENSAL POR EMPREGADO - SEM O 13º | E95: Valor
D96: Módulo 1 - Composição da Remuneração | E96: =F16 -> 6718.14
D97: Módulo 2 - Encargos e Benefícios Anuais, Mensais e Diários | E97: =F45 -> 3767.63
D98: Módulo 3 - Provisão para Rescisão | E98: =F54 -> 289.04
D99: Módulo 4 - Custo de Reposição do Profissional Ausente | E99: =F72 -> 745.04
D100: Módulo 5 - Insumos Diversos | E100: =F81 -> 156.19
D101: SUBTOTAL (A+B+C+D+E) | E101: =SUM(E96:E100) -> 11676.04
D102: Módulo 6 - Custos Indiretos, Tributos e Lucro | E102: =F93 -> 2381.91216
D104: TOTAL DO POSTO | E104: =SUM(E101:E102) -> 14057.95216
B106: MÓDULO 7 - DESTAQUE DO MÓDULO 2 - 13º SALÁRIO | E106: Percentuais | F106: Valor
C107: A | D107: 13º Salário | E107: ='Encargos Sociais'!E32*12/11 -> 0.09087272727 | F107: =ROUND(E107*F$16,2) -> 610.5 | H107: * Nota 1 - Incluindo-se a reincidência das férias do substituto sobre o titular
C108: B | D108: Encargos Sociais sobre o 13º Salário | E108: =SUM($E$24:$E$32) -> 0.368 | F108: =ROUND(E108*$F$107,2) -> 224.66 | H108: * Nota 2 - Provisiona-se, mensalmente, o proporcional a 1/12 dos valores referentes a gratificação natalina e adicional de férias.
C109: C | D109: BDI sobre o 13º Salário - Taxa calculada no MÓDULO 6 | E109: =E93 -> 0.204 | F109: =ROUND(E109*($F$107+$F$108),2) -> 170.37
D111: TOTAL DO DESTAQUE DO 13º SALÁRIO | F111: =SUM(F107:F109) -> 1005.53
D113: QUADRO-RESUMO DO CUSTO MENSAL POR EMPREGADO | E113: Valor
D114: Custo total - sem o 13º Salário | E114: =E104 -> 14057.95216
D115: Destaque do 13º Salário (valor mensal) | E115: =F111 -> 1005.53
D117: TOTAL DO POSTO | E117: =E114+E115 -> 15063.48216

Sheet 6
B2: PLANILHA DE ESTIMATIVA DE CUSTOS
B5: 6 | D5: =HLOOKUP($B$5,'Dados Gerais'!$D$6:$BK$21,6) -> VIGILANTE DIURNO PORTARIAS 1 Escala 12 x 36 7h às 19h 2ª feira a Dom | E5: QUANTIDADE | F5: =HLOOKUP($B$5,'Dados Gerais'!$D$6:$BK$21,10) -> 36
B6: CCT | D6: =HLOOKUP($B$5,'Dados Gerais'!$D$6:$BK$21,15) -> SINDESV/DF X SINDESP/DF 2024/2024 Nº DF000333/2024 | E6: DATA-BASE | F6: =HLOOKUP($B$5,'Dados Gerais'!$D$6:$BK$21,16) -> 2024-01-01
B8: MÓDULO 1 - COMPOSIÇÃO DA REMUNERAÇÃO | F8: Valor
C9: A | D9: Salário-Base | F9: =HLOOKUP($B$5,'Dados Gerais'!$D$6:$BK$21,8) -> 3423.03
C10: B | D10: Adicional de Periculosidade | F10: =HLOOKUP($B$5,'Dados Gerais'!$D$6:$BK$38,25) -> 1026.91
C11: C | D11: Adicional de Insalubridade | F11: =HLOOKUP($B$5,'Dados Gerais'!$D$6:$BK$38,31) -> 0
C12: D | D12: Adicional Noturno | F12: =HLOOKUP($B$5,'Dados Gerais'!$D$6:$BK$51,46) -> 0 | H12: * Nota 1 - O Módulo 1 refere-se ao valor mensal devido ao empregado pela prestação do serviço no período de 12 meses.
C13: E | D13: Adicional de Hora Extra | F13: =HLOOKUP($B$5,'Dados Gerais'!$D$6:$BK$68,63) -> 0 | H13: * Nota 2 - O adicional de hora extra no feriado trabalhado foi suprimido pela Lei 13.467/17
C14: F | D14: Outros (especificar) | F14: =HLOOKUP($B$5,'Dados Gerais'!$D$6:$BK$60,33) -> 0 | H14: * Nota 3 - ART. 7º, § 2º, DA LEI Nº 605/49.Sendo mensalista o obreiro, o adicional noturno pago de forma fixa já é considerado integrado para os efeitos do pagamento do repouso semanal remunerado, nos termos do art. 7º, § 2º, da Lei nº 605/49.
D16: TOTAL DA REMUNERAÇÃO | F16: =SUM(F9:F14) -> 4449.94
B18: MÓDULO 2 - ENCARGOS E BENEFÍCIOS ANUAIS, MENSAIS E DIÁRIOS | E18: Percentuais | F18: Valor
B19: Submódulo 2.1 - 13º Salário e Adicional de Férias
C20: A | D20: 13º Salário - Calculado no Módulo 7 - Destacado | E20: 0 | F20: =ROUND(E20*F$16,2) -> 0 | H20: * Nota 1 - Provisiona-se, mensalmente, o proporcional a 1/12 dos valores referentes a gratificação natalina, calculada à parte
C21: B | D21: Adicional de Férias | E21: ='Encargos Sociais'!E31 -> 0.0303 | F21: =ROUND(E21*F$16,2) -> 134.83 | H21: * Nota 2 - O adicional de férias foi calculado dividindo-se por 11, para comportar os 11 meses presentes e ainda o ausente do posto
B23: Submódulo 2.2 - Encargos Previdenciários (GPS), Fundo de Garantia por Tempo de Serviço (FGTS) e Outras Contribuições
C24: A | D24: ='Encargos Sociais'!D14 -> INSS (art. 22, inciso I, Lei nº 8.212/91) | E24: ='Encargos Sociais'!E14 -> 0.2 | F24: =ROUND(E24*($F$16+$F$41+$F$72),2) -> 1015.65
C25: B | D25: ='Encargos Sociais'!D15 -> Salário Educação (art. 3º, inciso I, Decreto nº 87.043/82) | E25: ='Encargos Sociais'!E15 -> 0.025 | F25: 126.96
C26: C | D26: ='Encargos Sociais'!D16 -> SAT/RAT (art. 22, II, Lei 8.212/91 e Anexo V, Decreto 6.042/07) - Enquadramento 8011-1/01 | E26: ='Encargos Sociais'!E16 -> 0.03 | F26: 152.35
C27: D | D27: ='Encargos Sociais'!D17 -> SESC ou SESI (art. 30, Lei nº 8.036/90 e art. 1º, Lei 8.154/90) | E27: ='Encargos Sociais'!E17 -> 0.015 | F27: 76.17
C28: E | D28: ='Encargos Sociais'!D18 -> SENAI ou SENAC (Decreto nº 2.318/86) | E28: ='Encargos Sociais'!E18 -> 0.01 | F28: 50.78 | H28: * Nota 1 - Os percentuais dos encargos previdenciários, do FGTS e demais contribuições são estabelecidos por legislação vigente.
C29: F | D29: ='Encargos Sociais'!D19 -> SEBRAE (§ 3º, art. 8º, Lei 8.029/90, alterada pela Lei nº 8.154/90) | E29: ='Encargos Sociais'!E19 -> 0.006 | F29: 30.47 | H29: * Nota 2 - O SAT, a depender do grau de risco do serviço, irá variar entre 1%, para risco leve, de 2%, para risco médio, e de 3% para risco grave.
C30: G | D30: ='Encargos Sociais'!D20 -> INCRA (art. 1º, I, Decreto Lei 1.146/70 e Lei 7.787, de 30/06/89) | E30: ='Encargos Sociais'!E20 -> 0.002 | F30: 10.16 | H30: * Nota 3 - Base de cálculo - remuneração + ausências + terço constitucional (férias)
C31: H | D31: ='Encargos Sociais'!D21 -> FGTS (Lei Complementar nº 110/01 e art. 30, Lei nº 8.036/90) | E31: ='Encargos Sociais'!E21 -> 0.08 | F31: 406.26
C32: I | D32: ='Encargos Sociais'!D22 -> SECONCI (Convenções Coletivas de Trabalho da construção) | E32: ='Encargos Sociais'!E22 -> 0 | F32: 0
B34: Submódulo 2.3 - Benefícios Mensais e Diários
C35: A | D35: Auxílio Transporte | F35: =HLOOKUP($B$5,'Dados Gerais'!$D$6:$BK$94,82) -> 22.4
C36: B | D36: Auxílio Alimentação | F36: =HLOOKUP($B$5,'Dados Gerais'!$D$6:$BK$94,89) -> 710.55 | H36: * Nota 1 - O valor informado deverá ser o custo real do benefício (descontado o valor eventualmente pago pelo empregado).
C37: C | D37: Assistência Médica e Familiar | F37: =HLOOKUP($B$5,'Dados Gerais'!$D$6:$BK$102,97) -> 0 | H37: * Nota 2 - Observar a previsão dos benefícios contidos em Acordos, Convenções e Dissídios Coletivos de Trabalho e o disposto no art. 6º da IN 5/2017
C38: D | D38: Outros (Seguro de vida e auxílio funeral e auxílio odontológico) | F38: =HLOOKUP($B$5,'Dados Gerais'!$D$6:$BK$119,114) -> 32.16
D40: QUADRO-RESUMO DO MÓDULO 2
D41: 2.1 - Adicional de Férias | E41: =SUM(E20:E21) -> 0.0303 | F41: =F20+F21 -> 134.83
D42: 2.2 - Encargos Previdenciários (GPS), Fundo de Garantia por Tempo de Serviço (FGTS) e Contribuições | E42: =SUM(E24:E32) -> 0.368 | F42: =SUM(F24:F32) -> 1868.8
D43: 2.3 - Benefícios Mensais e Diários | F43: =SUM(F35:F38) -> 765.11
D45: TOTAL DOS ENCARGOS E BENEFÍCIOS | F45: =SUM(F41:F43) -> 2768.74
B47: MÓDULO 3 - PREVISÃO PARA RESCISÃO | E47: Percentuais | F47: Valor
C48: A | D48: ='Encargos Sociais'!D36 -> Aviso Prévio Indenizado (Art. 7º, inciso XXI, da CF/1988 e arts. 477, 487, §1º, e 491 da CLT) | E48: ='Encargos Sociais'!E36 -> 0.0042 | F48: =ROUND(E48*($F$16+$F$72+$F$41),2) -> 21.33
C49: B | D49: ='Encargos Sociais'!D37 -> 13º sobre aviso prévio indenizado | E49: ='Encargos Sociais'!E37 -> 0.0004 | F49: =ROUND(E49*($F$16+$F$72+$F$41),2) -> 2.03 | H49: * Nota 1 - Adotou-se os parâmetros do estudo do STF (http://www.stf.jus.br/arquivo/cms/sobrestfestudosci/anexo/encargos_sociais_03102007.pdf), onde 5% do pessoal é demitido pelo empregador no decurso do contrato (para estes, considerou-se o aviso prévio indenizado). Desprezou-se as demissões por justa causa e os pedidos de demissão.
C50: C | D50: ='Encargos Sociais'!D38 -> Incidência do FGTS sobre o Aviso Prévio Indenizado (Súmula 305 TST) | E50: ='Encargos Sociais'!E38 -> 0.0003 | F50: =ROUND(E50*($F$16+$F$72+$F$41),2) -> 1.52 | H50: * Nota 2 - Base de cálculo - remuneração + ausências + 1/3 férias
C51: D | D51: ='Encargos Sociais'!D39 -> Multa do FGTS sobre o Aviso Prévio (Art. 18, §1º, da Lei 8.036/1990) | E51: ='Encargos Sociais'!E39 -> 0.032 | F51: =ROUND(E51*($F$16+$F$72+$F$41),2) -> 162.5
C52: E | D52: ='Encargos Sociais'!D40 -> Indenização Adicional - data-base (Art. 9º, Lei 7.238/1984) | E52: ='Encargos Sociais'!E40 -> 0.0008 | F52: =ROUND(E52*($F$16+$F$72+$F$41),2) -> 4.06
D54: TOTAL DE PREVISÃO PARA RESCISÃO | F54: =SUM(F48:F52) -> 191.44
B56: MÓDULO 4 - CUSTO DO PROFISSIONAL AUSENTE | E56: Percentuais | F56: Valor
B57: Submódulo 4.1 - Ausências Legais
C58: A | D58: ='Encargos Sociais'!D25 -> Férias (Arts. 129 e 130, inc. I, da CLT) | E58: ='Encargos Sociais'!E25 -> 0.0909 | F58: =ROUND(E58*$F$16,2) -> 404.5 | H58: * Nota 1 - O Módulo 4 refere-se às previsões para custear ausências do próprio profissional (titular do cargo)
C59: B | D59: ='Encargos Sociais'!D26 -> Ausências Legais (Arts. 131 e 473 da CLT) | E59: ='Encargos Sociais'!E26 -> 0.0079 | F59: 35.15 | H59: * Nota 2 - As férias foram calculadas dividindo-se por 11, para comportar os 11 meses presentes e ainda o ausente do posto
C60: C | D60: ='Encargos Sociais'!D27 -> Licença-Paternidade (Art. 7º, XIX, e art. 10, §1º, do ADCT, CF/1988 e Art. 1º, II, da Lei 11.770/2008) | E60: ='Encargos Sociais'!E27 -> 0.0008 | F60: 3.56
C61: D | D61: ='Encargos Sociais'!D28 -> Ausência por Acidente de Trabalho (Art. 131, III, da CLT) | E61: ='Encargos Sociais'!E28 -> 0.0009 | F61: 4
C62: E | D62: ='Encargos Sociais'!D29 -> Afastamento Maternidade (Art. 71 da Lei nº 8.213/1991) | E62: ='Encargos Sociais'!E29 -> 0.0033 | F62: 14.68
C63: F | D63: ='Encargos Sociais'!D30 -> Auxílio Enfermidade - Doença (Art. 59 da Lei nº 8.213/1991) | E63: ='Encargos Sociais'!E30 -> 0.0071 | F63: 31.59
B65: Submódulo 4.2 - Intrajornada
C66: A | D66: Intervalo para repouso ou alimentação | E66: ='Encargos Sociais'!E33 -> 0 | F66: =ROUND(E66*$F$16,2) -> 0
D68: QUADRO-RESUMO DO MÓDULO 4 | F68: Valor
D69: 4.1 - Ausências Legais | E69: =SUM(E58:E63) -> 0.1109 | F69: =ROUND(E69*$F$16,2) -> 493.5
D70: 4.2 - Intrajornada | E70: =E66 -> 0 | F70: =ROUND(E70*$F$16,2) -> 0
D72: TOTAL DE PREVISÃO PARA CUSTO DO PROFISSIONAL AUSENTE E INTERVALO INTRAJORNADA | F72: =SUM(F69:F70) -> 493.5
B74: MÓDULO 5 - INSUMOS DIVERSOS | F74: Valor
C75: A | D75: Uniformes - aquisição | F75: =ROUND(HLOOKUP($B$5,Uniformes!L4:EA90,3)/12,2) -> 199.54
C76: B | D76: Materiais de consumo relacionados ao posto - aquisição | F76: =ROUND(HLOOKUP(B5,'Mat Cons'!I11:DX13,3)/12,2) -> 0
C77: C | D77: Materiais permanentes relacionados ao posto - remuneração da sua depreciação / manutenção | F77: =HLOOKUP(B5,'Mat Perm'!Q11:EF13,3) -> 0
C78: D | D78: Equipamentos relacionados ao posto - remuneração da sua depreciação / manutenção | F78: =HLOOKUP(B5,'Equip Rel'!Q3:EF5,3) -> 0
C79: E | D79: Equipamentos de Proteção Individual - EPI - aquisição | F79: =ROUND(HLOOKUP(B5,EPI!J4:DY6,3)/12,2) -> 0
D81: TOTAL DE INSUMOS DIVERSOS | F81: =SUM(F75:F80) -> 199.54 | H81: * Nota - Valores mensais por empregado
B83: MÓDULO 6 - CUSTOS INDIRETOS, TRIBUTOS E LUCRO - BDI | E83: Percentuais | F83: Valor
C84: A | D84: Custos Indiretos | E84: =BDI!E6 -> 0.0227
C85: A.1 | D85: Administração Central | E85: =BDI!E7 -> 0.0173
C86: A.2 | D86: Seguros, Garantias e Riscos | E86: =BDI!E8 -> 0.0054
C87: B | D87: Lucro | E87: =BDI!E10 -> 0.0267
C88: C | D88: Tributos | E88: =SUM(E89:E90) -> 0.124
C89: C.1 | D89: Tributos Federais (COFINS, PIS e CPRB) | E89: =BDI!E18 -> 0.074
C90: C.2 | D90: Tributos Distritais (ISS) | E90: =BDI!E23 -> 0.05
C91: D | D91: Despesas Financeiras | E91: =BDI!E13 -> 0.004466921098
D93: TOTAL DE BDI | E93: =BDI!E26 -> 0.204 | F93: =E93*E101 -> 1653.04464
D95: QUADRO-RESUMO DO CUSTO MENSAL POR EMPREGADO - SEM O 13º | E95: Valor
D96: Módulo 1 - Composição da Remuneração | E96: =F16 -> 4449.94
D97: Módulo 2 - Encargos e Benefícios Anuais, Mensais e Diários | E97: =F45 -> 2768.74
D98: Módulo 3 - Provisão para Rescisão | E98: =F54 -> 191.44
D99: Módulo 4 - Custo de Reposição do Profissional Ausente | E99: =F72 -> 493.5
D100: Módulo 5 - Insumos Diversos | E100: =F81 -> 199.54
D101: SUBTOTAL (A+B+C+D+E) | E101: =SUM(E96:E100) -> 8103.16
D102: Módulo 6 - Custos Indiretos, Tributos e Lucro | E102: =F93 -> 1653.04464
D104: TOTAL DO POSTO | E104: =SUM(E101:E102) -> 9756.20464
B106: MÓDULO 7 - DESTAQUE DO MÓDULO 2 - 13º SALÁRIO | E106: Percentuais | F106: Valor
C107: A | D107: 13º Salário | E107: ='Encargos Sociais'!E32*12/11 -> 0.09087272727 | F107: =ROUND(E107*F$16,2) -> 404.38 | H107: * Nota 1 - Incluindo-se a reincidência das férias do substituto sobre o titular
C108: B | D108: Encargos Sociais sobre o 13º Salário | E108: =SUM($E$24:$E$32) -> 0.368 | F108: =ROUND(E108*$F$107,2) -> 148.81 | H108: * Nota 2 - Provisiona-se, mensalmente, o proporcional a 1/12 dos valores referentes a gratificação natalina e adicional de férias.
C109: C | D109: BDI sobre o 13º Salário - Taxa calculada no MÓDULO 6 | E109: =E93 -> 0.204 | F109: =ROUND(E109*($F$107+$F$108),2) -> 112.85
D111: TOTAL DO DESTAQUE DO 13º SALÁRIO | F111: =SUM(F107:F109) -> 666.04
D113: QUADRO-RESUMO DO CUSTO MENSAL POR EMPREGADO | E113: Valor
D114: Custo total - sem o 13º Salário | E114: =E104 -> 9756.20464
D115: Destaque do 13º Salário (valor mensal) | E115: =F111 -> 666.04
D117: TOTAL DO POSTO | E117: =E114+E115 -> 10422.24464

Sheet 7
B2: PLANILHA DE ESTIMATIVA DE CUSTOS
B5: 7 | D5: =HLOOKUP($B$5,'Dados Gerais'!$D$6:$BK$21,6) -> VIGILANTE NOTURNO PORTARIAS 1 Escala 12 x 36 19h às 7h 2ª feira a Dom | E5: QUANTIDADE | F5: =HLOOKUP($B$5,'Dados Gerais'!$D$6:$BK$21,10) -> 30
B6: CCT | D6: =HLOOKUP($B$5,'Dados Gerais'!$D$6:$BK$21,15) -> SINDESV/DF X SINDESP/DF 2024/2024 Nº DF000333/2024 | E6: DATA-BASE | F6: =HLOOKUP($B$5,'Dados Gerais'!$D$6:$BK$21,16) -> 2024-01-01
B8: MÓDULO 1 - COMPOSIÇÃO DA REMUNERAÇÃO | F8: Valor
C9: A | D9: Salário-Base | F9: =HLOOKUP($B$5,'Dados Gerais'!$D$6:$BK$21,8) -> 3423.03
C10: B | D10: Adicional de Periculosidade | F10: =HLOOKUP($B$5,'Dados Gerais'!$D$6:$BK$38,25) -> 1026.91
C11: C | D11: Adicional de Insalubridade | F11: =HLOOKUP($B$5,'Dados Gerais'!$D$6:$BK$38,31) -> 0
C12: D | D12: Adicional Noturno | F12: =HLOOKUP($B$5,'Dados Gerais'!$D$6:$BK$51,46) -> 485.45 | H12: * Nota 1 - O Módulo 1 refere-se ao valor mensal devido ao empregado pela prestação do serviço no período de 12 meses.
C13: E | D13: Adicional de Hora Extra | F13: =HLOOKUP($B$5,'Dados Gerais'!$D$6:$BK$68,63) -> 0 | H13: * Nota 2 - O adicional de hora extra no feriado trabalhado foi suprimido pela Lei 13.467/17
C14: F | D14: Outros (especificar) | F14: =HLOOKUP($B$5,'Dados Gerais'!$D$6:$BK$60,33) -> 0 | H14: * Nota 3 - ART. 7º, § 2º, DA LEI Nº 605/49.Sendo mensalista o obreiro, o adicional noturno pago de forma fixa já é considerado integrado para os efeitos do pagamento do repouso semanal remunerado, nos termos do art. 7º, § 2º, da Lei nº 605/49.
D16: TOTAL DA REMUNERAÇÃO | F16: =SUM(F9:F14) -> 4935.39
B18: MÓDULO 2 - ENCARGOS E BENEFÍCIOS ANUAIS, MENSAIS E DIÁRIOS | E18: Percentuais | F18: Valor
B19: Submódulo 2.1 - 13º Salário e Adicional de Férias
C20: A | D20: 13º Salário - Calculado no Módulo 7 - Destacado | E20: 0 | F20: =ROUND(E20*F$16,2) -> 0 | H20: * Nota 1 - Provisiona-se, mensalmente, o proporcional a 1/12 dos valores referentes a gratificação natalina, calculada à parte
C21: B | D21: Adicional de Férias | E21: ='Encargos Sociais'!E31 -> 0.0303 | F21: =ROUND(E21*F$16,2) -> 149.54 | H21: * Nota 2 - O adicional de férias foi calculado dividindo-se por 11, para comportar os 11 meses presentes e ainda o ausente do posto
B23: Submódulo 2.2 - Encargos Previdenciários (GPS), Fundo de Garantia por Tempo de Serviço (FGTS) e Outras Contribuições
C24: A | D24: ='Encargos Sociais'!D14 -> INSS (art. 22, inciso I, Lei nº 8.212/91) | E24: ='Encargos Sociais'!E14 -> 0.2 | F24: =ROUND(E24*($F$16+$F$41+$F$72),2) -> 1126.45
C25: B | D25: ='Encargos Sociais'!D15 -> Salário Educação (art. 3º, inciso I, Decreto nº 87.043/82) | E25: ='Encargos Sociais'!E15 -> 0.025 | F25: 140.81
C26: C | D26: ='Encargos Sociais'!D16 -> SAT/RAT (art. 22, II, Lei 8.212/91 e Anexo V, Decreto 6.042/07) - Enquadramento 8011-1/01 | E26: ='Encargos Sociais'!E16 -> 0.03 | F26: 168.97
C27: D | D27: ='Encargos Sociais'!D17 -> SESC ou SESI (art. 30, Lei nº 8.036/90 e art. 1º, Lei 8.154/90) | E27: ='Encargos Sociais'!E17 -> 0.015 | F27: 84.48
C28: E | D28: ='Encargos Sociais'!D18 -> SENAI ou SENAC (Decreto nº 2.318/86) | E28: ='Encargos Sociais'!E18 -> 0.01 | F28: 56.32 | H28: * Nota 1 - Os percentuais dos encargos previdenciários, do FGTS e demais contribuições são estabelecidos por legislação vigente.
C29: F | D29: ='Encargos Sociais'!D19 -> SEBRAE (§ 3º, art. 8º, Lei 8.029/90, alterada pela Lei nº 8.154/90) | E29: ='Encargos Sociais'!E19 -> 0.006 | F29: 33.79 | H29: * Nota 2 - O SAT, a depender do grau de risco do serviço, irá variar entre 1%, para risco leve, de 2%, para risco médio, e de 3% para risco grave.
C30: G | D30: ='Encargos Sociais'!D20 -> INCRA (art. 1º, I, Decreto Lei 1.146/70 e Lei 7.787, de 30/06/89) | E30: ='Encargos Sociais'!E20 -> 0.002 | F30: 11.26 | H30: * Nota 3 - Base de cálculo - remuneração + ausências + terço constitucional (férias)
C31: H | D31: ='Encargos Sociais'!D21 -> FGTS (Lei Complementar nº 110/01 e art. 30, Lei nº 8.036/90) | E31: ='Encargos Sociais'!E21 -> 0.08 | F31: 450.58
C32: I | D32: ='Encargos Sociais'!D22 -> SECONCI (Convenções Coletivas de Trabalho da construção) | E32: ='Encargos Sociais'!E22 -> 0 | F32: 0
B34: Submódulo 2.3 - Benefícios Mensais e Diários
C35: A | D35: Auxílio Transporte | F35: =HLOOKUP($B$5,'Dados Gerais'!$D$6:$BK$94,82) -> 22.4
C36: B | D36: Auxílio Alimentação | F36: =HLOOKUP($B$5,'Dados Gerais'!$D$6:$BK$94,89) -> 710.55 | H36: * Nota 1 - O valor informado deverá ser o custo real do benefício (descontado o valor eventualmente pago pelo empregado).
C37: C | D37: Assistência Médica e Familiar | F37: =HLOOKUP($B$5,'Dados Gerais'!$D$6:$BK$102,97) -> 0 | H37: * Nota 2 - Observar a previsão dos benefícios contidos em Acordos, Convenções e Dissídios Coletivos de Trabalho e o disposto no art. 6º da IN 5/2017
C38: D | D38: Outros (Seguro de vida e auxílio funeral e auxílio odontológico) | F38: =HLOOKUP($B$5,'Dados Gerais'!$D$6:$BK$119,114) -> 32.16
D40: QUADRO-RESUMO DO MÓDULO 2
D41: 2.1 - Adicional de Férias | E41: =SUM(E20:E21) -> 0.0303 | F41: =F20+F21 -> 149.54
D42: 2.2 - Encargos Previdenciários (GPS), Fundo de Garantia por Tempo de Serviço (FGTS) e Contribuições | E42: =SUM(E24:E32) -> 0.368 | F42: =SUM(F24:F32) -> 2072.66
D43: 2.3 - Benefícios Mensais e Diários | F43: =SUM(F35:F38) -> 765.11
D45: TOTAL DOS ENCARGOS E BENEFÍCIOS | F45: =SUM(F41:F43) -> 2987.31
B47: MÓDULO 3 - PREVISÃO PARA RESCISÃO | E47: Percentuais | F47: Valor
C48: A | D48: ='Encargos Sociais'!D36 -> Aviso Prévio Indenizado (Art. 7º, inciso XXI, da CF/1988 e arts. 477, 487, §1º, e 491 da CLT) | E48: ='Encargos Sociais'!E36 -> 0.0042 | F48: =ROUND(E48*($F$16+$F$72+$F$41),2) -> 23.66
C49: B | D49: ='Encargos Sociais'!D37 -> 13º sobre aviso prévio indenizado | E49: ='Encargos Sociais'!E37 -> 0.0004 | F49: =ROUND(E49*($F$16+$F$72+$F$41),2) -> 2.25 | H49: * Nota 1 - Adotou-se os parâmetros do estudo do STF (http://www.stf.jus.br/arquivo/cms/sobrestfestudosci/anexo/encargos_sociais_03102007.pdf), onde 5% do pessoal é demitido pelo empregador no decurso do contrato (para estes, considerou-se o aviso prévio indenizado). Desprezou-se as demissões por justa causa e os pedidos de demissão.
C50: C | D50: ='Encargos Sociais'!D38 -> Incidência do FGTS sobre o Aviso Prévio Indenizado (Súmula 305 TST) | E50: ='Encargos Sociais'!E38 -> 0.0003 | F50: =ROUND(E50*($F$16+$F$72+$F$41),2) -> 1.69 | H50: * Nota 2 - Base de cálculo - remuneração + ausências + 1/3 férias
C51: D | D51: ='Encargos Sociais'!D39 -> Multa do FGTS sobre o Aviso Prévio (Art. 18, §1º, da Lei 8.036/1990) | E51: ='Encargos Sociais'!E39 -> 0.032 | F51: =ROUND(E51*($F$16+$F$72+$F$41),2) -> 180.23
C52: E | D52: ='Encargos Sociais'!D40 -> Indenização Adicional - data-base (Art. 9º, Lei 7.238/1984) | E52: ='Encargos Sociais'!E40 -> 0.0008 | F52: =ROUND(E52*($F$16+$F$72+$F$41),2) -> 4.51
D54: TOTAL DE PREVISÃO PARA RESCISÃO | F54: =SUM(F48:F52) -> 212.34
B56: MÓDULO 4 - CUSTO DO PROFISSIONAL AUSENTE | E56: Percentuais | F56: Valor
B57: Submódulo 4.1 - Ausências Legais
C58: A | D58: ='Encargos Sociais'!D25 -> Férias (Arts. 129 e 130, inc. I, da CLT) | E58: ='Encargos Sociais'!E25 -> 0.0909 | F58: =ROUND(E58*$F$16,2) -> 448.63 | H58: * Nota 1 - O Módulo 4 refere-se às previsões para custear ausências do próprio profissional (titular do cargo)
C59: B | D59: ='Encargos Sociais'!D26 -> Ausências Legais (Arts. 131 e 473 da CLT) | E59: ='Encargos Sociais'!E26 -> 0.0079 | F59: 38.99 | H59: * Nota 2 - As férias foram calculadas dividindo-se por 11, para comportar os 11 meses presentes e ainda o ausente do posto
C60: C | D60: ='Encargos Sociais'!D27 -> Licença-Paternidade (Art. 7º, XIX, e art. 10, §1º, do ADCT, CF/1988 e Art. 1º, II, da Lei 11.770/2008) | E60: ='Encargos Sociais'!E27 -> 0.0008 | F60: 3.95
C61: D | D61: ='Encargos Sociais'!D28 -> Ausência por Acidente de Trabalho (Art. 131, III, da CLT) | E61: ='Encargos Sociais'!E28 -> 0.0009 | F61: 4.44
C62: E | D62: ='Encargos Sociais'!D29 -> Afastamento Maternidade (Art. 71 da Lei nº 8.213/1991) | E62: ='Encargos Sociais'!E29 -> 0.0033 | F62: 16.29
C63: F | D63: ='Encargos Sociais'!D30 -> Auxílio Enfermidade - Doença (Art. 59 da Lei nº 8.213/1991) | E63: ='Encargos Sociais'!E30 -> 0.0071 | F63: 35.04
B65: Submódulo 4.2 - Intrajornada
C66: A | D66: Intervalo para repouso ou alimentação | E66: ='Encargos Sociais'!E33 -> 0 | F66: =ROUND(E66*$F$16,2) -> 0
D68: QUADRO-RESUMO DO MÓDULO 4 | F68: Valor
D69: 4.1 - Ausências Legais | E69: =SUM(E58:E63) -> 0.1109 | F69: =ROUND(E69*$F$16,2) -> 547.33
D70: 4.2 - Intrajornada | E70: =E66 -> 0 | F70: =ROUND(E70*$F$16,2) -> 0
D72: TOTAL DE PREVISÃO PARA CUSTO DO PROFISSIONAL AUSENTE E INTERVALO INTRAJORNADA | F72: =SUM(F69:F70) -> 547.33
B74: MÓDULO 5 - INSUMOS DIVERSOS | F74: Valor
C75: A | D75: Uniformes - aquisição | F75: =ROUND(HLOOKUP($B$5,Uniformes!L4:EA90,3)/12,2) -> 199.54
C76: B | D76: Materiais de consumo relacionados ao posto - aquisição | F76: =ROUND(HLOOKUP(B5,'Mat Cons'!I11:DX13,3)/12,2) -> 0
C77: C | D77: Materiais permanentes relacionados ao posto - remuneração da sua depreciação / manutenção | F77: =HLOOKUP(B5,'Mat Perm'!Q11:EF13,3) -> 0
C78: D | D78: Equipamentos relacionados ao posto - remuneração da sua depreciação / manutenção | F78: =HLOOKUP(B5,'Equip Rel'!Q3:EF5,3) -> 0
C79: E | D79: Equipamentos de Proteção Individual - EPI - aquisição | F79: =ROUND(HLOOKUP(B5,EPI!J4:DY6,3)/12,2) -> 0
D81: TOTAL DE INSUMOS DIVERSOS | F81: =SUM(F75:F80) -> 199.54 | H81: * Nota - Valores mensais por empregado
B83: MÓDULO 6 - CUSTOS INDIRETOS, TRIBUTOS E LUCRO - BDI | E83: Percentuais | F83: Valor
C84: A | D84: Custos Indiretos | E84: =BDI!E6 -> 0.0227
C85: A.1 | D85: Administração Central | E85: =BDI!E7 -> 0.0173
C86: A.2 | D86: Seguros, Garantias e Riscos | E86: =BDI!E8 -> 0.0054
C87: B | D87: Lucro | E87: =BDI!E10 -> 0.0267
C88: C | D88: Tributos | E88: =SUM(E89:E90) -> 0.124
C89: C.1 | D89: Tributos Federais (COFINS, PIS e CPRB) | E89: =BDI!E18 -> 0.074
C90: C.2 | D90: Tributos Distritais (ISS) | E90: =BDI!E23 -> 0.05
C91: D | D91: Despesas Financeiras | E91: =BDI!E13 -> 0.004466921098
D93: TOTAL DE BDI | E93: =BDI!E26 -> 0.204 | F93: =E93*E101 -> 1811.90964
D95: QUADRO-RESUMO DO CUSTO MENSAL POR EMPREGADO - SEM O 13º | E95: Valor
D96: Módulo 1 - Composição da Remuneração | E96: =F16 -> 4935.39
D97: Módulo 2 - Encargos e Benefícios Anuais, Mensais e Diários | E97: =F45 -> 2987.31
D98: Módulo 3 - Provisão para Rescisão | E98: =F54 -> 212.34
D99: Módulo 4 - Custo de Reposição do Profissional Ausente | E99: =F72 -> 547.33
D100: Módulo 5 - Insumos Diversos | E100: =F81 -> 199.54
D101: SUBTOTAL (A+B+C+D+E) | E101: =SUM(E96:E100) -> 8881.91
D102: Módulo 6 - Custos Indiretos, Tributos e Lucro | E102: =F93 -> 1811.90964
D104: TOTAL DO POSTO | E104: =SUM(E101:E102) -> 10693.81964
B106: MÓDULO 7 - DESTAQUE DO MÓDULO 2 - 13º SALÁRIO | E106: Percentuais | F106: Valor
C107: A | D107: 13º Salário | E107: ='Encargos Sociais'!E32*12/11 -> 0.09087272727 | F107: =ROUND(E107*F$16,2) -> 448.49 | H107: * Nota 1 - Incluindo-se a reincidência das férias do substituto sobre o titular
C108: B | D108: Encargos Sociais sobre o 13º Salário | E108: =SUM($E$24:$E$32) -> 0.368 | F108: =ROUND(E108*$F$107,2) -> 165.04 | H108: * Nota 2 - Provisiona-se, mensalmente, o proporcional a 1/12 dos valores referentes a gratificação natalina e adicional de férias.
C109: C | D109: BDI sobre o 13º Salário - Taxa calculada no MÓDULO 6 | E109: =E93 -> 0.204 | F109: =ROUND(E109*($F$107+$F$108),2) -> 125.16
D111: TOTAL DO DESTAQUE DO 13º SALÁRIO | F111: =SUM(F107:F109) -> 738.69
D113: QUADRO-RESUMO DO CUSTO MENSAL POR EMPREGADO | E113: Valor
D114: Custo total - sem o 13º Salário | E114: =E104 -> 10693.81964
D115: Destaque do 13º Salário (valor mensal) | E115: =F111 -> 738.69
D117: TOTAL DO POSTO | E117: =E114+E115 -> 11432.50964

Sheet 8
B2: PLANILHA DE ESTIMATIVA DE CUSTOS
B5: 8 | D5: =HLOOKUP($B$5,'Dados Gerais'!$D$6:$BK$21,6) -> VIGILANTE MATUTINO PORTARIAS 1 Escala 40 horas semanais 7h às 16h 2ª à 6ª feira | E5: QUANTIDADE | F5: =HLOOKUP($B$5,'Dados Gerais'!$D$6:$BK$21,10) -> 13
B6: CCT | D6: =HLOOKUP($B$5,'Dados Gerais'!$D$6:$BK$21,15) -> SINDESV/DF X SINDESP/DF 2024/2024 Nº DF000333/2024 | E6: DATA-BASE | F6: =HLOOKUP($B$5,'Dados Gerais'!$D$6:$BK$21,16) -> 2024-01-01
B8: MÓDULO 1 - COMPOSIÇÃO DA REMUNERAÇÃO | F8: Valor
C9: A | D9: Salário-Base | F9: =HLOOKUP($B$5,'Dados Gerais'!$D$6:$BK$21,8) -> 3423.03
C10: B | D10: Adicional de Periculosidade | F10: =HLOOKUP($B$5,'Dados Gerais'!$D$6:$BK$38,25) -> 1026.91
C11: C | D11: Adicional de Insalubridade | F11: =HLOOKUP($B$5,'Dados Gerais'!$D$6:$BK$38,31) -> 0
C12: D | D12: Adicional Noturno | F12: =HLOOKUP($B$5,'Dados Gerais'!$D$6:$BK$51,46) -> 0 | H12: * Nota 1 - O Módulo 1 refere-se ao valor mensal devido ao empregado pela prestação do serviço no período de 12 meses.
C13: E | D13: Adicional de Hora Extra | F13: =HLOOKUP($B$5,'Dados Gerais'!$D$6:$BK$68,63) -> 0 | H13: * Nota 2 - O adicional de hora extra no feriado trabalhado foi suprimido pela Lei 13.467/17
C14: F | D14: Outros (especificar) | F14: =HLOOKUP($B$5,'Dados Gerais'!$D$6:$BK$60,33) -> 0 | H14: * Nota 3 - ART. 7º, § 2º, DA LEI Nº 605/49.Sendo mensalista o obreiro, o adicional noturno pago de forma fixa já é considerado integrado para os efeitos do pagamento do repouso semanal remunerado, nos termos do art. 7º, § 2º, da Lei nº 605/49.
D16: TOTAL DA REMUNERAÇÃO | F16: =SUM(F9:F14) -> 4449.94
B18: MÓDULO 2 - ENCARGOS E BENEFÍCIOS ANUAIS, MENSAIS E DIÁRIOS | E18: Percentuais | F18: Valor
B19: Submódulo 2.1 - 13º Salário e Adicional de Férias
C20: A | D20: 13º Salário - Calculado no Módulo 7 - Destacado | E20: 0 | F20: =ROUND(E20*F$16,2) -> 0 | H20: * Nota 1 - Provisiona-se, mensalmente, o proporcional a 1/12 dos valores referentes a gratificação natalina, calculada à parte
C21: B | D21: Adicional de Férias | E21: ='Encargos Sociais'!E31 -> 0.0303 | F21: =ROUND(E21*F$16,2) -> 134.83 | H21: * Nota 2 - O adicional de férias foi calculado dividindo-se por 11, para comportar os 11 meses presentes e ainda o ausente do posto
B23: Submódulo 2.2 - Encargos Previdenciários (GPS), Fundo de Garantia por Tempo de Serviço (FGTS) e Outras Contribuições
C24: A | D24: ='Encargos Sociais'!D14 -> INSS (art. 22, inciso I, Lei nº 8.212/91) | E24: ='Encargos Sociais'!E14 -> 0.2 | F24: =ROUND(E24*($F$16+$F$41+$F$72),2) -> 1015.65
C25: B | D25: ='Encargos Sociais'!D15 -> Salário Educação (art. 3º, inciso I, Decreto nº 87.043/82) | E25: ='Encargos Sociais'!E15 -> 0.025 | F25: 126.96
C26: C | D26: ='Encargos Sociais'!D16 -> SAT/RAT (art. 22, II, Lei 8.212/91 e Anexo V, Decreto 6.042/07) - Enquadramento 8011-1/01 | E26: ='Encargos Sociais'!E16 -> 0.03 | F26: 152.35
C27: D | D27: ='Encargos Sociais'!D17 -> SESC ou SESI (art. 30, Lei nº 8.036/90 e art. 1º, Lei 8.154/90) | E27: ='Encargos Sociais'!E17 -> 0.015 | F27: 76.17
C28: E | D28: ='Encargos Sociais'!D18 -> SENAI ou SENAC (Decreto nº 2.318/86) | E28: ='Encargos Sociais'!E18 -> 0.01 | F28: 50.78 | H28: * Nota 1 - Os percentuais dos encargos previdenciários, do FGTS e demais contribuições são estabelecidos por legislação vigente.
C29: F | D29: ='Encargos Sociais'!D19 -> SEBRAE (§ 3º, art. 8º, Lei 8.029/90, alterada pela Lei nº 8.154/90) | E29: ='Encargos Sociais'!E19 -> 0.006 | F29: 30.47 | H29: * Nota 2 - O SAT, a depender do grau de risco do serviço, irá variar entre 1%, para risco leve, de 2%, para risco médio, e de 3% para risco grave.
C30: G | D30: ='Encargos Sociais'!D20 -> INCRA (art. 1º, I, Decreto Lei 1.146/70 e Lei 7.787, de 30/06/89) | E30: ='Encargos Sociais'!E20 -> 0.002 | F30: 10.16 | H30: * Nota 3 - Base de cálculo - remuneração + ausências + terço constitucional (férias)
C31: H | D31: ='Encargos Sociais'!D21 -> FGTS (Lei Complementar nº 110/01 e art. 30, Lei nº 8.036/90) | E31: ='Encargos Sociais'!E21 -> 0.08 | F31: 406.26
C32: I | D32: ='Encargos Sociais'!D22 -> SECONCI (Convenções Coletivas de Trabalho da construção) | E32: ='Encargos Sociais'!E22 -> 0 | F32: 0
B34: Submódulo 2.3 - Benefícios Mensais e Diários
C35: A | D35: Auxílio Transporte | F35: =HLOOKUP($B$5,'Dados Gerais'!$D$6:$BK$94,82) -> 128.7
C36: B | D36: Auxílio Alimentação | F36: =HLOOKUP($B$5,'Dados Gerais'!$D$6:$BK$94,89) -> 1042.14 | H36: * Nota 1 - O valor informado deverá ser o custo real do benefício (descontado o valor eventualmente pago pelo empregado).
C37: C | D37: Assistência Médica e Familiar | F37: =HLOOKUP($B$5,'Dados Gerais'!$D$6:$BK$102,97) -> 0 | H37: * Nota 2 - Observar a previsão dos benefícios contidos em Acordos, Convenções e Dissídios Coletivos de Trabalho e o disposto no art. 6º da IN 5/2017
C38: D | D38: Outros (Seguro de vida e auxílio funeral e auxílio odontológico) | F38: =HLOOKUP($B$5,'Dados Gerais'!$D$6:$BK$119,114) -> 32.16
D40: QUADRO-RESUMO DO MÓDULO 2
D41: 2.1 - Adicional de Férias | E41: =SUM(E20:E21) -> 0.0303 | F41: =F20+F21 -> 134.83
D42: 2.2 - Encargos Previdenciários (GPS), Fundo de Garantia por Tempo de Serviço (FGTS) e Contribuições | E42: =SUM(E24:E32) -> 0.368 | F42: =SUM(F24:F32) -> 1868.8
D43: 2.3 - Benefícios Mensais e Diários | F43: =SUM(F35:F38) -> 1203
D45: TOTAL DOS ENCARGOS E BENEFÍCIOS | F45: =SUM(F41:F43) -> 3206.63
B47: MÓDULO 3 - PREVISÃO PARA RESCISÃO | E47: Percentuais | F47: Valor
C48: A | D48: ='Encargos Sociais'!D36 -> Aviso Prévio Indenizado (Art. 7º, inciso XXI, da CF/1988 e arts. 477, 487, §1º, e 491 da CLT) | E48: ='Encargos Sociais'!E36 -> 0.0042 | F48: =ROUND(E48*($F$16+$F$72+$F$41),2) -> 21.33
C49: B | D49: ='Encargos Sociais'!D37 -> 13º sobre aviso prévio indenizado | E49: ='Encargos Sociais'!E37 -> 0.0004 | F49: =ROUND(E49*($F$16+$F$72+$F$41),2) -> 2.03 | H49: * Nota 1 - Adotou-se os parâmetros do estudo do STF (http://www.stf.jus.br/arquivo/cms/sobrestfestudosci/anexo/encargos_sociais_03102007.pdf), onde 5% do pessoal é demitido pelo empregador no decurso do contrato (para estes, considerou-se o aviso prévio indenizado). Desprezou-se as demissões por justa causa e os pedidos de demissão.
C50: C | D50: ='Encargos Sociais'!D38 -> Incidência do FGTS sobre o Aviso Prévio Indenizado (Súmula 305 TST) | E50: ='Encargos Sociais'!E38 -> 0.0003 | F50: =ROUND(E50*($F$16+$F$72+$F$41),2) -> 1.52 | H50: * Nota 2 - Base de cálculo - remuneração + ausências + 1/3 férias
C51: D | D51: ='Encargos Sociais'!D39 -> Multa do FGTS sobre o Aviso Prévio (Art. 18, §1º, da Lei 8.036/1990) | E51: ='Encargos Sociais'!E39 -> 0.032 | F51: =ROUND(E51*($F$16+$F$72+$F$41),2) -> 162.5
C52: E | D52: ='Encargos Sociais'!D40 -> Indenização Adicional - data-base (Art. 9º, Lei 7.238/1984) | E52: ='Encargos Sociais'!E40 -> 0.0008 | F52: =ROUND(E52*($F$16+$F$72+$F$41),2) -> 4.06
D54: TOTAL DE PREVISÃO PARA RESCISÃO | F54: =SUM(F48:F52) -> 191.44
B56: MÓDULO 4 - CUSTO DO PROFISSIONAL AUSENTE | E56: Percentuais | F56: Valor
B57: Submódulo 4.1 - Ausências Legais
C58: A | D58: ='Encargos Sociais'!D25 -> Férias (Arts. 129 e 130, inc. I, da CLT) | E58: ='Encargos Sociais'!E25 -> 0.0909 | F58: =ROUND(E58*$F$16,2) -> 404.5 | H58: * Nota 1 - O Módulo 4 refere-se às previsões para custear ausências do próprio profissional (titular do cargo)
C59: B | D59: ='Encargos Sociais'!D26 -> Ausências Legais (Arts. 131 e 473 da CLT) | E59: ='Encargos Sociais'!E26 -> 0.0079 | F59: 35.15 | H59: * Nota 2 - As férias foram calculadas dividindo-se por 11, para comportar os 11 meses presentes e ainda o ausente do posto
C60: C | D60: ='Encargos Sociais'!D27 -> Licença-Paternidade (Art. 7º, XIX, e art. 10, §1º, do ADCT, CF/1988 e Art. 1º, II, da Lei 11.770/2008) | E60: ='Encargos Sociais'!E27 -> 0.0008 | F60: 3.56
C61: D | D61: ='Encargos Sociais'!D28 -> Ausência por Acidente de Trabalho (Art. 131, III, da CLT) | E61: ='Encargos Sociais'!E28 -> 0.0009 | F61: 4
C62: E | D62: ='Encargos Sociais'!D29 -> Afastamento Maternidade (Art. 71 da Lei nº 8.213/1991) | E62: ='Encargos Sociais'!E29 -> 0.0033 | F62: 14.68
C63: F | D63: ='Encargos Sociais'!D30 -> Auxílio Enfermidade - Doença (Art. 59 da Lei nº 8.213/1991) | E63: ='Encargos Sociais'!E30 -> 0.0071 | F63: 31.59
B65: Submódulo 4.2 - Intrajornada
C66: A | D66: Intervalo para repouso ou alimentação | E66: ='Encargos Sociais'!E33 -> 0 | F66: =ROUND(E66*$F$16,2) -> 0
D68: QUADRO-RESUMO DO MÓDULO 4 | F68: Valor
D69: 4.1 - Ausências Legais | E69: =SUM(E58:E63) -> 0.1109 | F69: =ROUND(E69*$F$16,2) -> 493.5
D70: 4.2 - Intrajornada | E70: =E66 -> 0 | F70: =ROUND(E70*$F$16,2) -> 0
D72: TOTAL DE PREVISÃO PARA CUSTO DO PROFISSIONAL AUSENTE E INTERVALO INTRAJORNADA | F72: =SUM(F69:F70) -> 493.5
B74: MÓDULO 5 - INSUMOS DIVERSOS | F74: Valor
C75: A | D75: Uniformes - aquisição | F75: =ROUND(HLOOKUP($B$5,Uniformes!L4:EA90,3)/12,2) -> 199.54
C76: B | D76: Materiais de consumo relacionados ao posto - aquisição | F76: =ROUND(HLOOKUP(B5,'Mat Cons'!I11:DX13,3)/12,2) -> 0
C77: C | D77: Materiais permanentes relacionados ao posto - remuneração da sua depreciação / manutenção | F77: =HLOOKUP(B5,'Mat Perm'!Q11:EF13,3) -> 0
C78: D | D78: Equipamentos relacionados ao posto - remuneração da sua depreciação / manutenção | F78: =HLOOKUP(B5,'Equip Rel'!Q3:EF5,3) -> 0
C79: E | D79: Equipamentos de Proteção Individual - EPI - aquisição | F79: =ROUND(HLOOKUP(B5,EPI!J4:DY6,3)/12,2) -> 0
D81: TOTAL DE INSUMOS DIVERSOS | F81: =SUM(F75:F80) -> 199.54 | H81: * Nota - Valores mensais por empregado
B83: MÓDULO 6 - CUSTOS INDIRETOS, TRIBUTOS E LUCRO - BDI | E83: Percentuais | F83: Valor
C84: A | D84: Custos Indiretos | E84: =BDI!E6 -> 0.0227
C85: A.1 | D85: Administração Central | E85: =BDI!E7 -> 0.0173
C86: A.2 | D86: Seguros, Garantias e Riscos | E86: =BDI!E8 -> 0.0054
C87: B | D87: Lucro | E87: =BDI!E10 -> 0.0267
C88: C | D88: Tributos | E88: =SUM(E89:E90) -> 0.124
C89: C.1 | D89: Tributos Federais (COFINS, PIS e CPRB) | E89: =BDI!E18 -> 0.074
C90: C.2 | D90: Tributos Distritais (ISS) | E90: =BDI!E23 -> 0.05
C91: D | D91: Despesas Financeiras | E91: =BDI!E13 -> 0.004466921098
D93: TOTAL DE BDI | E93: =BDI!E26 -> 0.204 | F93: =E93*E101 -> 1742.3742
D95: QUADRO-RESUMO DO CUSTO MENSAL POR EMPREGADO - SEM O 13º | E95: Valor
D96: Módulo 1 - Composição da Remuneração | E96: =F16 -> 4449.94
D97: Módulo 2 - Encargos e Benefícios Anuais, Mensais e Diários | E97: =F45 -> 3206.63
D98: Módulo 3 - Provisão para Rescisão | E98: =F54 -> 191.44
D99: Módulo 4 - Custo de Reposição do Profissional Ausente | E99: =F72 -> 493.5
D100: Módulo 5 - Insumos Diversos | E100: =F81 -> 199.54
D101: SUBTOTAL (A+B+C+D+E) | E101: =SUM(E96:E100) -> 8541.05
D102: Módulo 6 - Custos Indiretos, Tributos e Lucro | E102: =F93 -> 1742.3742
D104: TOTAL DO POSTO | E104: =SUM(E101:E102) -> 10283.4242
B106: MÓDULO 7 - DESTAQUE DO MÓDULO 2 - 13º SALÁRIO | E106: Percentuais | F106: Valor
C107: A | D107: 13º Salário | E107: ='Encargos Sociais'!E32*12/11 -> 0.09087272727 | F107: =ROUND(E107*F$16,2) -> 404.38 | H107: * Nota 1 - Incluindo-se a reincidência das férias do substituto sobre o titular
C108: B | D108: Encargos Sociais sobre o 13º Salário | E108: =SUM($E$24:$E$32) -> 0.368 | F108: =ROUND(E108*$F$107,2) -> 148.81 | H108: * Nota 2 - Provisiona-se, mensalmente, o proporcional a 1/12 dos valores referentes a gratificação natalina e adicional de férias.
C109: C | D109: BDI sobre o 13º Salário - Taxa calculada no MÓDULO 6 | E109: =E93 -> 0.204 | F109: =ROUND(E109*($F$107+$F$108),2) -> 112.85
D111: TOTAL DO DESTAQUE DO 13º SALÁRIO | F111: =SUM(F107:F109) -> 666.04
D113: QUADRO-RESUMO DO CUSTO MENSAL POR EMPREGADO | E113: Valor
D114: Custo total - sem o 13º Salário | E114: =E104 -> 10283.4242
D115: Destaque do 13º Salário (valor mensal) | E115: =F111 -> 666.04
D117: TOTAL DO POSTO | E117: =E114+E115 -> 10949.4642

Sheet 9
B2: PLANILHA DE ESTIMATIVA DE CUSTOS
B5: 9 | D5: =HLOOKUP($B$5,'Dados Gerais'!$D$6:$BK$21,6) -> VIGILANTE VESPERTINO PORTARIAS 1 Escala 40 horas semanais 13h às 22h 2ª à 6ª feira | E5: QUANTIDADE | F5: =HLOOKUP($B$5,'Dados Gerais'!$D$6:$BK$21,10) -> 13
B6: CCT | D6: =HLOOKUP($B$5,'Dados Gerais'!$D$6:$BK$21,15) -> SINDESV/DF X SINDESP/DF 2024/2024 Nº DF000333/2024 | E6: DATA-BASE | F6: =HLOOKUP($B$5,'Dados Gerais'!$D$6:$BK$21,16) -> 2024-01-01
B8: MÓDULO 1 - COMPOSIÇÃO DA REMUNERAÇÃO | F8: Valor
C9: A | D9: Salário-Base | F9: =HLOOKUP($B$5,'Dados Gerais'!$D$6:$BK$21,8) -> 3423.03
C10: B | D10: Adicional de Periculosidade | F10: =HLOOKUP($B$5,'Dados Gerais'!$D$6:$BK$38,25) -> 1026.91
C11: C | D11: Adicional de Insalubridade | F11: =HLOOKUP($B$5,'Dados Gerais'!$D$6:$BK$38,31) -> 0
C12: D | D12: Adicional Noturno | F12: =HLOOKUP($B$5,'Dados Gerais'!$D$6:$BK$51,46) -> 0 | H12: * Nota 1 - O Módulo 1 refere-se ao valor mensal devido ao empregado pela prestação do serviço no período de 12 meses.
C13: E | D13: Adicional de Hora Extra | F13: =HLOOKUP($B$5,'Dados Gerais'!$D$6:$BK$68,63) -> 0 | H13: * Nota 2 - O adicional de hora extra no feriado trabalhado foi suprimido pela Lei 13.467/17
C14: F | D14: Outros (especificar) | F14: =HLOOKUP($B$5,'Dados Gerais'!$D$6:$BK$60,33) -> 0 | H14: * Nota 3 - ART. 7º, § 2º, DA LEI Nº 605/49.Sendo mensalista o obreiro, o adicional noturno pago de forma fixa já é considerado integrado para os efeitos do pagamento do repouso semanal remunerado, nos termos do art. 7º, § 2º, da Lei nº 605/49.
D16: TOTAL DA REMUNERAÇÃO | F16: =SUM(F9:F14) -> 4449.94
B18: MÓDULO 2 - ENCARGOS E BENEFÍCIOS ANUAIS, MENSAIS E DIÁRIOS | E18: Percentuais | F18: Valor
B19: Submódulo 2.1 - 13º Salário e Adicional de Férias
C20: A | D20: 13º Salário - Calculado no Módulo 7 - Destacado | E20: 0 | F20: =ROUND(E20*F$16,2) -> 0 | H20: * Nota 1 - Provisiona-se, mensalmente, o proporcional a 1/12 dos valores referentes a gratificação natalina, calculada à parte
C21: B | D21: Adicional de Férias | E21: ='Encargos Sociais'!E31 -> 0.0303 | F21: =ROUND(E21*F$16,2) -> 134.83 | H21: * Nota 2 - O adicional de férias foi calculado dividindo-se por 11, para comportar os 11 meses presentes e ainda o ausente do posto
B23: Submódulo 2.2 - Encargos Previdenciários (GPS), Fundo de Garantia por Tempo de Serviço (FGTS) e Outras Contribuições
C24: A | D24: ='Encargos Sociais'!D14 -> INSS (art. 22, inciso I, Lei nº 8.212/91) | E24: ='Encargos Sociais'!E14 -> 0.2 | F24: =ROUND(E24*($F$16+$F$41+$F$72),2) -> 1015.65
C25: B | D25: ='Encargos Sociais'!D15 -> Salário Educação (art. 3º, inciso I, Decreto nº 87.043/82) | E25: ='Encargos Sociais'!E15 -> 0.025 | F25: 126.96
C26: C | D26: ='Encargos Sociais'!D16 -> SAT/RAT (art. 22, II, Lei 8.212/91 e Anexo V, Decreto 6.042/07) - Enquadramento 8011-1/01 | E26: ='Encargos Sociais'!E16 -> 0.03 | F26: 152.35
C27: D | D27: ='Encargos Sociais'!D17 -> SESC ou SESI (art. 30, Lei nº 8.036/90 e art. 1º, Lei 8.154/90) | E27: ='Encargos Sociais'!E17 -> 0.015 | F27: 76.17
C28: E | D28: ='Encargos Sociais'!D18 -> SENAI ou SENAC (Decreto nº 2.318/86) | E28: ='Encargos Sociais'!E18 -> 0.01 | F28: 50.78 | H28: * Nota 1 - Os percentuais dos encargos previdenciários, do FGTS e demais contribuições são estabelecidos por legislação vigente.
C29: F | D29: ='Encargos Sociais'!D19 -> SEBRAE (§ 3º, art. 8º, Lei 8.029/90, alterada pela Lei nº 8.154/90) | E29: ='Encargos Sociais'!E19 -> 0.006 | F29: 30.47 | H29: * Nota 2 - O SAT, a depender do grau de risco do serviço, irá variar entre 1%, para risco leve, de 2%, para risco médio, e de 3% para risco grave.
C30: G | D30: ='Encargos Sociais'!D20 -> INCRA (art. 1º, I, Decreto Lei 1.146/70 e Lei 7.787, de 30/06/89) | E30: ='Encargos Sociais'!E20 -> 0.002 | F30: 10.16 | H30: * Nota 3 - Base de cálculo - remuneração + ausências + terço constitucional (férias)
C31: H | D31: ='Encargos Sociais'!D21 -> FGTS (Lei Complementar nº 110/01 e art. 30, Lei nº 8.036/90) | E31: ='Encargos Sociais'!E21 -> 0.08 | F31: 406.26
C32: I | D32: ='Encargos Sociais'!D22 -> SECONCI (Convenções Coletivas de Trabalho da construção) | E32: ='Encargos Sociais'!E22 -> 0 | F32: 0
B34: Submódulo 2.3 - Benefícios Mensais e Diários
C35: A | D35: Auxílio Transporte | F35: =HLOOKUP($B$5,'Dados Gerais'!$D$6:$BK$94,82) -> 128.7
C36: B | D36: Auxílio Alimentação | F36: =HLOOKUP($B$5,'Dados Gerais'!$D$6:$BK$94,89) -> 1042.14 | H36: * Nota 1 - O valor informado deverá ser o custo real do benefício (descontado o valor eventualmente pago pelo empregado).
C37: C | D37: Assistência Médica e Familiar | F37: =HLOOKUP($B$5,'Dados Gerais'!$D$6:$BK$102,97) -> 0 | H37: * Nota 2 - Observar a previsão dos benefícios contidos em Acordos, Convenções e Dissídios Coletivos de Trabalho e o disposto no art. 6º da IN 5/2017
C38: D | D38: Outros (Seguro de vida e auxílio funeral e auxílio odontológico) | F38: =HLOOKUP($B$5,'Dados Gerais'!$D$6:$BK$119,114) -> 32.16
D40: QUADRO-RESUMO DO MÓDULO 2
D41: 2.1 - Adicional de Férias | E41: =SUM(E20:E21) -> 0.0303 | F41: =F20+F21 -> 134.83
D42: 2.2 - Encargos Previdenciários (GPS), Fundo de Garantia por Tempo de Serviço (FGTS) e Contribuições | E42: =SUM(E24:E32) -> 0.368 | F42: =SUM(F24:F32) -> 1868.8
D43: 2.3 - Benefícios Mensais e Diários | F43: =SUM(F35:F38) -> 1203
D45: TOTAL DOS ENCARGOS E BENEFÍCIOS | F45: =SUM(F41:F43) -> 3206.63
B47: MÓDULO 3 - PREVISÃO PARA RESCISÃO | E47: Percentuais | F47: Valor
C48: A | D48: ='Encargos Sociais'!D36 -> Aviso Prévio Indenizado (Art. 7º, inciso XXI, da CF/1988 e arts. 477, 487, §1º, e 491 da CLT) | E48: ='Encargos Sociais'!E36 -> 0.0042 | F48: =ROUND(E48*($F$16+$F$72+$F$41),2) -> 21.33
C49: B | D49: ='Encargos Sociais'!D37 -> 13º sobre aviso prévio indenizado | E49: ='Encargos Sociais'!E37 -> 0.0004 | F49: =ROUND(E49*($F$16+$F$72+$F$41),2) -> 2.03 | H49: * Nota 1 - Adotou-se os parâmetros do estudo do STF (http://www.stf.jus.br/arquivo/cms/sobrestfestudosci/anexo/encargos_sociais_03102007.pdf), onde 5% do pessoal é demitido pelo empregador no decurso do contrato (para estes, considerou-se o aviso prévio indenizado). Desprezou-se as demissões por justa causa e os pedidos de demissão.
C50: C | D50: ='Encargos Sociais'!D38 -> Incidência do FGTS sobre o Aviso Prévio Indenizado (Súmula 305 TST) | E50: ='Encargos Sociais'!E38 -> 0.0003 | F50: =ROUND(E50*($F$16+$F$72+$F$41),2) -> 1.52 | H50: * Nota 2 - Base de cálculo - remuneração + ausências + 1/3 férias
C51: D | D51: ='Encargos Sociais'!D39 -> Multa do FGTS sobre o Aviso Prévio (Art. 18, §1º, da Lei 8.036/1990) | E51: ='Encargos Sociais'!E39 -> 0.032 | F51: =ROUND(E51*($F$16+$F$72+$F$41),2) -> 162.5
C52: E | D52: ='Encargos Sociais'!D40 -> Indenização Adicional - data-base (Art. 9º, Lei 7.238/1984) | E52: ='Encargos Sociais'!E40 -> 0.0008 | F52: =ROUND(E52*($F$16+$F$72+$F$41),2) -> 4.06
D54: TOTAL DE PREVISÃO PARA RESCISÃO | F54: =SUM(F48:F52) -> 191.44
B56: MÓDULO 4 - CUSTO DO PROFISSIONAL AUSENTE | E56: Percentuais | F56: Valor
B57: Submódulo 4.1 - Ausências Legais
C58: A | D58: ='Encargos Sociais'!D25 -> Férias (Arts. 129 e 130, inc. I, da CLT) | E58: ='Encargos Sociais'!E25 -> 0.0909 | F58: =ROUND(E58*$F$16,2) -> 404.5 | H58: * Nota 1 - O Módulo 4 refere-se às previsões para custear ausências do próprio profissional (titular do cargo)
C59: B | D59: ='Encargos Sociais'!D26 -> Ausências Legais (Arts. 131 e 473 da CLT) | E59: ='Encargos Sociais'!E26 -> 0.0079 | F59: 35.15 | H59: * Nota 2 - As férias foram calculadas dividindo-se por 11, para comportar os 11 meses presentes e ainda o ausente do posto
C60: C | D60: ='Encargos Sociais'!D27 -> Licença-Paternidade (Art. 7º, XIX, e art. 10, §1º, do ADCT, CF/1988 e Art. 1º, II, da Lei 11.770/2008) | E60: ='Encargos Sociais'!E27 -> 0.0008 | F60: 3.56
C61: D | D61: ='Encargos Sociais'!D28 -> Ausência por Acidente de Trabalho (Art. 131, III, da CLT) | E61: ='Encargos Sociais'!E28 -> 0.0009 | F61: 4
C62: E | D62: ='Encargos Sociais'!D29 -> Afastamento Maternidade (Art. 71 da Lei nº 8.213/1991) | E62: ='Encargos Sociais'!E29 -> 0.0033 | F62: 14.68
C63: F | D63: ='Encargos Sociais'!D30 -> Auxílio Enfermidade - Doença (Art. 59 da Lei nº 8.213/1991) | E63: ='Encargos Sociais'!E30 -> 0.0071 | F63: 31.59
B65: Submódulo 4.2 - Intrajornada
C66: A | D66: Intervalo para repouso ou alimentação | E66: ='Encargos Sociais'!E33 -> 0 | F66: =ROUND(E66*$F$16,2) -> 0
D68: QUADRO-RESUMO DO MÓDULO 4 | F68: Valor
D69: 4.1 - Ausências Legais | E69: =SUM(E58:E63) -> 0.1109 | F69: =ROUND(E69*$F$16,2) -> 493.5
D70: 4.2 - Intrajornada | E70: =E66 -> 0 | F70: =ROUND(E70*$F$16,2) -> 0
D72: TOTAL DE PREVISÃO PARA CUSTO DO PROFISSIONAL AUSENTE E INTERVALO INTRAJORNADA | F72: =SUM(F69:F70) -> 493.5
B74: MÓDULO 5 - INSUMOS DIVERSOS | F74: Valor
C75: A | D75: Uniformes - aquisição | F75: =ROUND(HLOOKUP($B$5,Uniformes!L4:EA90,3)/12,2) -> 199.54
C76: B | D76: Materiais de consumo relacionados ao posto - aquisição | F76: =ROUND(HLOOKUP(B5,'Mat Cons'!I11:DX13,3)/12,2) -> 0
C77: C | D77: Materiais permanentes relacionados ao posto - remuneração da sua depreciação / manutenção | F77: =HLOOKUP(B5,'Mat Perm'!Q11:EF13,3) -> 0
C78: D | D78: Equipamentos relacionados ao posto - remuneração da sua depreciação / manutenção | F78: =HLOOKUP(B5,'Equip Rel'!Q3:EF5,3) -> 0
C79: E | D79: Equipamentos de Proteção Individual - EPI - aquisição | F79: =ROUND(HLOOKUP(B5,EPI!J4:DY6,3)/12,2) -> 0
D81: TOTAL DE INSUMOS DIVERSOS | F81: =SUM(F75:F80) -> 199.54 | H81: * Nota - Valores mensais por empregado
B83: MÓDULO 6 - CUSTOS INDIRETOS, TRIBUTOS E LUCRO - BDI | E83: Percentuais | F83: Valor
C84: A | D84: Custos Indiretos | E84: =BDI!E6 -> 0.0227
C85: A.1 | D85: Administração Central | E85: =BDI!E7 -> 0.0173
C86: A.2 | D86: Seguros, Garantias e Riscos | E86: =BDI!E8 -> 0.0054
C87: B | D87: Lucro | E87: =BDI!E10 -> 0.0267
C88: C | D88: Tributos | E88: =SUM(E89:E90) -> 0.124
C89: C.1 | D89: Tributos Federais (COFINS, PIS e CPRB) | E89: =BDI!E18 -> 0.074
C90: C.2 | D90: Tributos Distritais (ISS) | E90: =BDI!E23 -> 0.05
C91: D | D91: Despesas Financeiras | E91: =BDI!E13 -> 0.004466921098
D93: TOTAL DE BDI | E93: =BDI!E26 -> 0.204 | F93: =E93*E101 -> 1742.3742
D95: QUADRO-RESUMO DO CUSTO MENSAL POR EMPREGADO - SEM O 13º | E95: Valor
D96: Módulo 1 - Composição da Remuneração | E96: =F16 -> 4449.94
D97: Módulo 2 - Encargos e Benefícios Anuais, Mensais e Diários | E97: =F45 -> 3206.63
D98: Módulo 3 - Provisão para Rescisão | E98: =F54 -> 191.44
D99: Módulo 4 - Custo de Reposição do Profissional Ausente | E99: =F72 -> 493.5
D100: Módulo 5 - Insumos Diversos | E100: =F81 -> 199.54
D101: SUBTOTAL (A+B+C+D+E) | E101: =SUM(E96:E100) -> 8541.05
D102: Módulo 6 - Custos Indiretos, Tributos e Lucro | E102: =F93 -> 1742.3742
D104: TOTAL DO POSTO | E104: =SUM(E101:E102) -> 10283.4242
B106: MÓDULO 7 - DESTAQUE DO MÓDULO 2 - 13º SALÁRIO | E106: Percentuais | F106: Valor
C107: A | D107: 13º Salário | E107: ='Encargos Sociais'!E32*12/11 -> 0.09087272727 | F107: =ROUND(E107*F$16,2) -> 404.38 | H107: * Nota 1 - Incluindo-se a reincidência das férias do substituto sobre o titular
C108: B | D108: Encargos Sociais sobre o 13º Salário | E108: =SUM($E$24:$E$32) -> 0.368 | F108: =ROUND(E108*$F$107,2) -> 148.81 | H108: * Nota 2 - Provisiona-se, mensalmente, o proporcional a 1/12 dos valores referentes a gratificação natalina e adicional de férias.
C109: C | D109: BDI sobre o 13º Salário - Taxa calculada no MÓDULO 6 | E109: =E93 -> 0.204 | F109: =ROUND(E109*($F$107+$F$108),2) -> 112.85
D111: TOTAL DO DESTAQUE DO 13º SALÁRIO | F111: =SUM(F107:F109) -> 666.04
D113: QUADRO-RESUMO DO CUSTO MENSAL POR EMPREGADO | E113: Valor
D114: Custo total - sem o 13º Salário | E114: =E104 -> 10283.4242
D115: Destaque do 13º Salário (valor mensal) | E115: =F111 -> 666.04
D117: TOTAL DO POSTO | E117: =E114+E115 -> 10949.4642

Sheet 10
B2: PLANILHA DE ESTIMATIVA DE CUSTOS
B5: 10 | D5: =HLOOKUP($B$5,'Dados Gerais'!$D$6:$BK$21,6) -> VIGILANTE MATUTINO ESTACIONAMENTOS Escala 40 horas semanais 7h às 16h 2ª à 6ª feira | E5: QUANTIDADE | F5: =HLOOKUP($B$5,'Dados Gerais'!$D$6:$BK$21,10) -> 24
B6: CCT | D6: =HLOOKUP($B$5,'Dados Gerais'!$D$6:$BK$21,15) -> SINDESV/DF X SINDESP/DF 2024/2024 Nº DF000333/2024 | E6: DATA-BASE | F6: =HLOOKUP($B$5,'Dados Gerais'!$D$6:$BK$21,16) -> 2024-01-01
B8: MÓDULO 1 - COMPOSIÇÃO DA REMUNERAÇÃO | F8: Valor
C9: A | D9: Salário-Base | F9: =HLOOKUP($B$5,'Dados Gerais'!$D$6:$BK$21,8) -> 3423.03
C10: B | D10: Adicional de Periculosidade | F10: =HLOOKUP($B$5,'Dados Gerais'!$D$6:$BK$38,25) -> 1026.91
C11: C | D11: Adicional de Insalubridade | F11: =HLOOKUP($B$5,'Dados Gerais'!$D$6:$BK$38,31) -> 0
C12: D | D12: Adicional Noturno | F12: =HLOOKUP($B$5,'Dados Gerais'!$D$6:$BK$51,46) -> 0 | H12: * Nota 1 - O Módulo 1 refere-se ao valor mensal devido ao empregado pela prestação do serviço no período de 12 meses.
C13: E | D13: Adicional de Hora Extra | F13: =HLOOKUP($B$5,'Dados Gerais'!$D$6:$BK$68,63) -> 0 | H13: * Nota 2 - O adicional de hora extra no feriado trabalhado foi suprimido pela Lei 13.467/17
C14: F | D14: Outros (especificar) | F14: =HLOOKUP($B$5,'Dados Gerais'!$D$6:$BK$60,33) -> 0 | H14: * Nota 3 - ART. 7º, § 2º, DA LEI Nº 605/49.Sendo mensalista o obreiro, o adicional noturno pago de forma fixa já é considerado integrado para os efeitos do pagamento do repouso semanal remunerado, nos termos do art. 7º, § 2º, da Lei nº 605/49.
D16: TOTAL DA REMUNERAÇÃO | F16: =SUM(F9:F14) -> 4449.94
B18: MÓDULO 2 - ENCARGOS E BENEFÍCIOS ANUAIS, MENSAIS E DIÁRIOS | E18: Percentuais | F18: Valor
B19: Submódulo 2.1 - 13º Salário e Adicional de Férias
C20: A | D20: 13º Salário - Calculado no Módulo 7 - Destacado | E20: 0 | F20: =ROUND(E20*F$16,2) -> 0 | H20: * Nota 1 - Provisiona-se, mensalmente, o proporcional a 1/12 dos valores referentes a gratificação natalina, calculada à parte
C21: B | D21: Adicional de Férias | E21: ='Encargos Sociais'!E31 -> 0.0303 | F21: =ROUND(E21*F$16,2) -> 134.83 | H21: * Nota 2 - O adicional de férias foi calculado dividindo-se por 11, para comportar os 11 meses presentes e ainda o ausente do posto
B23: Submódulo 2.2 - Encargos Previdenciários (GPS), Fundo de Garantia por Tempo de Serviço (FGTS) e Outras Contribuições
C24: A | D24: ='Encargos Sociais'!D14 -> INSS (art. 22, inciso I, Lei nº 8.212/91) | E24: ='Encargos Sociais'!E14 -> 0.2 | F24: =ROUND(E24*($F$16+$F$41+$F$72),2) -> 1015.65
C25: B | D25: ='Encargos Sociais'!D15 -> Salário Educação (art. 3º, inciso I, Decreto nº 87.043/82) | E25: ='Encargos Sociais'!E15 -> 0.025 | F25: 126.96
C26: C | D26: ='Encargos Sociais'!D16 -> SAT/RAT (art. 22, II, Lei 8.212/91 e Anexo V, Decreto 6.042/07) - Enquadramento 8011-1/01 | E26: ='Encargos Sociais'!E16 -> 0.03 | F26: 152.35
C27: D | D27: ='Encargos Sociais'!D17 -> SESC ou SESI (art. 30, Lei nº 8.036/90 e art. 1º, Lei 8.154/90) | E27: ='Encargos Sociais'!E17 -> 0.015 | F27: 76.17
C28: E | D28: ='Encargos Sociais'!D18 -> SENAI ou SENAC (Decreto nº 2.318/86) | E28: ='Encargos Sociais'!E18 -> 0.01 | F28: 50.78 | H28: * Nota 1 - Os percentuais dos encargos previdenciários, do FGTS e demais contribuições são estabelecidos por legislação vigente.
C29: F | D29: ='Encargos Sociais'!D19 -> SEBRAE (§ 3º, art. 8º, Lei 8.029/90, alterada pela Lei nº 8.154/90) | E29: ='Encargos Sociais'!E19 -> 0.006 | F29: 30.47 | H29: * Nota 2 - O SAT, a depender do grau de risco do serviço, irá variar entre 1%, para risco leve, de 2%, para risco médio, e de 3% para risco grave.
C30: G | D30: ='Encargos Sociais'!D20 -> INCRA (art. 1º, I, Decreto Lei 1.146/70 e Lei 7.787, de 30/06/89) | E30: ='Encargos Sociais'!E20 -> 0.002 | F30: 10.16 | H30: * Nota 3 - Base de cálculo - remuneração + ausências + terço constitucional (férias)
C31: H | D31: ='Encargos Sociais'!D21 -> FGTS (Lei Complementar nº 110/01 e art. 30, Lei nº 8.036/90) | E31: ='Encargos Sociais'!E21 -> 0.08 | F31: 406.26
C32: I | D32: ='Encargos Sociais'!D22 -> SECONCI (Convenções Coletivas de Trabalho da construção) | E32: ='Encargos Sociais'!E22 -> 0 | F32: 0
B34: Submódulo 2.3 - Benefícios Mensais e Diários
C35: A | D35: Auxílio Transporte | F35: =HLOOKUP($B$5,'Dados Gerais'!$D$6:$BK$94,82) -> 128.7
C36: B | D36: Auxílio Alimentação | F36: =HLOOKUP($B$5,'Dados Gerais'!$D$6:$BK$94,89) -> 1042.14 | H36: * Nota 1 - O valor informado deverá ser o custo real do benefício (descontado o valor eventualmente pago pelo empregado).
C37: C | D37: Assistência Médica e Familiar | F37: =HLOOKUP($B$5,'Dados Gerais'!$D$6:$BK$102,97) -> 0 | H37: * Nota 2 - Observar a previsão dos benefícios contidos em Acordos, Convenções e Dissídios Coletivos de Trabalho e o disposto no art. 6º da IN 5/2017
C38: D | D38: Outros (Seguro de vida e auxílio funeral e auxílio odontológico) | F38: =HLOOKUP($B$5,'Dados Gerais'!$D$6:$BK$119,114) -> 32.16
D40: QUADRO-RESUMO DO MÓDULO 2
D41: 2.1 - Adicional de Férias | E41: =SUM(E20:E21) -> 0.0303 | F41: =F20+F21 -> 134.83
D42: 2.2 - Encargos Previdenciários (GPS), Fundo de Garantia por Tempo de Serviço (FGTS) e Contribuições | E42: =SUM(E24:E32) -> 0.368 | F42: =SUM(F24:F32) -> 1868.8
D43: 2.3 - Benefícios Mensais e Diários | F43: =SUM(F35:F38) -> 1203
D45: TOTAL DOS ENCARGOS E BENEFÍCIOS | F45: =SUM(F41:F43) -> 3206.63
B47: MÓDULO 3 - PREVISÃO PARA RESCISÃO | E47: Percentuais | F47: Valor
C48: A | D48: ='Encargos Sociais'!D36 -> Aviso Prévio Indenizado (Art. 7º, inciso XXI, da CF/1988 e arts. 477, 487, §1º, e 491 da CLT) | E48: ='Encargos Sociais'!E36 -> 0.0042 | F48: =ROUND(E48*($F$16+$F$72+$F$41),2) -> 21.33
C49: B | D49: ='Encargos Sociais'!D37 -> 13º sobre aviso prévio indenizado | E49: ='Encargos Sociais'!E37 -> 0.0004 | F49: =ROUND(E49*($F$16+$F$72+$F$41),2) -> 2.03 | H49: * Nota 1 - Adotou-se os parâmetros do estudo do STF (http://www.stf.jus.br/arquivo/cms/sobrestfestudosci/anexo/encargos_sociais_03102007.pdf), onde 5% do pessoal é demitido pelo empregador no decurso do contrato (para estes, considerou-se o aviso prévio indenizado). Desprezou-se as demissões por justa causa e os pedidos de demissão.
C50: C | D50: ='Encargos Sociais'!D38 -> Incidência do FGTS sobre o Aviso Prévio Indenizado (Súmula 305 TST) | E50: ='Encargos Sociais'!E38 -> 0.0003 | F50: =ROUND(E50*($F$16+$F$72+$F$41),2) -> 1.52 | H50: * Nota 2 - Base de cálculo - remuneração + ausências + 1/3 férias
C51: D | D51: ='Encargos Sociais'!D39 -> Multa do FGTS sobre o Aviso Prévio (Art. 18, §1º, da Lei 8.036/1990) | E51: ='Encargos Sociais'!E39 -> 0.032 | F51: =ROUND(E51*($F$16+$F$72+$F$41),2) -> 162.5
C52: E | D52: ='Encargos Sociais'!D40 -> Indenização Adicional - data-base (Art. 9º, Lei 7.238/1984) | E52: ='Encargos Sociais'!E40 -> 0.0008 | F52: =ROUND(E52*($F$16+$F$72+$F$41),2) -> 4.06
D54: TOTAL DE PREVISÃO PARA RESCISÃO | F54: =SUM(F48:F52) -> 191.44
B56: MÓDULO 4 - CUSTO DO PROFISSIONAL AUSENTE | E56: Percentuais | F56: Valor
B57: Submódulo 4.1 - Ausências Legais
C58: A | D58: ='Encargos Sociais'!D25 -> Férias (Arts. 129 e 130, inc. I, da CLT) | E58: ='Encargos Sociais'!E25 -> 0.0909 | F58: =ROUND(E58*$F$16,2) -> 404.5 | H58: * Nota 1 - O Módulo 4 refere-se às previsões para custear ausências do próprio profissional (titular do cargo)
C59: B | D59: ='Encargos Sociais'!D26 -> Ausências Legais (Arts. 131 e 473 da CLT) | E59: ='Encargos Sociais'!E26 -> 0.0079 | F59: 35.15 | H59: * Nota 2 - As férias foram calculadas dividindo-se por 11, para comportar os 11 meses presentes e ainda o ausente do posto
C60: C | D60: ='Encargos Sociais'!D27 -> Licença-Paternidade (Art. 7º, XIX, e art. 10, §1º, do ADCT, CF/1988 e Art. 1º, II, da Lei 11.770/2008) | E60: ='Encargos Sociais'!E27 -> 0.0008 | F60: 3.56
C61: D | D61: ='Encargos Sociais'!D28 -> Ausência por Acidente de Trabalho (Art. 131, III, da CLT) | E61: ='Encargos Sociais'!E28 -> 0.0009 | F61: 4
C62: E | D62: ='Encargos Sociais'!D29 -> Afastamento Maternidade (Art. 71 da Lei nº 8.213/1991) | E62: ='Encargos Sociais'!E29 -> 0.0033 | F62: 14.68
C63: F | D63: ='Encargos Sociais'!D30 -> Auxílio Enfermidade - Doença (Art. 59 da Lei nº 8.213/1991) | E63: ='Encargos Sociais'!E30 -> 0.0071 | F63: 31.59
B65: Submódulo 4.2 - Intrajornada
C66: A | D66: Intervalo para repouso ou alimentação | E66: ='Encargos Sociais'!E33 -> 0 | F66: =ROUND(E66*$F$16,2) -> 0
D68: QUADRO-RESUMO DO MÓDULO 4 | F68: Valor
D69: 4.1 - Ausências Legais | E69: =SUM(E58:E63) -> 0.1109 | F69: =ROUND(E69*$F$16,2) -> 493.5
D70: 4.2 - Intrajornada | E70: =E66 -> 0 | F70: =ROUND(E70*$F$16,2) -> 0
D72: TOTAL DE PREVISÃO PARA CUSTO DO PROFISSIONAL AUSENTE E INTERVALO INTRAJORNADA | F72: =SUM(F69:F70) -> 493.5
B74: MÓDULO 5 - INSUMOS DIVERSOS | F74: Valor
C75: A | D75: Uniformes - aquisição | F75: =ROUND(HLOOKUP($B$5,Uniformes!L4:EA90,3)/12,2) -> 303.46
C76: B | D76: Materiais de consumo relacionados ao posto - aquisição | F76: =ROUND(HLOOKUP(B5,'Mat Cons'!I11:DX13,3)/12,2) -> 0
C77: C | D77: Materiais permanentes relacionados ao posto - remuneração da sua depreciação / manutenção | F77: =HLOOKUP(B5,'Mat Perm'!Q11:EF13,3) -> 0
C78: D | D78: Equipamentos relacionados ao posto - remuneração da sua depreciação / manutenção | F78: =HLOOKUP(B5,'Equip Rel'!Q3:EF5,3) -> 0
C79: E | D79: Equipamentos de Proteção Individual - EPI - aquisição | F79: =ROUND(HLOOKUP(B5,EPI!J4:DY6,3)/12,2) -> 0
D81: TOTAL DE INSUMOS DIVERSOS | F81: =SUM(F75:F80) -> 303.46 | H81: * Nota - Valores mensais por empregado
B83: MÓDULO 6 - CUSTOS INDIRETOS, TRIBUTOS E LUCRO - BDI | E83: Percentuais | F83: Valor
C84: A | D84: Custos Indiretos | E84: =BDI!E6 -> 0.0227
C85: A.1 | D85: Administração Central | E85: =BDI!E7 -> 0.0173
C86: A.2 | D86: Seguros, Garantias e Riscos | E86: =BDI!E8 -> 0.0054
C87: B | D87: Lucro | E87: =BDI!E10 -> 0.0267
C88: C | D88: Tributos | E88: =SUM(E89:E90) -> 0.124
C89: C.1 | D89: Tributos Federais (COFINS, PIS e CPRB) | E89: =BDI!E18 -> 0.074
C90: C.2 | D90: Tributos Distritais (ISS) | E90: =BDI!E23 -> 0.05
C91: D | D91: Despesas Financeiras | E91: =BDI!E13 -> 0.004466921098
D93: TOTAL DE BDI | E93: =BDI!E26 -> 0.204 | F93: =E93*E101 -> 1763.57388
D95: QUADRO-RESUMO DO CUSTO MENSAL POR EMPREGADO - SEM O 13º | E95: Valor
D96: Módulo 1 - Composição da Remuneração | E96: =F16 -> 4449.94
D97: Módulo 2 - Encargos e Benefícios Anuais, Mensais e Diários | E97: =F45 -> 3206.63
D98: Módulo 3 - Provisão para Rescisão | E98: =F54 -> 191.44
D99: Módulo 4 - Custo de Reposição do Profissional Ausente | E99: =F72 -> 493.5
D100: Módulo 5 - Insumos Diversos | E100: =F81 -> 303.46
D101: SUBTOTAL (A+B+C+D+E) | E101: =SUM(E96:E100) -> 8644.97
D102: Módulo 6 - Custos Indiretos, Tributos e Lucro | E102: =F93 -> 1763.57388
D104: TOTAL DO POSTO | E104: =SUM(E101:E102) -> 10408.54388
B106: MÓDULO 7 - DESTAQUE DO MÓDULO 2 - 13º SALÁRIO | E106: Percentuais | F106: Valor
C107: A | D107: 13º Salário | E107: ='Encargos Sociais'!E32*12/11 -> 0.09087272727 | F107: =ROUND(E107*F$16,2) -> 404.38 | H107: * Nota 1 - Incluindo-se a reincidência das férias do substituto sobre o titular
C108: B | D108: Encargos Sociais sobre o 13º Salário | E108: =SUM($E$24:$E$32) -> 0.368 | F108: =ROUND(E108*$F$107,2) -> 148.81 | H108: * Nota 2 - Provisiona-se, mensalmente, o proporcional a 1/12 dos valores referentes a gratificação natalina e adicional de férias.
C109: C | D109: BDI sobre o 13º Salário - Taxa calculada no MÓDULO 6 | E109: =E93 -> 0.204 | F109: =ROUND(E109*($F$107+$F$108),2) -> 112.85
D111: TOTAL DO DESTAQUE DO 13º SALÁRIO | F111: =SUM(F107:F109) -> 666.04
D113: QUADRO-RESUMO DO CUSTO MENSAL POR EMPREGADO | E113: Valor
D114: Custo total - sem o 13º Salário | E114: =E104 -> 10408.54388
D115: Destaque do 13º Salário (valor mensal) | E115: =F111 -> 666.04
D117: TOTAL DO POSTO | E117: =E114+E115 -> 11074.58388

Sheet 11
B2: PLANILHA DE ESTIMATIVA DE CUSTOS
B5: 11 | D5: =HLOOKUP($B$5,'Dados Gerais'!$D$6:$BK$21,6) -> VIGILANTE VESPERTINO ESTACIONAMENTOS Escala 40 horas semanais 14h às 23h 2ª à 6ª feira | E5: QUANTIDADE | F5: =HLOOKUP($B$5,'Dados Gerais'!$D$6:$BK$21,10) -> 24
B6: CCT | D6: =HLOOKUP($B$5,'Dados Gerais'!$D$6:$BK$21,15) -> SINDESV/DF X SINDESP/DF 2024/2024 Nº DF000333/2024 | E6: DATA-BASE | F6: =HLOOKUP($B$5,'Dados Gerais'!$D$6:$BK$21,16) -> 2024-01-01
B8: MÓDULO 1 - COMPOSIÇÃO DA REMUNERAÇÃO | F8: Valor
C9: A | D9: Salário-Base | F9: =HLOOKUP($B$5,'Dados Gerais'!$D$6:$BK$21,8) -> 3423.03
C10: B | D10: Adicional de Periculosidade | F10: =HLOOKUP($B$5,'Dados Gerais'!$D$6:$BK$38,25) -> 1026.91
C11: C | D11: Adicional de Insalubridade | F11: =HLOOKUP($B$5,'Dados Gerais'!$D$6:$BK$38,31) -> 0
C12: D | D12: Adicional Noturno | F12: =HLOOKUP($B$5,'Dados Gerais'!$D$6:$BK$51,46) -> 101.71 | H12: * Nota 1 - O Módulo 1 refere-se ao valor mensal devido ao empregado pela prestação do serviço no período de 12 meses.
C13: E | D13: Adicional de Hora Extra | F13: =HLOOKUP($B$5,'Dados Gerais'!$D$6:$BK$68,63) -> 0 | H13: * Nota 2 - O adicional de hora extra no feriado trabalhado foi suprimido pela Lei 13.467/17
C14: F | D14: Outros (especificar) | F14: =HLOOKUP($B$5,'Dados Gerais'!$D$6:$BK$60,33) -> 0 | H14: * Nota 3 - ART. 7º, § 2º, DA LEI Nº 605/49.Sendo mensalista o obreiro, o adicional noturno pago de forma fixa já é considerado integrado para os efeitos do pagamento do repouso semanal remunerado, nos termos do art. 7º, § 2º, da Lei nº 605/49.
D16: TOTAL DA REMUNERAÇÃO | F16: =SUM(F9:F14) -> 4551.65
B18: MÓDULO 2 - ENCARGOS E BENEFÍCIOS ANUAIS, MENSAIS E DIÁRIOS | E18: Percentuais | F18: Valor
B19: Submódulo 2.1 - 13º Salário e Adicional de Férias
C20: A | D20: 13º Salário - Calculado no Módulo 7 - Destacado | E20: 0 | F20: =ROUND(E20*F$16,2) -> 0 | H20: * Nota 1 - Provisiona-se, mensalmente, o proporcional a 1/12 dos valores referentes a gratificação natalina, calculada à parte
C21: B | D21: Adicional de Férias | E21: ='Encargos Sociais'!E31 -> 0.0303 | F21: =ROUND(E21*F$16,2) -> 137.91 | H21: * Nota 2 - O adicional de férias foi calculado dividindo-se por 11, para comportar os 11 meses presentes e ainda o ausente do posto
B23: Submódulo 2.2 - Encargos Previdenciários (GPS), Fundo de Garantia por Tempo de Serviço (FGTS) e Outras Contribuições
C24: A | D24: ='Encargos Sociais'!D14 -> INSS (art. 22, inciso I, Lei nº 8.212/91) | E24: ='Encargos Sociais'!E14 -> 0.2 | F24: =ROUND(E24*($F$16+$F$41+$F$72),2) -> 1038.87
C25: B | D25: ='Encargos Sociais'!D15 -> Salário Educação (art. 3º, inciso I, Decreto nº 87.043/82) | E25: ='Encargos Sociais'!E15 -> 0.025 | F25: 129.86
C26: C | D26: ='Encargos Sociais'!D16 -> SAT/RAT (art. 22, II, Lei 8.212/91 e Anexo V, Decreto 6.042/07) - Enquadramento 8011-1/01 | E26: ='Encargos Sociais'!E16 -> 0.03 | F26: 155.83
C27: D | D27: ='Encargos Sociais'!D17 -> SESC ou SESI (art. 30, Lei nº 8.036/90 e art. 1º, Lei 8.154/90) | E27: ='Encargos Sociais'!E17 -> 0.015 | F27: 77.92
C28: E | D28: ='Encargos Sociais'!D18 -> SENAI ou SENAC (Decreto nº 2.318/86) | E28: ='Encargos Sociais'!E18 -> 0.01 | F28: 51.94 | H28: * Nota 1 - Os percentuais dos encargos previdenciários, do FGTS e demais contribuições são estabelecidos por legislação vigente.
C29: F | D29: ='Encargos Sociais'!D19 -> SEBRAE (§ 3º, art. 8º, Lei 8.029/90, alterada pela Lei nº 8.154/90) | E29: ='Encargos Sociais'!E19 -> 0.006 | F29: 31.17 | H29: * Nota 2 - O SAT, a depender do grau de risco do serviço, irá variar entre 1%, para risco leve, de 2%, para risco médio, e de 3% para risco grave.
C30: G | D30: ='Encargos Sociais'!D20 -> INCRA (art. 1º, I, Decreto Lei 1.146/70 e Lei 7.787, de 30/06/89) | E30: ='Encargos Sociais'!E20 -> 0.002 | F30: 10.39 | H30: * Nota 3 - Base de cálculo - remuneração + ausências + terço constitucional (férias)
C31: H | D31: ='Encargos Sociais'!D21 -> FGTS (Lei Complementar nº 110/01 e art. 30, Lei nº 8.036/90) | E31: ='Encargos Sociais'!E21 -> 0.08 | F31: 415.55
C32: I | D32: ='Encargos Sociais'!D22 -> SECONCI (Convenções Coletivas de Trabalho da construção) | E32: ='Encargos Sociais'!E22 -> 0 | F32: 0
B34: Submódulo 2.3 - Benefícios Mensais e Diários
C35: A | D35: Auxílio Transporte | F35: =HLOOKUP($B$5,'Dados Gerais'!$D$6:$BK$94,82) -> 128.7
C36: B | D36: Auxílio Alimentação | F36: =HLOOKUP($B$5,'Dados Gerais'!$D$6:$BK$94,89) -> 1042.14 | H36: * Nota 1 - O valor informado deverá ser o custo real do benefício (descontado o valor eventualmente pago pelo empregado).
C37: C | D37: Assistência Médica e Familiar | F37: =HLOOKUP($B$5,'Dados Gerais'!$D$6:$BK$102,97) -> 0 | H37: * Nota 2 - Observar a previsão dos benefícios contidos em Acordos, Convenções e Dissídios Coletivos de Trabalho e o disposto no art. 6º da IN 5/2017
C38: D | D38: Outros (Seguro de vida e auxílio funeral e auxílio odontológico) | F38: =HLOOKUP($B$5,'Dados Gerais'!$D$6:$BK$119,114) -> 32.16
D40: QUADRO-RESUMO DO MÓDULO 2
D41: 2.1 - Adicional de Férias | E41: =SUM(E20:E21) -> 0.0303 | F41: =F20+F21 -> 137.91
D42: 2.2 - Encargos Previdenciários (GPS), Fundo de Garantia por Tempo de Serviço (FGTS) e Contribuições | E42: =SUM(E24:E32) -> 0.368 | F42: =SUM(F24:F32) -> 1911.53
D43: 2.3 - Benefícios Mensais e Diários | F43: =SUM(F35:F38) -> 1203
D45: TOTAL DOS ENCARGOS E BENEFÍCIOS | F45: =SUM(F41:F43) -> 3252.44
B47: MÓDULO 3 - PREVISÃO PARA RESCISÃO | E47: Percentuais | F47: Valor
C48: A | D48: ='Encargos Sociais'!D36 -> Aviso Prévio Indenizado (Art. 7º, inciso XXI, da CF/1988 e arts. 477, 487, §1º, e 491 da CLT) | E48: ='Encargos Sociais'!E36 -> 0.0042 | F48: =ROUND(E48*($F$16+$F$72+$F$41),2) -> 21.82
C49: B | D49: ='Encargos Sociais'!D37 -> 13º sobre aviso prévio indenizado | E49: ='Encargos Sociais'!E37 -> 0.0004 | F49: =ROUND(E49*($F$16+$F$72+$F$41),2) -> 2.08 | H49: * Nota 1 - Adotou-se os parâmetros do estudo do STF (http://www.stf.jus.br/arquivo/cms/sobrestfestudosci/anexo/encargos_sociais_03102007.pdf), onde 5% do pessoal é demitido pelo empregador no decurso do contrato (para estes, considerou-se o aviso prévio indenizado). Desprezou-se as demissões por justa causa e os pedidos de demissão.
C50: C | D50: ='Encargos Sociais'!D38 -> Incidência do FGTS sobre o Aviso Prévio Indenizado (Súmula 305 TST) | E50: ='Encargos Sociais'!E38 -> 0.0003 | F50: =ROUND(E50*($F$16+$F$72+$F$41),2) -> 1.56 | H50: * Nota 2 - Base de cálculo - remuneração + ausências + 1/3 férias
C51: D | D51: ='Encargos Sociais'!D39 -> Multa do FGTS sobre o Aviso Prévio (Art. 18, §1º, da Lei 8.036/1990) | E51: ='Encargos Sociais'!E39 -> 0.032 | F51: =ROUND(E51*($F$16+$F$72+$F$41),2) -> 166.22
C52: E | D52: ='Encargos Sociais'!D40 -> Indenização Adicional - data-base (Art. 9º, Lei 7.238/1984) | E52: ='Encargos Sociais'!E40 -> 0.0008 | F52: =ROUND(E52*($F$16+$F$72+$F$41),2) -> 4.16
D54: TOTAL DE PREVISÃO PARA RESCISÃO | F54: =SUM(F48:F52) -> 195.84
B56: MÓDULO 4 - CUSTO DO PROFISSIONAL AUSENTE | E56: Percentuais | F56: Valor
B57: Submódulo 4.1 - Ausências Legais
C58: A | D58: ='Encargos Sociais'!D25 -> Férias (Arts. 129 e 130, inc. I, da CLT) | E58: ='Encargos Sociais'!E25 -> 0.0909 | F58: =ROUND(E58*$F$16,2) -> 413.74 | H58: * Nota 1 - O Módulo 4 refere-se às previsões para custear ausências do próprio profissional (titular do cargo)
C59: B | D59: ='Encargos Sociais'!D26 -> Ausências Legais (Arts. 131 e 473 da CLT) | E59: ='Encargos Sociais'!E26 -> 0.0079 | F59: 35.96 | H59: * Nota 2 - As férias foram calculadas dividindo-se por 11, para comportar os 11 meses presentes e ainda o ausente do posto
C60: C | D60: ='Encargos Sociais'!D27 -> Licença-Paternidade (Art. 7º, XIX, e art. 10, §1º, do ADCT, CF/1988 e Art. 1º, II, da Lei 11.770/2008) | E60: ='Encargos Sociais'!E27 -> 0.0008 | F60: 3.64
C61: D | D61: ='Encargos Sociais'!D28 -> Ausência por Acidente de Trabalho (Art. 131, III, da CLT) | E61: ='Encargos Sociais'!E28 -> 0.0009 | F61: 4.1
C62: E | D62: ='Encargos Sociais'!D29 -> Afastamento Maternidade (Art. 71 da Lei nº 8.213/1991) | E62: ='Encargos Sociais'!E29 -> 0.0033 | F62: 15.02
C63: F | D63: ='Encargos Sociais'!D30 -> Auxílio Enfermidade - Doença (Art. 59 da Lei nº 8.213/1991) | E63: ='Encargos Sociais'!E30 -> 0.0071 | F63: 32.32
B65: Submódulo 4.2 - Intrajornada
C66: A | D66: Intervalo para repouso ou alimentação | E66: ='Encargos Sociais'!E33 -> 0 | F66: =ROUND(E66*$F$16,2) -> 0
D68: QUADRO-RESUMO DO MÓDULO 4 | F68: Valor
D69: 4.1 - Ausências Legais | E69: =SUM(E58:E63) -> 0.1109 | F69: =ROUND(E69*$F$16,2) -> 504.78
D70: 4.2 - Intrajornada | E70: =E66 -> 0 | F70: =ROUND(E70*$F$16,2) -> 0
D72: TOTAL DE PREVISÃO PARA CUSTO DO PROFISSIONAL AUSENTE E INTERVALO INTRAJORNADA | F72: =SUM(F69:F70) -> 504.78
B74: MÓDULO 5 - INSUMOS DIVERSOS | F74: Valor
C75: A | D75: Uniformes - aquisição | F75: =ROUND(HLOOKUP($B$5,Uniformes!L4:EA90,3)/12,2) -> 303.46
C76: B | D76: Materiais de consumo relacionados ao posto - aquisição | F76: =ROUND(HLOOKUP(B5,'Mat Cons'!I11:DX13,3)/12,2) -> 0
C77: C | D77: Materiais permanentes relacionados ao posto - remuneração da sua depreciação / manutenção | F77: =HLOOKUP(B5,'Mat Perm'!Q11:EF13,3) -> 0
C78: D | D78: Equipamentos relacionados ao posto - remuneração da sua depreciação / manutenção | F78: =HLOOKUP(B5,'Equip Rel'!Q3:EF5,3) -> 0
C79: E | D79: Equipamentos de Proteção Individual - EPI - aquisição | F79: =ROUND(HLOOKUP(B5,EPI!J4:DY6,3)/12,2) -> 0
D81: TOTAL DE INSUMOS DIVERSOS | F81: =SUM(F75:F80) -> 303.46 | H81: * Nota - Valores mensais por empregado
B83: MÓDULO 6 - CUSTOS INDIRETOS, TRIBUTOS E LUCRO - BDI | E83: Percentuais | F83: Valor
C84: A | D84: Custos Indiretos | E84: =BDI!E6 -> 0.0227
C85: A.1 | D85: Administração Central | E85: =BDI!E7 -> 0.0173
C86: A.2 | D86: Seguros, Garantias e Riscos | E86: =BDI!E8 -> 0.0054
C87: B | D87: Lucro | E87: =BDI!E10 -> 0.0267
C88: C | D88: Tributos | E88: =SUM(E89:E90) -> 0.124
C89: C.1 | D89: Tributos Federais (COFINS, PIS e CPRB) | E89: =BDI!E18 -> 0.074
C90: C.2 | D90: Tributos Distritais (ISS) | E90: =BDI!E23 -> 0.05
C91: D | D91: Despesas Financeiras | E91: =BDI!E13 -> 0.004466921098
D93: TOTAL DE BDI | E93: =BDI!E26 -> 0.204 | F93: =E93*E101 -> 1796.86668
D95: QUADRO-RESUMO DO CUSTO MENSAL POR EMPREGADO - SEM O 13º | E95: Valor
D96: Módulo 1 - Composição da Remuneração | E96: =F16 -> 4551.65
D97: Módulo 2 - Encargos e Benefícios Anuais, Mensais e Diários | E97: =F45 -> 3252.44
D98: Módulo 3 - Provisão para Rescisão | E98: =F54 -> 195.84
D99: Módulo 4 - Custo de Reposição do Profissional Ausente | E99: =F72 -> 504.78
D100: Módulo 5 - Insumos Diversos | E100: =F81 -> 303.46
D101: SUBTOTAL (A+B+C+D+E) | E101: =SUM(E96:E100) -> 8808.17
D102: Módulo 6 - Custos Indiretos, Tributos e Lucro | E102: =F93 -> 1796.86668
D104: TOTAL DO POSTO | E104: =SUM(E101:E102) -> 10605.03668
B106: MÓDULO 7 - DESTAQUE DO MÓDULO 2 - 13º SALÁRIO | E106: Percentuais | F106: Valor
C107: A | D107: 13º Salário | E107: ='Encargos Sociais'!E32*12/11 -> 0.09087272727 | F107: =ROUND(E107*F$16,2) -> 413.62 | H107: * Nota 1 - Incluindo-se a reincidência das férias do substituto sobre o titular
C108: B | D108: Encargos Sociais sobre o 13º Salário | E108: =SUM($E$24:$E$32) -> 0.368 | F108: =ROUND(E108*$F$107,2) -> 152.21 | H108: * Nota 2 - Provisiona-se, mensalmente, o proporcional a 1/12 dos valores referentes a gratificação natalina e adicional de férias.
C109: C | D109: BDI sobre o 13º Salário - Taxa calculada no MÓDULO 6 | E109: =E93 -> 0.204 | F109: =ROUND(E109*($F$107+$F$108),2) -> 115.43
D111: TOTAL DO DESTAQUE DO 13º SALÁRIO | F111: =SUM(F107:F109) -> 681.26
D113: QUADRO-RESUMO DO CUSTO MENSAL POR EMPREGADO | E113: Valor
D114: Custo total - sem o 13º Salário | E114: =E104 -> 10605.03668
D115: Destaque do 13º Salário (valor mensal) | E115: =F111 -> 681.26
D117: TOTAL DO POSTO | E117: =E114+E115 -> 11286.29668

Sheet 12
B2: PLANILHA DE ESTIMATIVA DE CUSTOS
B5: 12 | D5: =HLOOKUP($B$5,'Dados Gerais'!$D$6:$BK$21,6) -> VIGILANTE DIURNO POSTOS EXTERNOS Escala 12 x 36 7h às 19h 2ª feira a Dom | E5: QUANTIDADE | F5: =HLOOKUP($B$5,'Dados Gerais'!$D$6:$BK$21,10) -> 60
B6: CCT | D6: =HLOOKUP($B$5,'Dados Gerais'!$D$6:$BK$21,15) -> SINDESV/DF X SINDESP/DF 2024/2024 Nº DF000333/2024 | E6: DATA-BASE | F6: =HLOOKUP($B$5,'Dados Gerais'!$D$6:$BK$21,16) -> 2024-01-01
B8: MÓDULO 1 - COMPOSIÇÃO DA REMUNERAÇÃO | F8: Valor
C9: A | D9: Salário-Base | F9: =HLOOKUP($B$5,'Dados Gerais'!$D$6:$BK$21,8) -> 3423.03
C10: B | D10: Adicional de Periculosidade | F10: =HLOOKUP($B$5,'Dados Gerais'!$D$6:$BK$38,25) -> 1026.91
C11: C | D11: Adicional de Insalubridade | F11: =HLOOKUP($B$5,'Dados Gerais'!$D$6:$BK$38,31) -> 0
C12: D | D12: Adicional Noturno | F12: =HLOOKUP($B$5,'Dados Gerais'!$D$6:$BK$51,46) -> 0 | H12: * Nota 1 - O Módulo 1 refere-se ao valor mensal devido ao empregado pela prestação do serviço no período de 12 meses.
C13: E | D13: Adicional de Hora Extra | F13: =HLOOKUP($B$5,'Dados Gerais'!$D$6:$BK$68,63) -> 0 | H13: * Nota 2 - O adicional de hora extra no feriado trabalhado foi suprimido pela Lei 13.467/17
C14: F | D14: Outros (especificar) | F14: =HLOOKUP($B$5,'Dados Gerais'!$D$6:$BK$60,33) -> 0 | H14: * Nota 3 - ART. 7º, § 2º, DA LEI Nº 605/49.Sendo mensalista o obreiro, o adicional noturno pago de forma fixa já é considerado integrado para os efeitos do pagamento do repouso semanal remunerado, nos termos do art. 7º, § 2º, da Lei nº 605/49.
D16: TOTAL DA REMUNERAÇÃO | F16: =SUM(F9:F14) -> 4449.94
B18: MÓDULO 2 - ENCARGOS E BENEFÍCIOS ANUAIS, MENSAIS E DIÁRIOS | E18: Percentuais | F18: Valor
B19: Submódulo 2.1 - 13º Salário e Adicional de Férias
C20: A | D20: 13º Salário - Calculado no Módulo 7 - Destacado | E20: 0 | F20: =ROUND(E20*F$16,2) -> 0 | H20: * Nota 1 - Provisiona-se, mensalmente, o proporcional a 1/12 dos valores referentes a gratificação natalina, calculada à parte
C21: B | D21: Adicional de Férias | E21: ='Encargos Sociais'!E31 -> 0.0303 | F21: =ROUND(E21*F$16,2) -> 134.83 | H21: * Nota 2 - O adicional de férias foi calculado dividindo-se por 11, para comportar os 11 meses presentes e ainda o ausente do posto
B23: Submódulo 2.2 - Encargos Previdenciários (GPS), Fundo de Garantia por Tempo de Serviço (FGTS) e Outras Contribuições
C24: A | D24: ='Encargos Sociais'!D14 -> INSS (art. 22, inciso I, Lei nº 8.212/91) | E24: ='Encargos Sociais'!E14 -> 0.2 | F24: =ROUND(E24*($F$16+$F$41+$F$72),2) -> 1015.65
C25: B | D25: ='Encargos Sociais'!D15 -> Salário Educação (art. 3º, inciso I, Decreto nº 87.043/82) | E25: ='Encargos Sociais'!E15 -> 0.025 | F25: 126.96
C26: C | D26: ='Encargos Sociais'!D16 -> SAT/RAT (art. 22, II, Lei 8.212/91 e Anexo V, Decreto 6.042/07) - Enquadramento 8011-1/01 | E26: ='Encargos Sociais'!E16 -> 0.03 | F26: 152.35
C27: D | D27: ='Encargos Sociais'!D17 -> SESC ou SESI (art. 30, Lei nº 8.036/90 e art. 1º, Lei 8.154/90) | E27: ='Encargos Sociais'!E17 -> 0.015 | F27: 76.17
C28: E | D28: ='Encargos Sociais'!D18 -> SENAI ou SENAC (Decreto nº 2.318/86) | E28: ='Encargos Sociais'!E18 -> 0.01 | F28: 50.78 | H28: * Nota 1 - Os percentuais dos encargos previdenciários, do FGTS e demais contribuições são estabelecidos por legislação vigente.
C29: F | D29: ='Encargos Sociais'!D19 -> SEBRAE (§ 3º, art. 8º, Lei 8.029/90, alterada pela Lei nº 8.154/90) | E29: ='Encargos Sociais'!E19 -> 0.006 | F29: 30.47 | H29: * Nota 2 - O SAT, a depender do grau de risco do serviço, irá variar entre 1%, para risco leve, de 2%, para risco médio, e de 3% para risco grave.
C30: G | D30: ='Encargos Sociais'!D20 -> INCRA (art. 1º, I, Decreto Lei 1.146/70 e Lei 7.787, de 30/06/89) | E30: ='Encargos Sociais'!E20 -> 0.002 | F30: 10.16 | H30: * Nota 3 - Base de cálculo - remuneração + ausências + terço constitucional (férias)
C31: H | D31: ='Encargos Sociais'!D21 -> FGTS (Lei Complementar nº 110/01 e art. 30, Lei nº 8.036/90) | E31: ='Encargos Sociais'!E21 -> 0.08 | F31: 406.26
C32: I | D32: ='Encargos Sociais'!D22 -> SECONCI (Convenções Coletivas de Trabalho da construção) | E32: ='Encargos Sociais'!E22 -> 0 | F32: 0
B34: Submódulo 2.3 - Benefícios Mensais e Diários
C35: A | D35: Auxílio Transporte | F35: =HLOOKUP($B$5,'Dados Gerais'!$D$6:$BK$94,82) -> 22.4
C36: B | D36: Auxílio Alimentação | F36: =HLOOKUP($B$5,'Dados Gerais'!$D$6:$BK$94,89) -> 710.55 | H36: * Nota 1 - O valor informado deverá ser o custo real do benefício (descontado o valor eventualmente pago pelo empregado).
C37: C | D37: Assistência Médica e Familiar | F37: =HLOOKUP($B$5,'Dados Gerais'!$D$6:$BK$102,97) -> 0 | H37: * Nota 2 - Observar a previsão dos benefícios contidos em Acordos, Convenções e Dissídios Coletivos de Trabalho e o disposto no art. 6º da IN 5/2017
C38: D | D38: Outros (Seguro de vida e auxílio funeral e auxílio odontológico) | F38: =HLOOKUP($B$5,'Dados Gerais'!$D$6:$BK$119,114) -> 32.16
D40: QUADRO-RESUMO DO MÓDULO 2
D41: 2.1 - Adicional de Férias | E41: =SUM(E20:E21) -> 0.0303 | F41: =F20+F21 -> 134.83
D42: 2.2 - Encargos Previdenciários (GPS), Fundo de Garantia por Tempo de Serviço (FGTS) e Contribuições | E42: =SUM(E24:E32) -> 0.368 | F42: =SUM(F24:F32) -> 1868.8
D43: 2.3 - Benefícios Mensais e Diários | F43: =SUM(F35:F38) -> 765.11
D45: TOTAL DOS ENCARGOS E BENEFÍCIOS | F45: =SUM(F41:F43) -> 2768.74
B47: MÓDULO 3 - PREVISÃO PARA RESCISÃO | E47: Percentuais | F47: Valor
C48: A | D48: ='Encargos Sociais'!D36 -> Aviso Prévio Indenizado (Art. 7º, inciso XXI, da CF/1988 e arts. 477, 487, §1º, e 491 da CLT) | E48: ='Encargos Sociais'!E36 -> 0.0042 | F48: =ROUND(E48*($F$16+$F$72+$F$41),2) -> 21.33
C49: B | D49: ='Encargos Sociais'!D37 -> 13º sobre aviso prévio indenizado | E49: ='Encargos Sociais'!E37 -> 0.0004 | F49: =ROUND(E49*($F$16+$F$72+$F$41),2) -> 2.03 | H49: * Nota 1 - Adotou-se os parâmetros do estudo do STF (http://www.stf.jus.br/arquivo/cms/sobrestfestudosci/anexo/encargos_sociais_03102007.pdf), onde 5% do pessoal é demitido pelo empregador no decurso do contrato (para estes, considerou-se o aviso prévio indenizado). Desprezou-se as demissões por justa causa e os pedidos de demissão.
C50: C | D50: ='Encargos Sociais'!D38 -> Incidência do FGTS sobre o Aviso Prévio Indenizado (Súmula 305 TST) | E50: ='Encargos Sociais'!E38 -> 0.0003 | F50: =ROUND(E50*($F$16+$F$72+$F$41),2) -> 1.52 | H50: * Nota 2 - Base de cálculo - remuneração + ausências + 1/3 férias
C51: D | D51: ='Encargos Sociais'!D39 -> Multa do FGTS sobre o Aviso Prévio (Art. 18, §1º, da Lei 8.036/1990) | E51: ='Encargos Sociais'!E39 -> 0.032 | F51: =ROUND(E51*($F$16+$F$72+$F$41),2) -> 162.5
C52: E | D52: ='Encargos Sociais'!D40 -> Indenização Adicional - data-base (Art. 9º, Lei 7.238/1984) | E52: ='Encargos Sociais'!E40 -> 0.0008 | F52: =ROUND(E52*($F$16+$F$72+$F$41),2) -> 4.06
D54: TOTAL DE PREVISÃO PARA RESCISÃO | F54: =SUM(F48:F52) -> 191.44
B56: MÓDULO 4 - CUSTO DO PROFISSIONAL AUSENTE | E56: Percentuais | F56: Valor
B57: Submódulo 4.1 - Ausências Legais
C58: A | D58: ='Encargos Sociais'!D25 -> Férias (Arts. 129 e 130, inc. I, da CLT) | E58: ='Encargos Sociais'!E25 -> 0.0909 | F58: =ROUND(E58*$F$16,2) -> 404.5 | H58: * Nota 1 - O Módulo 4 refere-se às previsões para custear ausências do próprio profissional (titular do cargo)
C59: B | D59: ='Encargos Sociais'!D26 -> Ausências Legais (Arts. 131 e 473 da CLT) | E59: ='Encargos Sociais'!E26 -> 0.0079 | F59: 35.15 | H59: * Nota 2 - As férias foram calculadas dividindo-se por 11, para comportar os 11 meses presentes e ainda o ausente do posto
C60: C | D60: ='Encargos Sociais'!D27 -> Licença-Paternidade (Art. 7º, XIX, e art. 10, §1º, do ADCT, CF/1988 e Art. 1º, II, da Lei 11.770/2008) | E60: ='Encargos Sociais'!E27 -> 0.0008 | F60: 3.56
C61: D | D61: ='Encargos Sociais'!D28 -> Ausência por Acidente de Trabalho (Art. 131, III, da CLT) | E61: ='Encargos Sociais'!E28 -> 0.0009 | F61: 4
C62: E | D62: ='Encargos Sociais'!D29 -> Afastamento Maternidade (Art. 71 da Lei nº 8.213/1991) | E62: ='Encargos Sociais'!E29 -> 0.0033 | F62: 14.68
C63: F | D63: ='Encargos Sociais'!D30 -> Auxílio Enfermidade - Doença (Art. 59 da Lei nº 8.213/1991) | E63: ='Encargos Sociais'!E30 -> 0.0071 | F63: 31.59
B65: Submódulo 4.2 - Intrajornada
C66: A | D66: Intervalo para repouso ou alimentação | E66: ='Encargos Sociais'!E33 -> 0 | F66: =ROUND(E66*$F$16,2) -> 0
D68: QUADRO-RESUMO DO MÓDULO 4 | F68: Valor
D69: 4.1 - Ausências Legais | E69: =SUM(E58:E63) -> 0.1109 | F69: =ROUND(E69*$F$16,2) -> 493.5
D70: 4.2 - Intrajornada | E70: =E66 -> 0 | F70: =ROUND(E70*$F$16,2) -> 0
D72: TOTAL DE PREVISÃO PARA CUSTO DO PROFISSIONAL AUSENTE E INTERVALO INTRAJORNADA | F72: =SUM(F69:F70) -> 493.5
B74: MÓDULO 5 - INSUMOS DIVERSOS | F74: Valor
C75: A | D75: Uniformes - aquisição | F75: =ROUND(HLOOKUP($B$5,Uniformes!L4:EA113,3)/12,2) -> 585.45
C76: B | D76: Materiais de consumo relacionados ao posto - aquisição | F76: =ROUND(HLOOKUP(B5,'Mat Cons'!I11:DX13,3)/12,2) -> 0
C77: C | D77: Materiais permanentes relacionados ao posto - remuneração da sua depreciação / manutenção | F77: =HLOOKUP(B5,'Mat Perm'!Q11:EF13,3) -> 0
C78: D | D78: Equipamentos relacionados ao posto - remuneração da sua depreciação / manutenção | F78: =HLOOKUP(B5,'Equip Rel'!Q3:EF5,3) -> 0
C79: E | D79: Equipamentos de Proteção Individual - EPI - aquisição | F79: =ROUND(HLOOKUP(B5,EPI!J4:DY6,3)/12,2) -> 0
D81: TOTAL DE INSUMOS DIVERSOS | F81: =SUM(F75:F80) -> 585.45 | H81: * Nota - Valores mensais por empregado
B83: MÓDULO 6 - CUSTOS INDIRETOS, TRIBUTOS E LUCRO - BDI | E83: Percentuais | F83: Valor
C84: A | D84: Custos Indiretos | E84: =BDI!E6 -> 0.0227
C85: A.1 | D85: Administração Central | E85: =BDI!E7 -> 0.0173
C86: A.2 | D86: Seguros, Garantias e Riscos | E86: =BDI!E8 -> 0.0054
C87: B | D87: Lucro | E87: =BDI!E10 -> 0.0267
C88: C | D88: Tributos | E88: =SUM(E89:E90) -> 0.124
C89: C.1 | D89: Tributos Federais (COFINS, PIS e CPRB) | E89: =BDI!E18 -> 0.074
C90: C.2 | D90: Tributos Distritais (ISS) | E90: =BDI!E23 -> 0.05
C91: D | D91: Despesas Financeiras | E91: =BDI!E13 -> 0.004466921098
D93: TOTAL DE BDI | E93: =BDI!E26 -> 0.204 | F93: =E93*E101 -> 1731.77028
D95: QUADRO-RESUMO DO CUSTO MENSAL POR EMPREGADO - SEM O 13º | E95: Valor
D96: Módulo 1 - Composição da Remuneração | E96: =F16 -> 4449.94
D97: Módulo 2 - Encargos e Benefícios Anuais, Mensais e Diários | E97: =F45 -> 2768.74
D98: Módulo 3 - Provisão para Rescisão | E98: =F54 -> 191.44
D99: Módulo 4 - Custo de Reposição do Profissional Ausente | E99: =F72 -> 493.5
D100: Módulo 5 - Insumos Diversos | E100: =F81 -> 585.45
D101: SUBTOTAL (A+B+C+D+E) | E101: =SUM(E96:E100) -> 8489.07
D102: Módulo 6 - Custos Indiretos, Tributos e Lucro | E102: =F93 -> 1731.77028
D104: TOTAL DO POSTO | E104: =SUM(E101:E102) -> 10220.84028
B106: MÓDULO 7 - DESTAQUE DO MÓDULO 2 - 13º SALÁRIO | E106: Percentuais | F106: Valor
C107: A | D107: 13º Salário | E107: ='Encargos Sociais'!E32*12/11 -> 0.09087272727 | F107: =ROUND(E107*F$16,2) -> 404.38 | H107: * Nota 1 - Incluindo-se a reincidência das férias do substituto sobre o titular
C108: B | D108: Encargos Sociais sobre o 13º Salário | E108: =SUM($E$24:$E$32) -> 0.368 | F108: =ROUND(E108*$F$107,2) -> 148.81 | H108: * Nota 2 - Provisiona-se, mensalmente, o proporcional a 1/12 dos valores referentes a gratificação natalina e adicional de férias.
C109: C | D109: BDI sobre o 13º Salário - Taxa calculada no MÓDULO 6 | E109: =E93 -> 0.204 | F109: =ROUND(E109*($F$107+$F$108),2) -> 112.85
D111: TOTAL DO DESTAQUE DO 13º SALÁRIO | F111: =SUM(F107:F109) -> 666.04
D113: QUADRO-RESUMO DO CUSTO MENSAL POR EMPREGADO | E113: Valor
D114: Custo total - sem o 13º Salário | E114: =E104 -> 10220.84028
D115: Destaque do 13º Salário (valor mensal) | E115: =F111 -> 666.04
D117: TOTAL DO POSTO | E117: =E114+E115 -> 10886.88028

Sheet 13
B2: PLANILHA DE ESTIMATIVA DE CUSTOS
B5: 13 | D5: =HLOOKUP($B$5,'Dados Gerais'!$D$6:$BK$21,6) -> VIGILANTE NOTURNO POSTOS EXTERNOS Escala 12 x 36 19h às 7h 2ª feira a Dom | E5: QUANTIDADE | F5: =HLOOKUP($B$5,'Dados Gerais'!$D$6:$BK$21,10) -> 64
B6: CCT | D6: =HLOOKUP($B$5,'Dados Gerais'!$D$6:$BK$21,15) -> SINDESV/DF X SINDESP/DF 2024/2024 Nº DF000333/2024 | E6: DATA-BASE | F6: =HLOOKUP($B$5,'Dados Gerais'!$D$6:$BK$21,16) -> 2024-01-01
B8: MÓDULO 1 - COMPOSIÇÃO DA REMUNERAÇÃO | F8: Valor
C9: A | D9: Salário-Base | F9: =HLOOKUP($B$5,'Dados Gerais'!$D$6:$BK$21,8) -> 3423.03
C10: B | D10: Adicional de Periculosidade | F10: =HLOOKUP($B$5,'Dados Gerais'!$D$6:$BK$38,25) -> 1026.91
C11: C | D11: Adicional de Insalubridade | F11: =HLOOKUP($B$5,'Dados Gerais'!$D$6:$BK$38,31) -> 0
C12: D | D12: Adicional Noturno | F12: =HLOOKUP($B$5,'Dados Gerais'!$D$6:$BK$51,46) -> 485.45 | H12: * Nota 1 - O Módulo 1 refere-se ao valor mensal devido ao empregado pela prestação do serviço no período de 12 meses.
C13: E | D13: Adicional de Hora Extra | F13: =HLOOKUP($B$5,'Dados Gerais'!$D$6:$BK$68,63) -> 0 | H13: * Nota 2 - O adicional de hora extra no feriado trabalhado foi suprimido pela Lei 13.467/17
C14: F | D14: Outros (especificar) | F14: =HLOOKUP($B$5,'Dados Gerais'!$D$6:$BK$60,33) -> 0 | H14: * Nota 3 - ART. 7º, § 2º, DA LEI Nº 605/49.Sendo mensalista o obreiro, o adicional noturno pago de forma fixa já é considerado integrado para os efeitos do pagamento do repouso semanal remunerado, nos termos do art. 7º, § 2º, da Lei nº 605/49.
D16: TOTAL DA REMUNERAÇÃO | F16: =SUM(F9:F14) -> 4935.39
B18: MÓDULO 2 - ENCARGOS E BENEFÍCIOS ANUAIS, MENSAIS E DIÁRIOS | E18: Percentuais | F18: Valor
B19: Submódulo 2.1 - 13º Salário e Adicional de Férias
C20: A | D20: 13º Salário - Calculado no Módulo 7 - Destacado | E20: 0 | F20: =ROUND(E20*F$16,2) -> 0 | H20: * Nota 1 - Provisiona-se, mensalmente, o proporcional a 1/12 dos valores referentes a gratificação natalina, calculada à parte
C21: B | D21: Adicional de Férias | E21: ='Encargos Sociais'!E31 -> 0.0303 | F21: =ROUND(E21*F$16,2) -> 149.54 | H21: * Nota 2 - O adicional de férias foi calculado dividindo-se por 11, para comportar os 11 meses presentes e ainda o ausente do posto
B23: Submódulo 2.2 - Encargos Previdenciários (GPS), Fundo de Garantia por Tempo de Serviço (FGTS) e Outras Contribuições
C24: A | D24: ='Encargos Sociais'!D14 -> INSS (art. 22, inciso I, Lei nº 8.212/91) | E24: ='Encargos Sociais'!E14 -> 0.2 | F24: =ROUND(E24*($F$16+$F$41+$F$72),2) -> 1126.45
C25: B | D25: ='Encargos Sociais'!D15 -> Salário Educação (art. 3º, inciso I, Decreto nº 87.043/82) | E25: ='Encargos Sociais'!E15 -> 0.025 | F25: 140.81
C26: C | D26: ='Encargos Sociais'!D16 -> SAT/RAT (art. 22, II, Lei 8.212/91 e Anexo V, Decreto 6.042/07) - Enquadramento 8011-1/01 | E26: ='Encargos Sociais'!E16 -> 0.03 | F26: 168.97
C27: D | D27: ='Encargos Sociais'!D17 -> SESC ou SESI (art. 30, Lei nº 8.036/90 e art. 1º, Lei 8.154/90) | E27: ='Encargos Sociais'!E17 -> 0.015 | F27: 84.48
C28: E | D28: ='Encargos Sociais'!D18 -> SENAI ou SENAC (Decreto nº 2.318/86) | E28: ='Encargos Sociais'!E18 -> 0.01 | F28: 56.32 | H28: * Nota 1 - Os percentuais dos encargos previdenciários, do FGTS e demais contribuições são estabelecidos por legislação vigente.
C29: F | D29: ='Encargos Sociais'!D19 -> SEBRAE (§ 3º, art. 8º, Lei 8.029/90, alterada pela Lei nº 8.154/90) | E29: ='Encargos Sociais'!E19 -> 0.006 | F29: 33.79 | H29: * Nota 2 - O SAT, a depender do grau de risco do serviço, irá variar entre 1%, para risco leve, de 2%, para risco médio, e de 3% para risco grave.
C30: G | D30: ='Encargos Sociais'!D20 -> INCRA (art. 1º, I, Decreto Lei 1.146/70 e Lei 7.787, de 30/06/89) | E30: ='Encargos Sociais'!E20 -> 0.002 | F30: 11.26 | H30: * Nota 3 - Base de cálculo - remuneração + ausências + terço constitucional (férias)
C31: H | D31: ='Encargos Sociais'!D21 -> FGTS (Lei Complementar nº 110/01 e art. 30, Lei nº 8.036/90) | E31: ='Encargos Sociais'!E21 -> 0.08 | F31: 450.58
C32: I | D32: ='Encargos Sociais'!D22 -> SECONCI (Convenções Coletivas de Trabalho da construção) | E32: ='Encargos Sociais'!E22 -> 0 | F32: 0
B34: Submódulo 2.3 - Benefícios Mensais e Diários
C35: A | D35: Auxílio Transporte | F35: =HLOOKUP($B$5,'Dados Gerais'!$D$6:$BK$94,82) -> 22.4
C36: B | D36: Auxílio Alimentação | F36: =HLOOKUP($B$5,'Dados Gerais'!$D$6:$BK$94,89) -> 710.55 | H36: * Nota 1 - O valor informado deverá ser o custo real do benefício (descontado o valor eventualmente pago pelo empregado).
C37: C | D37: Assistência Médica e Familiar | F37: =HLOOKUP($B$5,'Dados Gerais'!$D$6:$BK$102,97) -> 0 | H37: * Nota 2 - Observar a previsão dos benefícios contidos em Acordos, Convenções e Dissídios Coletivos de Trabalho e o disposto no art. 6º da IN 5/2017
C38: D | D38: Outros (Seguro de vida e auxílio funeral e auxílio odontológico) | F38: =HLOOKUP($B$5,'Dados Gerais'!$D$6:$BK$119,114) -> 32.16
D40: QUADRO-RESUMO DO MÓDULO 2
D41: 2.1 - Adicional de Férias | E41: =SUM(E20:E21) -> 0.0303 | F41: =F20+F21 -> 149.54
D42: 2.2 - Encargos Previdenciários (GPS), Fundo de Garantia por Tempo de Serviço (FGTS) e Contribuições | E42: =SUM(E24:E32) -> 0.368 | F42: =SUM(F24:F32) -> 2072.66
D43: 2.3 - Benefícios Mensais e Diários | F43: =SUM(F35:F38) -> 765.11
D45: TOTAL DOS ENCARGOS E BENEFÍCIOS | F45: =SUM(F41:F43) -> 2987.31
B47: MÓDULO 3 - PREVISÃO PARA RESCISÃO | E47: Percentuais | F47: Valor
C48: A | D48: ='Encargos Sociais'!D36 -> Aviso Prévio Indenizado (Art. 7º, inciso XXI, da CF/1988 e arts. 477, 487, §1º, e 491 da CLT) | E48: ='Encargos Sociais'!E36 -> 0.0042 | F48: =ROUND(E48*($F$16+$F$72+$F$41),2) -> 23.66
C49: B | D49: ='Encargos Sociais'!D37 -> 13º sobre aviso prévio indenizado | E49: ='Encargos Sociais'!E37 -> 0.0004 | F49: =ROUND(E49*($F$16+$F$72+$F$41),2) -> 2.25 | H49: * Nota 1 - Adotou-se os parâmetros do estudo do STF (http://www.stf.jus.br/arquivo/cms/sobrestfestudosci/anexo/encargos_sociais_03102007.pdf), onde 5% do pessoal é demitido pelo empregador no decurso do contrato (para estes, considerou-se o aviso prévio indenizado). Desprezou-se as demissões por justa causa e os pedidos de demissão.
C50: C | D50: ='Encargos Sociais'!D38 -> Incidência do FGTS sobre o Aviso Prévio Indenizado (Súmula 305 TST) | E50: ='Encargos Sociais'!E38 -> 0.0003 | F50: =ROUND(E50*($F$16+$F$72+$F$41),2) -> 1.69 | H50: * Nota 2 - Base de cálculo - remuneração + ausências + 1/3 férias
C51: D | D51: ='Encargos Sociais'!D39 -> Multa do FGTS sobre o Aviso Prévio (Art. 18, §1º, da Lei 8.036/1990) | E51: ='Encargos Sociais'!E39 -> 0.032 | F51: =ROUND(E51*($F$16+$F$72+$F$41),2) -> 180.23
C52: E | D52: ='Encargos Sociais'!D40 -> Indenização Adicional - data-base (Art. 9º, Lei 7.238/1984) | E52: ='Encargos Sociais'!E40 -> 0.0008 | F52: =ROUND(E52*($F$16+$F$72+$F$41),2) -> 4.51
D54: TOTAL DE PREVISÃO PARA RESCISÃO | F54: =SUM(F48:F52) -> 212.34
B56: MÓDULO 4 - CUSTO DO PROFISSIONAL AUSENTE | E56: Percentuais | F56: Valor
B57: Submódulo 4.1 - Ausências Legais
C58: A | D58: ='Encargos Sociais'!D25 -> Férias (Arts. 129 e 130, inc. I, da CLT) | E58: ='Encargos Sociais'!E25 -> 0.0909 | F58: =ROUND(E58*$F$16,2) -> 448.63 | H58: * Nota 1 - O Módulo 4 refere-se às previsões para custear ausências do próprio profissional (titular do cargo)
C59: B | D59: ='Encargos Sociais'!D26 -> Ausências Legais (Arts. 131 e 473 da CLT) | E59: ='Encargos Sociais'!E26 -> 0.0079 | F59: 38.99 | H59: * Nota 2 - As férias foram calculadas dividindo-se por 11, para comportar os 11 meses presentes e ainda o ausente do posto
C60: C | D60: ='Encargos Sociais'!D27 -> Licença-Paternidade (Art. 7º, XIX, e art. 10, §1º, do ADCT, CF/1988 e Art. 1º, II, da Lei 11.770/2008) | E60: ='Encargos Sociais'!E27 -> 0.0008 | F60: 3.95
C61: D | D61: ='Encargos Sociais'!D28 -> Ausência por Acidente de Trabalho (Art. 131, III, da CLT) | E61: ='Encargos Sociais'!E28 -> 0.0009 | F61: 4.44
C62: E | D62: ='Encargos Sociais'!D29 -> Afastamento Maternidade (Art. 71 da Lei nº 8.213/1991) | E62: ='Encargos Sociais'!E29 -> 0.0033 | F62: 16.29
C63: F | D63: ='Encargos Sociais'!D30 -> Auxílio Enfermidade - Doença (Art. 59 da Lei nº 8.213/1991) | E63: ='Encargos Sociais'!E30 -> 0.0071 | F63: 35.04
B65: Submódulo 4.2 - Intrajornada
C66: A | D66: Intervalo para repouso ou alimentação | E66: ='Encargos Sociais'!E33 -> 0 | F66: =ROUND(E66*$F$16,2) -> 0
D68: QUADRO-RESUMO DO MÓDULO 4 | F68: Valor
D69: 4.1 - Ausências Legais | E69: =SUM(E58:E63) -> 0.1109 | F69: =ROUND(E69*$F$16,2) -> 547.33
D70: 4.2 - Intrajornada | E70: =E66 -> 0 | F70: =ROUND(E70*$F$16,2) -> 0
D72: TOTAL DE PREVISÃO PARA CUSTO DO PROFISSIONAL AUSENTE E INTERVALO INTRAJORNADA | F72: =SUM(F69:F70) -> 547.33
B74: MÓDULO 5 - INSUMOS DIVERSOS | F74: Valor
C75: A | D75: Uniformes - aquisição | F75: =ROUND(HLOOKUP($B$5,Uniformes!L4:EA113,3)/12,2) -> 585.45
C76: B | D76: Materiais de consumo relacionados ao posto - aquisição | F76: =ROUND(HLOOKUP(B5,'Mat Cons'!I11:DX13,3)/12,2) -> 0
C77: C | D77: Materiais permanentes relacionados ao posto - remuneração da sua depreciação / manutenção | F77: =HLOOKUP(B5,'Mat Perm'!Q11:EF13,3) -> 0
C78: D | D78: Equipamentos relacionados ao posto - remuneração da sua depreciação / manutenção | F78: =HLOOKUP(B5,'Equip Rel'!Q3:EF5,3) -> 0
C79: E | D79: Equipamentos de Proteção Individual - EPI - aquisição | F79: =ROUND(HLOOKUP(B5,EPI!J4:DY6,3)/12,2) -> 0
D81: TOTAL DE INSUMOS DIVERSOS | F81: =SUM(F75:F80) -> 585.45 | H81: * Nota - Valores mensais por empregado
B83: MÓDULO 6 - CUSTOS INDIRETOS, TRIBUTOS E LUCRO - BDI | E83: Percentuais | F83: Valor
C84: A | D84: Custos Indiretos | E84: =BDI!E6 -> 0.0227
C85: A.1 | D85: Administração Central | E85: =BDI!E7 -> 0.0173
C86: A.2 | D86: Seguros, Garantias e Riscos | E86: =BDI!E8 -> 0.0054
C87: B | D87: Lucro | E87: =BDI!E10 -> 0.0267
C88: C | D88: Tributos | E88: =SUM(E89:E90) -> 0.124
C89: C.1 | D89: Tributos Federais (COFINS, PIS e CPRB) | E89: =BDI!E18 -> 0.074
C90: C.2 | D90: Tributos Distritais (ISS) | E90: =BDI!E23 -> 0.05
C91: D | D91: Despesas Financeiras | E91: =BDI!E13 -> 0.004466921098
D93: TOTAL DE BDI | E93: =BDI!E26 -> 0.204 | F93: =E93*E101 -> 1890.63528
D95: QUADRO-RESUMO DO CUSTO MENSAL POR EMPREGADO - SEM O 13º | E95: Valor
D96: Módulo 1 - Composição da Remuneração | E96: =F16 -> 4935.39
D97: Módulo 2 - Encargos e Benefícios Anuais, Mensais e Diários | E97: =F45 -> 2987.31
D98: Módulo 3 - Provisão para Rescisão | E98: =F54 -> 212.34
D99: Módulo 4 - Custo de Reposição do Profissional Ausente | E99: =F72 -> 547.33
D100: Módulo 5 - Insumos Diversos | E100: =F81 -> 585.45
D101: SUBTOTAL (A+B+C+D+E) | E101: =SUM(E96:E100) -> 9267.82
D102: Módulo 6 - Custos Indiretos, Tributos e Lucro | E102: =F93 -> 1890.63528
D104: TOTAL DO POSTO | E104: =SUM(E101:E102) -> 11158.45528
B106: MÓDULO 7 - DESTAQUE DO MÓDULO 2 - 13º SALÁRIO | E106: Percentuais | F106: Valor
C107: A | D107: 13º Salário | E107: ='Encargos Sociais'!E32*12/11 -> 0.09087272727 | F107: =ROUND(E107*F$16,2) -> 448.49 | H107: * Nota 1 - Incluindo-se a reincidência das férias do substituto sobre o titular
C108: B | D108: Encargos Sociais sobre o 13º Salário | E108: =SUM($E$24:$E$32) -> 0.368 | F108: =ROUND(E108*$F$107,2) -> 165.04 | H108: * Nota 2 - Provisiona-se, mensalmente, o proporcional a 1/12 dos valores referentes a gratificação natalina e adicional de férias.
C109: C | D109: BDI sobre o 13º Salário - Taxa calculada no MÓDULO 6 | E109: =E93 -> 0.204 | F109: =ROUND(E109*($F$107+$F$108),2) -> 125.16
D111: TOTAL DO DESTAQUE DO 13º SALÁRIO | F111: =SUM(F107:F109) -> 738.69
D113: QUADRO-RESUMO DO CUSTO MENSAL POR EMPREGADO | E113: Valor
D114: Custo total - sem o 13º Salário | E114: =E104 -> 11158.45528
D115: Destaque do 13º Salário (valor mensal) | E115: =F111 -> 738.69
D117: TOTAL DO POSTO | E117: =E114+E115 -> 11897.14528

Sheet 14 (hidden)
B2: PLANILHA DE ESTIMATIVA DE CUSTOS
B5: 14 | D5: =HLOOKUP($B$5,'Dados Gerais'!$D$6:$BK$21,6) -> 0 | E5: QUANTIDADE | F5: =HLOOKUP($B$5,'Dados Gerais'!$D$6:$BK$21,10) -> 0
B6: CCT | D6: =HLOOKUP($B$5,'Dados Gerais'!$D$6:$BK$21,15) -> 0 | E6: DATA-BASE | F6: =HLOOKUP($B$5,'Dados Gerais'!$D$6:$BK$21,16) -> 00:00:00
B8: MÓDULO 1 - COMPOSIÇÃO DA REMUNERAÇÃO | F8: Valor
C9: A | D9: Salário-Base | F9: =HLOOKUP($B$5,'Dados Gerais'!$D$6:$BK$21,8) -> 0
C10: B | D10: Adicional de Periculosidade | F10: =HLOOKUP($B$5,'Dados Gerais'!$D$6:$BK$38,25) -> 0
C11: C | D11: Adicional de Insalubridade | F11: =HLOOKUP($B$5,'Dados Gerais'!$D$6:$BK$38,31) -> 0
C12: D | D12: Adicional Noturno | F12: =HLOOKUP($B$5,'Dados Gerais'!$D$6:$BK$51,46) -> 0 | H12: * Nota 1 - O Módulo 1 refere-se ao valor mensal devido ao empregado pela prestação do serviço no período de 12 meses.
C13: E | D13: Adicional de Hora Extra | F13: =HLOOKUP($B$5,'Dados Gerais'!$D$6:$BK$68,63) -> 0 | H13: * Nota 2 - O adicional de hora extra no feriado trabalhado foi suprimido pela Lei 13.467/17
C14: F | D14: Outros (especificar) | F14: =HLOOKUP($B$5,'Dados Gerais'!$D$6:$BK$60,33) -> 0 | H14: * Nota 3 - ART. 7º, § 2º, DA LEI Nº 605/49.Sendo mensalista o obreiro, o adicional noturno pago de forma fixa já é considerado integrado para os efeitos do pagamento do repouso semanal remunerado, nos termos do art. 7º, § 2º, da Lei nº 605/49.
D16: TOTAL DA REMUNERAÇÃO | F16: =SUM(F9:F14) -> 0
B18: MÓDULO 2 - ENCARGOS E BENEFÍCIOS ANUAIS, MENSAIS E DIÁRIOS | E18: Percentuais | F18: Valor
B19: Submódulo 2.1 - 13º Salário e Adicional de Férias
C20: A | D20: 13º Salário - Calculado no Módulo 7 - Destacado | E20: 0 | F20: =ROUND(E20*F$16,2) -> 0 | H20: * Nota 1 - Provisiona-se, mensalmente, o proporcional a 1/12 dos valores referentes a gratificação natalina, calculada à parte
C21: B | D21: Adicional de Férias | E21: ='Encargos Sociais'!E31 -> 0.0303 | F21: =ROUND(E21*F$16,2) -> 0 | H21: * Nota 2 - O adicional de férias foi calculado dividindo-se por 11, para comportar os 11 meses presentes e ainda o ausente do posto
B23: Submódulo 2.2 - Encargos Previdenciários (GPS), Fundo de Garantia por Tempo de Serviço (FGTS) e Outras Contribuições
C24: A | D24: ='Encargos Sociais'!D14 -> INSS (art. 22, inciso I, Lei nº 8.212/91) | E24: ='Encargos Sociais'!E14 -> 0.2 | F24: =ROUND(E24*($F$16+$F$41+$F$72),2) -> 0
C25: B | D25: ='Encargos Sociais'!D15 -> Salário Educação (art. 3º, inciso I, Decreto nº 87.043/82) | E25: ='Encargos Sociais'!E15 -> 0.025 | F25: 0
C26: C | D26: ='Encargos Sociais'!D16 -> SAT/RAT (art. 22, II, Lei 8.212/91 e Anexo V, Decreto 6.042/07) - Enquadramento 8011-1/01 | E26: ='Encargos Sociais'!E16 -> 0.03 | F26: 0
C27: D | D27: ='Encargos Sociais'!D17 -> SESC ou SESI (art. 30, Lei nº 8.036/90 e art. 1º, Lei 8.154/90) | E27: ='Encargos Sociais'!E17 -> 0.015 | F27: 0
C28: E | D28: ='Encargos Sociais'!D18 -> SENAI ou SENAC (Decreto nº 2.318/86) | E28: ='Encargos Sociais'!E18 -> 0.01 | F28: 0 | H28: * Nota 1 - Os percentuais dos encargos previdenciários, do FGTS e demais contribuições são estabelecidos por legislação vigente.
C29: F | D29: ='Encargos Sociais'!D19 -> SEBRAE (§ 3º, art. 8º, Lei 8.029/90, alterada pela Lei nº 8.154/90) | E29: ='Encargos Sociais'!E19 -> 0.006 | F29: 0 | H29: * Nota 2 - O SAT, a depender do grau de risco do serviço, irá variar entre 1%, para risco leve, de 2%, para risco médio, e de 3% para risco grave.
C30: G | D30: ='Encargos Sociais'!D20 -> INCRA (art. 1º, I, Decreto Lei 1.146/70 e Lei 7.787, de 30/06/89) | E30: ='Encargos Sociais'!E20 -> 0.002 | F30: 0 | H30: * Nota 3 - Base de cálculo - remuneração + ausências + terço constitucional (férias)
C31: H | D31: ='Encargos Sociais'!D21 -> FGTS (Lei Complementar nº 110/01 e art. 30, Lei nº 8.036/90) | E31: ='Encargos Sociais'!E21 -> 0.08 | F31: 0
C32: I | D32: ='Encargos Sociais'!D22 -> SECONCI (Convenções Coletivas de Trabalho da construção) | E32: ='Encargos Sociais'!E22 -> 0 | F32: 0
B34: Submódulo 2.3 - Benefícios Mensais e Diários
C35: A | D35: Auxílio Transporte | F35: =HLOOKUP($B$5,'Dados Gerais'!$D$6:$BK$94,82) -> 0
C36: B | D36: Auxílio Alimentação | F36: =HLOOKUP($B$5,'Dados Gerais'!$D$6:$BK$94,89) -> 0 | H36: * Nota 1 - O valor informado deverá ser o custo real do benefício (descontado o valor eventualmente pago pelo empregado).
C37: C | D37: Assistência Médica e Familiar | F37: =HLOOKUP($B$5,'Dados Gerais'!$D$6:$BK$102,97) -> 0 | H37: * Nota 2 - Observar a previsão dos benefícios contidos em Acordos, Convenções e Dissídios Coletivos de Trabalho e o disposto no art. 6º da IN 5/2017
C38: D | D38: Outros (Seguro de vida e auxílio funeral e auxílio odontológico) | F38: =HLOOKUP($B$5,'Dados Gerais'!$D$6:$BK$119,114) -> 0
D40: QUADRO-RESUMO DO MÓDULO 2
D41: 2.1 - Adicional de Férias | E41: =SUM(E20:E21) -> 0.0303 | F41: =F20+F21 -> 0
D42: 2.2 - Encargos Previdenciários (GPS), Fundo de Garantia por Tempo de Serviço (FGTS) e Contribuições | E42: =SUM(E24:E32) -> 0.368 | F42: =SUM(F24:F32) -> 0
D43: 2.3 - Benefícios Mensais e Diários | F43: =SUM(F35:F38) -> 0
D45: TOTAL DOS ENCARGOS E BENEFÍCIOS | F45: =SUM(F41:F43) -> 0
B47: MÓDULO 3 - PREVISÃO PARA RESCISÃO | E47: Percentuais | F47: Valor
C48: A | D48: ='Encargos Sociais'!D36 -> Aviso Prévio Indenizado (Art. 7º, inciso XXI, da CF/1988 e arts. 477, 487, §1º, e 491 da CLT) | E48: ='Encargos Sociais'!E36 -> 0.0042 | F48: =ROUND(E48*($F$16+$F$72+$F$41),2) -> 0
C49: B | D49: ='Encargos Sociais'!D37 -> 13º sobre aviso prévio indenizado | E49: ='Encargos Sociais'!E37 -> 0.0004 | F49: =ROUND(E49*($F$16+$F$72+$F$41),2) -> 0 | H49: * Nota 1 - Adotou-se os parâmetros do estudo do STF (http://www.stf.jus.br/arquivo/cms/sobrestfestudosci/anexo/encargos_sociais_03102007.pdf), onde 5% do pessoal é demitido pelo empregador no decurso do contrato (para estes, considerou-se o aviso prévio indenizado). Desprezou-se as demissões por justa causa e os pedidos de demissão.
C50: C | D50: ='Encargos Sociais'!D38 -> Incidência do FGTS sobre o Aviso Prévio Indenizado (Súmula 305 TST) | E50: ='Encargos Sociais'!E38 -> 0.0003 | F50: =ROUND(E50*($F$16+$F$72+$F$41),2) -> 0 | H50: * Nota 2 - Base de cálculo - remuneração + ausências + 1/3 férias
C51: D | D51: ='Encargos Sociais'!D39 -> Multa do FGTS sobre o Aviso Prévio (Art. 18, §1º, da Lei 8.036/1990) | E51: ='Encargos Sociais'!E39 -> 0.032 | F51: =ROUND(E51*($F$16+$F$72+$F$41),2) -> 0
C52: E | D52: ='Encargos Sociais'!D40 -> Indenização Adicional - data-base (Art. 9º, Lei 7.238/1984) | E52: ='Encargos Sociais'!E40 -> 0.0008 | F52: =ROUND(E52*($F$16+$F$72+$F$41),2) -> 0
D54: TOTAL DE PREVISÃO PARA RESCISÃO | F54: =SUM(F48:F52) -> 0
B56: MÓDULO 4 - CUSTO DO PROFISSIONAL AUSENTE | E56: Percentuais | F56: Valor
B57: Submódulo 4.1 - Ausências Legais
C58: A | D58: ='Encargos Sociais'!D25 -> Férias (Arts. 129 e 130, inc. I, da CLT) | E58: ='Encargos Sociais'!E25 -> 0.0909 | F58: =ROUND(E58*$F$16,2) -> 0 | H58: * Nota 1 - O Módulo 4 refere-se às previsões para custear ausências do próprio profissional (titular do cargo)
C59: B | D59: ='Encargos Sociais'!D26 -> Ausências Legais (Arts. 131 e 473 da CLT) | E59: ='Encargos Sociais'!E26 -> 0.0079 | F59: 0 | H59: * Nota 2 - As férias foram calculadas dividindo-se por 11, para comportar os 11 meses presentes e ainda o ausente do posto
C60: C | D60: ='Encargos Sociais'!D27 -> Licença-Paternidade (Art. 7º, XIX, e art. 10, §1º, do ADCT, CF/1988 e Art. 1º, II, da Lei 11.770/2008) | E60: ='Encargos Sociais'!E27 -> 0.0008 | F60: 0
C61: D | D61: ='Encargos Sociais'!D28 -> Ausência por Acidente de Trabalho (Art. 131, III, da CLT) | E61: ='Encargos Sociais'!E28 -> 0.0009 | F61: 0
C62: E | D62: ='Encargos Sociais'!D29 -> Afastamento Maternidade (Art. 71 da Lei nº 8.213/1991) | E62: ='Encargos Sociais'!E29 -> 0.0033 | F62: 0
C63: F | D63: ='Encargos Sociais'!D30 -> Auxílio Enfermidade - Doença (Art. 59 da Lei nº 8.213/1991) | E63: ='Encargos Sociais'!E30 -> 0.0071 | F63: 0
B65: Submódulo 4.2 - Intrajornada
C66: A | D66: Intervalo para repouso ou alimentação | E66: ='Encargos Sociais'!E33 -> 0 | F66: =ROUND(E66*$F$16,2) -> 0
D68: QUADRO-RESUMO DO MÓDULO 4 | F68: Valor
D69: 4.1 - Ausências Legais | E69: =SUM(E58:E63) -> 0.1109 | F69: =ROUND(E69*$F$16,2) -> 0
D70: 4.2 - Intrajornada | E70: =E66 -> 0 | F70: =ROUND(E70*$F$16,2) -> 0
D72: TOTAL DE PREVISÃO PARA RESCISÃO E INTERVALO INTRAJORNADA | F72: =SUM(F69:F70) -> 0
B74: MÓDULO 5 - INSUMOS DIVERSOS | F74: Valor
C75: A | D75: Uniformes - aquisição | F75: =ROUND(HLOOKUP($B$5,Uniformes!L4:EA90,3)/12,2) -> 0
C76: B | D76: Materiais de consumo relacionados ao posto - aquisição | F76: =ROUND(HLOOKUP(B5,'Mat Cons'!I11:DX13,3)/12,2) -> 0
C77: C | D77: Materiais permanentes relacionados ao posto - remuneração da sua depreciação / manutenção | F77: =HLOOKUP(B5,'Mat Perm'!Q11:EF13,3) -> 0
C78: D | D78: Equipamentos relacionados ao posto - remuneração da sua depreciação / manutenção | F78: =HLOOKUP(B5,'Equip Rel'!Q3:EF5,3) -> 0
C79: E | D79: Equipamentos de Proteção Individual - EPI - aquisição | F79: =ROUND(HLOOKUP(B5,EPI!J4:DY6,3)/12,2) -> 0
D81: TOTAL DE INSUMOS DIVERSOS | F81: =SUM(F75:F80) -> 0 | H81: * Nota - Valores mensais por empregado
B83: MÓDULO 6 - CUSTOS INDIRETOS, TRIBUTOS E LUCRO - BDI | E83: Percentuais | F83: Valor
C84: A | D84: Custos Indiretos | E84: =BDI!E6 -> 0.0227
C85: A.1 | D85: Administração Central | E85: =BDI!E7 -> 0.0173
C86: A.2 | D86: Seguros, Garantias e Riscos | E86: =BDI!E8 -> 0.0054
C87: B | D87: Lucro | E87: =BDI!E10 -> 0.0267
C88: C | D88: Tributos | E88: =SUM(E89:E90) -> 0.124
C89: C.1 | D89: Tributos Federais (COFINS, PIS e CPRB) | E89: =BDI!E18 -> 0.074
C90: C.2 | D90: Tributos Distritais (ISS) | E90: =BDI!E23 -> 0.05
C91: D | D91: Despesas Financeiras | E91: =BDI!E13 -> 0.004466921098
D93: TOTAL DE BDI | E93: =BDI!E26 -> 0.204 | F93: =E93*E101 -> 0
D95: QUADRO-RESUMO DO CUSTO MENSAL POR EMPREGADO - SEM O 13º | E95: Valor
D96: Módulo 1 - Composição da Remuneração | E96: =F16 -> 0
D97: Módulo 2 - Encargos e Benefícios Anuais, Mensais e Diários | E97: =F45 -> 0
D98: Módulo 3 - Provisão para Rescisão | E98: =F54 -> 0
D99: Módulo 4 - Custo de Reposição do Profissional Ausente | E99: =F72 -> 0
D100: Módulo 5 - Insumos Diversos | E100: =F81 -> 0
D101: SUBTOTAL (A+B+C+D+E) | E101: =SUM(E96:E100) -> 0
D102: Módulo 6 - Custos Indiretos, Tributos e Lucro | E102: =F93 -> 0
D104: TOTAL DO POSTO | E104: =SUM(E101:E102) -> 0
B106: MÓDULO 7 - DESTAQUE DO MÓDULO 2 - 13º SALÁRIO | E106: Percentuais | F106: Valor
C107: A | D107: 13º Salário | E107: ='Encargos Sociais'!E32*12/11 -> 0.09087272727 | F107: =ROUND(E107*F$16,2) -> 0 | H107: * Nota 1 - Incluindo-se a reincidência das férias do substituto sobre o titular
C108: B | D108: Encargos Sociais sobre o 13º Salário | E108: =SUM($E$24:$E$32) -> 0.368 | F108: =ROUND(E108*$F$107,2) -> 0 | H108: * Nota 2 - Provisiona-se, mensalmente, o proporcional a 1/12 dos valores referentes a gratificação natalina e adicional de férias.
C109: C | D109: BDI sobre o 13º Salário - Taxa calculada no MÓDULO 6 | E109: =E93 -> 0.204 | F109: =ROUND(E109*($F$107+$F$108),2) -> 0
D111: TOTAL DO DESTAQUE DO 13º SALÁRIO | F111: =SUM(F107:F109) -> 0
D113: QUADRO-RESUMO DO CUSTO MENSAL POR EMPREGADO | E113: Valor
D114: Custo total - sem o 13º Salário | E114: =E104 -> 0
D115: Destaque do 13º Salário (valor mensal) | E115: =F111 -> 0
D117: TOTAL DO POSTO | E117: =E114+E115 -> 0

Sheet 15 (hidden)
B2: PLANILHA DE ESTIMATIVA DE CUSTOS
B5: 15 | D5: =HLOOKUP($B$5,'Dados Gerais'!$D$6:$BK$21,6) -> 0 | E5: QUANTIDADE | F5: =HLOOKUP($B$5,'Dados Gerais'!$D$6:$BK$21,10) -> 0
B6: CCT | D6: =HLOOKUP($B$5,'Dados Gerais'!$D$6:$BK$21,15) -> 0 | E6: DATA-BASE | F6: =HLOOKUP($B$5,'Dados Gerais'!$D$6:$BK$21,16) -> 00:00:00
B8: MÓDULO 1 - COMPOSIÇÃO DA REMUNERAÇÃO | F8: Valor
C9: A | D9: Salário-Base | F9: =HLOOKUP($B$5,'Dados Gerais'!$D$6:$BK$21,8) -> 0
C10: B | D10: Adicional de Periculosidade | F10: =HLOOKUP($B$5,'Dados Gerais'!$D$6:$BK$38,25) -> 0
C11: C | D11: Adicional de Insalubridade | F11: =HLOOKUP($B$5,'Dados Gerais'!$D$6:$BK$38,31) -> 0
C12: D | D12: Adicional Noturno | F12: =HLOOKUP($B$5,'Dados Gerais'!$D$6:$BK$51,46) -> 0 | H12: * Nota 1 - O Módulo 1 refere-se ao valor mensal devido ao empregado pela prestação do serviço no período de 12 meses.
C13: E | D13: Adicional de Hora Extra | F13: =HLOOKUP($B$5,'Dados Gerais'!$D$6:$BK$68,63) -> 0 | H13: * Nota 2 - O adicional de hora extra no feriado trabalhado foi suprimido pela Lei 13.467/17
C14: F | D14: Outros (especificar) | F14: =HLOOKUP($B$5,'Dados Gerais'!$D$6:$BK$60,33) -> 0 | H14: * Nota 3 - ART. 7º, § 2º, DA LEI Nº 605/49.Sendo mensalista o obreiro, o adicional noturno pago de forma fixa já é considerado integrado para os efeitos do pagamento do repouso semanal remunerado, nos termos do art. 7º, § 2º, da Lei nº 605/49.
D16: TOTAL DA REMUNERAÇÃO | F16: =SUM(F9:F14) -> 0
B18: MÓDULO 2 - ENCARGOS E BENEFÍCIOS ANUAIS, MENSAIS E DIÁRIOS | E18: Percentuais | F18: Valor
B19: Submódulo 2.1 - 13º Salário e Adicional de Férias
C20: A | D20: 13º Salário - Calculado no Módulo 7 - Destacado | E20: 0 | F20: =ROUND(E20*F$16,2) -> 0 | H20: * Nota 1 - Provisiona-se, mensalmente, o proporcional a 1/12 dos valores referentes a gratificação natalina, calculada à parte
C21: B | D21: Adicional de Férias | E21: ='Encargos Sociais'!E31 -> 0.0303 | F21: =ROUND(E21*F$16,2) -> 0 | H21: * Nota 2 - O adicional de férias foi calculado dividindo-se por 11, para comportar os 11 meses presentes e ainda o ausente do posto
B23: Submódulo 2.2 - Encargos Previdenciários (GPS), Fundo de Garantia por Tempo de Serviço (FGTS) e Outras Contribuições
C24: A | D24: ='Encargos Sociais'!D14 -> INSS (art. 22, inciso I, Lei nº 8.212/91) | E24: ='Encargos Sociais'!E14 -> 0.2 | F24: =ROUND(E24*($F$16+$F$41+$F$72),2) -> 0
C25: B | D25: ='Encargos Sociais'!D15 -> Salário Educação (art. 3º, inciso I, Decreto nº 87.043/82) | E25: ='Encargos Sociais'!E15 -> 0.025 | F25: 0
C26: C | D26: ='Encargos Sociais'!D16 -> SAT/RAT (art. 22, II, Lei 8.212/91 e Anexo V, Decreto 6.042/07) - Enquadramento 8011-1/01 | E26: ='Encargos Sociais'!E16 -> 0.03 | F26: 0
C27: D | D27: ='Encargos Sociais'!D17 -> SESC ou SESI (art. 30, Lei nº 8.036/90 e art. 1º, Lei 8.154/90) | E27: ='Encargos Sociais'!E17 -> 0.015 | F27: 0
C28: E | D28: ='Encargos Sociais'!D18 -> SENAI ou SENAC (Decreto nº 2.318/86) | E28: ='Encargos Sociais'!E18 -> 0.01 | F28: 0 | H28: * Nota 1 - Os percentuais dos encargos previdenciários, do FGTS e demais contribuições são estabelecidos por legislação vigente.
C29: F | D29: ='Encargos Sociais'!D19 -> SEBRAE (§ 3º, art. 8º, Lei 8.029/90, alterada pela Lei nº 8.154/90) | E29: ='Encargos Sociais'!E19 -> 0.006 | F29: 0 | H29: * Nota 2 - O SAT, a depender do grau de risco do serviço, irá variar entre 1%, para risco leve, de 2%, para risco médio, e de 3% para risco grave.
C30: G | D30: ='Encargos Sociais'!D20 -> INCRA (art. 1º, I, Decreto Lei 1.146/70 e Lei 7.787, de 30/06/89) | E30: ='Encargos Sociais'!E20 -> 0.002 | F30: 0 | H30: * Nota 3 - Base de cálculo - remuneração + ausências + terço constitucional (férias)
C31: H | D31: ='Encargos Sociais'!D21 -> FGTS (Lei Complementar nº 110/01 e art. 30, Lei nº 8.036/90) | E31: ='Encargos Sociais'!E21 -> 0.08 | F31: 0
C32: I | D32: ='Encargos Sociais'!D22 -> SECONCI (Convenções Coletivas de Trabalho da construção) | E32: ='Encargos Sociais'!E22 -> 0 | F32: 0
B34: Submódulo 2.3 - Benefícios Mensais e Diários
C35: A | D35: Auxílio Transporte | F35: =HLOOKUP($B$5,'Dados Gerais'!$D$6:$BK$94,82) -> 0
C36: B | D36: Auxílio Alimentação | F36: =HLOOKUP($B$5,'Dados Gerais'!$D$6:$BK$94,89) -> 0 | H36: * Nota 1 - O valor informado deverá ser o custo real do benefício (descontado o valor eventualmente pago pelo empregado).
C37: C | D37: Assistência Médica e Familiar | F37: =HLOOKUP($B$5,'Dados Gerais'!$D$6:$BK$102,97) -> 0 | H37: * Nota 2 - Observar a previsão dos benefícios contidos em Acordos, Convenções e Dissídios Coletivos de Trabalho e o disposto no art. 6º da IN 5/2017
C38: D | D38: Outros (Seguro de vida e auxílio funeral e auxílio odontológico) | F38: =HLOOKUP($B$5,'Dados Gerais'!$D$6:$BK$119,114) -> 0
D40: QUADRO-RESUMO DO MÓDULO 2
D41: 2.1 - Adicional de Férias | E41: =SUM(E20:E21) -> 0.0303 | F41: =F20+F21 -> 0
D42: 2.2 - Encargos Previdenciários (GPS), Fundo de Garantia por Tempo de Serviço (FGTS) e Contribuições | E42: =SUM(E24:E32) -> 0.368 | F42: =SUM(F24:F32) -> 0
D43: 2.3 - Benefícios Mensais e Diários | F43: =SUM(F35:F38) -> 0
D45: TOTAL DOS ENCARGOS E BENEFÍCIOS | F45: =SUM(F41:F43) -> 0
B47: MÓDULO 3 - PREVISÃO PARA RESCISÃO | E47: Percentuais | F47: Valor
C48: A | D48: ='Encargos Sociais'!D36 -> Aviso Prévio Indenizado (Art. 7º, inciso XXI, da CF/1988 e arts. 477, 487, §1º, e 491 da CLT) | E48: ='Encargos Sociais'!E36 -> 0.0042 | F48: =ROUND(E48*($F$16+$F$72+$F$41),2) -> 0
C49: B | D49: ='Encargos Sociais'!D37 -> 13º sobre aviso prévio indenizado | E49: ='Encargos Sociais'!E37 -> 0.0004 | F49: =ROUND(E49*($F$16+$F$72+$F$41),2) -> 0 | H49: * Nota 1 - Adotou-se os parâmetros do estudo do STF (http://www.stf.jus.br/arquivo/cms/sobrestfestudosci/anexo/encargos_sociais_03102007.pdf), onde 5% do pessoal é demitido pelo empregador no decurso do contrato (para estes, considerou-se o aviso prévio indenizado). Desprezou-se as demissões por justa causa e os pedidos de demissão.
C50: C | D50: ='Encargos Sociais'!D38 -> Incidência do FGTS sobre o Aviso Prévio Indenizado (Súmula 305 TST) | E50: ='Encargos Sociais'!E38 -> 0.0003 | F50: =ROUND(E50*($F$16+$F$72+$F$41),2) -> 0 | H50: * Nota 2 - Base de cálculo - remuneração + ausências + 1/3 férias
C51: D | D51: ='Encargos Sociais'!D39 -> Multa do FGTS sobre o Aviso Prévio (Art. 18, §1º, da Lei 8.036/1990) | E51: ='Encargos Sociais'!E39 -> 0.032 | F51: =ROUND(E51*($F$16+$F$72+$F$41),2) -> 0
C52: E | D52: ='Encargos Sociais'!D40 -> Indenização Adicional - data-base (Art. 9º, Lei 7.238/1984) | E52: ='Encargos Sociais'!E40 -> 0.0008 | F52: =ROUND(E52*($F$16+$F$72+$F$41),2) -> 0
D54: TOTAL DE PREVISÃO PARA RESCISÃO | F54: =SUM(F48:F52) -> 0
B56: MÓDULO 4 - CUSTO DO PROFISSIONAL AUSENTE | E56: Percentuais | F56: Valor
B57: Submódulo 4.1 - Ausências Legais
C58: A | D58: ='Encargos Sociais'!D25 -> Férias (Arts. 129 e 130, inc. I, da CLT) | E58: ='Encargos Sociais'!E25 -> 0.0909 | F58: =ROUND(E58*$F$16,2) -> 0 | H58: * Nota 1 - O Módulo 4 refere-se às previsões para custear ausências do próprio profissional (titular do cargo)
C59: B | D59: ='Encargos Sociais'!D26 -> Ausências Legais (Arts. 131 e 473 da CLT) | E59: ='Encargos Sociais'!E26 -> 0.0079 | F59: 0 | H59: * Nota 2 - As férias foram calculadas dividindo-se por 11, para comportar os 11 meses presentes e ainda o ausente do posto
C60: C | D60: ='Encargos Sociais'!D27 -> Licença-Paternidade (Art. 7º, XIX, e art. 10, §1º, do ADCT, CF/1988 e Art. 1º, II, da Lei 11.770/2008) | E60: ='Encargos Sociais'!E27 -> 0.0008 | F60: 0
C61: D | D61: ='Encargos Sociais'!D28 -> Ausência por Acidente de Trabalho (Art. 131, III, da CLT) | E61: ='Encargos Sociais'!E28 -> 0.0009 | F61: 0
C62: E | D62: ='Encargos Sociais'!D29 -> Afastamento Maternidade (Art. 71 da Lei nº 8.213/1991) | E62: ='Encargos Sociais'!E29 -> 0.0033 | F62: 0
C63: F | D63: ='Encargos Sociais'!D30 -> Auxílio Enfermidade - Doença (Art. 59 da Lei nº 8.213/1991) | E63: ='Encargos Sociais'!E30 -> 0.0071 | F63: 0
B65: Submódulo 4.2 - Intrajornada
C66: A | D66: Intervalo para repouso ou alimentação | E66: ='Encargos Sociais'!E33 -> 0 | F66: =ROUND(E66*$F$16,2) -> 0
D68: QUADRO-RESUMO DO MÓDULO 4 | F68: Valor
D69: 4.1 - Ausências Legais | E69: =SUM(E58:E63) -> 0.1109 | F69: =ROUND(E69*$F$16,2) -> 0
D70: 4.2 - Intrajornada | E70: =E66 -> 0 | F70: =ROUND(E70*$F$16,2) -> 0
D72: TOTAL DE PREVISÃO PARA RESCISÃO E INTERVALO INTRAJORNADA | F72: =SUM(F69:F70) -> 0
B74: MÓDULO 5 - INSUMOS DIVERSOS | F74: Valor
C75: A | D75: Uniformes - aquisição | F75: =ROUND(HLOOKUP($B$5,Uniformes!L4:EA90,3)/12,2) -> 0
C76: B | D76: Materiais de consumo relacionados ao posto - aquisição | F76: =ROUND(HLOOKUP(B5,'Mat Cons'!I11:DX13,3)/12,2) -> 0
C77: C | D77: Materiais permanentes relacionados ao posto - remuneração da sua depreciação / manutenção | F77: =HLOOKUP(B5,'Mat Perm'!Q11:EF13,3) -> 0
C78: D | D78: Equipamentos relacionados ao posto - remuneração da sua depreciação / manutenção | F78: =HLOOKUP(B5,'Equip Rel'!Q3:EF5,3) -> 0
C79: E | D79: Equipamentos de Proteção Individual - EPI - aquisição | F79: =ROUND(HLOOKUP(B5,EPI!J4:DY6,3)/12,2) -> 0
D81: TOTAL DE INSUMOS DIVERSOS | F81: =SUM(F75:F80) -> 0 | H81: * Nota - Valores mensais por empregado
B83: MÓDULO 6 - CUSTOS INDIRETOS, TRIBUTOS E LUCRO - BDI | E83: Percentuais | F83: Valor
C84: A | D84: Custos Indiretos | E84: =BDI!E6 -> 0.0227
C85: A.1 | D85: Administração Central | E85: =BDI!E7 -> 0.0173
C86: A.2 | D86: Seguros, Garantias e Riscos | E86: =BDI!E8 -> 0.0054
C87: B | D87: Lucro | E87: =BDI!E10 -> 0.0267
C88: C | D88: Tributos | E88: =SUM(E89:E90) -> 0.124
C89: C.1 | D89: Tributos Federais (COFINS, PIS e CPRB) | E89: =BDI!E18 -> 0.074
C90: C.2 | D90: Tributos Distritais (ISS) | E90: =BDI!E23 -> 0.05
C91: D | D91: Despesas Financeiras | E91: =BDI!E13 -> 0.004466921098
D93: TOTAL DE BDI | E93: =BDI!E26 -> 0.204 | F93: =E93*E101 -> 0
D95: QUADRO-RESUMO DO CUSTO MENSAL POR EMPREGADO - SEM O 13º | E95: Valor
D96: Módulo 1 - Composição da Remuneração | E96: =F16 -> 0
D97: Módulo 2 - Encargos e Benefícios Anuais, Mensais e Diários | E97: =F45 -> 0
D98: Módulo 3 - Provisão para Rescisão | E98: =F54 -> 0
D99: Módulo 4 - Custo de Reposição do Profissional Ausente | E99: =F72 -> 0
D100: Módulo 5 - Insumos Diversos | E100: =F81 -> 0
D101: SUBTOTAL (A+B+C+D+E) | E101: =SUM(E96:E100) -> 0
D102: Módulo 6 - Custos Indiretos, Tributos e Lucro | E102: =F93 -> 0
D104: TOTAL DO POSTO | E104: =SUM(E101:E102) -> 0
B106: MÓDULO 7 - DESTAQUE DO MÓDULO 2 - 13º SALÁRIO | E106: Percentuais | F106: Valor
C107: A | D107: 13º Salário | E107: ='Encargos Sociais'!E32*12/11 -> 0.09087272727 | F107: =ROUND(E107*F$16,2) -> 0 | H107: * Nota 1 - Incluindo-se a reincidência das férias do substituto sobre o titular
C108: B | D108: Encargos Sociais sobre o 13º Salário | E108: =SUM($E$24:$E$32) -> 0.368 | F108: =ROUND(E108*$F$107,2) -> 0 | H108: * Nota 2 - Provisiona-se, mensalmente, o proporcional a 1/12 dos valores referentes a gratificação natalina e adicional de férias.
C109: C | D109: BDI sobre o 13º Salário - Taxa calculada no MÓDULO 6 | E109: =E93 -> 0.204 | F109: =ROUND(E109*($F$107+$F$108),2) -> 0
D111: TOTAL DO DESTAQUE DO 13º SALÁRIO | F111: =SUM(F107:F109) -> 0
D113: QUADRO-RESUMO DO CUSTO MENSAL POR EMPREGADO | E113: Valor
D114: Custo total - sem o 13º Salário | E114: =E104 -> 0
D115: Destaque do 13º Salário (valor mensal) | E115: =F111 -> 0
D117: TOTAL DO POSTO | E117: =E114+E115 -> 0
L124: 11896.84472

Sheet Dados Gerais
B4: INFORMAÇÕES DE ENTRADA
D6: 1 | E6: 2 | F6: 3 | G6: 4 | H6: 5 | I6: 6 | J6: 7 | K6: 8 | L6: 9 | M6: 10 | N6: 11 | O6: 12 | P6: 13 | Q6: 14 | R6: 15 | S6: 16 | T6: 17 | U6: 18 | V6: 19 | W6: 20 | X6: 21 | Y6: 22 | Z6: 23 | AA6: 24 | AB6: 25 | AC6: 26 | AD6: 27 | AE6: 28 | AF6: 29 | AG6: 30 | AH6: 31 | AI6: 32 | AJ6: 33 | AK6: 34 | AL6: 35 | AM6: 36 | AN6: 37 | AO6: 38 | AP6: 39 | AQ6: 40 | AR6: 41 | AS6: 42 | AT6: 43 | AU6: 44 | AV6: 45 | AW6: 46 | AX6: 47 | AY6: 48 | AZ6: 49 | BA6: 50 | BB6: 51 | BC6: 52 | BD6: 53 | BE6: 54 | BF6: 55 | BG6: 56 | BH6: 57 | BI6: 58 | BJ6: 59 | BK6: 60
D7: CARGO 1 | E7: CARGO 2 | F7: CARGO 3 | G7: CARGO 4 | H7: CARGO 5 | I7: CARGO 6 | J7: CARGO 7 | K7: CARGO 8 | L7: CARGO 9 | M7: CARGO 10 | N7: CARGO 11 | O7: CARGO 12 | P7: CARGO 13 | Q7: CARGO 14 | R7: CARGO 15 | S7: CARGO 16 | T7: CARGO 17 | U7: CARGO 18 | V7: CARGO 19 | W7: CARGO 20 | X7: CARGO 21 | Y7: CARGO 22 | Z7: CARGO 23 | AA7: CARGO 24 | AB7: CARGO 25 | AC7: CARGO 26 | AD7: CARGO 27 | AE7: CARGO 28 | AF7: CARGO 29 | AG7: CARGO 30 | AH7: CARGO 31 | AI7: CARGO 32 | AJ7: CARGO 33 | AK7: CARGO 34 | AL7: CARGO 35 | AM7: CARGO 36 | AN7: CARGO 37 | AO7: CARGO 38 | AP7: CARGO 39 | AQ7: CARGO 40 | AR7: CARGO 41 | AS7: CARGO 42 | AT7: CARGO 43 | AU7: CARGO 44 | AV7: CARGO 45 | AW7: CARGO 46 | AX7: CARGO 47 | AY7: CARGO 48 | AZ7: CARGO 49 | BA7: CARGO 50 | BB7: CARGO 51 | BC7: CARGO 52 | BD7: CARGO 53 | BE7: CARGO 54 | BF7: CARGO 55 | BG7: CARGO 56 | BH7: CARGO 57 | BI7: CARGO 58 | BJ7: CARGO 59 | BK7: CARGO 60
B8: INFORMAÇÕES BÁSICAS
B10: DESCRIÇÃO DOS POSTOS DE SERVIÇO
D11: VIGILANTE SUPERVISOR II Escala 12 X 36 7h às 19h 2ª feira a Dom | E11: VIGILANTE SUPERVISOR I INTERNO DIURNO Escala 12 x 36 7h às 19h 2ª feira a Dom | F11: VIGILANTE SUPERVISOR I EXTERNO DIURNO Escala 12 x 36 7h às 19h 2ª feira a Dom | G11: VIGILANTE SUPERVISOR I INTERNO NOTURNO Escala 12 x 36 19h às 7h 2ª feira a Dom | H11: VIGILANTE SUPERVISOR I EXTERNO NOTURNO Escala 12 x 36 19h às 7h 2ª feira a Dom | I11: VIGILANTE DIURNO PORTARIAS 1 Escala 12 x 36 7h às 19h 2ª feira a Dom | J11: VIGILANTE NOTURNO PORTARIAS 1 Escala 12 x 36 19h às 7h 2ª feira a Dom | K11: VIGILANTE MATUTINO PORTARIAS 1 Escala 40 horas semanais 7h às 16h 2ª à 6ª feira | L11: VIGILANTE VESPERTINO PORTARIAS 1 Escala 40 horas semanais 13h às 22h 2ª à 6ª feira | M11: VIGILANTE MATUTINO ESTACIONAMENTOS Escala 40 horas semanais 7h às 16h 2ª à 6ª feira | N11: VIGILANTE VESPERTINO ESTACIONAMENTOS Escala 40 horas semanais 14h às 23h 2ª à 6ª feira | O11: VIGILANTE DIURNO POSTOS EXTERNOS Escala 12 x 36 7h às 19h 2ª feira a Dom | P11: VIGILANTE NOTURNO POSTOS EXTERNOS Escala 12 x 36 19h às 7h 2ª feira a Dom
B12: REMUNERAÇÕES
D13: 5786.06 | E13: 4450 | F13: 4450 | G13: =F13 -> 4450 | H13: 4450 | I13: 3423.03 | J13: =I13 -> 3423.03 | K13: =J13 -> 3423.03 | L13: 3423.03 | M13: =L13 -> 3423.03 | N13: =M13 -> 3423.03 | O13: =N13 -> 3423.03 | P13: =O13 -> 3423.03
B14: QUANTIDADE DE POSTOS
D15: 2 | E15: 2 | F15: 2 | G15: 2 | H15: 2 | I15: 36 | J15: 30 | K15: 13 | L15: 13 | M15: 24 | N15: 24 | O15: 60 | P15: 64
B16: JORNADA
C17: HORAS | D17: =36*5 -> 180 | E17: 180 | F17: 180 | G17: =F17 -> 180 | H17: =G17 -> 180 | I17: =H17 -> 180 | J17: =I17 -> 180 | K17: =40*5 -> 200 | L17: =K17 -> 200 | M17: =L17 -> 200 | N17: =M17 -> 200 | O17: 180 | P17: =O17 -> 180
C18: DIAS/MÊS | D18: 15 | E18: 15 | F18: 15 | G18: 15 | H18: 15 | I18: 15 | J18: 15 | K18: 22 | L18: 22 | M18: 22 | N18: 22 | O18: 15 | P18: 15
B19: CCT UTILIZADA
C20: SINDICATOS E REFERÊNCIA | D20: SINDESV/DF X SINDESP/DF 2024/2024 Nº DF000333/2024 | E20: =D20 -> SINDESV/DF X SINDESP/DF 2024/2024 Nº DF000333/2024 | F20: =E20 -> SINDESV/DF X SINDESP/DF 2024/2024 Nº DF000333/2024 | G20: =F20 -> SINDESV/DF X SINDESP/DF 2024/2024 Nº DF000333/2024 | H20: =G20 -> SINDESV/DF X SINDESP/DF 2024/2024 Nº DF000333/2024 | I20: =H20 -> SINDESV/DF X SINDESP/DF 2024/2024 Nº DF000333/2024 | J20: =I20 -> SINDESV/DF X SINDESP/DF 2024/2024 Nº DF000333/2024 | K20: =J20 -> SINDESV/DF X SINDESP/DF 2024/2024 Nº DF000333/2024 | L20: =K20 -> SINDESV/DF X SINDESP/DF 2024/2024 Nº DF000333/2024 | M20: =L20 -> SINDESV/DF X SINDESP/DF 2024/2024 Nº DF000333/2024 | N20: =M20 -> SINDESV/DF X SINDESP/DF 2024/2024 Nº DF000333/2024 | O20: =N20 -> SINDESV/DF X SINDESP/DF 2024/2024 Nº DF000333/2024 | P20: =O20 -> SINDESV/DF X SINDESP/DF 2024/2024 Nº DF000333/2024
C21: DATA-BASE | D21: 2024-01-01 | E21: =D21 -> 2024-01-01 | F21: =E21 -> 2024-01-01 | G21: 2024-01-01 | H21: 2024-01-01 | I21: 2024-01-01 | J21: 2024-01-01 | K21: 2024-01-01 | L21: 2024-01-01 | M21: =L21 -> 2024-01-01 | N21: 2024-01-01 | O21: 2024-01-01 | P21: 2024-01-01
B23: ADICIONAIS LEGAIS E GRATIFICAÇÕES
B25: PERICULOSIDADE (PERCENTUAL)
D26: 0.3 | E26: 0.3 | F26: 0.3 | G26: 0.3 | H26: 0.3 | I26: 0.3 | J26: 0.3 | K26: 0.3 | L26: 0.3 | M26: 0.3 | N26: 0.3 | O26: 0.3 | P26: 0.3
B27: BASE DE CÁLCULO DO ADICIONAL DE PERICULOSIDADE (SALÁRIO BÁSICO)
D28: =D13 -> 5786.06 | E28: =E13 -> 4450 | F28: =F13 -> 4450 | G28: =G13 -> 4450 | H28: 4450 | I28: =I13 -> 3423.03 | J28: 3423.03 | K28: 3423.03 | L28: 3423.03 | M28: =M13 -> 3423.03 | N28: =N13 -> 3423.03 | O28: =O13 -> 3423.03 | P28: =P13 -> 3423.03
B29: VALOR MENSAL DO ADICIONAL DE PERICULOSIDADE
D30: =ROUND(D26*D13,2) -> 1735.82 | E30: 1335 | F30: =ROUND(F26*F13,2) -> 1335 | G30: =ROUND(G26*G13,2) -> 1335 | H30: 1335 | I30: =ROUND(I26*I13,2) -> 1026.91 | J30: 1026.91 | K30: 1026.91 | L30: 1026.91 | M30: =ROUND(M26*M13,2) -> 1026.91 | N30: 1026.91 | O30: 1026.91 | P30: 1026.91
B31: INSALUBRIDADE (PERCENTUAL)
D32: 0 | E32: 0 | F32: 0 | G32: 0 | H32: 0 | I32: 0 | J32: 0 | K32: 0 | L32: 0 | M32: 0 | N32: 0 | O32: 0 | P32: 0
B33: BASE DE CÁLCULO DO ADICIONAL DE INSALUBRIDADE (SALÁRIO MÍNIMO LEGAL)
D34: 1412 | E34: =D34 -> 1412 | F34: 1412 | G34: =F34 -> 1412 | H34: =G34 -> 1412 | I34: =H34 -> 1412 | J34: =I34 -> 1412 | K34: =J34 -> 1412 | L34: =K34 -> 1412 | M34: =L34 -> 1412 | N34: =M34 -> 1412 | O34: =N34 -> 1412 | P34: =O34 -> 1412
B35: VALOR MENSAL DO ADICIONAL DE INSALUBRIDADE
D36: =ROUND(D32*D34,2) -> 0 | E36: =ROUND(E32*E34,2) -> 0 | F36: 0 | G36: 0 | H36: 0 | I36: 0 | J36: 0 | K36: 0 | L36: 0 | M36: =ROUND(M32*M34,2) -> 0 | N36: =ROUND(N32*N34,2) -> 0 | O36: =ROUND(O32*O34,2) -> 0 | P36: =ROUND(P32*P34,2) -> 0
B37: GRATIFICAÇÃO - VALOR MENSAL (R$)
B38: 2723.41 | C38: ADICIONAL DE MOTORIZAÇÃO (10% DO PISO DE R$ 2.723,41 - Cláusula Quarta da CCT) | D38: 0 | E38: 0 | F38: =ROUND(10%*$B$38,2) -> 272.34 | G38: 0 | H38: =F38 -> 272.34 | I38: 0 | J38: 0 | K38: 0 | L38: 0 | M38: 0 | N38: 0 | O38: 0 | P38: 0
B40: ADICIONAL NOTURNO
B42: INCIDÊNCIA (PERCENTUAL CONFORME CCT)
D43: 0.2 | E43: =D43 -> 0.2 | F43: 0.2 | G43: =F43 -> 0.2 | H43: =G43 -> 0.2 | I43: =H43 -> 0.2 | J43: =I43 -> 0.2 | K43: =J43 -> 0.2 | L43: =K43 -> 0.2 | M43: =L43 -> 0.2 | N43: =M43 -> 0.2 | O43: =N43 -> 0.2 | P43: =O43 -> 0.2
B44: HORAS REAIS POR DIA
D45: 0 | E45: 0 | F45: 0 | G45: 7 | H45: 7 | I45: 0 | J45: 7 | K45: 0 | L45: 0 | M45: 0 | N45: 1 | O45: 0 | P45: 7
B46: HORAS FICTAS POR DIA
D47: =D45*60/52.5 -> 0 | E47: =E45*60/52.5 -> 0 | F47: 0 | G47: 8 | H47: 8 | I47: 0 | J47: 8 | K47: 0 | L47: 0 | M47: =M45*60/52.5 -> 0 | N47: =N45*60/52.5 -> 1.142857143 | O47: =O45*60/52.5 -> 0 | P47: =P45*60/52.5 -> 8
B48: BASE DE CÁLCULO DO ADICIONAL NOTURNO (INCLUINDO ADICIONAIS E GRATIFICAÇÕES)
D49: =D13+D30+D36+D38 -> 7521.88 | E49: =E13+E30+E36+E38 -> 5785 | F49: 6057.34 | G49: =G13+G30+G36+G38 -> 5785 | H49: =H13+H30+H36+H38 -> 6057.34 | I49: =I13+I30+I36+I38 -> 4449.94 | J49: 4449.94 | K49: 4449.94 | L49: 4449.94 | M49: =M13+M30+M36+M38 -> 4449.94 | N49: 4449.94 | O49: 4449.94 | P49: 4449.94
B50: VALOR MENSAL DO ADICIONAL NOTURNO (HORA NORMAL + HORA REDUZIDA) - POR POSTO
C51: Divisor de 220h conforme previsão da cláusula décima da CCT | D51: =ROUND(D47*D18*D43*D49/220,2) -> 0 | E51: =ROUND(E47*E18*E43*E49/220,2) -> 0 | F51: =ROUND(F47*F18*F43*F49/220,2) -> 0 | G51: =ROUND(G47*G18*G43*G49/220,2) -> 631.09 | H51: 660.8 | I51: =ROUND(I47*I18*I43*I49/220,2) -> 0 | J51: 485.45 | K51: 0 | L51: 0 | M51: =ROUND(M47*M18*M43*M49/220,2) -> 0 | N51: 101.71 | O51: 0 | P51: 485.45
B53: ADICIONAL DE HORA EXTRA
B55: INCIDÊNCIA (PERCENTUAL 1)
D56: 0.5 | E56: 0.5 | F56: 0.5 | G56: 0.5 | H56: 0.5 | I56: 0.5 | J56: 0.5 | K56: 0.5 | L56: 0.5 | M56: 0.5 | N56: 0.5 | O56: 0.5 | P56: 0.5
B57: HORAS EXTRAS POR MÊS (PERCENTUAL 1)
D58: 0 | E58: 0 | F58: 0 | G58: 0 | H58: 0 | I58: 0 | J58: 0 | K58: 0 | L58: 0 | M58: 0 | N58: 0 | O58: 0 | P58: 0
B59: VALOR MENSAL DO ADICIONAL DE HORAS EXTRAS (PERCENTUAL 1) - POR POSTO
D60: =ROUND(D58*D56*D13/D17,2) -> 0 | E60: =ROUND(E58*E56*E13/E17,2) -> 0 | F60: 0 | G60: 0 | H60: 0 | I60: 0 | J60: 0 | K60: 0 | L60: 0 | M60: =ROUND(M58*M56*M13/M17,2) -> 0 | N60: =ROUND(N58*N56*N13/N17,2) -> 0 | O60: =ROUND(O58*O56*O13/O17,2) -> 0 | P60: =ROUND(P58*P56*P13/P17,2) -> 0
B61: INCIDÊNCIA (PERCENTUAL 2)
D62: 1 | E62: 1 | F62: 1 | G62: 1 | H62: 1 | I62: 1 | J62: 1 | K62: 1 | L62: 1 | M62: 1 | N62: 1 | O62: 1 | P62: 1
B63: HORAS EXTRAS POR MÊS (PERCENTUAL 2)
D64: 0 | E64: 0 | F64: 0 | G64: 0 | H64: 0 | I64: 0 | J64: 0 | K64: 0 | L64: 0 | M64: 0 | N64: 0 | O64: 0 | P64: 0
B65: VALOR MENSAL DO ADICIONAL DE HORAS EXTRAS (PERCENTUAL 2) - POR POSTO
D66: =ROUND(D64*D62*D13/D17,2) -> 0 | E66: =ROUND(E64*E62*E13/E17,2) -> 0 | F66: 0 | G66: 0 | H66: 0 | I66: 0 | J66: 0 | K66: 0 | L66: 0 | M66: =ROUND(M64*M62*M13/M17,2) -> 0 | N66: =ROUND(N64*N62*N13/N17,2) -> 0 | O66: =ROUND(O64*O62*O13/O17,2) -> 0 | P66: =ROUND(P64*P62*P13/P17,2) -> 0
B67: TOTAL MENSAL DOS ADICIONAIS DE HORAS EXTRAS - POR POSTO
D68: =D66+D60 -> 0 | E68: =E66+E60 -> 0 | F68: 0 | G68: 0 | H68: 0 | I68: 0 | J68: 0 | K68: 0 | L68: 0 | M68: =M66+M60 -> 0 | N68: =N66+N60 -> 0 | O68: =O66+O60 -> 0 | P68: =P66+P60 -> 0
B70: BENEFÍCIOS COMUNS - AUXÍLIO TRANSPORTE
B72: DISTRIBUIÇÃO ESTIMADA DE PROCEDÊNCIA
C73: Cidade-satélite | D73: 0.68 | E73: 0.68 | F73: 0.68 | G73: 0.68 | H73: 0.68 | I73: 0.68 | J73: 0.68 | K73: 0.68 | L73: 0.68 | M73: 0.68 | N73: 0.68 | O73: 0.68 | P73: 0.68
C74: Região do entorno | D74: 0.32 | E74: 0.32 | F74: 0.32 | G74: 0.32 | H74: 0.32 | I74: 0.32 | J74: 0.32 | K74: 0.32 | L74: 0.32 | M74: 0.32 | N74: 0.32 | O74: 0.32 | P74: 0.32
C75: Esplanada - apenas para os que vêm do entorno | D75: =D74 -> 0.32 | E75: =E74 -> 0.32 | F75: 0.32 | G75: =G74 -> 0.32 | H75: 0.32 | I75: =I74 -> 0.32 | J75: 0.32 | K75: 0.32 | L75: 0.32 | M75: =M74 -> 0.32 | N75: =N74 -> 0.32 | O75: =O74 -> 0.32 | P75: =P74 -> 0.32
B76: VALORES DOS VALES
C77: Cidade-satélite | D77: 5.5 | E77: =D77 -> 5.5 | F77: 5.5 | G77: =F77 -> 5.5 | H77: =G77 -> 5.5 | I77: =H77 -> 5.5 | J77: =I77 -> 5.5 | K77: =J77 -> 5.5 | L77: =K77 -> 5.5 | M77: =L77 -> 5.5 | N77: =M77 -> 5.5 | O77: =N77 -> 5.5 | P77: =O77 -> 5.5
C78: Região do entorno | D78: 9.29 | E78: 9.29 | F78: 9.29 | G78: 9.29 | H78: 9.29 | I78: 9.29 | J78: 9.29 | K78: 9.29 | L78: 9.29 | M78: =L78 -> 9.29 | N78: 9.29 | O78: 9.29 | P78: 9.29
C79: Esplanada | D79: 2.75 | E79: 2.75 | F79: 2.75 | G79: 2.75 | H79: 2.75 | I79: 2.75 | J79: 2.75 | K79: 2.75 | L79: 2.75 | M79: 2.75 | N79: 2.75 | O79: 2.75 | P79: 2.75
B80: VALOR MENSAL BRUTO DE PAGAMENTO - POR POSTO
D81: =ROUND((D73*D77+D74*D78+D75*D79)*2*D18,2) -> 227.78 | E81: =ROUND((E73*E77+E74*E78+E75*E79)*2*E18,2) -> 227.78 | F81: 227.78 | G81: =ROUND((G73*G77+G74*G78+G75*G79)*2*G18,2) -> 227.78 | H81: 227.78 | I81: =ROUND((I73*I77+I74*I78+I75*I79)*2*I18,2) -> 227.78 | J81: 227.78 | K81: 334.08 | L81: 334.08 | M81: =ROUND((M73*M77+M74*M78+M75*M79)*2*M18,2) -> 334.08 | N81: =ROUND((N73*N77+N74*N78+N75*N79)*2*N18,2) -> 334.08 | O81: =ROUND((O73*O77+O74*O78+O75*O79)*2*O18,2) -> 227.78 | P81: =ROUND((P73*P77+P74*P78+P75*P79)*2*P18,2) -> 227.78
B82: PERCENTUAL DE DESCONTO
D83: 0.06 | E83: 0.06 | F83: 0.06 | G83: 0.06 | H83: 0.06 | I83: 0.06 | J83: 0.06 | K83: 0.06 | L83: 0.06 | M83: 0.06 | N83: 0.06 | O83: 0.06 | P83: 0.06
B84: VALOR MENSAL DO DESCONTO - POR POSTO
D85: =ROUND(D83*D13,2) -> 347.16 | E85: =ROUND(E83*E13,2) -> 267 | F85: 267 | G85: =ROUND(G83*G13,2) -> 267 | H85: 267 | I85: =ROUND(I83*I13,2) -> 205.38 | J85: 205.38 | K85: 205.38 | L85: 205.38 | M85: =ROUND(M83*M13,2) -> 205.38 | N85: =ROUND(N83*N13,2) -> 205.38 | O85: =ROUND(O83*O13,2) -> 205.38 | P85: =ROUND(P83*P13,2) -> 205.38
B86: VALOR MENSAL LÍQUIDO DO VALE TRANSPORTE - POR POSTO
D87: =IF(D81>D85,D81-D85,0) -> 0 | E87: 0 | F87: =IF(F81>F85,F81-F85,0) -> 0 | G87: =IF(G81>G85,G81-G85,0) -> 0 | H87: 0 | I87: =IF(I81>I85,I81-I85,0) -> 22.4 | J87: 22.4 | K87: 128.7 | L87: 128.7 | M87: =IF(M81>M85,M81-M85,0) -> 128.7 | N87: =IF(N81>N85,N81-N85,0) -> 128.7 | O87: =IF(O81>O85,O81-O85,0) -> 22.4 | P87: =IF(P81>P85,P81-P85,0) -> 22.4
D88: =D87*D15 -> 0 | E88: 2962.54 | F88: 2962.54 | G88: 2962.54 | H88: 2962.54 | I88: 2962.54 | J88: 2962.54 | K88: 2962.54 | L88: 2962.54 | M88: 2962.54 | N88: 2962.54 | O88: 2962.54 | P88: 2962.54
B89: BENEFÍCIOS COMUNS - AUXÍLIO ALIMENTAÇÃO
C91: VALOR CCT | D91: 47.37 | E91: =D91 -> 47.37 | F91: 47.37 | G91: =F91 -> 47.37 | H91: =G91 -> 47.37 | I91: =H91 -> 47.37 | J91: =I91 -> 47.37 | K91: =J91 -> 47.37 | L91: =K91 -> 47.37 | M91: =L91 -> 47.37 | N91: =M91 -> 47.37 | O91: =N91 -> 47.37 | P91: =O91 -> 47.37
C92: VALOR CD | D92: 35 | E92: 35 | F92: 35 | G92: 35 | H92: 35 | I92: 35 | J92: 35 | K92: 35 | L92: 35 | M92: 35 | N92: 35 | O92: 35 | P92: 35
B93: VALOR MENSAL DO AUXÍLIO ALIMENTAÇÃO - POR POSTO
D94: =ROUND(LARGE(D91:D92,1)*D18,2) -> 710.55 | E94: =ROUND(LARGE(E91:E92,1)*E18,2) -> 710.55 | F94: 710.55 | G94: =ROUND(LARGE(G91:G92,1)*G18,2) -> 710.55 | H94: 710.55 | I94: =ROUND(LARGE(I91:I92,1)*I18,2) -> 710.55 | J94: 710.55 | K94: 1042.14 | L94: 1042.14 | M94: =ROUND(LARGE(M91:M92,1)*M18,2) -> 1042.14 | N94: =ROUND(LARGE(N91:N92,1)*N18,2) -> 1042.14 | O94: =ROUND(LARGE(O91:O92,1)*O18,2) -> 710.55 | P94: =ROUND(LARGE(P91:P92,1)*P18,2) -> 710.55
D95: =D94*D15 -> 1421.1 | E95: 10339.56 | F95: 10339.56 | G95: 10339.56 | H95: 10339.56 | I95: 10339.56 | J95: 10339.56 | K95: 10339.56 | L95: 10339.56 | M95: 10339.56 | N95: 10339.56 | O95: 10339.56 | P95: 10339.56
B96: BENEFÍCIOS ESPECIAIS - ASSISTÊNCIA MÉDICA E FAMILIAR
C98: OBRIGAÇÃO DE PAGTO | D98: NÃO | E98: NÃO | F98: NÃO | G98: NÃO | H98: NÃO | I98: NÃO | J98: NÃO | K98: NÃO | L98: NÃO | M98: NÃO | N98: NÃO | O98: NÃO | P98: NÃO
C99: VALOR CCT | D99: 0 | E99: 0 | F99: 0 | G99: 0 | H99: 0 | I99: 0 | J99: 0 | K99: 0 | L99: 0 | M99: 0 | N99: 0 | O99: 0 | P99: 0
C100: VALOR MERCADO | D100: 0 | E100: 0 | F100: 0 | G100: 0 | H100: 0 | I100: 0 | J100: 0 | K100: 0 | L100: 0 | M100: 0 | N100: 0 | O100: 0 | P100: 0
B101: VALOR MENSAL DO AUXÍLIO ESPECIAL - ASSISTÊNCIA MÉDICA E FAMILIAR - POR POSTO
D102: =IF(D98="SIM",ROUND(SMALL(D99:D100,1),2),0) -> 0 | E102: 0 | F102: =IF(F98="SIM",ROUND(SMALL(F99:F100,1),2),0) -> 0 | G102: =IF(G98="SIM",ROUND(SMALL(G99:G100,1),2),0) -> 0 | H102: 0 | I102: =IF(I98="SIM",ROUND(SMALL(I99:I100,1),2),0) -> 0 | J102: 0 | K102: 0 | L102: 0 | M102: =IF(M98="SIM",ROUND(SMALL(M99:M100,1),2),0) -> 0 | N102: =IF(N98="SIM",ROUND(SMALL(N99:N100,1),2),0) -> 0 | O102: =IF(O98="SIM",ROUND(SMALL(O99:O100,1),2),0) -> 0 | P102: =IF(P98="SIM",ROUND(SMALL(P99:P100,1),2),0) -> 0
B104: BENEFÍCIOS ESPECIAIS - SEGURO DE VIDA E AUXÍLIO-FUNERAL, AUX ODONT, AUX CRECHE
B106: SEGURO DE VIDA E AUXÍLIO FUNERAL
C107: OBRIGAÇÃO DE PAGTO | D107: SIM | E107: =D107 -> SIM | F107: =E107 -> SIM | G107: =F107 -> SIM | H107: SIM | I107: =H107 -> SIM | J107: =I107 -> SIM | K107: =J107 -> SIM | L107: =K107 -> SIM | M107: =L107 -> SIM | N107: =M107 -> SIM | O107: =N107 -> SIM | P107: =O107 -> SIM
C108: VALOR CCT
C109: VALOR MERCADO | D109: 32.16 | E109: 32.16 | F109: 32.16 | G109: 32.16 | H109: 32.16 | I109: 32.16 | J109: 32.16 | K109: 32.16 | L109: 32.16 | M109: 32.16 | N109: 32.16 | O109: 32.16 | P109: 32.16
B110: VALOR MENSAL DO AUXÍLIO ESPECIAL - SEGURO DE VIDA E AUXÍLIO FUNERAL - POR POSTO
D111: =IF(D107="SIM",ROUND(SMALL(D108:D109,1),2),0) -> 32.16 | E111: 32.16 | F111: =IF(F107="SIM",ROUND(SMALL(F108:F109,1),2),0) -> 32.16 | G111: =IF(G107="SIM",ROUND(SMALL(G108:G109,1),2),0) -> 32.16 | H111: 32.16 | I111: =IF(I107="SIM",ROUND(SMALL(I108:I109,1),2),0) -> 32.16 | J111: 32.16 | K111: 32.16 | L111: 32.16 | M111: =IF(M107="SIM",ROUND(SMALL(M108:M109,1),2),0) -> 32.16 | N111: =IF(N107="SIM",ROUND(SMALL(N108:N109,1),2),0) -> 32.16 | O111: =IF(O107="SIM",ROUND(SMALL(O108:O109,1),2),0) -> 32.16 | P111: =IF(P107="SIM",ROUND(SMALL(P108:P109,1),2),0) -> 32.16
B112: AUXÍLIO ODONTOLÓGICO
C113: OBRIGAÇÃO DE PAGTO | D113: NÃO | E113: NÃO | F113: NÃO | G113: NÃO | H113: NÃO | I113: NÃO | J113: NÃO | K113: NÃO | L113: NÃO | M113: NÃO | N113: NÃO | O113: NÃO | P113: NÃO
C114: VALOR CCT | D114: 0 | E114: 0 | F114: 0 | G114: 0 | H114: 0 | I114: 0 | J114: 0 | K114: 0 | L114: 0 | M114: 0 | N114: 0 | O114: 0 | P114: 0
C115: VALOR MERCADO | D115: 0 | E115: 0 | F115: 0 | G115: 0 | H115: 0 | I115: 0 | J115: 0 | K115: 0 | L115: 0 | M115: 0 | N115: 0 | O115: 0 | P115: 0
B116: VALOR MENSAL DO AUXÍLIO ODONTOLÓGICO - POR POSTO
D117: =IF(D113="SIM",ROUND(SMALL(D114:D115,1),2)*D18,0) -> 0 | E117: 0 | F117: 0 | G117: 0 | H117: 0 | I117: 0 | J117: 0 | K117: 0 | L117: 0 | M117: 0 | N117: 0 | O117: 0 | P117: 0
B118: TOTAL MENSAL DOS AUXÍLIOS ESPECIAIS - POR POSTO
D119: =D117+D111 -> 32.16 | E119: 32.16 | F119: =F117+F111 -> 32.16 | G119: =G117+G111 -> 32.16 | H119: 32.16 | I119: =I117+I111 -> 32.16 | J119: 32.16 | K119: 32.16 | L119: 32.16 | M119: =M117+M111 -> 32.16 | N119: =N117+N111 -> 32.16 | O119: =O117+O111 -> 32.16 | P119: =P117+P111 -> 32.16
D123: =D119*D15 -> 64.32 | E123: =E119*E15 -> 64.32 | F123: 64.32 | G123: 64.32 | H123: 64.32 | I123: 1157.76 | J123: 964.8 | K123: 418.08 | L123: 418.08

Sheet Encargos Sociais
B4: ENCARGOS SOCIAIS SOBRE A MÃO DE OBRA
E5: Percentuais
B7: Referência:
C8: SINAPI/MPU
B10: Categorias:
C11: TODAS
B13: GRUPO A: Encargos Sociais Básicos - Previdenciários (GPS), Fundo de Garantia por Tempo de Serviço (FGTS) e Outras Contribuições | E13: =ROUND(SUM(E14:E22),4) -> 0.368
C14: A | D14: INSS (art. 22, inciso I, Lei nº 8.212/91) | E14: 0.2
C15: B | D15: Salário Educação (art. 3º, inciso I, Decreto nº 87.043/82) | E15: 0.025 | G15: * Nota 1 - Os percentuais dos encargos previdenciários, do FGTS e demais contribuições são estabelecidos por legislação vigente.
C16: C | D16: SAT/RAT (art. 22, II, Lei 8.212/91 e Anexo V, Decreto 6.042/07) - Enquadramento 8011-1/01 | E16: 0.03 | G16: * Nota 2 - O SAT, a depender do grau de risco do serviço, irá variar entre 1%, para risco leve, de 2%, para risco médio, e de 3% para risco grave.
C17: D | D17: SESC ou SESI (art. 30, Lei nº 8.036/90 e art. 1º, Lei 8.154/90) | E17: 0.015 | G17: * Nota 3 - Os percentuais do Submódulo 2.2 incidem sobre o Módulo 1, o Submódulo 2.1, o Módulo 3, o Módulo 4 e o Módulo 6.
C18: E | D18: SENAI ou SENAC (Decreto nº 2.318/86) | E18: 0.01
C19: F | D19: SEBRAE (§ 3º, art. 8º, Lei 8.029/90, alterada pela Lei nº 8.154/90) | E19: 0.006
C20: G | D20: INCRA (art. 1º, I, Decreto Lei 1.146/70 e Lei 7.787, de 30/06/89) | E20: 0.002
C21: H | D21: FGTS (Lei Complementar nº 110/01 e art. 30, Lei nº 8.036/90) | E21: 0.08
C22: I | D22: SECONCI (Convenções Coletivas de Trabalho da construção) | E22: 0
B24: GRUPO B: Encargos Sociais Relacionados ao Custo do Profissional Ausente - Ausências Legais | E24: =ROUND(SUM(E25:E33),4) -> 0.2245
C25: A | D25: Férias (Arts. 129 e 130, inc. I, da CLT) | E25: =ROUND(1/11,4) -> 0.0909 | G25: * Nota 1 - As alíneas “A” a “F” referem-se somente ao custo que será pago ao repositor pelos dias trabalhados quando da necessidade de substituir a mão de obra alocada na prestação do serviço.
C26: B | D26: Ausências Legais (Arts. 131 e 473 da CLT) | E26: =ROUND(2/252,4) -> 0.0079 | G26: * Nota 2 - Adotou-se a estimativa do SINAPI de 2 dias por ano. Em 252 dias úteis por ano.
C27: C | D27: Licença-Paternidade (Art. 7º, XIX, e art. 10, §1º, do ADCT, CF/1988 e Art. 1º, II, da Lei 11.770/2008) | E27: =ROUND((5/(30*12))*0.0596,4) -> 0.0008 | G27: * Nota 3 - Utilizada a proporção de 50% para homens, 5 dias de afastamento, e a probabilidade de um trabalhador requerer a Licença Paternidade em 5,96%, conforme SINAPI (Anuário Estatístico da Previdência Social - 2017)
C28: D | D28: Ausência por Acidente de Trabalho (Art. 131, III, da CLT) | E28: =ROUND(0.0205*15/360,4) -> 0.0009 | G28: * Nota 4 - Utilzada a estatística de 2,05% dos contribuintes beneficiados com a emissão do auxílio, conforme Anuário Estatístico da Previdência Social. Afastamento de 15 dias a cargo da empresa.
C29: E | D29: Afastamento Maternidade (Art. 71 da Lei nº 8.213/1991) | E29: =ROUND(0.0508*(120/360)*(30+30*4/3)/360,4) -> 0.0033 | G29: * Nota 5 - Utilizada a estimativa de 120 dias de afastamento, e a probabilidade de uma trabalhadora requerer a Licença Maternidade em 5,08%, conforme SINAPI (citando dados do IBGE 2017) - A própria previdência paga o benefício pelos 120 dias, contudo o empregador arca com o 13º e com as férias
C30: F | D30: Auxílio Enfermidade - Doença (Art. 59 da Lei nº 8.213/1991) | E30: =ROUND(((0.0376*15)+2)/360,4) -> 0.0071 | G30: * Nota 6 - Utilizada a estatística de 3,76% dos contribuintes beneficiados com o auxílio, conforme Anuário Estatístico da Previdência Social de 2016 (acrescidos de 2 dias ao ano, para os quais o trabalhador nem requer o benefício da Previdência - conforme SINAPI)
C31: G | D31: Adicional de Férias (componente do Submódulo 2.1) | E31: =ROUND(1/3*1/11,4) -> 0.0303 | G31: * Nota 7 - O adicional de férias contido no Submódulo 2.1 corresponde a 1/3 da remuneração que, por sua vez, é dividida por 12 contome Nota 1.
C32: H | D32: 13º Salário (destacado na planilha de custos) | E32: =ROUND(1/12,4) -> 0.0833 | G32: * Nota 8 - Provisiona-se, mensalmente, o proporcional a 1/12 dos valores referentes a gratificação natalina e adicional de férias.
C33: I | D33: Intervalo para repouso ou alimentação (componente do Submódulo 4.2) | E33: 0
B35: GRUPO C: Encargos Sociais Relacionados à Previsão para Rescisão Trabalhista | E35: =ROUND(SUM(E36:E40),4) -> 0.0377
C36: A | D36: Aviso Prévio Indenizado (Art. 7º, inciso XXI, da CF/1988 e arts. 477, 487, §1º, e 491 da CLT) | E36: =ROUND(0.05*30/360,4) -> 0.0042 | G36: * Nota 1 - Considerou-se 5% de demitidos sem justa causa ao ano e recebendo aviso indenizado
C37: B | D37: 13º sobre aviso prévio indenizado | E37: =ROUND((1/12)*E36,4) -> 0.0004 | G37: * Nota 2 - A reincidência sobre as férias estão tratadas na própria base de cálculo da planilha
C38: C | D38: Incidência do FGTS sobre o Aviso Prévio Indenizado (Súmula 305 TST) | E38: =ROUND(E21*E36,4) -> 0.0003
C39: D | D39: Multa do FGTS sobre o Aviso Prévio (Art. 18, §1º, da Lei 8.036/1990) | E39: =ROUND(E21*(0.4),4) -> 0.032 | G39: * Nota 3 - Considerando que ao término do contrato 100% dos empregados terão rescisões sem justa causa
C40: E | D40: Indenização Adicional - data-base (Art. 9º, Lei 7.238/1984) | E40: =ROUND(1/12*1%,4) -> 0.0008 | G40: * Nota 4 - Refere-se à indenização de 1 salário para os profissionais que forem demitidos 1 mês antes da data-base. Estima-se em 1% o percentual ao ano de empregados demitidos nessa situação
B42: GRUPO D: Reincidências | E42: =ROUND(SUM(E43:E43),4) -> 0.0826
C43: A | D43: Reincidência do Grupo A sobre o Grupo B | E43: =ROUND(E13*E24,4) -> 0.0826
D45: SOMATÓRIO - ENCARGOS SOCIAIS SOBRE A MÃO DE OBRA | E45: =E42+E35+E24+E13 -> 0.7128

Sheet BDI
B3: COMPOSIÇÃO DA TAXA DE CUSTOS INDIRETOS, TRIBUTOS E LUCRO - BDI
B4: APLICAÇÃO: MÃO DE OBRA, 13º, MATERIAIS, EPC E EQUIPAMENTO DE REGISTRO DE FREQUÊNCIA | E4: Percentuais
B6: Custos Indiretos da Contratada | E6: =SUM(E7:E8) -> 0.0227
C7: A | D7: Administração Central | E7: 0.0173 | G7: * Nota 1 - O Somatório da Administração Central com o Lucro deve ser inferior a 12%
C8: B | D8: Seguros, Garantias e Riscos | E8: =0.34%+0.2% -> 0.0054 | G8: * Nota 2 - O risco previsto para o porte do contrato majorado em mais 0,20% devido ao não pagamento dos insumos componentes do custo do posto quando da ausência do mesmo.
B10: Lucro | E10: =SUM(E11:E11) -> 0.0267
C11: A | D11: Lucro Real sobre os Custos Administrados | E11: 0.0267
B13: Despesas Financeiras | E13: =E14 -> 0.004466921098
C14: A | D14: Cálculo Baseado no Prazo para a Restituição dos Desembolsos Realizados pelo Contratado e na Taxa de Retorno Arbitrada | E14: =(1+E16)^(E15/252)-1 -> 0.004466921098 | G14: * Nota 1 - DF = [(1+TR)^(DU/252)]/100
C15: A.1 | D15: Dias Úteis Considerados | E15: 11 | G15: * Nota 2 - Diferença de dias entre o desembolso, pelo contratado, e o pagamento, pela Câmara
C16: A.2 | D16: Taxa de Retorno | E16: 0.1075 | G16: * Nota 3 - A taxa sugerida é a meta da SELIC
B18: Impostos - Tributos Federais | E18: =SUM(E19:E21) -> 0.074
C19: A | D19: Contribuição para o Financiamento da Seguridade Social - COFINS | E19: =0.8*7.6% -> 0.0608 | G19: * Nota 1 - Redução de 20% considerando as deduções permitidas em Lei, conforme SENGE, citado pelo TCU - Acórdão 2622/2013
C20: B | D20: Programa de Integração Social - PIS | E20: =0.8*1.65% -> 0.0132 | G20: * Nota 2 - Redução de 20% considerando as deduções permitidas em Lei, conforme SENGE, citado pelo TCU - Acórdão 2622/2013
C21: C | D21: Contribuição Previdenciária sobre a Receita Bruta - CPRB | E21: 0 | G21: * Nota 3 - Lei 12.546/2011 - Verificar atualizações e setores beneficiados
B23: Impostos - Tributos Distritais | E23: =SUM(E24:E24) -> 0.05
C24: A | D24: Imposto sobre Serviço de Qualquer Natureza - ISS | E24: 0.05
D26: SOMATÓRIO - ENCARGOS SOCIAIS SOBRE A MÃO DE OBRA | E26: =ROUND((((1+E6)*(1+E10)*(1+E13)/(1-E18-E23))-1),4) -> 0.204 | G26: * Nota 1 - [(1+AC+SGR)*(1+L)*(1+DF)/(1-CONFINS-PIS-CPRB-ISS)]-1

Sheet Uniformes
B4: UNIFORMES - AQUISIÇÃO | L4: 1 | N4: =L4+1 -> 2 | P4: =N4+1 -> 3 | R4: =P4+1 -> 4 | T4: =R4+1 -> 5 | V4: =T4+1 -> 6 | X4: =V4+1 -> 7 | Z4: =X4+1 -> 8 | AB4: =Z4+1 -> 9 | AD4: =AB4+1 -> 10 | AF4: =AD4+1 -> 11 | AH4: =AF4+1 -> 12 | AJ4: =AH4+1 -> 13 | AL4: =AJ4+1 -> 14 | AN4: =AL4+1 -> 15 | AP4: =AN4+1 -> 16 | AR4: =AP4+1 -> 17 | AT4: =AR4+1 -> 18 | AV4: =AT4+1 -> 19 | AX4: =AV4+1 -> 20 | AZ4: =AX4+1 -> 21 | BB4: =AZ4+1 -> 22 | BD4: =BB4+1 -> 23 | BF4: =BD4+1 -> 24 | BH4: =BF4+1 -> 25 | BJ4: =BH4+1 -> 26 | BL4: =BJ4+1 -> 27 | BN4: =BL4+1 -> 28 | BP4: =BN4+1 -> 29 | BR4: =BP4+1 -> 30 | BT4: =BR4+1 -> 31 | BV4: =BT4+1 -> 32 | BX4: =BV4+1 -> 33 | BZ4: =BX4+1 -> 34 | CB4: =BZ4+1 -> 35 | CD4: =CB4+1 -> 36 | CF4: =CD4+1 -> 37 | CH4: =CF4+1 -> 38 | CJ4: =CH4+1 -> 39 | CL4: =CJ4+1 -> 40 | CN4: =CL4+1 -> 41 | CP4: =CN4+1 -> 42 | CR4: =CP4+1 -> 43 | CT4: =CR4+1 -> 44 | CV4: =CT4+1 -> 45 | CX4: =CV4+1 -> 46 | CZ4: =CX4+1 -> 47 | DB4: =CZ4+1 -> 48 | DD4: =DB4+1 -> 49 | DF4: =DD4+1 -> 50 | DH4: =DF4+1 -> 51 | DJ4: =DH4+1 -> 52 | DL4: =DJ4+1 -> 53 | DN4: =DL4+1 -> 54 | DP4: =DN4+1 -> 55 | DR4: =DP4+1 -> 56 | DT4: =DR4+1 -> 57 | DV4: =DT4+1 -> 58 | DX4: =DV4+1 -> 59 | DZ4: =DX4+1 -> 60
L6: =ROUND(SUM(M5:M89),2) -> 1874.23 | N6: =ROUND(SUM(O5:O109),2) -> 1874.23 | P6: =ROUND(SUM(Q5:Q109),2) -> 1874.23 | R6: =ROUND(SUM(S5:S109),2) -> 1874.23 | T6: =ROUND(SUM(U5:U109),2) -> 1874.23 | V6: =ROUND(SUM(W5:W109),2) -> 2394.53 | X6: =ROUND(SUM(Y5:Y109),2) -> 2394.53 | Z6: =ROUND(SUM(AA5:AA109),2) -> 2394.53 | AB6: =ROUND(SUM(AC5:AC109),2) -> 2394.53 | AD6: =ROUND(SUM(AE5:AE109),2) -> 3641.52 | AF6: =ROUND(SUM(AG5:AG109),2) -> 3641.52 | AH6: =ROUND(SUM(AI5:AI109),2) -> 7025.41 | AJ6: =ROUND(SUM(AK5:AK109),2) -> 7025.41 | AL6: =ROUND(SUM(AM5:AM109),2) -> 0 | AN6: =ROUND(SUM(AO5:AO109),2) -> 0 | AP6: =ROUND(SUM(AQ5:AQ109),2) -> 0 | AR6: =ROUND(SUM(AS5:AS109),2) -> 0 | AT6: =ROUND(SUM(AU5:AU109),2) -> 0 | AV6: =ROUND(SUM(AW5:AW109),2) -> 0 | AX6: =ROUND(SUM(AY5:AY109),2) -> 0 | AZ6: =ROUND(SUM(BA5:BA109),2) -> 0 | BB6: =ROUND(SUM(BC5:BC109),2) -> 0 | BD6: =ROUND(SUM(BE5:BE109),2) -> 0 | BF6: =ROUND(SUM(BG5:BG109),2) -> 0 | BH6: =ROUND(SUM(BI5:BI109),2) -> 0 | BJ6: =ROUND(SUM(BK5:BK109),2) -> 0 | BL6: =ROUND(SUM(BM5:BM109),2) -> 0 | BN6: =ROUND(SUM(BO5:BO109),2) -> 0 | BP6: =ROUND(SUM(BQ5:BQ109),2) -> 0 | BR6: =ROUND(SUM(BS5:BS109),2) -> 0 | BT6: =ROUND(SUM(BU5:BU109),2) -> 0 | BV6: =ROUND(SUM(BW5:BW109),2) -> 0 | BX6: =ROUND(SUM(BY5:BY109),2) -> 0 | BZ6: =ROUND(SUM(CA5:CA109),2) -> 0 | CB6: =ROUND(SUM(CC5:CC109),2) -> 0 | CD6: =ROUND(SUM(CE5:CE109),2) -> 0 | CF6: =ROUND(SUM(CG5:CG109),2) -> 0 | CH6: =ROUND(SUM(CI5:CI109),2) -> 0 | CJ6: =ROUND(SUM(CK5:CK109),2) -> 0 | CL6: =ROUND(SUM(CM5:CM109),2) -> 0 | CN6: =ROUND(SUM(CO5:CO109),2) -> 0 | CP6: =ROUND(SUM(CQ5:CQ109),2) -> 0 | CR6: =ROUND(SUM(CS5:CS109),2) -> 0 | CT6: =ROUND(SUM(CU5:CU109),2) -> 0 | CV6: =ROUND(SUM(CW5:CW109),2) -> 0 | CX6: =ROUND(SUM(CY5:CY109),2) -> 0 | CZ6: =ROUND(SUM(DA5:DA109),2) -> 0 | DB6: =ROUND(SUM(DC5:DC109),2) -> 0 | DD6: =ROUND(SUM(DE5:DE109),2) -> 0 | DF6: =ROUND(SUM(DG5:DG109),2) -> 0 | DH6: =ROUND(SUM(DI5:DI109),2) -> 0 | DJ6: =ROUND(SUM(DK5:DK109),2) -> 0 | DL6: =ROUND(SUM(DM5:DM109),2) -> 0 | DN6: =ROUND(SUM(DO5:DO109),2) -> 0 | DP6: =ROUND(SUM(DQ5:DQ109),2) -> 0 | DR6: =ROUND(SUM(DS5:DS109),2) -> 0 | DT6: =ROUND(SUM(DU5:DU109),2) -> 0 | DV6: =ROUND(SUM(DW5:DW109),2) -> 0 | DX6: =ROUND(SUM(DY5:DY109),2) -> 0 | DZ6: =ROUND(SUM(EA5:EA109),2) -> 0
C7: CATEGORIAS | I7: QUANTIDADE
L8: =IF($C8=L$4,1,0) -> 0
C9: 1 | D9: =HLOOKUP($C9,'Dados Gerais'!$D$6:$BK$11,6) -> VIGILANTE SUPERVISOR II Escala 12 X 36 7h às 19h 2ª feira a Dom | I9: =HLOOKUP($C9,'Dados Gerais'!$D$6:$BK$15,10) -> 2 | L9: 1 | N9: =IF($C9=N$4,1,0) -> 0 | P9: =IF($C9=P$4,1,0) -> 0 | R9: =IF($C9=R$4,1,0) -> 0 | T9: =IF($C9=T$4,1,0) -> 0 | V9: =IF($C9=V$4,1,0) -> 0 | X9: =IF($C9=X$4,1,0) -> 0 | Z9: =IF($C9=Z$4,1,0) -> 0 | AB9: =IF($C9=AB$4,1,0) -> 0 | AD9: =IF($C9=AD$4,1,0) -> 0 | AF9: =IF($C9=AF$4,1,0) -> 0 | AH9: =IF($C9=AH$4,1,0) -> 0 | AJ9: =IF($C9=AJ$4,1,0) -> 0 | AL9: =IF($C9=AL$4,1,0) -> 0 | AN9: =IF($C9=AN$4,1,0) -> 0 | AP9: =IF($C9=AP$4,1,0) -> 0 | AR9: =IF($C9=AR$4,1,0) -> 0 | AT9: =IF($C9=AT$4,1,0) -> 0 | AV9: =IF($C9=AV$4,1,0) -> 0 | AX9: =IF($C9=AX$4,1,0) -> 0 | AZ9: =IF($C9=AZ$4,1,0) -> 0 | BB9: =IF($C9=BB$4,1,0) -> 0 | BD9: =IF($C9=BD$4,1,0) -> 0 | BF9: =IF($C9=BF$4,1,0) -> 0 | BH9: =IF($C9=BH$4,1,0) -> 0 | BJ9: =IF($C9=BJ$4,1,0) -> 0 | BL9: =IF($C9=BL$4,1,0) -> 0 | BN9: =IF($C9=BN$4,1,0) -> 0 | BP9: =IF($C9=BP$4,1,0) -> 0 | BR9: =IF($C9=BR$4,1,0) -> 0 | BT9: =IF($C9=BT$4,1,0) -> 0 | BV9: =IF($C9=BV$4,1,0) -> 0 | BX9: =IF($C9=BX$4,1,0) -> 0 | BZ9: =IF($C9=BZ$4,1,0) -> 0 | CB9: =IF($C9=CB$4,1,0) -> 0 | CD9: =IF($C9=CD$4,1,0) -> 0 | CF9: =IF($C9=CF$4,1,0) -> 0 | CH9: =IF($C9=CH$4,1,0) -> 0 | CJ9: =IF($C9=CJ$4,1,0) -> 0 | CL9: =IF($C9=CL$4,1,0) -> 0 | CN9: =IF($C9=CN$4,1,0) -> 0 | CP9: =IF($C9=CP$4,1,0) -> 0 | CR9: =IF($C9=CR$4,1,0) -> 0 | CT9: =IF($C9=CT$4,1,0) -> 0 | CV9: =IF($C9=CV$4,1,0) -> 0 | CX9: =IF($C9=CX$4,1,0) -> 0 | CZ9: =IF($C9=CZ$4,1,0) -> 0 | DB9: =IF($C9=DB$4,1,0) -> 0 | DD9: =IF($C9=DD$4,1,0) -> 0 | DF9: =IF($C9=DF$4,1,0) -> 0 | DH9: =IF($C9=DH$4,1,0) -> 0 | DJ9: =IF($C9=DJ$4,1,0) -> 0 | DL9: =IF($C9=DL$4,1,0) -> 0 | DN9: =IF($C9=DN$4,1,0) -> 0 | DP9: =IF($C9=DP$4,1,0) -> 0 | DR9: =IF($C9=DR$4,1,0) -> 0 | DT9: =IF($C9=DT$4,1,0) -> 0 | DV9: =IF($C9=DV$4,1,0) -> 0 | DX9: =IF($C9=DX$4,1,0) -> 0 | DZ9: =IF($C9=DZ$4,1,0) -> 0
C10: 2 | D10: =HLOOKUP($C10,'Dados Gerais'!$D$6:$BK$11,6) -> VIGILANTE SUPERVISOR I INTERNO DIURNO Escala 12 x 36 7h às 19h 2ª feira a Dom | I10: =HLOOKUP($C10,'Dados Gerais'!$D$6:$BK$15,10) -> 2 | L10: 0 | N10: 1 | P10: 0 | R10: 0 | T10: 0 | V10: 0 | X10: 0 | Z10: 0 | AB10: 0 | AD10: 0 | AF10: 0 | AH10: 0 | AJ10: 0 | AL10: 0 | AN10: 0 | AP10: 0 | AR10: 0 | AT10: 0 | AV10: 0 | AX10: 0 | AZ10: 0 | BB10: 0 | BD10: 0 | BF10: 0 | BH10: 0 | BJ10: 0 | BL10: 0 | BN10: 0 | BP10: 0 | BR10: 0 | BT10: 0 | BV10: 0 | BX10: 0 | BZ10: 0 | CB10: 0 | CD10: 0 | CF10: 0 | CH10: 0 | CJ10: 0 | CL10: 0 | CN10: 0 | CP10: 0 | CR10: 0 | CT10: 0 | CV10: 0 | CX10: 0 | CZ10: 0 | DB10: 0 | DD10: 0 | DF10: 0 | DH10: 0 | DJ10: 0 | DL10: 0 | DN10: 0 | DP10: 0 | DR10: 0 | DT10: 0 | DV10: 0 | DX10: 0 | DZ10: 0
C11: 3 | D11: =HLOOKUP($C11,'Dados Gerais'!$D$6:$BK$11,6) -> VIGILANTE SUPERVISOR I EXTERNO DIURNO Escala 12 x 36 7h às 19h 2ª feira a Dom | I11: =HLOOKUP($C11,'Dados Gerais'!$D$6:$BK$15,10) -> 2 | L11: 0 | N11: 0 | P11: 1 | R11: 0 | T11: 0 | V11: 0 | X11: 0 | Z11: 0 | AB11: 0 | AD11: 0 | AF11: 0 | AH11: 0 | AJ11: 0 | AL11: 0 | AN11: 0 | AP11: 0 | AR11: 0 | AT11: 0 | AV11: 0 | AX11: 0 | AZ11: 0 | BB11: 0 | BD11: 0 | BF11: 0 | BH11: 0 | BJ11: 0 | BL11: 0 | BN11: 0 | BP11: 0 | BR11: 0 | BT11: 0 | BV11: 0 | BX11: 0 | BZ11: 0 | CB11: 0 | CD11: 0 | CF11: 0 | CH11: 0 | CJ11: 0 | CL11: 0 | CN11: 0 | CP11: 0 | CR11: 0 | CT11: 0 | CV11: 0 | CX11: 0 | CZ11: 0 | DB11: 0 | DD11: 0 | DF11: 0 | DH11: 0 | DJ11: 0 | DL11: 0 | DN11: 0 | DP11: 0 | DR11: 0 | DT11: 0 | DV11: 0 | DX11: 0 | DZ11: 0
C12: 4 | D12: =HLOOKUP($C12,'Dados Gerais'!$D$6:$BK$11,6) -> VIGILANTE SUPERVISOR I INTERNO NOTURNO Escala 12 x 36 19h às 7h 2ª feira a Dom | I12: =HLOOKUP($C12,'Dados Gerais'!$D$6:$BK$15,10) -> 2 | L12: 0 | N12: 0 | P12: 0 | R12: 1 | T12: 0 | V12: 0 | X12: 0 | Z12: 0 | AB12: 0 | AD12: 0 | AF12: 0 | AH12: 0 | AJ12: 0 | AL12: 0 | AN12: 0 | AP12: 0 | AR12: 0 | AT12: 0 | AV12: 0 | AX12: 0 | AZ12: 0 | BB12: 0 | BD12: 0 | BF12: 0 | BH12: 0 | BJ12: 0 | BL12: 0 | BN12: 0 | BP12: 0 | BR12: 0 | BT12: 0 | BV12: 0 | BX12: 0 | BZ12: 0 | CB12: 0 | CD12: 0 | CF12: 0 | CH12: 0 | CJ12: 0 | CL12: 0 | CN12: 0 | CP12: 0 | CR12: 0 | CT12: 0 | CV12: 0 | CX12: 0 | CZ12: 0 | DB12: 0 | DD12: 0 | DF12: 0 | DH12: 0 | DJ12: 0 | DL12: 0 | DN12: 0 | DP12: 0 | DR12: 0 | DT12: 0 | DV12: 0 | DX12: 0 | DZ12: 0
C13: 5 | D13: =HLOOKUP($C13,'Dados Gerais'!$D$6:$BK$11,6) -> VIGILANTE SUPERVISOR I EXTERNO NOTURNO Escala 12 x 36 19h às 7h 2ª feira a Dom | I13: =HLOOKUP($C13,'Dados Gerais'!$D$6:$BK$15,10) -> 2 | L13: 0 | N13: 0 | P13: 0 | R13: 0 | T13: 1 | V13: 0 | X13: 0 | Z13: 0 | AB13: 0 | AD13: 0 | AF13: 0 | AH13: 0 | AJ13: 0 | AL13: 0 | AN13: 0 | AP13: 0 | AR13: 0 | AT13: 0 | AV13: 0 | AX13: 0 | AZ13: 0 | BB13: 0 | BD13: 0 | BF13: 0 | BH13: 0 | BJ13: 0 | BL13: 0 | BN13: 0 | BP13: 0 | BR13: 0 | BT13: 0 | BV13: 0 | BX13: 0 | BZ13: 0 | CB13: 0 | CD13: 0 | CF13: 0 | CH13: 0 | CJ13: 0 | CL13: 0 | CN13: 0 | CP13: 0 | CR13: 0 | CT13: 0 | CV13: 0 | CX13: 0 | CZ13: 0 | DB13: 0 | DD13: 0 | DF13: 0 | DH13: 0 | DJ13: 0 | DL13: 0 | DN13: 0 | DP13: 0 | DR13: 0 | DT13: 0 | DV13: 0 | DX13: 0 | DZ13: 0
L14: 0
C16: ITEM | D16: DESCRIÇÃO | E16: QUANT ANUAL POR POSTO | G16: Nº DE POSTOS | H16: QUANT ANUAL TOTAL ESTIMADA | I16: VALOR
D18: Ternos composto de 1 (um) paletó e 1 (uma) calça, confeccionados em tecido de poliéster (95%) e elastano (5%), na cor preta, tamanho de acordo com o manequim do usuário, com forro 100% poliester ou Terninho feminino composto de 1 (um) blazer e 1 (uma) calça, confeccionados em tecido poliéster (95%) e elastano(5%) de 1ª qualidade, na cor preta, tamanho de acordo com o manequim do usuário com forro 100% poliester | E18: 2 | G18: =SUM(I9:I13) -> 10 | H18: =G18*E18 -> 20 | I18: 366.57 | M18: =IF(SUM(L$8:L$15)>0,$H18*$I18,0)/SUM($I$8:$I$15) -> 733.14 | O18: =IF(SUM(N$8:N$15)>0,$H18*$I18,0)/SUM($I$8:$I$15) -> 733.14 | Q18: =IF(SUM(P$8:P$15)>0,$H18*$I18,0)/SUM($I$8:$I$15) -> 733.14 | S18: =IF(SUM(R$8:R$15)>0,$H18*$I18,0)/SUM($I$8:$I$15) -> 733.14 | U18: =IF(SUM(T$8:T$15)>0,$H18*$I18,0)/SUM($I$8:$I$15) -> 733.14 | W18: =IF(SUM(V$8:V$15)>0,$H18*$I18,0)/SUM($I$8:$I$15) -> 0 | Y18: =IF(SUM(X$8:X$15)>0,$H18*$I18,0)/SUM($I$8:$I$15) -> 0 | AA18: =IF(SUM(Z$8:Z$15)>0,$H18*$I18,0)/SUM($I$8:$I$15) -> 0 | AC18: =IF(SUM(AB$8:AB$15)>0,$H18*$I18,0)/SUM($I$8:$I$15) -> 0 | AE18: =IF(SUM(AD$8:AD$15)>0,$H18*$I18,0)/SUM($I$8:$I$15) -> 0 | AG18: =IF(SUM(AF$8:AF$15)>0,$H18*$I18,0)/SUM($I$8:$I$15) -> 0 | AI18: =IF(SUM(AH$8:AH$15)>0,$H18*$I18,0)/SUM($I$8:$I$15) -> 0 | AK18: =IF(SUM(AJ$8:AJ$15)>0,$H18*$I18,0)/SUM($I$8:$I$15) -> 0 | AM18: =IF(SUM(AL$8:AL$15)>0,$H18*$I18,0)/SUM($I$8:$I$15) -> 0 | AO18: =IF(SUM(AN$8:AN$15)>0,$H18*$I18,0)/SUM($I$8:$I$15) -> 0 | AQ18: =IF(SUM(AP$8:AP$15)>0,$H18*$I18,0)/SUM($I$8:$I$15) -> 0 | AS18: =IF(SUM(AR$8:AR$15)>0,$H18*$I18,0)/SUM($I$8:$I$15) -> 0 | AU18: =IF(SUM(AT$8:AT$15)>0,$H18*$I18,0)/SUM($I$8:$I$15) -> 0 | AW18: =IF(SUM(AV$8:AV$15)>0,$H18*$I18,0)/SUM($I$8:$I$15) -> 0 | AY18: =IF(SUM(AX$8:AX$15)>0,$H18*$I18,0)/SUM($I$8:$I$15) -> 0 | BA18: =IF(SUM(AZ$8:AZ$15)>0,$H18*$I18,0)/SUM($I$8:$I$15) -> 0 | BC18: =IF(SUM(BB$8:BB$15)>0,$H18*$I18,0)/SUM($I$8:$I$15) -> 0 | BE18: =IF(SUM(BD$8:BD$15)>0,$H18*$I18,0)/SUM($I$8:$I$15) -> 0 | BG18: =IF(SUM(BF$8:BF$15)>0,$H18*$I18,0)/SUM($I$8:$I$15) -> 0 | BI18: =IF(SUM(BH$8:BH$15)>0,$H18*$I18,0)/SUM($I$8:$I$15) -> 0 | BK18: =IF(SUM(BJ$8:BJ$15)>0,$H18*$I18,0)/SUM($I$8:$I$15) -> 0 | BM18: =IF(SUM(BL$8:BL$15)>0,$H18*$I18,0)/SUM($I$8:$I$15) -> 0 | BO18: =IF(SUM(BN$8:BN$15)>0,$H18*$I18,0)/SUM($I$8:$I$15) -> 0 | BQ18: =IF(SUM(BP$8:BP$15)>0,$H18*$I18,0)/SUM($I$8:$I$15) -> 0 | BS18: =IF(SUM(BR$8:BR$15)>0,$H18*$I18,0)/SUM($I$8:$I$15) -> 0 | BU18: =IF(SUM(BT$8:BT$15)>0,$H18*$I18,0)/SUM($I$8:$I$15) -> 0 | BW18: =IF(SUM(BV$8:BV$15)>0,$H18*$I18,0)/SUM($I$8:$I$15) -> 0 | BY18: =IF(SUM(BX$8:BX$15)>0,$H18*$I18,0)/SUM($I$8:$I$15) -> 0 | CA18: =IF(SUM(BZ$8:BZ$15)>0,$H18*$I18,0)/SUM($I$8:$I$15) -> 0 | CC18: =IF(SUM(CB$8:CB$15)>0,$H18*$I18,0)/SUM($I$8:$I$15) -> 0 | CE18: =IF(SUM(CD$8:CD$15)>0,$H18*$I18,0)/SUM($I$8:$I$15) -> 0 | CG18: =IF(SUM(CF$8:CF$15)>0,$H18*$I18,0)/SUM($I$8:$I$15) -> 0 | CI18: =IF(SUM(CH$8:CH$15)>0,$H18*$I18,0)/SUM($I$8:$I$15) -> 0 | CK18: =IF(SUM(CJ$8:CJ$15)>0,$H18*$I18,0)/SUM($I$8:$I$15) -> 0 | CM18: =IF(SUM(CL$8:CL$15)>0,$H18*$I18,0)/SUM($I$8:$I$15) -> 0 | CO18: =IF(SUM(CN$8:CN$15)>0,$H18*$I18,0)/SUM($I$8:$I$15) -> 0 | CQ18: =IF(SUM(CP$8:CP$15)>0,$H18*$I18,0)/SUM($I$8:$I$15) -> 0 | CS18: =IF(SUM(CR$8:CR$15)>0,$H18*$I18,0)/SUM($I$8:$I$15) -> 0 | CU18: =IF(SUM(CT$8:CT$15)>0,$H18*$I18,0)/SUM($I$8:$I$15) -> 0 | CW18: =IF(SUM(CV$8:CV$15)>0,$H18*$I18,0)/SUM($I$8:$I$15) -> 0 | CY18: =IF(SUM(CX$8:CX$15)>0,$H18*$I18,0)/SUM($I$8:$I$15) -> 0 | DA18: =IF(SUM(CZ$8:CZ$15)>0,$H18*$I18,0)/SUM($I$8:$I$15) -> 0 | DC18: =IF(SUM(DB$8:DB$15)>0,$H18*$I18,0)/SUM($I$8:$I$15) -> 0 | DE18: =IF(SUM(DD$8:DD$15)>0,$H18*$I18,0)/SUM($I$8:$I$15) -> 0 | DG18: =IF(SUM(DF$8:DF$15)>0,$H18*$I18,0)/SUM($I$8:$I$15) -> 0 | DI18: =IF(SUM(DH$8:DH$15)>0,$H18*$I18,0)/SUM($I$8:$I$15) -> 0 | DK18: =IF(SUM(DJ$8:DJ$15)>0,$H18*$I18,0)/SUM($I$8:$I$15) -> 0 | DM18: =IF(SUM(DL$8:DL$15)>0,$H18*$I18,0)/SUM($I$8:$I$15) -> 0 | DO18: =IF(SUM(DN$8:DN$15)>0,$H18*$I18,0)/SUM($I$8:$I$15) -> 0 | DQ18: =IF(SUM(DP$8:DP$15)>0,$H18*$I18,0)/SUM($I$8:$I$15) -> 0 | DS18: =IF(SUM(DR$8:DR$15)>0,$H18*$I18,0)/SUM($I$8:$I$15) -> 0 | DU18: =IF(SUM(DT$8:DT$15)>0,$H18*$I18,0)/SUM($I$8:$I$15) -> 0 | DW18: =IF(SUM(DV$8:DV$15)>0,$H18*$I18,0)/SUM($I$8:$I$15) -> 0 | DY18: =IF(SUM(DX$8:DX$15)>0,$H18*$I18,0)/SUM($I$8:$I$15) -> 0 | EA18: =IF(SUM(DZ$8:DZ$15)>0,$H18*$I18,0)/SUM($I$8:$I$15) -> 0
D19: Camisas social na cor branca em tecido 100% algodão | E19: 4 | G19: =G18 -> 10 | H19: =G19*E19 -> 40 | I19: 101.78 | M19: 407.12 | O19: 407.12 | Q19: =IF(SUM(P$8:P$15)>0,$H19*$I19,0)/SUM($I$8:$I$15) -> 407.12 | S19: =IF(SUM(R$8:R$15)>0,$H19*$I19,0)/SUM($I$8:$I$15) -> 407.12 | U19: =IF(SUM(T$8:T$15)>0,$H19*$I19,0)/SUM($I$8:$I$15) -> 407.12 | W19: =IF(SUM(V$8:V$15)>0,$H19*$I19,0)/SUM($I$8:$I$15) -> 0 | Y19: =IF(SUM(X$8:X$15)>0,$H19*$I19,0)/SUM($I$8:$I$15) -> 0 | AA19: =IF(SUM(Z$8:Z$15)>0,$H19*$I19,0)/SUM($I$8:$I$15) -> 0 | AC19: =IF(SUM(AB$8:AB$15)>0,$H19*$I19,0)/SUM($I$8:$I$15) -> 0 | AE19: =IF(SUM(AD$8:AD$15)>0,$H19*$I19,0)/SUM($I$8:$I$15) -> 0 | AG19: =IF(SUM(AF$8:AF$15)>0,$H19*$I19,0)/SUM($I$8:$I$15) -> 0 | AI19: =IF(SUM(AH$8:AH$15)>0,$H19*$I19,0)/SUM($I$8:$I$15) -> 0 | AK19: =IF(SUM(AJ$8:AJ$15)>0,$H19*$I19,0)/SUM($I$8:$I$15) -> 0 | AM19: =IF(SUM(AL$8:AL$15)>0,$H19*$I19,0)/SUM($I$8:$I$15) -> 0 | AO19: =IF(SUM(AN$8:AN$15)>0,$H19*$I19,0)/SUM($I$8:$I$15) -> 0 | AQ19: =IF(SUM(AP$8:AP$15)>0,$H19*$I19,0)/SUM($I$8:$I$15) -> 0 | AS19: =IF(SUM(AR$8:AR$15)>0,$H19*$I19,0)/SUM($I$8:$I$15) -> 0 | AU19: =IF(SUM(AT$8:AT$15)>0,$H19*$I19,0)/SUM($I$8:$I$15) -> 0 | AW19: =IF(SUM(AV$8:AV$15)>0,$H19*$I19,0)/SUM($I$8:$I$15) -> 0 | AY19: =IF(SUM(AX$8:AX$15)>0,$H19*$I19,0)/SUM($I$8:$I$15) -> 0 | BA19: =IF(SUM(AZ$8:AZ$15)>0,$H19*$I19,0)/SUM($I$8:$I$15) -> 0 | BC19: =IF(SUM(BB$8:BB$15)>0,$H19*$I19,0)/SUM($I$8:$I$15) -> 0 | BE19: =IF(SUM(BD$8:BD$15)>0,$H19*$I19,0)/SUM($I$8:$I$15) -> 0 | BG19: =IF(SUM(BF$8:BF$15)>0,$H19*$I19,0)/SUM($I$8:$I$15) -> 0 | BI19: =IF(SUM(BH$8:BH$15)>0,$H19*$I19,0)/SUM($I$8:$I$15) -> 0 | BK19: =IF(SUM(BJ$8:BJ$15)>0,$H19*$I19,0)/SUM($I$8:$I$15) -> 0 | BM19: =IF(SUM(BL$8:BL$15)>0,$H19*$I19,0)/SUM($I$8:$I$15) -> 0 | BO19: =IF(SUM(BN$8:BN$15)>0,$H19*$I19,0)/SUM($I$8:$I$15) -> 0 | BQ19: =IF(SUM(BP$8:BP$15)>0,$H19*$I19,0)/SUM($I$8:$I$15) -> 0 | BS19: =IF(SUM(BR$8:BR$15)>0,$H19*$I19,0)/SUM($I$8:$I$15) -> 0 | BU19: =IF(SUM(BT$8:BT$15)>0,$H19*$I19,0)/SUM($I$8:$I$15) -> 0 | BW19: =IF(SUM(BV$8:BV$15)>0,$H19*$I19,0)/SUM($I$8:$I$15) -> 0 | BY19: =IF(SUM(BX$8:BX$15)>0,$H19*$I19,0)/SUM($I$8:$I$15) -> 0 | CA19: =IF(SUM(BZ$8:BZ$15)>0,$H19*$I19,0)/SUM($I$8:$I$15) -> 0 | CC19: =IF(SUM(CB$8:CB$15)>0,$H19*$I19,0)/SUM($I$8:$I$15) -> 0 | CE19: =IF(SUM(CD$8:CD$15)>0,$H19*$I19,0)/SUM($I$8:$I$15) -> 0 | CG19: =IF(SUM(CF$8:CF$15)>0,$H19*$I19,0)/SUM($I$8:$I$15) -> 0 | CI19: =IF(SUM(CH$8:CH$15)>0,$H19*$I19,0)/SUM($I$8:$I$15) -> 0 | CK19: =IF(SUM(CJ$8:CJ$15)>0,$H19*$I19,0)/SUM($I$8:$I$15) -> 0 | CM19: =IF(SUM(CL$8:CL$15)>0,$H19*$I19,0)/SUM($I$8:$I$15) -> 0 | CO19: =IF(SUM(CN$8:CN$15)>0,$H19*$I19,0)/SUM($I$8:$I$15) -> 0 | CQ19: =IF(SUM(CP$8:CP$15)>0,$H19*$I19,0)/SUM($I$8:$I$15) -> 0 | CS19: =IF(SUM(CR$8:CR$15)>0,$H19*$I19,0)/SUM($I$8:$I$15) -> 0 | CU19: =IF(SUM(CT$8:CT$15)>0,$H19*$I19,0)/SUM($I$8:$I$15) -> 0 | CW19: =IF(SUM(CV$8:CV$15)>0,$H19*$I19,0)/SUM($I$8:$I$15) -> 0 | CY19: =IF(SUM(CX$8:CX$15)>0,$H19*$I19,0)/SUM($I$8:$I$15) -> 0 | DA19: =IF(SUM(CZ$8:CZ$15)>0,$H19*$I19,0)/SUM($I$8:$I$15) -> 0 | DC19: =IF(SUM(DB$8:DB$15)>0,$H19*$I19,0)/SUM($I$8:$I$15) -> 0 | DE19: =IF(SUM(DD$8:DD$15)>0,$H19*$I19,0)/SUM($I$8:$I$15) -> 0 | DG19: =IF(SUM(DF$8:DF$15)>0,$H19*$I19,0)/SUM($I$8:$I$15) -> 0 | DI19: =IF(SUM(DH$8:DH$15)>0,$H19*$I19,0)/SUM($I$8:$I$15) -> 0 | DK19: =IF(SUM(DJ$8:DJ$15)>0,$H19*$I19,0)/SUM($I$8:$I$15) -> 0 | DM19: =IF(SUM(DL$8:DL$15)>0,$H19*$I19,0)/SUM($I$8:$I$15) -> 0 | DO19: =IF(SUM(DN$8:DN$15)>0,$H19*$I19,0)/SUM($I$8:$I$15) -> 0 | DQ19: =IF(SUM(DP$8:DP$15)>0,$H19*$I19,0)/SUM($I$8:$I$15) -> 0 | DS19: =IF(SUM(DR$8:DR$15)>0,$H19*$I19,0)/SUM($I$8:$I$15) -> 0 | DU19: =IF(SUM(DT$8:DT$15)>0,$H19*$I19,0)/SUM($I$8:$I$15) -> 0 | DW19: =IF(SUM(DV$8:DV$15)>0,$H19*$I19,0)/SUM($I$8:$I$15) -> 0 | DY19: =IF(SUM(DX$8:DX$15)>0,$H19*$I19,0)/SUM($I$8:$I$15) -> 0 | EA19: 0
D20: Sobretudo 100% em lã fria (92% poliéster, 5% viscose, 3% elastano), forro 100% poliester, com botões, na cor preta | E20: 1 | G20: =G19 -> 10 | H20: 10 | I20: 313.53 | M20: 313.53 | O20: 313.53 | Q20: =IF(SUM(P$8:P$15)>0,$H20*$I20,0)/SUM($I$8:$I$15) -> 313.53 | S20: =IF(SUM(R$8:R$15)>0,$H20*$I20,0)/SUM($I$8:$I$15) -> 313.53 | U20: =IF(SUM(T$8:T$15)>0,$H20*$I20,0)/SUM($I$8:$I$15) -> 313.53 | W20: =IF(SUM(V$8:V$15)>0,$H20*$I20,0)/SUM($I$8:$I$15) -> 0 | Y20: =IF(SUM(X$8:X$15)>0,$H20*$I20,0)/SUM($I$8:$I$15) -> 0 | AA20: =IF(SUM(Z$8:Z$15)>0,$H20*$I20,0)/SUM($I$8:$I$15) -> 0 | AC20: =IF(SUM(AB$8:AB$15)>0,$H20*$I20,0)/SUM($I$8:$I$15) -> 0 | AE20: =IF(SUM(AD$8:AD$15)>0,$H20*$I20,0)/SUM($I$8:$I$15) -> 0 | AG20: =IF(SUM(AF$8:AF$15)>0,$H20*$I20,0)/SUM($I$8:$I$15) -> 0 | AI20: =IF(SUM(AH$8:AH$15)>0,$H20*$I20,0)/SUM($I$8:$I$15) -> 0 | AK20: =IF(SUM(AJ$8:AJ$15)>0,$H20*$I20,0)/SUM($I$8:$I$15) -> 0 | AM20: =IF(SUM(AL$8:AL$15)>0,$H20*$I20,0)/SUM($I$8:$I$15) -> 0 | AO20: =IF(SUM(AN$8:AN$15)>0,$H20*$I20,0)/SUM($I$8:$I$15) -> 0 | AQ20: =IF(SUM(AP$8:AP$15)>0,$H20*$I20,0)/SUM($I$8:$I$15) -> 0 | AS20: =IF(SUM(AR$8:AR$15)>0,$H20*$I20,0)/SUM($I$8:$I$15) -> 0 | AU20: =IF(SUM(AT$8:AT$15)>0,$H20*$I20,0)/SUM($I$8:$I$15) -> 0 | AW20: =IF(SUM(AV$8:AV$15)>0,$H20*$I20,0)/SUM($I$8:$I$15) -> 0 | AY20: =IF(SUM(AX$8:AX$15)>0,$H20*$I20,0)/SUM($I$8:$I$15) -> 0 | BA20: =IF(SUM(AZ$8:AZ$15)>0,$H20*$I20,0)/SUM($I$8:$I$15) -> 0 | BC20: =IF(SUM(BB$8:BB$15)>0,$H20*$I20,0)/SUM($I$8:$I$15) -> 0 | BE20: =IF(SUM(BD$8:BD$15)>0,$H20*$I20,0)/SUM($I$8:$I$15) -> 0 | BG20: =IF(SUM(BF$8:BF$15)>0,$H20*$I20,0)/SUM($I$8:$I$15) -> 0 | BI20: =IF(SUM(BH$8:BH$15)>0,$H20*$I20,0)/SUM($I$8:$I$15) -> 0 | BK20: =IF(SUM(BJ$8:BJ$15)>0,$H20*$I20,0)/SUM($I$8:$I$15) -> 0 | BM20: =IF(SUM(BL$8:BL$15)>0,$H20*$I20,0)/SUM($I$8:$I$15) -> 0 | BO20: =IF(SUM(BN$8:BN$15)>0,$H20*$I20,0)/SUM($I$8:$I$15) -> 0 | BQ20: =IF(SUM(BP$8:BP$15)>0,$H20*$I20,0)/SUM($I$8:$I$15) -> 0 | BS20: =IF(SUM(BR$8:BR$15)>0,$H20*$I20,0)/SUM($I$8:$I$15) -> 0 | BU20: =IF(SUM(BT$8:BT$15)>0,$H20*$I20,0)/SUM($I$8:$I$15) -> 0 | BW20: =IF(SUM(BV$8:BV$15)>0,$H20*$I20,0)/SUM($I$8:$I$15) -> 0 | BY20: =IF(SUM(BX$8:BX$15)>0,$H20*$I20,0)/SUM($I$8:$I$15) -> 0 | CA20: =IF(SUM(BZ$8:BZ$15)>0,$H20*$I20,0)/SUM($I$8:$I$15) -> 0 | CC20: =IF(SUM(CB$8:CB$15)>0,$H20*$I20,0)/SUM($I$8:$I$15) -> 0 | CE20: =IF(SUM(CD$8:CD$15)>0,$H20*$I20,0)/SUM($I$8:$I$15) -> 0 | CG20: =IF(SUM(CF$8:CF$15)>0,$H20*$I20,0)/SUM($I$8:$I$15) -> 0 | CI20: =IF(SUM(CH$8:CH$15)>0,$H20*$I20,0)/SUM($I$8:$I$15) -> 0 | CK20: =IF(SUM(CJ$8:CJ$15)>0,$H20*$I20,0)/SUM($I$8:$I$15) -> 0 | CM20: =IF(SUM(CL$8:CL$15)>0,$H20*$I20,0)/SUM($I$8:$I$15) -> 0 | CO20: =IF(SUM(CN$8:CN$15)>0,$H20*$I20,0)/SUM($I$8:$I$15) -> 0 | CQ20: =IF(SUM(CP$8:CP$15)>0,$H20*$I20,0)/SUM($I$8:$I$15) -> 0 | CS20: =IF(SUM(CR$8:CR$15)>0,$H20*$I20,0)/SUM($I$8:$I$15) -> 0 | CU20: =IF(SUM(CT$8:CT$15)>0,$H20*$I20,0)/SUM($I$8:$I$15) -> 0 | CW20: =IF(SUM(CV$8:CV$15)>0,$H20*$I20,0)/SUM($I$8:$I$15) -> 0 | CY20: =IF(SUM(CX$8:CX$15)>0,$H20*$I20,0)/SUM($I$8:$I$15) -> 0 | DA20: =IF(SUM(CZ$8:CZ$15)>0,$H20*$I20,0)/SUM($I$8:$I$15) -> 0 | DC20: =IF(SUM(DB$8:DB$15)>0,$H20*$I20,0)/SUM($I$8:$I$15) -> 0 | DE20: =IF(SUM(DD$8:DD$15)>0,$H20*$I20,0)/SUM($I$8:$I$15) -> 0 | DG20: =IF(SUM(DF$8:DF$15)>0,$H20*$I20,0)/SUM($I$8:$I$15) -> 0 | DI20: =IF(SUM(DH$8:DH$15)>0,$H20*$I20,0)/SUM($I$8:$I$15) -> 0 | DK20: =IF(SUM(DJ$8:DJ$15)>0,$H20*$I20,0)/SUM($I$8:$I$15) -> 0 | DM20: =IF(SUM(DL$8:DL$15)>0,$H20*$I20,0)/SUM($I$8:$I$15) -> 0 | DO20: =IF(SUM(DN$8:DN$15)>0,$H20*$I20,0)/SUM($I$8:$I$15) -> 0 | DQ20: =IF(SUM(DP$8:DP$15)>0,$H20*$I20,0)/SUM($I$8:$I$15) -> 0 | DS20: =IF(SUM(DR$8:DR$15)>0,$H20*$I20,0)/SUM($I$8:$I$15) -> 0 | DU20: =IF(SUM(DT$8:DT$15)>0,$H20*$I20,0)/SUM($I$8:$I$15) -> 0 | DW20: =IF(SUM(DV$8:DV$15)>0,$H20*$I20,0)/SUM($I$8:$I$15) -> 0 | DY20: =IF(SUM(DX$8:DX$15)>0,$H20*$I20,0)/SUM($I$8:$I$15) -> 0 | EA20: 0
D21: Meias social na cor preta | E21: 4 | G21: 10 | H21: 40 | I21: 17.27 | M21: 69.08 | O21: 69.08 | Q21: =IF(SUM(P$8:P$15)>0,$H21*$I21,0)/SUM($I$8:$I$15) -> 69.08 | S21: =IF(SUM(R$8:R$15)>0,$H21*$I21,0)/SUM($I$8:$I$15) -> 69.08 | U21: =IF(SUM(T$8:T$15)>0,$H21*$I21,0)/SUM($I$8:$I$15) -> 69.08 | W21: =IF(SUM(V$8:V$15)>0,$H21*$I21,0)/SUM($I$8:$I$15) -> 0 | Y21: =IF(SUM(X$8:X$15)>0,$H21*$I21,0)/SUM($I$8:$I$15) -> 0 | AA21: =IF(SUM(Z$8:Z$15)>0,$H21*$I21,0)/SUM($I$8:$I$15) -> 0 | AC21: =IF(SUM(AB$8:AB$15)>0,$H21*$I21,0)/SUM($I$8:$I$15) -> 0 | AE21: =IF(SUM(AD$8:AD$15)>0,$H21*$I21,0)/SUM($I$8:$I$15) -> 0 | AG21: =IF(SUM(AF$8:AF$15)>0,$H21*$I21,0)/SUM($I$8:$I$15) -> 0 | AI21: =IF(SUM(AH$8:AH$15)>0,$H21*$I21,0)/SUM($I$8:$I$15) -> 0 | AK21: =IF(SUM(AJ$8:AJ$15)>0,$H21*$I21,0)/SUM($I$8:$I$15) -> 0 | AM21: =IF(SUM(AL$8:AL$15)>0,$H21*$I21,0)/SUM($I$8:$I$15) -> 0 | AO21: =IF(SUM(AN$8:AN$15)>0,$H21*$I21,0)/SUM($I$8:$I$15) -> 0 | AQ21: =IF(SUM(AP$8:AP$15)>0,$H21*$I21,0)/SUM($I$8:$I$15) -> 0 | AS21: =IF(SUM(AR$8:AR$15)>0,$H21*$I21,0)/SUM($I$8:$I$15) -> 0 | AU21: =IF(SUM(AT$8:AT$15)>0,$H21*$I21,0)/SUM($I$8:$I$15) -> 0 | AW21: =IF(SUM(AV$8:AV$15)>0,$H21*$I21,0)/SUM($I$8:$I$15) -> 0 | AY21: =IF(SUM(AX$8:AX$15)>0,$H21*$I21,0)/SUM($I$8:$I$15) -> 0 | BA21: =IF(SUM(AZ$8:AZ$15)>0,$H21*$I21,0)/SUM($I$8:$I$15) -> 0 | BC21: =IF(SUM(BB$8:BB$15)>0,$H21*$I21,0)/SUM($I$8:$I$15) -> 0 | BE21: =IF(SUM(BD$8:BD$15)>0,$H21*$I21,0)/SUM($I$8:$I$15) -> 0 | BG21: =IF(SUM(BF$8:BF$15)>0,$H21*$I21,0)/SUM($I$8:$I$15) -> 0 | BI21: =IF(SUM(BH$8:BH$15)>0,$H21*$I21,0)/SUM($I$8:$I$15) -> 0 | BK21: =IF(SUM(BJ$8:BJ$15)>0,$H21*$I21,0)/SUM($I$8:$I$15) -> 0 | BM21: =IF(SUM(BL$8:BL$15)>0,$H21*$I21,0)/SUM($I$8:$I$15) -> 0 | BO21: =IF(SUM(BN$8:BN$15)>0,$H21*$I21,0)/SUM($I$8:$I$15) -> 0 | BQ21: =IF(SUM(BP$8:BP$15)>0,$H21*$I21,0)/SUM($I$8:$I$15) -> 0 | BS21: =IF(SUM(BR$8:BR$15)>0,$H21*$I21,0)/SUM($I$8:$I$15) -> 0 | BU21: =IF(SUM(BT$8:BT$15)>0,$H21*$I21,0)/SUM($I$8:$I$15) -> 0 | BW21: =IF(SUM(BV$8:BV$15)>0,$H21*$I21,0)/SUM($I$8:$I$15) -> 0 | BY21: =IF(SUM(BX$8:BX$15)>0,$H21*$I21,0)/SUM($I$8:$I$15) -> 0 | CA21: =IF(SUM(BZ$8:BZ$15)>0,$H21*$I21,0)/SUM($I$8:$I$15) -> 0 | CC21: =IF(SUM(CB$8:CB$15)>0,$H21*$I21,0)/SUM($I$8:$I$15) -> 0 | CE21: =IF(SUM(CD$8:CD$15)>0,$H21*$I21,0)/SUM($I$8:$I$15) -> 0 | CG21: =IF(SUM(CF$8:CF$15)>0,$H21*$I21,0)/SUM($I$8:$I$15) -> 0 | CI21: =IF(SUM(CH$8:CH$15)>0,$H21*$I21,0)/SUM($I$8:$I$15) -> 0 | CK21: =IF(SUM(CJ$8:CJ$15)>0,$H21*$I21,0)/SUM($I$8:$I$15) -> 0 | CM21: =IF(SUM(CL$8:CL$15)>0,$H21*$I21,0)/SUM($I$8:$I$15) -> 0 | CO21: =IF(SUM(CN$8:CN$15)>0,$H21*$I21,0)/SUM($I$8:$I$15) -> 0 | CQ21: =IF(SUM(CP$8:CP$15)>0,$H21*$I21,0)/SUM($I$8:$I$15) -> 0 | CS21: =IF(SUM(CR$8:CR$15)>0,$H21*$I21,0)/SUM($I$8:$I$15) -> 0 | CU21: =IF(SUM(CT$8:CT$15)>0,$H21*$I21,0)/SUM($I$8:$I$15) -> 0 | CW21: =IF(SUM(CV$8:CV$15)>0,$H21*$I21,0)/SUM($I$8:$I$15) -> 0 | CY21: =IF(SUM(CX$8:CX$15)>0,$H21*$I21,0)/SUM($I$8:$I$15) -> 0 | DA21: =IF(SUM(CZ$8:CZ$15)>0,$H21*$I21,0)/SUM($I$8:$I$15) -> 0 | DC21: =IF(SUM(DB$8:DB$15)>0,$H21*$I21,0)/SUM($I$8:$I$15) -> 0 | DE21: =IF(SUM(DD$8:DD$15)>0,$H21*$I21,0)/SUM($I$8:$I$15) -> 0 | DG21: =IF(SUM(DF$8:DF$15)>0,$H21*$I21,0)/SUM($I$8:$I$15) -> 0 | DI21: =IF(SUM(DH$8:DH$15)>0,$H21*$I21,0)/SUM($I$8:$I$15) -> 0 | DK21: =IF(SUM(DJ$8:DJ$15)>0,$H21*$I21,0)/SUM($I$8:$I$15) -> 0 | DM21: =IF(SUM(DL$8:DL$15)>0,$H21*$I21,0)/SUM($I$8:$I$15) -> 0 | DO21: =IF(SUM(DN$8:DN$15)>0,$H21*$I21,0)/SUM($I$8:$I$15) -> 0 | DQ21: =IF(SUM(DP$8:DP$15)>0,$H21*$I21,0)/SUM($I$8:$I$15) -> 0 | DS21: =IF(SUM(DR$8:DR$15)>0,$H21*$I21,0)/SUM($I$8:$I$15) -> 0 | DU21: =IF(SUM(DT$8:DT$15)>0,$H21*$I21,0)/SUM($I$8:$I$15) -> 0 | DW21: =IF(SUM(DV$8:DV$15)>0,$H21*$I21,0)/SUM($I$8:$I$15) -> 0 | DY21: =IF(SUM(DX$8:DX$15)>0,$H21*$I21,0)/SUM($I$8:$I$15) -> 0 | EA21: 0
D22: Cinto de couro na cor preta | E22: 1 | G22: 10 | H22: 10 | I22: 57.26 | M22: 57.26 | O22: 57.26 | Q22: =IF(SUM(P$8:P$15)>0,$H22*$I22,0)/SUM($I$8:$I$15) -> 57.26 | S22: =IF(SUM(R$8:R$15)>0,$H22*$I22,0)/SUM($I$8:$I$15) -> 57.26 | U22: =IF(SUM(T$8:T$15)>0,$H22*$I22,0)/SUM($I$8:$I$15) -> 57.26 | W22: =IF(SUM(V$8:V$15)>0,$H22*$I22,0)/SUM($I$8:$I$15) -> 0 | Y22: =IF(SUM(X$8:X$15)>0,$H22*$I22,0)/SUM($I$8:$I$15) -> 0 | AA22: =IF(SUM(Z$8:Z$15)>0,$H22*$I22,0)/SUM($I$8:$I$15) -> 0 | AC22: =IF(SUM(AB$8:AB$15)>0,$H22*$I22,0)/SUM($I$8:$I$15) -> 0 | AE22: =IF(SUM(AD$8:AD$15)>0,$H22*$I22,0)/SUM($I$8:$I$15) -> 0 | AG22: =IF(SUM(AF$8:AF$15)>0,$H22*$I22,0)/SUM($I$8:$I$15) -> 0 | AI22: =IF(SUM(AH$8:AH$15)>0,$H22*$I22,0)/SUM($I$8:$I$15) -> 0 | AK22: =IF(SUM(AJ$8:AJ$15)>0,$H22*$I22,0)/SUM($I$8:$I$15) -> 0 | AM22: =IF(SUM(AL$8:AL$15)>0,$H22*$I22,0)/SUM($I$8:$I$15) -> 0 | AO22: =IF(SUM(AN$8:AN$15)>0,$H22*$I22,0)/SUM($I$8:$I$15) -> 0 | AQ22: =IF(SUM(AP$8:AP$15)>0,$H22*$I22,0)/SUM($I$8:$I$15) -> 0 | AS22: =IF(SUM(AR$8:AR$15)>0,$H22*$I22,0)/SUM($I$8:$I$15) -> 0 | AU22: =IF(SUM(AT$8:AT$15)>0,$H22*$I22,0)/SUM($I$8:$I$15) -> 0 | AW22: =IF(SUM(AV$8:AV$15)>0,$H22*$I22,0)/SUM($I$8:$I$15) -> 0 | AY22: =IF(SUM(AX$8:AX$15)>0,$H22*$I22,0)/SUM($I$8:$I$15) -> 0 | BA22: =IF(SUM(AZ$8:AZ$15)>0,$H22*$I22,0)/SUM($I$8:$I$15) -> 0 | BC22: =IF(SUM(BB$8:BB$15)>0,$H22*$I22,0)/SUM($I$8:$I$15) -> 0 | BE22: =IF(SUM(BD$8:BD$15)>0,$H22*$I22,0)/SUM($I$8:$I$15) -> 0 | BG22: =IF(SUM(BF$8:BF$15)>0,$H22*$I22,0)/SUM($I$8:$I$15) -> 0 | BI22: =IF(SUM(BH$8:BH$15)>0,$H22*$I22,0)/SUM($I$8:$I$15) -> 0 | BK22: =IF(SUM(BJ$8:BJ$15)>0,$H22*$I22,0)/SUM($I$8:$I$15) -> 0 | BM22: =IF(SUM(BL$8:BL$15)>0,$H22*$I22,0)/SUM($I$8:$I$15) -> 0 | BO22: =IF(SUM(BN$8:BN$15)>0,$H22*$I22,0)/SUM($I$8:$I$15) -> 0 | BQ22: =IF(SUM(BP$8:BP$15)>0,$H22*$I22,0)/SUM($I$8:$I$15) -> 0 | BS22: =IF(SUM(BR$8:BR$15)>0,$H22*$I22,0)/SUM($I$8:$I$15) -> 0 | BU22: =IF(SUM(BT$8:BT$15)>0,$H22*$I22,0)/SUM($I$8:$I$15) -> 0 | BW22: =IF(SUM(BV$8:BV$15)>0,$H22*$I22,0)/SUM($I$8:$I$15) -> 0 | BY22: =IF(SUM(BX$8:BX$15)>0,$H22*$I22,0)/SUM($I$8:$I$15) -> 0 | CA22: =IF(SUM(BZ$8:BZ$15)>0,$H22*$I22,0)/SUM($I$8:$I$15) -> 0 | CC22: =IF(SUM(CB$8:CB$15)>0,$H22*$I22,0)/SUM($I$8:$I$15) -> 0 | CE22: =IF(SUM(CD$8:CD$15)>0,$H22*$I22,0)/SUM($I$8:$I$15) -> 0 | CG22: =IF(SUM(CF$8:CF$15)>0,$H22*$I22,0)/SUM($I$8:$I$15) -> 0 | CI22: =IF(SUM(CH$8:CH$15)>0,$H22*$I22,0)/SUM($I$8:$I$15) -> 0 | CK22: =IF(SUM(CJ$8:CJ$15)>0,$H22*$I22,0)/SUM($I$8:$I$15) -> 0 | CM22: =IF(SUM(CL$8:CL$15)>0,$H22*$I22,0)/SUM($I$8:$I$15) -> 0 | CO22: =IF(SUM(CN$8:CN$15)>0,$H22*$I22,0)/SUM($I$8:$I$15) -> 0 | CQ22: =IF(SUM(CP$8:CP$15)>0,$H22*$I22,0)/SUM($I$8:$I$15) -> 0 | CS22: =IF(SUM(CR$8:CR$15)>0,$H22*$I22,0)/SUM($I$8:$I$15) -> 0 | CU22: =IF(SUM(CT$8:CT$15)>0,$H22*$I22,0)/SUM($I$8:$I$15) -> 0 | CW22: =IF(SUM(CV$8:CV$15)>0,$H22*$I22,0)/SUM($I$8:$I$15) -> 0 | CY22: =IF(SUM(CX$8:CX$15)>0,$H22*$I22,0)/SUM($I$8:$I$15) -> 0 | DA22: =IF(SUM(CZ$8:CZ$15)>0,$H22*$I22,0)/SUM($I$8:$I$15) -> 0 | DC22: =IF(SUM(DB$8:DB$15)>0,$H22*$I22,0)/SUM($I$8:$I$15) -> 0 | DE22: =IF(SUM(DD$8:DD$15)>0,$H22*$I22,0)/SUM($I$8:$I$15) -> 0 | DG22: =IF(SUM(DF$8:DF$15)>0,$H22*$I22,0)/SUM($I$8:$I$15) -> 0 | DI22: =IF(SUM(DH$8:DH$15)>0,$H22*$I22,0)/SUM($I$8:$I$15) -> 0 | DK22: =IF(SUM(DJ$8:DJ$15)>0,$H22*$I22,0)/SUM($I$8:$I$15) -> 0 | DM22: =IF(SUM(DL$8:DL$15)>0,$H22*$I22,0)/SUM($I$8:$I$15) -> 0 | DO22: =IF(SUM(DN$8:DN$15)>0,$H22*$I22,0)/SUM($I$8:$I$15) -> 0 | DQ22: =IF(SUM(DP$8:DP$15)>0,$H22*$I22,0)/SUM($I$8:$I$15) -> 0 | DS22: =IF(SUM(DR$8:DR$15)>0,$H22*$I22,0)/SUM($I$8:$I$15) -> 0 | DU22: =IF(SUM(DT$8:DT$15)>0,$H22*$I22,0)/SUM($I$8:$I$15) -> 0 | DW22: =IF(SUM(DV$8:DV$15)>0,$H22*$I22,0)/SUM($I$8:$I$15) -> 0 | DY22: =IF(SUM(DX$8:DX$15)>0,$H22*$I22,0)/SUM($I$8:$I$15) -> 0 | EA22: 0
D23: Gravata na mesma cor do terno, lisa, com tecido 100% poliéster ou Lenço feminino para usar no pescoço na cor branca | E23: 1 | G23: 10 | H23: 10 | I23: 34.18 | M23: 34.18 | O23: 34.18 | Q23: =IF(SUM(P$8:P$15)>0,$H23*$I23,0)/SUM($I$8:$I$15) -> 34.18 | S23: =IF(SUM(R$8:R$15)>0,$H23*$I23,0)/SUM($I$8:$I$15) -> 34.18 | U23: =IF(SUM(T$8:T$15)>0,$H23*$I23,0)/SUM($I$8:$I$15) -> 34.18 | W23: =IF(SUM(V$8:V$15)>0,$H23*$I23,0)/SUM($I$8:$I$15) -> 0 | Y23: =IF(SUM(X$8:X$15)>0,$H23*$I23,0)/SUM($I$8:$I$15) -> 0 | AA23: =IF(SUM(Z$8:Z$15)>0,$H23*$I23,0)/SUM($I$8:$I$15) -> 0 | AC23: =IF(SUM(AB$8:AB$15)>0,$H23*$I23,0)/SUM($I$8:$I$15) -> 0 | AE23: =IF(SUM(AD$8:AD$15)>0,$H23*$I23,0)/SUM($I$8:$I$15) -> 0 | AG23: =IF(SUM(AF$8:AF$15)>0,$H23*$I23,0)/SUM($I$8:$I$15) -> 0 | AI23: =IF(SUM(AH$8:AH$15)>0,$H23*$I23,0)/SUM($I$8:$I$15) -> 0 | AK23: =IF(SUM(AJ$8:AJ$15)>0,$H23*$I23,0)/SUM($I$8:$I$15) -> 0 | AM23: =IF(SUM(AL$8:AL$15)>0,$H23*$I23,0)/SUM($I$8:$I$15) -> 0 | AO23: =IF(SUM(AN$8:AN$15)>0,$H23*$I23,0)/SUM($I$8:$I$15) -> 0 | AQ23: =IF(SUM(AP$8:AP$15)>0,$H23*$I23,0)/SUM($I$8:$I$15) -> 0 | AS23: =IF(SUM(AR$8:AR$15)>0,$H23*$I23,0)/SUM($I$8:$I$15) -> 0 | AU23: =IF(SUM(AT$8:AT$15)>0,$H23*$I23,0)/SUM($I$8:$I$15) -> 0 | AW23: =IF(SUM(AV$8:AV$15)>0,$H23*$I23,0)/SUM($I$8:$I$15) -> 0 | AY23: =IF(SUM(AX$8:AX$15)>0,$H23*$I23,0)/SUM($I$8:$I$15) -> 0 | BA23: =IF(SUM(AZ$8:AZ$15)>0,$H23*$I23,0)/SUM($I$8:$I$15) -> 0 | BC23: =IF(SUM(BB$8:BB$15)>0,$H23*$I23,0)/SUM($I$8:$I$15) -> 0 | BE23: =IF(SUM(BD$8:BD$15)>0,$H23*$I23,0)/SUM($I$8:$I$15) -> 0 | BG23: =IF(SUM(BF$8:BF$15)>0,$H23*$I23,0)/SUM($I$8:$I$15) -> 0 | BI23: =IF(SUM(BH$8:BH$15)>0,$H23*$I23,0)/SUM($I$8:$I$15) -> 0 | BK23: =IF(SUM(BJ$8:BJ$15)>0,$H23*$I23,0)/SUM($I$8:$I$15) -> 0 | BM23: =IF(SUM(BL$8:BL$15)>0,$H23*$I23,0)/SUM($I$8:$I$15) -> 0 | BO23: =IF(SUM(BN$8:BN$15)>0,$H23*$I23,0)/SUM($I$8:$I$15) -> 0 | BQ23: =IF(SUM(BP$8:BP$15)>0,$H23*$I23,0)/SUM($I$8:$I$15) -> 0 | BS23: =IF(SUM(BR$8:BR$15)>0,$H23*$I23,0)/SUM($I$8:$I$15) -> 0 | BU23: =IF(SUM(BT$8:BT$15)>0,$H23*$I23,0)/SUM($I$8:$I$15) -> 0 | BW23: =IF(SUM(BV$8:BV$15)>0,$H23*$I23,0)/SUM($I$8:$I$15) -> 0 | BY23: =IF(SUM(BX$8:BX$15)>0,$H23*$I23,0)/SUM($I$8:$I$15) -> 0 | CA23: =IF(SUM(BZ$8:BZ$15)>0,$H23*$I23,0)/SUM($I$8:$I$15) -> 0 | CC23: =IF(SUM(CB$8:CB$15)>0,$H23*$I23,0)/SUM($I$8:$I$15) -> 0 | CE23: =IF(SUM(CD$8:CD$15)>0,$H23*$I23,0)/SUM($I$8:$I$15) -> 0 | CG23: =IF(SUM(CF$8:CF$15)>0,$H23*$I23,0)/SUM($I$8:$I$15) -> 0 | CI23: =IF(SUM(CH$8:CH$15)>0,$H23*$I23,0)/SUM($I$8:$I$15) -> 0 | CK23: =IF(SUM(CJ$8:CJ$15)>0,$H23*$I23,0)/SUM($I$8:$I$15) -> 0 | CM23: =IF(SUM(CL$8:CL$15)>0,$H23*$I23,0)/SUM($I$8:$I$15) -> 0 | CO23: =IF(SUM(CN$8:CN$15)>0,$H23*$I23,0)/SUM($I$8:$I$15) -> 0 | CQ23: =IF(SUM(CP$8:CP$15)>0,$H23*$I23,0)/SUM($I$8:$I$15) -> 0 | CS23: =IF(SUM(CR$8:CR$15)>0,$H23*$I23,0)/SUM($I$8:$I$15) -> 0 | CU23: =IF(SUM(CT$8:CT$15)>0,$H23*$I23,0)/SUM($I$8:$I$15) -> 0 | CW23: =IF(SUM(CV$8:CV$15)>0,$H23*$I23,0)/SUM($I$8:$I$15) -> 0 | CY23: =IF(SUM(CX$8:CX$15)>0,$H23*$I23,0)/SUM($I$8:$I$15) -> 0 | DA23: =IF(SUM(CZ$8:CZ$15)>0,$H23*$I23,0)/SUM($I$8:$I$15) -> 0 | DC23: =IF(SUM(DB$8:DB$15)>0,$H23*$I23,0)/SUM($I$8:$I$15) -> 0 | DE23: =IF(SUM(DD$8:DD$15)>0,$H23*$I23,0)/SUM($I$8:$I$15) -> 0 | DG23: =IF(SUM(DF$8:DF$15)>0,$H23*$I23,0)/SUM($I$8:$I$15) -> 0 | DI23: =IF(SUM(DH$8:DH$15)>0,$H23*$I23,0)/SUM($I$8:$I$15) -> 0 | DK23: =IF(SUM(DJ$8:DJ$15)>0,$H23*$I23,0)/SUM($I$8:$I$15) -> 0 | DM23: =IF(SUM(DL$8:DL$15)>0,$H23*$I23,0)/SUM($I$8:$I$15) -> 0 | DO23: =IF(SUM(DN$8:DN$15)>0,$H23*$I23,0)/SUM($I$8:$I$15) -> 0 | DQ23: =IF(SUM(DP$8:DP$15)>0,$H23*$I23,0)/SUM($I$8:$I$15) -> 0 | DS23: =IF(SUM(DR$8:DR$15)>0,$H23*$I23,0)/SUM($I$8:$I$15) -> 0 | DU23: =IF(SUM(DT$8:DT$15)>0,$H23*$I23,0)/SUM($I$8:$I$15) -> 0 | DW23: =IF(SUM(DV$8:DV$15)>0,$H23*$I23,0)/SUM($I$8:$I$15) -> 0 | DY23: =IF(SUM(DX$8:DX$15)>0,$H23*$I23,0)/SUM($I$8:$I$15) -> 0 | EA23: 0
D24: Sapatos social na cor preta, em couro, com cadarço, solado antiderrapante, em borracha, colado e costurado ao cabedal, forração interna em tecido, palmilha GEL anti-stress, amortecedor de impacto; ou Sapato social feminino, em couro, tipo mocassim ortopédico, forro interno em malha espumada, palmilha tipo calcanheira conformada, solado em borracha antiderrapante | E24: 2 | G24: =G23 -> 10 | H24: 20 | I24: 129.96 | M24: 259.92 | O24: 259.92 | Q24: =IF(SUM(P$8:P$15)>0,$H24*$I24,0)/SUM($I$8:$I$15) -> 259.92 | S24: =IF(SUM(R$8:R$15)>0,$H24*$I24,0)/SUM($I$8:$I$15) -> 259.92 | U24: =IF(SUM(T$8:T$15)>0,$H24*$I24,0)/SUM($I$8:$I$15) -> 259.92 | W24: =IF(SUM(V$8:V$15)>0,$H24*$I24,0)/SUM($I$8:$I$15) -> 0 | Y24: =IF(SUM(X$8:X$15)>0,$H24*$I24,0)/SUM($I$8:$I$15) -> 0 | AA24: =IF(SUM(Z$8:Z$15)>0,$H24*$I24,0)/SUM($I$8:$I$15) -> 0 | AC24: =IF(SUM(AB$8:AB$15)>0,$H24*$I24,0)/SUM($I$8:$I$15) -> 0 | AE24: =IF(SUM(AD$8:AD$15)>0,$H24*$I24,0)/SUM($I$8:$I$15) -> 0 | AG24: =IF(SUM(AF$8:AF$15)>0,$H24*$I24,0)/SUM($I$8:$I$15) -> 0 | AI24: =IF(SUM(AH$8:AH$15)>0,$H24*$I24,0)/SUM($I$8:$I$15) -> 0 | AK24: =IF(SUM(AJ$8:AJ$15)>0,$H24*$I24,0)/SUM($I$8:$I$15) -> 0 | AM24: =IF(SUM(AL$8:AL$15)>0,$H24*$I24,0)/SUM($I$8:$I$15) -> 0 | AO24: =IF(SUM(AN$8:AN$15)>0,$H24*$I24,0)/SUM($I$8:$I$15) -> 0 | AQ24: =IF(SUM(AP$8:AP$15)>0,$H24*$I24,0)/SUM($I$8:$I$15) -> 0 | AS24: =IF(SUM(AR$8:AR$15)>0,$H24*$I24,0)/SUM($I$8:$I$15) -> 0 | AU24: =IF(SUM(AT$8:AT$15)>0,$H24*$I24,0)/SUM($I$8:$I$15) -> 0 | AW24: =IF(SUM(AV$8:AV$15)>0,$H24*$I24,0)/SUM($I$8:$I$15) -> 0 | AY24: =IF(SUM(AX$8:AX$15)>0,$H24*$I24,0)/SUM($I$8:$I$15) -> 0 | BA24: =IF(SUM(AZ$8:AZ$15)>0,$H24*$I24,0)/SUM($I$8:$I$15) -> 0 | BC24: =IF(SUM(BB$8:BB$15)>0,$H24*$I24,0)/SUM($I$8:$I$15) -> 0 | BE24: =IF(SUM(BD$8:BD$15)>0,$H24*$I24,0)/SUM($I$8:$I$15) -> 0 | BG24: =IF(SUM(BF$8:BF$15)>0,$H24*$I24,0)/SUM($I$8:$I$15) -> 0 | BI24: =IF(SUM(BH$8:BH$15)>0,$H24*$I24,0)/SUM($I$8:$I$15) -> 0 | BK24: =IF(SUM(BJ$8:BJ$15)>0,$H24*$I24,0)/SUM($I$8:$I$15) -> 0 | BM24: =IF(SUM(BL$8:BL$15)>0,$H24*$I24,0)/SUM($I$8:$I$15) -> 0 | BO24: =IF(SUM(BN$8:BN$15)>0,$H24*$I24,0)/SUM($I$8:$I$15) -> 0 | BQ24: =IF(SUM(BP$8:BP$15)>0,$H24*$I24,0)/SUM($I$8:$I$15) -> 0 | BS24: =IF(SUM(BR$8:BR$15)>0,$H24*$I24,0)/SUM($I$8:$I$15) -> 0 | BU24: =IF(SUM(BT$8:BT$15)>0,$H24*$I24,0)/SUM($I$8:$I$15) -> 0 | BW24: =IF(SUM(BV$8:BV$15)>0,$H24*$I24,0)/SUM($I$8:$I$15) -> 0 | BY24: =IF(SUM(BX$8:BX$15)>0,$H24*$I24,0)/SUM($I$8:$I$15) -> 0 | CA24: =IF(SUM(BZ$8:BZ$15)>0,$H24*$I24,0)/SUM($I$8:$I$15) -> 0 | CC24: =IF(SUM(CB$8:CB$15)>0,$H24*$I24,0)/SUM($I$8:$I$15) -> 0 | CE24: =IF(SUM(CD$8:CD$15)>0,$H24*$I24,0)/SUM($I$8:$I$15) -> 0 | CG24: =IF(SUM(CF$8:CF$15)>0,$H24*$I24,0)/SUM($I$8:$I$15) -> 0 | CI24: =IF(SUM(CH$8:CH$15)>0,$H24*$I24,0)/SUM($I$8:$I$15) -> 0 | CK24: =IF(SUM(CJ$8:CJ$15)>0,$H24*$I24,0)/SUM($I$8:$I$15) -> 0 | CM24: =IF(SUM(CL$8:CL$15)>0,$H24*$I24,0)/SUM($I$8:$I$15) -> 0 | CO24: =IF(SUM(CN$8:CN$15)>0,$H24*$I24,0)/SUM($I$8:$I$15) -> 0 | CQ24: =IF(SUM(CP$8:CP$15)>0,$H24*$I24,0)/SUM($I$8:$I$15) -> 0 | CS24: =IF(SUM(CR$8:CR$15)>0,$H24*$I24,0)/SUM($I$8:$I$15) -> 0 | CU24: =IF(SUM(CT$8:CT$15)>0,$H24*$I24,0)/SUM($I$8:$I$15) -> 0 | CW24: =IF(SUM(CV$8:CV$15)>0,$H24*$I24,0)/SUM($I$8:$I$15) -> 0 | CY24: =IF(SUM(CX$8:CX$15)>0,$H24*$I24,0)/SUM($I$8:$I$15) -> 0 | DA24: =IF(SUM(CZ$8:CZ$15)>0,$H24*$I24,0)/SUM($I$8:$I$15) -> 0 | DC24: =IF(SUM(DB$8:DB$15)>0,$H24*$I24,0)/SUM($I$8:$I$15) -> 0 | DE24: =IF(SUM(DD$8:DD$15)>0,$H24*$I24,0)/SUM($I$8:$I$15) -> 0 | DG24: =IF(SUM(DF$8:DF$15)>0,$H24*$I24,0)/SUM($I$8:$I$15) -> 0 | DI24: =IF(SUM(DH$8:DH$15)>0,$H24*$I24,0)/SUM($I$8:$I$15) -> 0 | DK24: =IF(SUM(DJ$8:DJ$15)>0,$H24*$I24,0)/SUM($I$8:$I$15) -> 0 | DM24: =IF(SUM(DL$8:DL$15)>0,$H24*$I24,0)/SUM($I$8:$I$15) -> 0 | DO24: =IF(SUM(DN$8:DN$15)>0,$H24*$I24,0)/SUM($I$8:$I$15) -> 0 | DQ24: =IF(SUM(DP$8:DP$15)>0,$H24*$I24,0)/SUM($I$8:$I$15) -> 0 | DS24: =IF(SUM(DR$8:DR$15)>0,$H24*$I24,0)/SUM($I$8:$I$15) -> 0 | DU24: =IF(SUM(DT$8:DT$15)>0,$H24*$I24,0)/SUM($I$8:$I$15) -> 0 | DW24: =IF(SUM(DV$8:DV$15)>0,$H24*$I24,0)/SUM($I$8:$I$15) -> 0 | DY24: =IF(SUM(DX$8:DX$15)>0,$H24*$I24,0)/SUM($I$8:$I$15) -> 0 | EA24: 0
C27: CATEGORIAS | I27: QUANTIDADE
L28: =IF($C28=L$4,1,0) -> 0
C29: 6 | D29: =HLOOKUP($C29,'Dados Gerais'!$D$6:$BK$11,6) -> VIGILANTE DIURNO PORTARIAS 1 Escala 12 x 36 7h às 19h 2ª feira a Dom | I29: =HLOOKUP($C29,'Dados Gerais'!$D$6:$BK$15,10) -> 36 | L29: =IF($C29=L$4,1,0) -> 0 | N29: =IF($C29=N$4,1,0) -> 0 | P29: =IF($C29=P$4,1,0) -> 0 | R29: =IF($C29=R$4,1,0) -> 0 | T29: =IF($C29=T$4,1,0) -> 0 | V29: =IF($C29=V$4,1,0) -> 1 | X29: =IF($C29=X$4,1,0) -> 0 | Z29: =IF($C29=Z$4,1,0) -> 0 | AB29: =IF($C29=AB$4,1,0) -> 0 | AD29: =IF($C29=AD$4,1,0) -> 0 | AF29: =IF($C29=AF$4,1,0) -> 0 | AH29: =IF($C29=AH$4,1,0) -> 0 | AJ29: =IF($C29=AJ$4,1,0) -> 0 | AL29: =IF($C29=AL$4,1,0) -> 0 | AN29: =IF($C29=AN$4,1,0) -> 0 | AP29: =IF($C29=AP$4,1,0) -> 0 | AR29: =IF($C29=AR$4,1,0) -> 0 | AT29: =IF($C29=AT$4,1,0) -> 0 | AV29: =IF($C29=AV$4,1,0) -> 0 | AX29: =IF($C29=AX$4,1,0) -> 0 | AZ29: =IF($C29=AZ$4,1,0) -> 0 | BB29: =IF($C29=BB$4,1,0) -> 0 | BD29: =IF($C29=BD$4,1,0) -> 0 | BF29: =IF($C29=BF$4,1,0) -> 0 | BH29: =IF($C29=BH$4,1,0) -> 0 | BJ29: =IF($C29=BJ$4,1,0) -> 0 | BL29: =IF($C29=BL$4,1,0) -> 0 | BN29: =IF($C29=BN$4,1,0) -> 0 | BP29: =IF($C29=BP$4,1,0) -> 0 | BR29: =IF($C29=BR$4,1,0) -> 0 | BT29: =IF($C29=BT$4,1,0) -> 0 | BV29: =IF($C29=BV$4,1,0) -> 0 | BX29: =IF($C29=BX$4,1,0) -> 0 | BZ29: =IF($C29=BZ$4,1,0) -> 0 | CB29: =IF($C29=CB$4,1,0) -> 0 | CD29: =IF($C29=CD$4,1,0) -> 0 | CF29: =IF($C29=CF$4,1,0) -> 0 | CH29: =IF($C29=CH$4,1,0) -> 0 | CJ29: =IF($C29=CJ$4,1,0) -> 0 | CL29: =IF($C29=CL$4,1,0) -> 0 | CN29: =IF($C29=CN$4,1,0) -> 0 | CP29: =IF($C29=CP$4,1,0) -> 0 | CR29: =IF($C29=CR$4,1,0) -> 0 | CT29: =IF($C29=CT$4,1,0) -> 0 | CV29: =IF($C29=CV$4,1,0) -> 0 | CX29: =IF($C29=CX$4,1,0) -> 0 | CZ29: =IF($C29=CZ$4,1,0) -> 0 | DB29: =IF($C29=DB$4,1,0) -> 0 | DD29: =IF($C29=DD$4,1,0) -> 0 | DF29: =IF($C29=DF$4,1,0) -> 0 | DH29: =IF($C29=DH$4,1,0) -> 0 | DJ29: =IF($C29=DJ$4,1,0) -> 0 | DL29: =IF($C29=DL$4,1,0) -> 0 | DN29: =IF($C29=DN$4,1,0) -> 0 | DP29: =IF($C29=DP$4,1,0) -> 0 | DR29: =IF($C29=DR$4,1,0) -> 0 | DT29: =IF($C29=DT$4,1,0) -> 0 | DV29: =IF($C29=DV$4,1,0) -> 0 | DX29: =IF($C29=DX$4,1,0) -> 0 | DZ29: =IF($C29=DZ$4,1,0) -> 0
C30: 7 | D30: =HLOOKUP($C30,'Dados Gerais'!$D$6:$BK$11,6) -> VIGILANTE NOTURNO PORTARIAS 1 Escala 12 x 36 19h às 7h 2ª feira a Dom | I30: =HLOOKUP($C30,'Dados Gerais'!$D$6:$BK$15,10) -> 30 | L30: 0 | N30: =IF($C30=N$4,1,0) -> 0 | P30: 0 | R30: 0 | T30: 0 | V30: 0 | X30: 1 | Z30: 0 | AB30: 0 | AD30: 0 | AF30: 0 | AH30: 0 | AJ30: 0 | AL30: 0 | AN30: 0 | AP30: 0 | AR30: 0 | AT30: 0 | AV30: 0 | AX30: 0 | AZ30: 0 | BB30: 0 | BD30: 0 | BF30: 0 | BH30: 0 | BJ30: 0 | BL30: 0 | BN30: 0 | BP30: 0 | BR30: 0 | BT30: 0 | BV30: 0 | BX30: 0 | BZ30: 0 | CB30: 0 | CD30: 0 | CF30: 0 | CH30: 0 | CJ30: 0 | CL30: 0 | CN30: 0 | CP30: 0 | CR30: 0 | CT30: 0 | CV30: 0 | CX30: 0 | CZ30: 0 | DB30: 0 | DD30: 0 | DF30: 0 | DH30: 0 | DJ30: 0 | DL30: 0 | DN30: 0 | DP30: 0 | DR30: 0 | DT30: 0 | DV30: 0 | DX30: 0 | DZ30: 0
C31: 8 | D31: =HLOOKUP($C31,'Dados Gerais'!$D$6:$BK$11,6) -> VIGILANTE MATUTINO PORTARIAS 1 Escala 40 horas semanais 7h às 16h 2ª à 6ª feira | I31: =HLOOKUP($C31,'Dados Gerais'!$D$6:$BK$15,10) -> 13 | L31: 0 | N31: =IF($C31=N$4,1,0) -> 0 | P31: 0 | R31: 0 | T31: 0 | V31: 0 | X31: 0 | Z31: 1 | AB31: 0 | AD31: 0 | AF31: 0 | AH31: 0 | AJ31: 0 | AL31: 0 | AN31: 0 | AP31: 0 | AR31: 0 | AT31: 0 | AV31: 0 | AX31: 0 | AZ31: 0 | BB31: 0 | BD31: 0 | BF31: 0 | BH31: 0 | BJ31: 0 | BL31: 0 | BN31: 0 | BP31: 0 | BR31: 0 | BT31: 0 | BV31: 0 | BX31: 0 | BZ31: 0 | CB31: 0 | CD31: 0 | CF31: 0 | CH31: 0 | CJ31: 0 | CL31: 0 | CN31: 0 | CP31: 0 | CR31: 0 | CT31: 0 | CV31: 0 | CX31: 0 | CZ31: 0 | DB31: 0 | DD31: 0 | DF31: 0 | DH31: 0 | DJ31: 0 | DL31: 0 | DN31: 0 | DP31: 0 | DR31: 0 | DT31: 0 | DV31: 0 | DX31: 0 | DZ31: 0
C32: 9 | D32: =HLOOKUP($C32,'Dados Gerais'!$D$6:$BK$11,6) -> VIGILANTE VESPERTINO PORTARIAS 1 Escala 40 horas semanais 13h às 22h 2ª à 6ª feira | I32: =HLOOKUP($C32,'Dados Gerais'!$D$6:$BK$15,10) -> 13 | L32: 0 | N32: =IF($C32=N$4,1,0) -> 0 | P32: 0 | R32: 0 | T32: 0 | V32: 0 | X32: 0 | Z32: 0 | AB32: 1 | AD32: 0 | AF32: 0 | AH32: 0 | AJ32: 0 | AL32: 0 | AN32: 0 | AP32: 0 | AR32: 0 | AT32: 0 | AV32: 0 | AX32: 0 | AZ32: 0 | BB32: 0 | BD32: 0 | BF32: 0 | BH32: 0 | BJ32: 0 | BL32: 0 | BN32: 0 | BP32: 0 | BR32: 0 | BT32: 0 | BV32: 0 | BX32: 0 | BZ32: 0 | CB32: 0 | CD32: 0 | CF32: 0 | CH32: 0 | CJ32: 0 | CL32: 0 | CN32: 0 | CP32: 0 | CR32: 0 | CT32: 0 | CV32: 0 | CX32: 0 | CZ32: 0 | DB32: 0 | DD32: 0 | DF32: 0 | DH32: 0 | DJ32: 0 | DL32: 0 | DN32: 0 | DP32: 0 | DR32: 0 | DT32: 0 | DV32: 0 | DX32: 0 | DZ32: 0
L33: 0 | N33: 0 | P33: 0 | R33: 0 | T33: 0 | V33: 0 | X33: 0 | Z33: 0 | AB33: 0 | AD33: 0 | AF33: 0 | AH33: 0 | AJ33: 0 | AL33: 0 | AN33: 0 | AP33: 0 | AR33: 0 | AT33: 0 | AV33: 0 | AX33: 0 | AZ33: 0 | BB33: 0 | BD33: 0 | BF33: 0 | BH33: 0 | BJ33: 0 | BL33: 0 | BN33: 0 | BP33: 0 | BR33: 0 | BT33: 0 | BV33: 0 | BX33: 0 | BZ33: 0 | CB33: 0 | CD33: 0 | CF33: 0 | CH33: 0 | CJ33: 0 | CL33: 0 | CN33: 0 | CP33: 0 | CR33: 0 | CT33: 0 | CV33: 0 | CX33: 0 | CZ33: 0 | DB33: 0 | DD33: 0 | DF33: 0 | DH33: 0 | DJ33: 0 | DL33: 0 | DN33: 0 | DP33: 0 | DR33: 0 | DT33: 0 | DV33: 0 | DX33: 0 | DZ33: 0
P34: 0 | R34: 0 | T34: 0 | V34: 0 | X34: 0 | Z34: 0 | AB34: 0 | AD34: 0 | AF34: 0 | AH34: 0 | AJ34: 0 | AL34: 0 | AN34: 0 | AP34: 0 | AR34: 0 | AT34: 0 | AV34: 0 | AX34: 0 | AZ34: 0 | BB34: 0 | BD34: 0 | BF34: 0 | BH34: 0 | BJ34: 0 | BL34: 0 | BN34: 0 | BP34: 0 | BR34: 0 | BT34: 0 | BV34: 0 | BX34: 0 | BZ34: 0 | CB34: 0 | CD34: 0 | CF34: 0 | CH34: 0 | CJ34: 0 | CL34: 0 | CN34: 0 | CP34: 0 | CR34: 0 | CT34: 0 | CV34: 0 | CX34: 0 | CZ34: 0 | DB34: 0 | DD34: 0 | DF34: 0 | DH34: 0 | DJ34: 0 | DL34: 0 | DN34: 0 | DP34: 0 | DR34: 0 | DT34: 0 | DV34: 0 | DX34: 0 | DZ34: 0
C35: ITEM | D35: DESCRIÇÃO | E35: QUANT ANUAL POR POSTO | G35: Nº DE POSTOS | H35: QUANT ANUAL TOTAL ESTIMADA | I35: VALOR | P35: 0 | R35: 0 | T35: 0 | V35: 0 | X35: 0 | Z35: 0 | AB35: 0 | AD35: 0 | AF35: 0 | AH35: 0 | AJ35: 0 | AL35: 0 | AN35: 0 | AP35: 0 | AR35: 0 | AT35: 0 | AV35: 0 | AX35: 0 | AZ35: 0 | BB35: 0 | BD35: 0 | BF35: 0 | BH35: 0 | BJ35: 0 | BL35: 0 | BN35: 0 | BP35: 0 | BR35: 0 | BT35: 0 | BV35: 0 | BX35: 0 | BZ35: 0 | CB35: 0 | CD35: 0 | CF35: 0 | CH35: 0 | CJ35: 0 | CL35: 0 | CN35: 0 | CP35: 0 | CR35: 0 | CT35: 0 | CV35: 0 | CX35: 0 | CZ35: 0 | DB35: 0 | DD35: 0 | DF35: 0 | DH35: 0 | DJ35: 0 | DL35: 0 | DN35: 0 | DP35: 0 | DR35: 0 | DT35: 0 | DV35: 0 | DX35: 0 | DZ35: 0
D37: Ternos composto de 1 (um) paletó e 1 (uma) calça, confeccionados em tecido de poliéster (95%) e elastano (5%), na cor preta, tamanho de acordo com o manequim do usuário, com forro 100% poliester ou Terninho feminino composto de 1 (um) blazer e 1 (uma) calça, confeccionados em tecido poliéster (95%) e elastano(5%) de 1ª qualidade, na cor preta, tamanho de acordo com o manequim do usuário com forro 100% poliester | E37: 2 | G37: =SUM($I$29:$I$32) -> 92 | H37: =ROUNDUP(E37*G37,0) -> 184 | I37: =I18 -> 366.57 | M37: =IF(SUM(L$28:L$33)>0,$H37*$I37,0)/SUM($I$29:$I$33) -> 0 | O37: =IF(SUM(N$28:N$33)>0,$H37*$I37,0)/SUM($I$29:$I$33) -> 0 | Q37: =IF(SUM(P$28:P$33)>0,$H37*$I37,0)/SUM($I$29:$I$33) -> 0 | S37: =IF(SUM(R$28:R$33)>0,$H37*$I37,0)/SUM($I$29:$I$33) -> 0 | U37: =IF(SUM(T$28:T$33)>0,$H37*$I37,0)/SUM($I$29:$I$33) -> 0 | W37: =IF(SUM(V$28:V$33)>0,$H37*$I37,0)/SUM($I$29:$I$33) -> 733.14 | Y37: =IF(SUM(X$28:X$33)>0,$H37*$I37,0)/SUM($I$29:$I$33) -> 733.14 | AA37: =IF(SUM(Z$28:Z$33)>0,$H37*$I37,0)/SUM($I$29:$I$33) -> 733.14 | AC37: =IF(SUM(AB$28:AB$33)>0,$H37*$I37,0)/SUM($I$29:$I$33) -> 733.14 | AE37: =IF(SUM(AD$28:AD$33)>0,$H37*$I37,0)/SUM($I$29:$I$33) -> 0 | AG37: =IF(SUM(AF$28:AF$33)>0,$H37*$I37,0)/SUM($I$29:$I$33) -> 0 | AI37: =IF(SUM(AH$28:AH$33)>0,$H37*$I37,0)/SUM($I$29:$I$33) -> 0 | AK37: =IF(SUM(AJ$28:AJ$33)>0,$H37*$I37,0)/SUM($I$29:$I$33) -> 0 | AM37: =IF(SUM(AL$28:AL$33)>0,$H37*$I37,0)/SUM($I$29:$I$33) -> 0 | AO37: =IF(SUM(AN$28:AN$33)>0,$H37*$I37,0)/SUM($I$29:$I$33) -> 0 | AQ37: =IF(SUM(AP$28:AP$33)>0,$H37*$I37,0)/SUM($I$29:$I$33) -> 0 | AS37: =IF(SUM(AR$28:AR$33)>0,$H37*$I37,0)/SUM($I$29:$I$33) -> 0 | AU37: =IF(SUM(AT$28:AT$33)>0,$H37*$I37,0)/SUM($I$29:$I$33) -> 0 | AW37: =IF(SUM(AV$28:AV$33)>0,$H37*$I37,0)/SUM($I$29:$I$33) -> 0 | AY37: =IF(SUM(AX$28:AX$33)>0,$H37*$I37,0)/SUM($I$29:$I$33) -> 0 | BA37: =IF(SUM(AZ$28:AZ$33)>0,$H37*$I37,0)/SUM($I$29:$I$33) -> 0 | BC37: =IF(SUM(BB$28:BB$33)>0,$H37*$I37,0)/SUM($I$29:$I$33) -> 0 | BE37: =IF(SUM(BD$28:BD$33)>0,$H37*$I37,0)/SUM($I$29:$I$33) -> 0 | BG37: =IF(SUM(BF$28:BF$33)>0,$H37*$I37,0)/SUM($I$29:$I$33) -> 0 | BI37: =IF(SUM(BH$28:BH$33)>0,$H37*$I37,0)/SUM($I$29:$I$33) -> 0 | BK37: =IF(SUM(BJ$28:BJ$33)>0,$H37*$I37,0)/SUM($I$29:$I$33) -> 0 | BM37: =IF(SUM(BL$28:BL$33)>0,$H37*$I37,0)/SUM($I$29:$I$33) -> 0 | BO37: =IF(SUM(BN$28:BN$33)>0,$H37*$I37,0)/SUM($I$29:$I$33) -> 0 | BQ37: =IF(SUM(BP$28:BP$33)>0,$H37*$I37,0)/SUM($I$29:$I$33) -> 0 | BS37: =IF(SUM(BR$28:BR$33)>0,$H37*$I37,0)/SUM($I$29:$I$33) -> 0 | BU37: =IF(SUM(BT$28:BT$33)>0,$H37*$I37,0)/SUM($I$29:$I$33) -> 0 | BW37: =IF(SUM(BV$28:BV$33)>0,$H37*$I37,0)/SUM($I$29:$I$33) -> 0 | BY37: =IF(SUM(BX$28:BX$33)>0,$H37*$I37,0)/SUM($I$29:$I$33) -> 0 | CA37: =IF(SUM(BZ$28:BZ$33)>0,$H37*$I37,0)/SUM($I$29:$I$33) -> 0 | CC37: =IF(SUM(CB$28:CB$33)>0,$H37*$I37,0)/SUM($I$29:$I$33) -> 0 | CE37: =IF(SUM(CD$28:CD$33)>0,$H37*$I37,0)/SUM($I$29:$I$33) -> 0 | CG37: =IF(SUM(CF$28:CF$33)>0,$H37*$I37,0)/SUM($I$29:$I$33) -> 0 | CI37: =IF(SUM(CH$28:CH$33)>0,$H37*$I37,0)/SUM($I$29:$I$33) -> 0 | CK37: =IF(SUM(CJ$28:CJ$33)>0,$H37*$I37,0)/SUM($I$29:$I$33) -> 0 | CM37: =IF(SUM(CL$28:CL$33)>0,$H37*$I37,0)/SUM($I$29:$I$33) -> 0 | CO37: =IF(SUM(CN$28:CN$33)>0,$H37*$I37,0)/SUM($I$29:$I$33) -> 0 | CQ37: =IF(SUM(CP$28:CP$33)>0,$H37*$I37,0)/SUM($I$29:$I$33) -> 0 | CS37: =IF(SUM(CR$28:CR$33)>0,$H37*$I37,0)/SUM($I$29:$I$33) -> 0 | CU37: =IF(SUM(CT$28:CT$33)>0,$H37*$I37,0)/SUM($I$29:$I$33) -> 0 | CW37: =IF(SUM(CV$28:CV$33)>0,$H37*$I37,0)/SUM($I$29:$I$33) -> 0 | CY37: =IF(SUM(CX$28:CX$33)>0,$H37*$I37,0)/SUM($I$29:$I$33) -> 0 | DA37: =IF(SUM(CZ$28:CZ$33)>0,$H37*$I37,0)/SUM($I$29:$I$33) -> 0 | DC37: =IF(SUM(DB$28:DB$33)>0,$H37*$I37,0)/SUM($I$29:$I$33) -> 0 | DE37: =IF(SUM(DD$28:DD$33)>0,$H37*$I37,0)/SUM($I$29:$I$33) -> 0 | DG37: =IF(SUM(DF$28:DF$33)>0,$H37*$I37,0)/SUM($I$29:$I$33) -> 0 | DI37: =IF(SUM(DH$28:DH$33)>0,$H37*$I37,0)/SUM($I$29:$I$33) -> 0 | DK37: =IF(SUM(DJ$28:DJ$33)>0,$H37*$I37,0)/SUM($I$29:$I$33) -> 0 | DM37: =IF(SUM(DL$28:DL$33)>0,$H37*$I37,0)/SUM($I$29:$I$33) -> 0 | DO37: =IF(SUM(DN$28:DN$33)>0,$H37*$I37,0)/SUM($I$29:$I$33) -> 0 | DQ37: =IF(SUM(DP$28:DP$33)>0,$H37*$I37,0)/SUM($I$29:$I$33) -> 0 | DS37: =IF(SUM(DR$28:DR$33)>0,$H37*$I37,0)/SUM($I$29:$I$33) -> 0 | DU37: =IF(SUM(DT$28:DT$33)>0,$H37*$I37,0)/SUM($I$29:$I$33) -> 0 | DW37: =IF(SUM(DV$28:DV$33)>0,$H37*$I37,0)/SUM($I$29:$I$33) -> 0 | DY37: =IF(SUM(DX$28:DX$33)>0,$H37*$I37,0)/SUM($I$29:$I$33) -> 0 | EA37: =IF(SUM(DZ$28:DZ$33)>0,$H37*$I37,0)/SUM($I$29:$I$33) -> 0 | EC37: =IF(SUM(EB$28:EB$33)>0,$H37*$I37,0)/SUM($I$29:$I$33) -> 0 | EE37: =IF(SUM(ED$28:ED$33)>0,$H37*$I37,0)/SUM($I$29:$I$33) -> 0 | EG37: =IF(SUM(EF$28:EF$33)>0,$H37*$I37,0)/SUM($I$29:$I$33) -> 0 | EI37: =IF(SUM(EH$28:EH$33)>0,$H37*$I37,0)/SUM($I$29:$I$33) -> 0
D38: Camisas social na cor branca em tecido 100% algodão | E38: 4 | G38: =G37 -> 92 | H38: =ROUNDUP(E38*G38,0) -> 368 | I38: 101.78 | M38: 0 | O38: 0 | Q38: 0 | S38: 0 | U38: 0 | W38: 407.12 | Y38: 407.12 | AA38: 407.12 | AC38: 407.12 | AE38: 0 | AG38: 0 | AI38: 0 | AK38: 0 | AM38: 0 | AO38: 0 | AQ38: 0 | AS38: 0 | AU38: 0 | AW38: 0 | AY38: 0 | BA38: 0 | BC38: 0 | BE38: 0 | BG38: 0 | BI38: 0 | BK38: 0 | BM38: 0 | BO38: 0 | BQ38: 0 | BS38: 0 | BU38: 0 | BW38: 0 | BY38: 0 | CA38: 0 | CC38: 0 | CE38: 0 | CG38: 0 | CI38: 0 | CK38: 0 | CM38: 0 | CO38: 0 | CQ38: 0 | CS38: 0 | CU38: 0 | CW38: 0 | CY38: 0 | DA38: 0 | DC38: 0 | DE38: 0 | DG38: 0 | DI38: 0 | DK38: 0 | DM38: 0 | DO38: 0 | DQ38: 0 | DS38: 0 | DU38: 0 | DW38: 0 | DY38: 0 | EA38: 0 | EC38: 0 | EE38: 0 | EG38: 0 | EI38: 0
D39: Sobretudo 100% em lã fria (92% poliéster, 5% viscose, 3% elastano), forro 100% poliester, com botões, na cor preta | E39: 1 | G39: =G38 -> 92 | H39: 92 | I39: 313.53 | M39: 0 | O39: 0 | Q39: 0 | S39: 0 | U39: 0 | W39: 313.53 | Y39: 313.53 | AA39: 313.53 | AC39: 313.53 | AE39: 0 | AG39: 0 | AI39: 0 | AK39: 0 | AM39: 0 | AO39: 0 | AQ39: 0 | AS39: 0 | AU39: 0 | AW39: 0 | AY39: 0 | BA39: 0 | BC39: 0 | BE39: 0 | BG39: 0 | BI39: 0 | BK39: 0 | BM39: 0 | BO39: 0 | BQ39: 0 | BS39: 0 | BU39: 0 | BW39: 0 | BY39: 0 | CA39: 0 | CC39: 0 | CE39: 0 | CG39: 0 | CI39: 0 | CK39: 0 | CM39: 0 | CO39: 0 | CQ39: 0 | CS39: 0 | CU39: 0 | CW39: 0 | CY39: 0 | DA39: 0 | DC39: 0 | DE39: 0 | DG39: 0 | DI39: 0 | DK39: 0 | DM39: 0 | DO39: 0 | DQ39: 0 | DS39: 0 | DU39: 0 | DW39: 0 | DY39: 0 | EA39: 0 | EC39: 0 | EE39: 0 | EG39: 0 | EI39: 0
D40: Meias social na cor preta | E40: 4 | G40: 92 | H40: 368 | I40: 17.27 | M40: 0 | O40: 0 | Q40: 0 | S40: 0 | U40: 0 | W40: 69.08 | Y40: 69.08 | AA40: 69.08 | AC40: 69.08 | AE40: 0 | AG40: 0 | AI40: 0 | AK40: 0 | AM40: 0 | AO40: 0 | AQ40: 0 | AS40: 0 | AU40: 0 | AW40: 0 | AY40: 0 | BA40: 0 | BC40: 0 | BE40: 0 | BG40: 0 | BI40: 0 | BK40: 0 | BM40: 0 | BO40: 0 | BQ40: 0 | BS40: 0 | BU40: 0 | BW40: 0 | BY40: 0 | CA40: 0 | CC40: 0 | CE40: 0 | CG40: 0 | CI40: 0 | CK40: 0 | CM40: 0 | CO40: 0 | CQ40: 0 | CS40: 0 | CU40: 0 | CW40: 0 | CY40: 0 | DA40: 0 | DC40: 0 | DE40: 0 | DG40: 0 | DI40: 0 | DK40: 0 | DM40: 0 | DO40: 0 | DQ40: 0 | DS40: 0 | DU40: 0 | DW40: 0 | DY40: 0 | EA40: 0 | EC40: 0 | EE40: 0 | EG40: 0 | EI40: 0
D41: Cinto de couro na cor preta | E41: 1 | G41: 92 | H41: 92 | I41: 57.26 | M41: 0 | O41: 0 | Q41: 0 | S41: 0 | U41: 0 | W41: 57.26 | Y41: 57.26 | AA41: 57.26 | AC41: 57.26 | AE41: 0 | AG41: 0 | AI41: 0 | AK41: 0 | AM41: 0 | AO41: 0 | AQ41: 0 | AS41: 0 | AU41: 0 | AW41: 0 | AY41: 0 | BA41: 0 | BC41: 0 | BE41: 0 | BG41: 0 | BI41: 0 | BK41: 0 | BM41: 0 | BO41: 0 | BQ41: 0 | BS41: 0 | BU41: 0 | BW41: 0 | BY41: 0 | CA41: 0 | CC41: 0 | CE41: 0 | CG41: 0 | CI41: 0 | CK41: 0 | CM41: 0 | CO41: 0 | CQ41: 0 | CS41: 0 | CU41: 0 | CW41: 0 | CY41: 0 | DA41: 0 | DC41: 0 | DE41: 0 | DG41: 0 | DI41: 0 | DK41: 0 | DM41: 0 | DO41: 0 | DQ41: 0 | DS41: 0 | DU41: 0 | DW41: 0 | DY41: 0 | EA41: 0 | EC41: 0 | EE41: 0 | EG41: 0 | EI41: 0
D42: Gravata na mesma cor do terno, lisa, com tecido 100% poliéster ou Lenço feminino para usar no pescoço na cor branca | E42: 1 | G42: 92 | H42: 92 | I42: 34.18 | M42: 0 | O42: 0 | Q42: 0 | S42: 0 | U42: 0 | W42: 34.18 | Y42: 34.18 | AA42: 34.18 | AC42: 34.18 | AE42: 0 | AG42: 0 | AI42: 0 | AK42: 0 | AM42: 0 | AO42: 0 | AQ42: 0 | AS42: 0 | AU42: 0 | AW42: 0 | AY42: 0 | BA42: 0 | BC42: 0 | BE42: 0 | BG42: 0 | BI42: 0 | BK42: 0 | BM42: 0 | BO42: 0 | BQ42: 0 | BS42: 0 | BU42: 0 | BW42: 0 | BY42: 0 | CA42: 0 | CC42: 0 | CE42: 0 | CG42: 0 | CI42: 0 | CK42: 0 | CM42: 0 | CO42: 0 | CQ42: 0 | CS42: 0 | CU42: 0 | CW42: 0 | CY42: 0 | DA42: 0 | DC42: 0 | DE42: 0 | DG42: 0 | DI42: 0 | DK42: 0 | DM42: 0 | DO42: 0 | DQ42: 0 | DS42: 0 | DU42: 0 | DW42: 0 | DY42: 0 | EA42: 0 | EC42: 0 | EE42: 0 | EG42: 0 | EI42: 0
D43: Sapatos social na cor preta, em couro, com cadarço, solado antiderrapante, em borracha, colado e costurado ao cabedal, forração interna em tecido, palmilha GEL anti-stress, amortecedor de impacto; ou Sapato social feminino, em couro, tipo mocassim ortopédico, forro interno em malha espumada, palmilha tipo calcanheira conformada, solado em borracha antiderrapante | E43: 2 | G43: 92 | H43: 184 | I43: 129.96 | M43: 0 | O43: 0 | Q43: 0 | S43: 0 | U43: 0 | W43: 259.92 | Y43: 259.92 | AA43: 259.92 | AC43: 259.92 | AE43: 0 | AG43: 0 | AI43: 0 | AK43: 0 | AM43: 0 | AO43: 0 | AQ43: 0 | AS43: 0 | AU43: 0 | AW43: 0 | AY43: 0 | BA43: 0 | BC43: 0 | BE43: 0 | BG43: 0 | BI43: 0 | BK43: 0 | BM43: 0 | BO43: 0 | BQ43: 0 | BS43: 0 | BU43: 0 | BW43: 0 | BY43: 0 | CA43: 0 | CC43: 0 | CE43: 0 | CG43: 0 | CI43: 0 | CK43: 0 | CM43: 0 | CO43: 0 | CQ43: 0 | CS43: 0 | CU43: 0 | CW43: 0 | CY43: 0 | DA43: 0 | DC43: 0 | DE43: 0 | DG43: 0 | DI43: 0 | DK43: 0 | DM43: 0 | DO43: 0 | DQ43: 0 | DS43: 0 | DU43: 0 | DW43: 0 | DY43: 0 | EA43: 0 | EC43: 0 | EE43: 0 | EG43: 0 | EI43: 0
D44: Capa de colete balístico com ajuste de altura e lagura através de presilhas na cor preta | E44: 1 | G44: 92 | H44: 92 | I44: 285.33 | M44: 0 | O44: 0 | Q44: 0 | S44: 0 | U44: 0 | W44: 285.33 | Y44: 285.33 | AA44: 285.33 | AC44: 285.33 | AE44: 0 | AG44: 0 | AI44: 0 | AK44: 0 | AM44: 0 | AO44: 0 | AQ44: 0 | AS44: 0 | AU44: 0 | AW44: 0 | AY44: 0 | BA44: 0 | BC44: 0 | BE44: 0 | BG44: 0 | BI44: 0 | BK44: 0 | BM44: 0 | BO44: 0 | BQ44: 0 | BS44: 0 | BU44: 0 | BW44: 0 | BY44: 0 | CA44: 0 | CC44: 0 | CE44: 0 | CG44: 0 | CI44: 0 | CK44: 0 | CM44: 0 | CO44: 0 | CQ44: 0 | CS44: 0 | CU44: 0 | CW44: 0 | CY44: 0 | DA44: 0 | DC44: 0 | DE44: 0 | DG44: 0 | DI44: 0 | DK44: 0 | DM44: 0 | DO44: 0 | DQ44: 0 | DS44: 0 | DU44: 0 | DW44: 0 | DY44: 0 | EA44: 0 | EC44: 0 | EE44: 0 | EG44: 0 | EI44: 0
D45: Cinto tático de nylon na cor preta, pai e filho, com coldre, porta cassetete, porta munição, porta algema e porta tonfa | E45: 1 | G45: 92 | H45: 92 | I45: 234.97 | M45: 0 | O45: 0 | Q45: 0 | S45: 0 | U45: 0 | W45: 234.97 | Y45: 234.97 | AA45: 234.97 | AC45: 234.97 | AE45: 0 | AG45: 0 | AI45: 0 | AK45: 0 | AM45: 0 | AO45: 0 | AQ45: 0 | AS45: 0 | AU45: 0 | AW45: 0 | AY45: 0 | BA45: 0 | BC45: 0 | BE45: 0 | BG45: 0 | BI45: 0 | BK45: 0 | BM45: 0 | BO45: 0 | BQ45: 0 | BS45: 0 | BU45: 0 | BW45: 0 | BY45: 0 | CA45: 0 | CC45: 0 | CE45: 0 | CG45: 0 | CI45: 0 | CK45: 0 | CM45: 0 | CO45: 0 | CQ45: 0 | CS45: 0 | CU45: 0 | CW45: 0 | CY45: 0 | DA45: 0 | DC45: 0 | DE45: 0 | DG45: 0 | DI45: 0 | DK45: 0 | DM45: 0 | DO45: 0 | DQ45: 0 | DS45: 0 | DU45: 0 | DW45: 0 | DY45: 0 | EA45: 0 | EC45: 0 | EE45: 0 | EG45: 0 | EI45: 0
C47: CATEGORIAS | I47: QUANTIDADE
C49: 10 | D49: =HLOOKUP($C49,'Dados Gerais'!$D$6:$BK$11,6) -> VIGILANTE MATUTINO ESTACIONAMENTOS Escala 40 horas semanais 7h às 16h 2ª à 6ª feira | I49: =HLOOKUP($C49,'Dados Gerais'!$D$6:$BK$15,10) -> 24 | L49: =IF($C49=L$4,1,0) -> 0 | N49: 0 | P49: 0 | R49: 0 | T49: 0 | V49: 0 | X49: 0 | Z49: 0 | AB49: 0 | AD49: 1 | AF49: 0 | AH49: 0 | AJ49: 0 | AL49: 0 | AN49: 0 | AP49: 0 | AR49: 0 | AT49: 0 | AV49: 0 | AX49: 0 | AZ49: 0 | BB49: 0 | BD49: 0 | BF49: 0 | BH49: 0 | BJ49: 0 | BL49: 0 | BN49: 0 | BP49: 0 | BR49: 0 | BT49: 0 | BV49: 0 | BX49: 0 | BZ49: 0 | CB49: 0 | CD49: 0 | CF49: 0 | CH49: 0 | CJ49: 0 | CL49: 0 | CN49: 0 | CP49: 0 | CR49: 0 | CT49: 0 | CV49: 0 | CX49: 0 | CZ49: 0 | DB49: 0 | DD49: 0 | DF49: 0 | DH49: 0 | DJ49: 0 | DL49: 0 | DN49: 0 | DP49: 0 | DR49: 0 | DT49: 0 | DV49: 0 | DX49: 0 | DZ49: 0 | EB49: 0
C50: 11 | D50: =HLOOKUP($C50,'Dados Gerais'!$D$6:$BK$11,6) -> VIGILANTE VESPERTINO ESTACIONAMENTOS Escala 40 horas semanais 14h às 23h 2ª à 6ª feira | I50: =HLOOKUP($C50,'Dados Gerais'!$D$6:$BK$15,10) -> 24 | L50: 0 | N50: 0 | P50: 0 | R50: 0 | T50: 0 | V50: 0 | X50: 0 | Z50: 0 | AB50: 0 | AD50: 0 | AF50: 1 | AH50: 0 | AJ50: 0 | AL50: 0 | AN50: 0 | AP50: 0 | AR50: 0 | AT50: 0 | AV50: 0 | AX50: 0 | AZ50: 0 | BB50: 0 | BD50: 0 | BF50: 0 | BH50: 0 | BJ50: 0 | BL50: 0 | BN50: 0 | BP50: 0 | BR50: 0 | BT50: 0 | BV50: 0 | BX50: 0 | BZ50: 0 | CB50: 0 | CD50: 0 | CF50: 0 | CH50: 0 | CJ50: 0 | CL50: 0 | CN50: 0 | CP50: 0 | CR50: 0 | CT50: 0 | CV50: 0 | CX50: 0 | CZ50: 0 | DB50: 0 | DD50: 0 | DF50: 0 | DH50: 0 | DJ50: 0 | DL50: 0 | DN50: 0 | DP50: 0 | DR50: 0 | DT50: 0 | DV50: 0 | DX50: 0 | DZ50: 0 | EB50: 0
C53: ITEM | D53: DESCRIÇÃO | E53: QUANT ANUAL POR POSTO | G53: Nº DE POSTOS | H53: QUANT ANUAL TOTAL ESTIMADA | I53: VALOR
D55: Calças tática na cor preta, em tecido ripstop (algodão 35% e poliester 65%), com 06 bolsos | E55: 4 | G55: =SUM($I$50:$I$51) -> 24 | H55: =ROUNDUP(E55*G55,0) -> 96 | I55: 303.67 | M55: =IF(SUM(L$48:L$52)>0,$H55*$I55,0)/SUM($I$50:$I$51) -> 0 | O55: =IF(SUM(N$48:N$52)>0,$H55*$I55,0)/SUM($I$50:$I$51) -> 0 | Q55: =IF(SUM(P$48:P$52)>0,$H55*$I55,0)/SUM($I$50:$I$51) -> 0 | S55: =IF(SUM(R$48:R$52)>0,$H55*$I55,0)/SUM($I$50:$I$51) -> 0 | U55: =IF(SUM(T$48:T$52)>0,$H55*$I55,0)/SUM($I$50:$I$51) -> 0 | W55: =IF(SUM(V$48:V$52)>0,$H55*$I55,0)/SUM($I$50:$I$51) -> 0 | Y55: =IF(SUM(X$48:X$52)>0,$H55*$I55,0)/SUM($I$50:$I$51) -> 0 | AA55: =IF(SUM(Z$48:Z$52)>0,$H55*$I55,0)/SUM($I$50:$I$51) -> 0 | AC55: =IF(SUM(AB$48:AB$52)>0,$H55*$I55,0)/SUM($I$50:$I$51) -> 0 | AE55: =IF(SUM(AD$48:AD$52)>0,$H55*$I55,0)/SUM($I$50:$I$51) -> 1214.68 | AG55: =IF(SUM(AF$48:AF$52)>0,$H55*$I55,0)/SUM($I$50:$I$51) -> 1214.68 | AI55: =IF(SUM(AH$48:AH$52)>0,$H55*$I55,0)/SUM($I$50:$I$51) -> 0 | AK55: =IF(SUM(AJ$48:AJ$52)>0,$H55*$I55,0)/SUM($I$50:$I$51) -> 0 | AM55: =IF(SUM(AL$48:AL$52)>0,$H55*$I55,0)/SUM($I$50:$I$51) -> 0 | AO55: =IF(SUM(AN$48:AN$52)>0,$H55*$I55,0)/SUM($I$50:$I$51) -> 0 | AQ55: =IF(SUM(AP$48:AP$52)>0,$H55*$I55,0)/SUM($I$50:$I$51) -> 0 | AS55: =IF(SUM(AR$48:AR$52)>0,$H55*$I55,0)/SUM($I$50:$I$51) -> 0 | AU55: =IF(SUM(AT$48:AT$52)>0,$H55*$I55,0)/SUM($I$50:$I$51) -> 0 | AW55: =IF(SUM(AV$48:AV$52)>0,$H55*$I55,0)/SUM($I$50:$I$51) -> 0 | AY55: =IF(SUM(AX$48:AX$52)>0,$H55*$I55,0)/SUM($I$50:$I$51) -> 0 | BA55: =IF(SUM(AZ$48:AZ$52)>0,$H55*$I55,0)/SUM($I$50:$I$51) -> 0 | BC55: =IF(SUM(BB$48:BB$52)>0,$H55*$I55,0)/SUM($I$50:$I$51) -> 0 | BE55: =IF(SUM(BD$48:BD$52)>0,$H55*$I55,0)/SUM($I$50:$I$51) -> 0 | BG55: =IF(SUM(BF$48:BF$52)>0,$H55*$I55,0)/SUM($I$50:$I$51) -> 0 | BI55: =IF(SUM(BH$48:BH$52)>0,$H55*$I55,0)/SUM($I$50:$I$51) -> 0 | BK55: =IF(SUM(BJ$48:BJ$52)>0,$H55*$I55,0)/SUM($I$50:$I$51) -> 0 | BM55: =IF(SUM(BL$48:BL$52)>0,$H55*$I55,0)/SUM($I$50:$I$51) -> 0 | BO55: =IF(SUM(BN$48:BN$52)>0,$H55*$I55,0)/SUM($I$50:$I$51) -> 0 | BQ55: =IF(SUM(BP$48:BP$52)>0,$H55*$I55,0)/SUM($I$50:$I$51) -> 0 | BS55: =IF(SUM(BR$48:BR$52)>0,$H55*$I55,0)/SUM($I$50:$I$51) -> 0 | BU55: =IF(SUM(BT$48:BT$52)>0,$H55*$I55,0)/SUM($I$50:$I$51) -> 0 | BW55: =IF(SUM(BV$48:BV$52)>0,$H55*$I55,0)/SUM($I$50:$I$51) -> 0 | BY55: =IF(SUM(BX$48:BX$52)>0,$H55*$I55,0)/SUM($I$50:$I$51) -> 0 | CA55: =IF(SUM(BZ$48:BZ$52)>0,$H55*$I55,0)/SUM($I$50:$I$51) -> 0 | CC55: =IF(SUM(CB$48:CB$52)>0,$H55*$I55,0)/SUM($I$50:$I$51) -> 0 | CE55: =IF(SUM(CD$48:CD$52)>0,$H55*$I55,0)/SUM($I$50:$I$51) -> 0 | CG55: =IF(SUM(CF$48:CF$52)>0,$H55*$I55,0)/SUM($I$50:$I$51) -> 0 | CI55: =IF(SUM(CH$48:CH$52)>0,$H55*$I55,0)/SUM($I$50:$I$51) -> 0 | CK55: =IF(SUM(CJ$48:CJ$52)>0,$H55*$I55,0)/SUM($I$50:$I$51) -> 0 | CM55: =IF(SUM(CL$48:CL$52)>0,$H55*$I55,0)/SUM($I$50:$I$51) -> 0 | CO55: =IF(SUM(CN$48:CN$52)>0,$H55*$I55,0)/SUM($I$50:$I$51) -> 0 | CQ55: =IF(SUM(CP$48:CP$52)>0,$H55*$I55,0)/SUM($I$50:$I$51) -> 0 | CS55: =IF(SUM(CR$48:CR$52)>0,$H55*$I55,0)/SUM($I$50:$I$51) -> 0 | CU55: =IF(SUM(CT$48:CT$52)>0,$H55*$I55,0)/SUM($I$50:$I$51) -> 0 | CW55: =IF(SUM(CV$48:CV$52)>0,$H55*$I55,0)/SUM($I$50:$I$51) -> 0 | CY55: =IF(SUM(CX$48:CX$52)>0,$H55*$I55,0)/SUM($I$50:$I$51) -> 0 | DA55: =IF(SUM(CZ$48:CZ$52)>0,$H55*$I55,0)/SUM($I$50:$I$51) -> 0 | DC55: =IF(SUM(DB$48:DB$52)>0,$H55*$I55,0)/SUM($I$50:$I$51) -> 0 | DE55: =IF(SUM(DD$48:DD$52)>0,$H55*$I55,0)/SUM($I$50:$I$51) -> 0 | DG55: =IF(SUM(DF$48:DF$52)>0,$H55*$I55,0)/SUM($I$50:$I$51) -> 0 | DI55: =IF(SUM(DH$48:DH$52)>0,$H55*$I55,0)/SUM($I$50:$I$51) -> 0 | DK55: =IF(SUM(DJ$48:DJ$52)>0,$H55*$I55,0)/SUM($I$50:$I$51) -> 0 | DM55: =IF(SUM(DL$48:DL$52)>0,$H55*$I55,0)/SUM($I$50:$I$51) -> 0 | DO55: =IF(SUM(DN$48:DN$52)>0,$H55*$I55,0)/SUM($I$50:$I$51) -> 0 | DQ55: =IF(SUM(DP$48:DP$52)>0,$H55*$I55,0)/SUM($I$50:$I$51) -> 0 | DS55: =IF(SUM(DR$48:DR$52)>0,$H55*$I55,0)/SUM($I$50:$I$51) -> 0 | DU55: =IF(SUM(DT$48:DT$52)>0,$H55*$I55,0)/SUM($I$50:$I$51) -> 0 | DW55: =IF(SUM(DV$48:DV$52)>0,$H55*$I55,0)/SUM($I$50:$I$51) -> 0 | DY55: =IF(SUM(DX$48:DX$52)>0,$H55*$I55,0)/SUM($I$50:$I$51) -> 0 | EA55: =IF(SUM(DZ$48:DZ$52)>0,$H55*$I55,0)/SUM($I$50:$I$51) -> 0 | EC55: =IF(SUM(EB$48:EB$52)>0,$H55*$I55,0)/SUM($I$50:$I$51) -> 0
D56: Coturnos tático na cor preta, todo em nobuk animal com espessura de 18/20 linhas, solado de borracha anti-derrapante com blaqueação lateral, forrado com pluma e dublado com espuma de 10 mm na língua e de 12 mm na parte traseira superior, passadores de nylon, palmilha de EVA de 6 mm, dublada com tecido antimicrobiano entressola de EVA moldado e comprimido, tornozelo moldado e reforçado, marca de ref. Kallucci | E56: 2 | G56: =G55 -> 24 | H56: =ROUNDUP(E56*G56,0) -> 48 | I56: 416.3 | M56: 0 | O56: =IF(SUM(N$48:N$52)>0,$H56*$I56,0)/SUM($I$50:$I$51) -> 0 | Q56: =IF(SUM(P$48:P$52)>0,$H56*$I56,0)/SUM($I$50:$I$51) -> 0 | S56: =IF(SUM(R$48:R$52)>0,$H56*$I56,0)/SUM($I$50:$I$51) -> 0 | U56: =IF(SUM(T$48:T$52)>0,$H56*$I56,0)/SUM($I$50:$I$51) -> 0 | W56: =IF(SUM(V$48:V$52)>0,$H56*$I56,0)/SUM($I$50:$I$51) -> 0 | Y56: =IF(SUM(X$48:X$52)>0,$H56*$I56,0)/SUM($I$50:$I$51) -> 0 | AA56: =IF(SUM(Z$48:Z$52)>0,$H56*$I56,0)/SUM($I$50:$I$51) -> 0 | AC56: =IF(SUM(AB$48:AB$52)>0,$H56*$I56,0)/SUM($I$50:$I$51) -> 0 | AE56: =IF(SUM(AD$48:AD$52)>0,$H56*$I56,0)/SUM($I$50:$I$51) -> 832.6 | AG56: =IF(SUM(AF$48:AF$52)>0,$H56*$I56,0)/SUM($I$50:$I$51) -> 832.6 | AI56: =IF(SUM(AH$48:AH$52)>0,$H56*$I56,0)/SUM($I$50:$I$51) -> 0 | AK56: =IF(SUM(AJ$48:AJ$52)>0,$H56*$I56,0)/SUM($I$50:$I$51) -> 0 | AM56: =IF(SUM(AL$48:AL$52)>0,$H56*$I56,0)/SUM($I$50:$I$51) -> 0 | AO56: =IF(SUM(AN$48:AN$52)>0,$H56*$I56,0)/SUM($I$50:$I$51) -> 0 | AQ56: =IF(SUM(AP$48:AP$52)>0,$H56*$I56,0)/SUM($I$50:$I$51) -> 0 | AS56: =IF(SUM(AR$48:AR$52)>0,$H56*$I56,0)/SUM($I$50:$I$51) -> 0 | AU56: =IF(SUM(AT$48:AT$52)>0,$H56*$I56,0)/SUM($I$50:$I$51) -> 0 | AW56: =IF(SUM(AV$48:AV$52)>0,$H56*$I56,0)/SUM($I$50:$I$51) -> 0 | AY56: =IF(SUM(AX$48:AX$52)>0,$H56*$I56,0)/SUM($I$50:$I$51) -> 0 | BA56: =IF(SUM(AZ$48:AZ$52)>0,$H56*$I56,0)/SUM($I$50:$I$51) -> 0 | BC56: =IF(SUM(BB$48:BB$52)>0,$H56*$I56,0)/SUM($I$50:$I$51) -> 0 | BE56: =IF(SUM(BD$48:BD$52)>0,$H56*$I56,0)/SUM($I$50:$I$51) -> 0 | BG56: =IF(SUM(BF$48:BF$52)>0,$H56*$I56,0)/SUM($I$50:$I$51) -> 0 | BI56: =IF(SUM(BH$48:BH$52)>0,$H56*$I56,0)/SUM($I$50:$I$51) -> 0 | BK56: =IF(SUM(BJ$48:BJ$52)>0,$H56*$I56,0)/SUM($I$50:$I$51) -> 0 | BM56: =IF(SUM(BL$48:BL$52)>0,$H56*$I56,0)/SUM($I$50:$I$51) -> 0 | BO56: =IF(SUM(BN$48:BN$52)>0,$H56*$I56,0)/SUM($I$50:$I$51) -> 0 | BQ56: =IF(SUM(BP$48:BP$52)>0,$H56*$I56,0)/SUM($I$50:$I$51) -> 0 | BS56: =IF(SUM(BR$48:BR$52)>0,$H56*$I56,0)/SUM($I$50:$I$51) -> 0 | BU56: =IF(SUM(BT$48:BT$52)>0,$H56*$I56,0)/SUM($I$50:$I$51) -> 0 | BW56: =IF(SUM(BV$48:BV$52)>0,$H56*$I56,0)/SUM($I$50:$I$51) -> 0 | BY56: =IF(SUM(BX$48:BX$52)>0,$H56*$I56,0)/SUM($I$50:$I$51) -> 0 | CA56: =IF(SUM(BZ$48:BZ$52)>0,$H56*$I56,0)/SUM($I$50:$I$51) -> 0 | CC56: =IF(SUM(CB$48:CB$52)>0,$H56*$I56,0)/SUM($I$50:$I$51) -> 0 | CE56: =IF(SUM(CD$48:CD$52)>0,$H56*$I56,0)/SUM($I$50:$I$51) -> 0 | CG56: =IF(SUM(CF$48:CF$52)>0,$H56*$I56,0)/SUM($I$50:$I$51) -> 0 | CI56: =IF(SUM(CH$48:CH$52)>0,$H56*$I56,0)/SUM($I$50:$I$51) -> 0 | CK56: =IF(SUM(CJ$48:CJ$52)>0,$H56*$I56,0)/SUM($I$50:$I$51) -> 0 | CM56: =IF(SUM(CL$48:CL$52)>0,$H56*$I56,0)/SUM($I$50:$I$51) -> 0 | CO56: =IF(SUM(CN$48:CN$52)>0,$H56*$I56,0)/SUM($I$50:$I$51) -> 0 | CQ56: =IF(SUM(CP$48:CP$52)>0,$H56*$I56,0)/SUM($I$50:$I$51) -> 0 | CS56: =IF(SUM(CR$48:CR$52)>0,$H56*$I56,0)/SUM($I$50:$I$51) -> 0 | CU56: =IF(SUM(CT$48:CT$52)>0,$H56*$I56,0)/SUM($I$50:$I$51) -> 0 | CW56: =IF(SUM(CV$48:CV$52)>0,$H56*$I56,0)/SUM($I$50:$I$51) -> 0 | CY56: =IF(SUM(CX$48:CX$52)>0,$H56*$I56,0)/SUM($I$50:$I$51) -> 0 | DA56: =IF(SUM(CZ$48:CZ$52)>0,$H56*$I56,0)/SUM($I$50:$I$51) -> 0 | DC56: =IF(SUM(DB$48:DB$52)>0,$H56*$I56,0)/SUM($I$50:$I$51) -> 0 | DE56: =IF(SUM(DD$48:DD$52)>0,$H56*$I56,0)/SUM($I$50:$I$51) -> 0 | DG56: =IF(SUM(DF$48:DF$52)>0,$H56*$I56,0)/SUM($I$50:$I$51) -> 0 | DI56: =IF(SUM(DH$48:DH$52)>0,$H56*$I56,0)/SUM($I$50:$I$51) -> 0 | DK56: =IF(SUM(DJ$48:DJ$52)>0,$H56*$I56,0)/SUM($I$50:$I$51) -> 0 | DM56: =IF(SUM(DL$48:DL$52)>0,$H56*$I56,0)/SUM($I$50:$I$51) -> 0 | DO56: =IF(SUM(DN$48:DN$52)>0,$H56*$I56,0)/SUM($I$50:$I$51) -> 0 | DQ56: =IF(SUM(DP$48:DP$52)>0,$H56*$I56,0)/SUM($I$50:$I$51) -> 0 | DS56: =IF(SUM(DR$48:DR$52)>0,$H56*$I56,0)/SUM($I$50:$I$51) -> 0 | DU56: =IF(SUM(DT$48:DT$52)>0,$H56*$I56,0)/SUM($I$50:$I$51) -> 0 | DW56: =IF(SUM(DV$48:DV$52)>0,$H56*$I56,0)/SUM($I$50:$I$51) -> 0 | DY56: =IF(SUM(DX$48:DX$52)>0,$H56*$I56,0)/SUM($I$50:$I$51) -> 0 | EA56: =IF(SUM(DZ$48:DZ$52)>0,$H56*$I56,0)/SUM($I$50:$I$51) -> 0 | EC56: =IF(SUM(EB$48:EB$52)>0,$H56*$I56,0)/SUM($I$50:$I$51) -> 0
